Workbook

Sheet Input
B3: Informace o objektu
B4: Město/Obec
B5: Zeměpisná šířka
B6: Zeměpisná délka
B9: Základní technické údaje | J9: Nákup EE ze sítě | K9: 1035 | L9: MWh
B10: Rezervovaný příkon | C10: 500 | D10: kW | J10: roční rezervovaná kap RRK | K10: 0.5 | L10: MW
B11: Požadovaný max. příkon | C11: 1600 | D11: kW | I11: Cena elektřiny
B12: Max příkon srovnatelného objektu | C12: 1035 | D12: kW | K12: Kč
B13: Podíl požadovaný/aktuální max příkon | C13: =C11/C12 -> 1.54589372 | I13: Nezávislé na odebraném množství
I14: Roční rezervovaná kapacita (Kč/MW/měs) | J14: 174541 | K14: =12*K10*J14 -> 1047246
B15: Základní ekonomické údaje | I15: poplatek OTE (Kč/měs/OM) | J15: 5.4 | K15: =12*J15 -> 64.8
B16: Cena proměnné složky EE | C16: =K25 -> 1.7984 | D16: Kč/kW | I16: Podpora POZE (Kč/MW/měsíc) | J16: 58944.64 | K16: =J16*12*K10 -> 353667.84
B17: Cena roční rezervované kapacity | C17: 174541 | D17: Kč/MW/měsíc | I17: Cena za překročení RK (Kč/MW) | J17: =J14*4 -> 698164
B18: Cena mesíční rezervované kapacity | C18: 191158 | D18: Kč/MW/měsíc | I18: Cena za překročení RP (Kč/MW) | J18: =194125*4 -> 776500
B19: Cena za překročení příkonu | C19: =4*C18 -> 764632 | D19: Kč/MW | I19: Závislé na odebraném množství | K19: Kč/MWh
B20: Cena za prekroceni kapacity | C20: =4*C17 -> 698164 | D20: Kč/MW | I20: Silová EE | K20: 1646
B21: Cena plynu | C21: 8.9 | D21: Kc/m3 | I21: Poplatek za použití sítí | K21: 47.91
B22: Diskont | C22: 0.05 | D22: =1+C22 -> 1.05 | I22: Systémové služby | K22: 76.19
B23: Cena tepla | C23: 440 | D23: Kc/GJ bez DPH | I23: Ekologická daň | K23: 28.3
I24: Celková platba | K24: =SUM(K20:K23) -> 1798.4
K25: =K24/1000 -> 1.7984 | L25: Kc/kWh
B27: FV | H27: 569000 | I27: =H27/2370 -> 240.0843882
B28: Velikost prostoru pro výstavbu FVE | C28: 2988 | D28: m2 | E28: 3085 | F28: 569 kWp
B29: výška | D29: m | E29: =1.64*0.992 -> 1.62688 | F29: =569000/275 -> 2069.090909 | G29: =F29*E29 -> 3366.162618
B30: šířka | D30: m | E30: =1.58*0.798 -> 1.26084 | F30: =E30*2370 -> 2988.1908
B31: Sklon panelů | C31: 15 | E31: Doporučený sklon 15°. Lze použít systém SCHUCO určený na panely o šířce (výšce) 983mm. V takovém případě je délka konstrukce 1134mm s doporučenou vzdáleností mezi řadami 590 - 965 mm
B32: Azimut panelů | C32: 21
B33: Požadovaná rozteč
B34: Investiční náklady | D34: Kč/kWp
B35: Životnost
B36: Roční pkles výkonu
B37: Cena revize (á 4 roky)
B38: Náklady na údržbu
B39: Výše provozní dotace
B40: Výše investiční dotace
B41: Očekávaná účinnost systému za FV panelem | C41: 0.9
B43: KGJ
B44: Výhřevnost plynu | C44: 33.48 | D44: MJ/m3 | I44: Zelený bonus
B45: Provozní náklady | C45: 0.4 | D45: Kč/kWhe | I45: Instalovaný výkon (kWe) | J45: provozní doba (h/rok) | K45: Dotace (Kč/MWh)
I46: 0 - 200 | J46: 3000 | K46: 938 | M46: =J46*K46 -> 2814000
I47: 0 - 200 | J47: 4400 | K47: 519 | M47: =J47*K47 -> 2283600
I48: 200 - 1 000 | J48: 3000 | K48: 571 | M48: =J48*K48 -> 1713000
I49: 200 - 1 000 | J49: 4400 | K49: 204 | M49: =J49*K49 -> 897600
I50: 1 000 - 5 000 | J50: 3000 | K50: 281
I51: 1 000 - 5 000 | J51: 4400 | K51: 0
B57: Další náklady
B58: Projektová dokumentace | C58: 150000
B59: Akumulační nádrž | C59: 12500 | D59: Kč/m3
B60: Vzduchotechnika | C60: 250000
B61: Komín | C61: 300000
B62: Automatizace | C62: 400000
B63: Povolení a administrativa | C63: 200000
B64: Cena připoení k VN | C64: 150000 | D64: Kč/MW
B65: Další výdaje

Sheet Data El.
A1: Čas | B1: Příkon [kW] | D1: Max to Min | G1: Max to Min | H1: =SUM(G2:G35035)/4000 -> 7931.489082
A2: 2017-10-01 | B2: 465 | C2: 465 | D2: 1035 | F2: 718.8405797 | G2: 1600 | H2: 0.05 | I2: 2017-10-01 | J2: 468.25 | L2: 2017-10-01 | M2: 12010 | N2: =G12001 -> 955.3623188 | O2: 3000
A3: 2017-10-01T00:15:00 | B3: 478 | C3: 478 | D3: 996 | F3: 738.9371981 | G3: 1539.710145 | H3: =$G$2*(1-H2) -> 1520 | I3: 2017-10-01T01:00:00 | J3: 451.75 | L3: 2017-10-02 | M3: 13396 | N3: =G17601 -> 887.3429952 | O3: 4400
A4: 2017-10-01T00:30:00 | B4: 484 | C4: 484 | D4: 996 | F4: 748.2125604 | G4: 1539.710145 | H4: =PocetHodnot(H3,$G$2) -> 1 | I4: 2017-10-01T02:00:00 | J4: 406 | L4: 2017-10-03 | M4: 14306
A5: 2017-10-01T00:45:00 | B5: 446 | C5: 446 | D5: 994 | F5: 689.468599 | G5: 1536.618357 | H5: 0.1 | I5: 2017-10-01T03:00:00 | J5: 430.25 | L5: 2017-10-04 | M5: 14112
A6: 2017-10-01T01:00:00 | B6: 470 | C6: 470 | D6: 994 | F6: 726.5700483 | G6: 1536.618357 | H6: =$G$2*(1-H5) -> 1440 | I6: 2017-10-01T04:00:00 | J6: 390 | L6: 2017-10-05 | M6: 14197
A7: 2017-10-01T01:15:00 | B7: 444 | C7: 444 | D7: 994 | F7: 686.3768116 | G7: 1536.618357 | H7: =PocetHodnot(H6,$G$2) -> 1 | I7: 2017-10-01T05:00:00 | J7: 412 | L7: 2017-10-06 | M7: 14250
A8: 2017-10-01T01:30:00 | B8: 462 | C8: 462 | D8: 993 | F8: 714.2028986 | G8: 1535.072464 | H8: 0.15 | I8: 2017-10-01T06:00:00 | J8: 468.5 | L8: 2017-10-07 | M8: 13371
A9: 2017-10-01T01:45:00 | B9: 431 | C9: 431 | D9: 993 | F9: 666.2801932 | G9: 1535.072464 | H9: =$G$2*(1-H8) -> 1360 | I9: 2017-10-01T07:00:00 | J9: 473.5 | L9: 2017-10-08 | M9: 12642 | Q9: =4380/H1 -> 0.5522292163
A10: 2017-10-01T02:00:00 | B10: 409 | C10: 409 | D10: 992 | F10: 632.2705314 | G10: 1533.52657 | H10: =PocetHodnot(H9,$G$2) -> 1 | I10: 2017-10-01T08:00:00 | J10: 512 | L10: 2017-10-09 | M10: 13870
A11: 2017-10-01T02:15:00 | B11: 392 | C11: 392 | D11: 991 | F11: 605.9903382 | G11: 1531.980676 | H11: 0.2 | I11: 2017-10-01T09:00:00 | J11: 546.75 | L11: 2017-10-10 | M11: 14037
A12: 2017-10-01T02:30:00 | B12: 392 | C12: 392 | D12: 989 | F12: 605.9903382 | G12: 1528.888889 | H12: =$G$2*(1-H11) -> 1280 | I12: 2017-10-01T10:00:00 | J12: 560.75 | L12: 2017-10-11 | M12: 13847
A13: 2017-10-01T02:45:00 | B13: 431 | C13: 431 | D13: 988 | F13: 666.2801932 | G13: 1527.342995 | H13: =PocetHodnot(H12,$G$2) -> 1 | I13: 2017-10-01T11:00:00 | J13: 549.25 | L13: 2017-10-12 | M13: 14251
A14: 2017-10-01T03:00:00 | B14: 415 | C14: 415 | D14: 987 | F14: 641.5458937 | G14: 1525.797101 | H14: 0.3 | I14: 2017-10-01T12:00:00 | J14: 553.5 | L14: 2017-10-13 | M14: 14299
A15: 2017-10-01T03:15:00 | B15: 427 | C15: 427 | D15: 987 | F15: 660.0966184 | G15: 1525.797101 | H15: =$G$2*(1-H14) -> 1120 | I15: 2017-10-01T13:00:00 | J15: 562 | L15: 2017-10-14 | M15: 13072
A16: 2017-10-01T03:30:00 | B16: 431 | C16: 431 | D16: 985 | F16: 666.2801932 | G16: 1522.705314 | H16: =PocetHodnot(H15,$G$2) -> 1 | I16: 2017-10-01T14:00:00 | J16: 545 | L16: 2017-10-15 | M16: 13046
A17: 2017-10-01T03:45:00 | B17: 448 | C17: 448 | D17: 984 | F17: 692.5603865 | G17: 1521.15942 | I17: 2017-10-01T15:00:00 | J17: 573.5 | L17: 2017-10-16 | M17: 14325
A18: 2017-10-01T04:00:00 | B18: 427 | C18: 427 | D18: 984 | F18: 660.0966184 | G18: 1521.15942 | H18: 500 | I18: 2017-10-01T16:00:00 | J18: 591.5 | L18: 2017-10-17 | M18: 14686
A19: 2017-10-01T04:15:00 | B19: 367 | C19: 367 | D19: 982 | F19: 567.3429952 | G19: 1518.067633 | H19: =PocetHodnot(H18,$G$2) -> 1 | I19: 2017-10-01T17:00:00 | J19: 516.5 | L19: 2017-10-18 | M19: 14836
A20: 2017-10-01T04:30:00 | B20: 386 | C20: 386 | D20: 982 | F20: 596.7149758 | G20: 1518.067633 | I20: 2017-10-01T18:00:00 | J20: 505.5 | L20: 2017-10-19 | M20: 14750
A21: 2017-10-01T04:45:00 | B21: 380 | C21: 380 | D21: 982 | F21: 587.4396135 | G21: 1518.067633 | I21: 2017-10-01T19:00:00 | J21: 503.25 | L21: 2017-10-20 | M21: 14734
A22: 2017-10-01T05:00:00 | B22: 420 | C22: 420 | D22: 981 | F22: 649.2753623 | G22: 1516.521739 | I22: 2017-10-01T20:00:00 | J22: 519 | L22: 2017-10-21 | M22: 13560
A23: 2017-10-01T05:15:00 | B23: 396 | C23: 396 | D23: 981 | F23: 612.173913 | G23: 1516.521739 | I23: 2017-10-01T21:00:00 | J23: 528 | L23: 2017-10-22 | M23: 13260
A24: 2017-10-01T05:30:00 | B24: 414 | C24: 414 | D24: 980 | F24: 640 | G24: 1514.975845 | I24: 2017-10-01T22:00:00 | J24: 483.75 | L24: 2017-10-23 | M24: 14558
A25: 2017-10-01T05:45:00 | B25: 418 | C25: 418 | D25: 979 | F25: 646.1835749 | G25: 1513.429952 | I25: 2017-10-01T23:00:00 | J25: 460.5 | L25: 2017-10-24 | M25: 14604
A26: 2017-10-01T06:00:00 | B26: 448 | C26: 448 | D26: 979 | F26: 692.5603865 | G26: 1513.429952 | I26: 2017-10-02 | J26: 486.5 | L26: 2017-10-25 | M26: 14614
A27: 2017-10-01T06:15:00 | B27: 462 | C27: 462 | D27: 979 | F27: 714.2028986 | G27: 1513.429952 | I27: 2017-10-02T01:00:00 | J27: 452.25 | L27: 2017-10-26 | M27: 14531
A28: 2017-10-01T06:30:00 | B28: 500 | C28: 500 | D28: 978 | F28: 772.9468599 | G28: 1511.884058 | I28: 2017-10-02T02:00:00 | J28: 490 | L28: 2017-10-27 | M28: 14861
A29: 2017-10-01T06:45:00 | B29: 464 | C29: 464 | D29: 977 | F29: 717.294686 | G29: 1510.338164 | I29: 2017-10-02T03:00:00 | J29: 446 | L29: 2017-10-28 | M29: 13050
A30: 2017-10-01T07:00:00 | B30: 478 | C30: 478 | D30: 975 | F30: 738.9371981 | G30: 1507.246377 | I30: 2017-10-02T04:00:00 | J30: 397.5 | L30: 2017-10-29 | M30: 13931
A31: 2017-10-01T07:15:00 | B31: 467 | C31: 467 | D31: 973 | F31: 721.9323671 | G31: 1504.154589 | I31: 2017-10-02T05:00:00 | J31: 427.75 | L31: 2017-10-30 | M31: 14736
A32: 2017-10-01T07:30:00 | B32: 468 | C32: 468 | D32: 972 | F32: 723.4782609 | G32: 1502.608696 | I32: 2017-10-02T06:00:00 | J32: 510.75 | L32: 2017-10-31 | M32: 14647
A33: 2017-10-01T07:45:00 | B33: 481 | C33: 481 | D33: 972 | F33: 743.5748792 | G33: 1502.608696 | I33: 2017-10-02T07:00:00 | J33: 534.5 | L33: 2017-11-01 | M33: 14311
A34: 2017-10-01T08:00:00 | B34: 477 | C34: 477 | D34: 972 | F34: 737.3913043 | G34: 1502.608696 | I34: 2017-10-02T08:00:00 | J34: 555.5 | L34: 2017-11-02 | M34: 14362
A35: 2017-10-01T08:15:00 | B35: 497 | C35: 497 | D35: 972 | F35: 768.3091787 | G35: 1502.608696 | I35: 2017-10-02T09:00:00 | J35: 556.5 | L35: 2017-11-03 | M35: 14792
A36: 2017-10-01T08:30:00 | B36: 562 | C36: 562 | D36: 971 | F36: 868.7922705 | G36: 1501.062802 | I36: 2017-10-02T10:00:00 | J36: 520.25 | L36: 2017-11-04 | M36: 13834
A37: 2017-10-01T08:45:00 | B37: 512 | C37: 512 | D37: 970 | F37: 791.4975845 | G37: 1499.516908 | I37: 2017-10-02T11:00:00 | J37: 563.25 | L37: 2017-11-05 | M37: 13735
A38: 2017-10-01T09:00:00 | B38: 464 | C38: 464 | D38: 970 | F38: 717.294686 | G38: 1499.516908 | I38: 2017-10-02T12:00:00 | J38: 557.25 | L38: 2017-11-06 | M38: 14479
A39: 2017-10-01T09:15:00 | B39: 527 | C39: 527 | D39: 968 | F39: 814.6859903 | G39: 1496.425121 | I39: 2017-10-02T13:00:00 | J39: 593.5 | L39: 2017-11-07 | M39: 15310
A40: 2017-10-01T09:30:00 | B40: 597 | C40: 597 | D40: 967 | F40: 922.8985507 | G40: 1494.879227 | I40: 2017-10-02T14:00:00 | J40: 635.25 | L40: 2017-11-08 | M40: 15220
A41: 2017-10-01T09:45:00 | B41: 599 | C41: 599 | D41: 965 | F41: 925.9903382 | G41: 1491.78744 | I41: 2017-10-02T15:00:00 | J41: 670.5 | L41: 2017-11-09 | M41: 15240
A42: 2017-10-01T10:00:00 | B42: 581 | C42: 581 | D42: 965 | F42: 898.1642512 | G42: 1491.78744 | I42: 2017-10-02T16:00:00 | J42: 583 | L42: 2017-11-10 | M42: 15746
A43: 2017-10-01T10:15:00 | B43: 491 | C43: 491 | D43: 964 | F43: 759.0338164 | G43: 1490.241546 | I43: 2017-10-02T17:00:00 | J43: 518 | L43: 2017-11-11 | M43: 14174
A44: 2017-10-01T10:30:00 | B44: 591 | C44: 591 | D44: 964 | F44: 913.6231884 | G44: 1490.241546 | I44: 2017-10-02T18:00:00 | J44: 482.75 | L44: 2017-11-12 | M44: 14166
A45: 2017-10-01T10:45:00 | B45: 580 | C45: 580 | D45: 962 | F45: 896.6183575 | G45: 1487.149758 | I45: 2017-10-02T19:00:00 | J45: 481.75 | L45: 2017-11-13 | M45: 15101
A46: 2017-10-01T11:00:00 | B46: 550 | C46: 550 | D46: 961 | F46: 850.2415459 | G46: 1485.603865 | I46: 2017-10-02T20:00:00 | J46: 481.25 | L46: 2017-11-14 | M46: 15376
A47: 2017-10-01T11:15:00 | B47: 562 | C47: 562 | D47: 960 | F47: 868.7922705 | G47: 1484.057971 | I47: 2017-10-02T21:00:00 | J47: 500.25 | L47: 2017-11-15 | M47: 15283
A48: 2017-10-01T11:30:00 | B48: 520 | C48: 520 | D48: 959 | F48: 803.8647343 | G48: 1482.512077 | I48: 2017-10-02T22:00:00 | J48: 460.5 | L48: 2017-11-16 | M48: 14706
A49: 2017-10-01T11:45:00 | B49: 565 | C49: 565 | D49: 959 | F49: 873.4299517 | G49: 1482.512077 | I49: 2017-10-02T23:00:00 | J49: 464 | L49: 2017-11-17 | M49: 14336
A50: 2017-10-01T12:00:00 | B50: 569 | C50: 569 | D50: 958 | F50: 879.6135266 | G50: 1480.966184 | I50: 2017-10-03 | J50: 493.25 | L50: 2017-11-18 | M50: 14060
A51: 2017-10-01T12:15:00 | B51: 529 | C51: 529 | D51: 957 | F51: 817.7777778 | G51: 1479.42029 | I51: 2017-10-03T01:00:00 | J51: 490.5 | L51: 2017-11-19 | M51: 13123
A52: 2017-10-01T12:30:00 | B52: 561 | C52: 561 | D52: 956 | F52: 867.2463768 | G52: 1477.874396 | I52: 2017-10-03T02:00:00 | J52: 505.5 | L52: 2017-11-20 | M52: 13926
A53: 2017-10-01T12:45:00 | B53: 555 | C53: 555 | D53: 948 | F53: 857.9710145 | G53: 1465.507246 | I53: 2017-10-03T03:00:00 | J53: 514.5 | L53: 2017-11-21 | M53: 14162
A54: 2017-10-01T13:00:00 | B54: 565 | C54: 565 | D54: 947 | F54: 873.4299517 | G54: 1463.961353 | I54: 2017-10-03T04:00:00 | J54: 466.5 | L54: 2017-11-22 | M54: 14508
A55: 2017-10-01T13:15:00 | B55: 561 | C55: 561 | D55: 945 | F55: 867.2463768 | G55: 1460.869565 | I55: 2017-10-03T05:00:00 | J55: 469 | L55: 2017-11-23 | M55: 14328
A56: 2017-10-01T13:30:00 | B56: 597 | C56: 597 | D56: 944 | F56: 922.8985507 | G56: 1459.323671 | I56: 2017-10-03T06:00:00 | J56: 511 | L56: 2017-11-24 | M56: 14514
A57: 2017-10-01T13:45:00 | B57: 525 | C57: 525 | D57: 944 | F57: 811.5942029 | G57: 1459.323671 | I57: 2017-10-03T07:00:00 | J57: 540 | L57: 2017-11-25 | M57: 13426
A58: 2017-10-01T14:00:00 | B58: 522 | C58: 522 | D58: 944 | F58: 806.9565217 | G58: 1459.323671 | I58: 2017-10-03T08:00:00 | J58: 607 | L58: 2017-11-26 | M58: 13342
A59: 2017-10-01T14:15:00 | B59: 525 | C59: 525 | D59: 943 | F59: 811.5942029 | G59: 1457.777778 | I59: 2017-10-03T09:00:00 | J59: 617.75 | L59: 2017-11-27 | M59: 13731
A60: 2017-10-01T14:30:00 | B60: 552 | C60: 552 | D60: 943 | F60: 853.3333333 | G60: 1457.777778 | I60: 2017-10-03T10:00:00 | J60: 579.5 | L60: 2017-11-28 | M60: 14082
A61: 2017-10-01T14:45:00 | B61: 581 | C61: 581 | D61: 943 | F61: 898.1642512 | G61: 1457.777778 | I61: 2017-10-03T11:00:00 | J61: 605 | L61: 2017-11-29 | M61: 14399
A62: 2017-10-01T15:00:00 | B62: 548 | C62: 548 | D62: 943 | F62: 847.1497585 | G62: 1457.777778 | I62: 2017-10-03T12:00:00 | J62: 566.5 | L62: 2017-11-30 | M62: 14706
A63: 2017-10-01T15:15:00 | B63: 575 | C63: 575 | D63: 943 | F63: 888.8888889 | G63: 1457.777778 | I63: 2017-10-03T13:00:00 | J63: 627 | L63: 2017-12-01 | M63: 14346
A64: 2017-10-01T15:30:00 | B64: 581 | C64: 581 | D64: 942 | F64: 898.1642512 | G64: 1456.231884 | I64: 2017-10-03T14:00:00 | J64: 633.25 | L64: 2017-12-02 | M64: 13694
A65: 2017-10-01T15:45:00 | B65: 590 | C65: 590 | D65: 941 | F65: 912.0772947 | G65: 1454.68599 | I65: 2017-10-03T15:00:00 | J65: 708 | L65: 2017-12-03 | M65: 13302
A66: 2017-10-01T16:00:00 | B66: 594 | C66: 594 | D66: 940 | F66: 918.2608696 | G66: 1453.140097 | I66: 2017-10-03T16:00:00 | J66: 674.25 | L66: 2017-12-04 | M66: 14568
A67: 2017-10-01T16:15:00 | B67: 572 | C67: 572 | D67: 940 | F67: 884.2512077 | G67: 1453.140097 | I67: 2017-10-03T17:00:00 | J67: 597.25 | L67: 2017-12-05 | M67: 15670
A68: 2017-10-01T16:30:00 | B68: 605 | C68: 605 | D68: 940 | F68: 935.2657005 | G68: 1453.140097 | I68: 2017-10-03T18:00:00 | J68: 526.25 | L68: 2017-12-06 | M68: 15427
A69: 2017-10-01T16:45:00 | B69: 595 | C69: 595 | D69: 937 | F69: 919.8067633 | G69: 1448.502415 | I69: 2017-10-03T19:00:00 | J69: 515 | L69: 2017-12-07 | M69: 14996
A70: 2017-10-01T17:00:00 | B70: 586 | C70: 586 | D70: 935 | F70: 905.8937198 | G70: 1445.410628 | I70: 2017-10-03T20:00:00 | J70: 531.5 | L70: 2017-12-08 | M70: 14779
A71: 2017-10-01T17:15:00 | B71: 504 | C71: 504 | D71: 935 | F71: 779.1304348 | G71: 1445.410628 | I71: 2017-10-03T21:00:00 | J71: 536.5 | L71: 2017-12-09 | M71: 13804
A72: 2017-10-01T17:30:00 | B72: 487 | C72: 487 | D72: 934 | F72: 752.8502415 | G72: 1443.864734 | I72: 2017-10-03T22:00:00 | J72: 497.5 | L72: 2017-12-10 | M72: 13324
A73: 2017-10-01T17:45:00 | B73: 489 | C73: 489 | D73: 934 | F73: 755.942029 | G73: 1443.864734 | I73: 2017-10-03T23:00:00 | J73: 505.5 | L73: 2017-12-11 | M73: 14294
A74: 2017-10-01T18:00:00 | B74: 493 | C74: 493 | D74: 934 | F74: 762.1256039 | G74: 1443.864734 | I74: 2017-10-04 | J74: 537.5 | L74: 2017-12-12 | M74: 14674
A75: 2017-10-01T18:15:00 | B75: 524 | C75: 524 | D75: 933 | F75: 810.0483092 | G75: 1442.318841 | I75: 2017-10-04T01:00:00 | J75: 540 | L75: 2017-12-13 | M75: 14967
A76: 2017-10-01T18:30:00 | B76: 514 | C76: 514 | D76: 933 | F76: 794.589372 | G76: 1442.318841 | I76: 2017-10-04T02:00:00 | J76: 510.25 | L76: 2017-12-14 | M76: 15047
A77: 2017-10-01T18:45:00 | B77: 491 | C77: 491 | D77: 931 | F77: 759.0338164 | G77: 1439.227053 | I77: 2017-10-04T03:00:00 | J77: 466.25 | L77: 2017-12-15 | M77: 15197
A78: 2017-10-01T19:00:00 | B78: 493 | C78: 493 | D78: 930 | F78: 762.1256039 | G78: 1437.681159 | I78: 2017-10-04T04:00:00 | J78: 427.25 | L78: 2017-12-16 | M78: 14043
A79: 2017-10-01T19:15:00 | B79: 517 | C79: 517 | D79: 930 | F79: 799.2270531 | G79: 1437.681159 | I79: 2017-10-04T05:00:00 | J79: 430.5 | L79: 2017-12-17 | M79: 13993
A80: 2017-10-01T19:30:00 | B80: 521 | C80: 521 | D80: 930 | F80: 805.410628 | G80: 1437.681159 | I80: 2017-10-04T06:00:00 | J80: 502.75 | L80: 2017-12-18 | M80: 14204
A81: 2017-10-01T19:45:00 | B81: 482 | C81: 482 | D81: 928 | F81: 745.1207729 | G81: 1434.589372 | I81: 2017-10-04T07:00:00 | J81: 569.75 | L81: 2017-12-19 | M81: 15389
A82: 2017-10-01T20:00:00 | B82: 494 | C82: 494 | D82: 926 | F82: 763.6714976 | G82: 1431.497585 | I82: 2017-10-04T08:00:00 | J82: 586.75 | L82: 2017-12-20 | M82: 15664
A83: 2017-10-01T20:15:00 | B83: 496 | C83: 496 | D83: 926 | F83: 766.763285 | G83: 1431.497585 | I83: 2017-10-04T09:00:00 | J83: 587 | L83: 2017-12-21 | M83: 15698
A84: 2017-10-01T20:30:00 | B84: 538 | C84: 538 | D84: 925 | F84: 831.6908213 | G84: 1429.951691 | I84: 2017-10-04T10:00:00 | J84: 554.5 | L84: 2017-12-22 | M84: 15622
A85: 2017-10-01T20:45:00 | B85: 548 | C85: 548 | D85: 925 | F85: 847.1497585 | G85: 1429.951691 | I85: 2017-10-04T11:00:00 | J85: 566.75 | L85: 2017-12-23 | M85: 14484
A86: 2017-10-01T21:00:00 | B86: 572 | C86: 572 | D86: 924 | F86: 884.2512077 | G86: 1428.405797 | I86: 2017-10-04T12:00:00 | J86: 570.5 | L86: 2017-12-24 | M86: 10859
A87: 2017-10-01T21:15:00 | B87: 514 | C87: 514 | D87: 924 | F87: 794.589372 | G87: 1428.405797 | I87: 2017-10-04T13:00:00 | J87: 576.75 | L87: 2017-12-25 | M87: 10769
A88: 2017-10-01T21:30:00 | B88: 525 | C88: 525 | D88: 924 | F88: 811.5942029 | G88: 1428.405797 | I88: 2017-10-04T14:00:00 | J88: 587.25 | L88: 2017-12-26 | M88: 13489
A89: 2017-10-01T21:45:00 | B89: 501 | C89: 501 | D89: 924 | F89: 774.4927536 | G89: 1428.405797 | I89: 2017-10-04T15:00:00 | J89: 726.25 | L89: 2017-12-27 | M89: 14440
A90: 2017-10-01T22:00:00 | B90: 508 | C90: 508 | D90: 924 | F90: 785.3140097 | G90: 1428.405797 | I90: 2017-10-04T16:00:00 | J90: 692 | L90: 2017-12-28 | M90: 14629
A91: 2017-10-01T22:15:00 | B91: 458 | C91: 458 | D91: 923 | F91: 708.0193237 | G91: 1426.859903 | I91: 2017-10-04T17:00:00 | J91: 601.5 | L91: 2017-12-29 | M91: 15159
A92: 2017-10-01T22:30:00 | B92: 476 | C92: 476 | D92: 922 | F92: 735.8454106 | G92: 1425.31401 | I92: 2017-10-04T18:00:00 | J92: 556 | L92: 2017-12-30 | M92: 13859
A93: 2017-10-01T22:45:00 | B93: 493 | C93: 493 | D93: 922 | F93: 762.1256039 | G93: 1425.31401 | I93: 2017-10-04T19:00:00 | J93: 531 | L93: 2017-12-31 | M93: 13015
A94: 2017-10-01T23:00:00 | B94: 456 | C94: 456 | D94: 921 | F94: 704.9275362 | G94: 1423.768116 | I94: 2017-10-04T20:00:00 | J94: 527.75 | L94: 2018-01-01 | M94: 12542
A95: 2017-10-01T23:15:00 | B95: 479 | C95: 479 | D95: 920 | F95: 740.4830918 | G95: 1422.222222 | I95: 2017-10-04T21:00:00 | J95: 546.75 | L95: 2018-01-02 | M95: 14295
A96: 2017-10-01T23:30:00 | B96: 454 | C96: 454 | D96: 919 | F96: 701.8357488 | G96: 1420.676329 | I96: 2017-10-04T22:00:00 | J96: 526 | L96: 2018-01-03 | M96: 14303
A97: 2017-10-01T23:45:00 | B97: 453 | C97: 453 | D97: 919 | F97: 700.2898551 | G97: 1420.676329 | I97: 2017-10-04T23:00:00 | J97: 482.25 | L97: 2018-01-04 | M97: 14537
A98: 2017-10-02 | B98: 458 | C98: 458 | D98: 918 | F98: 708.0193237 | G98: 1419.130435 | I98: 2017-10-05 | J98: 508.5 | L98: 2018-01-05 | M98: 14602
A99: 2017-10-02T00:15:00 | B99: 468 | C99: 468 | D99: 917 | F99: 723.4782609 | G99: 1417.584541 | I99: 2017-10-05T01:00:00 | J99: 534 | L99: 2018-01-06 | M99: 13808
A100: 2017-10-02T00:30:00 | B100: 497 | C100: 497 | D100: 917 | F100: 768.3091787 | G100: 1417.584541 | I100: 2017-10-05T02:00:00 | J100: 521 | L100: 2018-01-07 | M100: 13586
A101: 2017-10-02T00:45:00 | B101: 523 | C101: 523 | D101: 915 | F101: 808.5024155 | G101: 1414.492754 | I101: 2017-10-05T03:00:00 | J101: 478.25 | L101: 2018-01-08 | M101: 14902
A102: 2017-10-02T01:00:00 | B102: 490 | C102: 490 | D102: 915 | F102: 757.4879227 | G102: 1414.492754 | I102: 2017-10-05T04:00:00 | J102: 415 | L102: 2018-01-09 | M102: 15202
A103: 2017-10-02T01:15:00 | B103: 443 | C103: 443 | D103: 914 | F103: 684.8309179 | G103: 1412.94686 | I103: 2017-10-05T05:00:00 | J103: 429 | L103: 2018-01-10 | M103: 14927
A104: 2017-10-02T01:30:00 | B104: 423 | C104: 423 | D104: 914 | F104: 653.9130435 | G104: 1412.94686 | I104: 2017-10-05T06:00:00 | J104: 528.5 | L104: 2018-01-11 | M104: 14988
A105: 2017-10-02T01:45:00 | B105: 453 | C105: 453 | D105: 914 | F105: 700.2898551 | G105: 1412.94686 | I105: 2017-10-05T07:00:00 | J105: 543.25 | L105: 2018-01-12 | M105: 14385
A106: 2017-10-02T02:00:00 | B106: 482 | C106: 482 | D106: 913 | F106: 745.1207729 | G106: 1411.400966 | I106: 2017-10-05T08:00:00 | J106: 588 | L106: 2018-01-13 | M106: 13698
A107: 2017-10-02T02:15:00 | B107: 474 | C107: 474 | D107: 913 | F107: 732.7536232 | G107: 1411.400966 | I107: 2017-10-05T09:00:00 | J107: 609.25 | L107: 2018-01-14 | M107: 14150
A108: 2017-10-02T02:30:00 | B108: 489 | C108: 489 | D108: 913 | F108: 755.942029 | G108: 1411.400966 | I108: 2017-10-05T10:00:00 | J108: 610.5 | L108: 2018-01-15 | M108: 14849
A109: 2017-10-02T02:45:00 | B109: 515 | C109: 515 | D109: 913 | F109: 796.1352657 | G109: 1411.400966 | I109: 2017-10-05T11:00:00 | J109: 608 | L109: 2018-01-16 | M109: 14618
A110: 2017-10-02T03:00:00 | B110: 469 | C110: 469 | D110: 913 | F110: 725.0241546 | G110: 1411.400966 | I110: 2017-10-05T12:00:00 | J110: 562 | L110: 2018-01-17 | M110: 14266
A111: 2017-10-02T03:15:00 | B111: 459 | C111: 459 | D111: 912 | F111: 709.5652174 | G111: 1409.855072 | I111: 2017-10-05T13:00:00 | J111: 653 | L111: 2018-01-18 | M111: 14234
A112: 2017-10-02T03:30:00 | B112: 432 | C112: 432 | D112: 911 | F112: 667.826087 | G112: 1408.309179 | I112: 2017-10-05T14:00:00 | J112: 631.5 | L112: 2018-01-19 | M112: 13546
A113: 2017-10-02T03:45:00 | B113: 424 | C113: 424 | D113: 911 | F113: 655.4589372 | G113: 1408.309179 | I113: 2017-10-05T15:00:00 | J113: 633.75 | L113: 2018-01-20 | M113: 12397
A114: 2017-10-02T04:00:00 | B114: 416 | C114: 416 | D114: 910 | F114: 643.0917874 | G114: 1406.763285 | I114: 2017-10-05T16:00:00 | J114: 675.5 | L114: 2018-01-21 | M114: 12405
A115: 2017-10-02T04:15:00 | B115: 372 | C115: 372 | D115: 910 | F115: 575.0724638 | G115: 1406.763285 | I115: 2017-10-05T17:00:00 | J115: 593.5 | L115: 2018-01-22 | M115: 13945
A116: 2017-10-02T04:30:00 | B116: 381 | C116: 381 | D116: 910 | F116: 588.9855072 | G116: 1406.763285 | I116: 2017-10-05T18:00:00 | J116: 550.5 | L116: 2018-01-23 | M116: 14188
A117: 2017-10-02T04:45:00 | B117: 421 | C117: 421 | D117: 910 | F117: 650.821256 | G117: 1406.763285 | I117: 2017-10-05T19:00:00 | J117: 541 | L117: 2018-01-24 | M117: 13944
A118: 2017-10-02T05:00:00 | B118: 440 | C118: 440 | D118: 909 | F118: 680.1932367 | G118: 1405.217391 | I118: 2017-10-05T20:00:00 | J118: 519.25 | L118: 2018-01-25 | M118: 13846
A119: 2017-10-02T05:15:00 | B119: 405 | C119: 405 | D119: 909 | F119: 626.0869565 | G119: 1405.217391 | I119: 2017-10-05T21:00:00 | J119: 563.5 | L119: 2018-01-26 | M119: 13749
A120: 2017-10-02T05:30:00 | B120: 450 | C120: 450 | D120: 909 | F120: 695.6521739 | G120: 1405.217391 | I120: 2017-10-05T22:00:00 | J120: 497 | L120: 2018-01-27 | M120: 12405
A121: 2017-10-02T05:45:00 | B121: 416 | C121: 416 | D121: 909 | F121: 643.0917874 | G121: 1405.217391 | I121: 2017-10-05T23:00:00 | J121: 494.25 | L121: 2018-01-28 | M121: 12434
A122: 2017-10-02T06:00:00 | B122: 458 | C122: 458 | D122: 909 | F122: 708.0193237 | G122: 1405.217391 | I122: 2017-10-06 | J122: 513.5 | L122: 2018-01-29 | M122: 13052
A123: 2017-10-02T06:15:00 | B123: 544 | C123: 544 | D123: 909 | F123: 840.9661836 | G123: 1405.217391 | I123: 2017-10-06T01:00:00 | J123: 510 | L123: 2018-01-30 | M123: 13515
A124: 2017-10-02T06:30:00 | B124: 542 | C124: 542 | D124: 908 | F124: 837.8743961 | G124: 1403.671498 | I124: 2017-10-06T02:00:00 | J124: 513.75 | L124: 2018-01-31 | M124: 13887
A125: 2017-10-02T06:45:00 | B125: 499 | C125: 499 | D125: 908 | F125: 771.4009662 | G125: 1403.671498 | I125: 2017-10-06T03:00:00 | J125: 527.5 | L125: 2018-02-01 | M125: 13652
A126: 2017-10-02T07:00:00 | B126: 537 | C126: 537 | D126: 908 | F126: 830.1449275 | G126: 1403.671498 | I126: 2017-10-06T04:00:00 | J126: 418.75 | L126: 2018-02-02 | M126: 13851
A127: 2017-10-02T07:15:00 | B127: 542 | C127: 542 | D127: 908 | F127: 837.8743961 | G127: 1403.671498 | I127: 2017-10-06T05:00:00 | J127: 423 | L127: 2018-02-03 | M127: 12506
A128: 2017-10-02T07:30:00 | B128: 537 | C128: 537 | D128: 908 | F128: 830.1449275 | G128: 1403.671498 | I128: 2017-10-06T06:00:00 | J128: 513.5 | L128: 2018-02-04 | M128: 12481
A129: 2017-10-02T07:45:00 | B129: 522 | C129: 522 | D129: 907 | F129: 806.9565217 | G129: 1402.125604 | I129: 2017-10-06T07:00:00 | J129: 541 | L129: 2018-02-05 | M129: 13755
A130: 2017-10-02T08:00:00 | B130: 472 | C130: 472 | D130: 907 | F130: 729.6618357 | G130: 1402.125604 | I130: 2017-10-06T08:00:00 | J130: 571 | L130: 2018-02-06 | M130: 13600
A131: 2017-10-02T08:15:00 | B131: 550 | C131: 550 | D131: 906 | F131: 850.2415459 | G131: 1400.57971 | I131: 2017-10-06T09:00:00 | J131: 619.25 | L131: 2018-02-07 | M131: 13502
A132: 2017-10-02T08:30:00 | B132: 617 | C132: 617 | D132: 906 | F132: 953.8164251 | G132: 1400.57971 | I132: 2017-10-06T10:00:00 | J132: 600 | L132: 2018-02-08 | M132: 13738
A133: 2017-10-02T08:45:00 | B133: 583 | C133: 583 | D133: 906 | F133: 901.2560386 | G133: 1400.57971 | I133: 2017-10-06T11:00:00 | J133: 586.25 | L133: 2018-02-09 | M133: 13818
A134: 2017-10-02T09:00:00 | B134: 589 | C134: 589 | D134: 906 | F134: 910.531401 | G134: 1400.57971 | I134: 2017-10-06T12:00:00 | J134: 606.75 | L134: 2018-02-10 | M134: 12586
A135: 2017-10-02T09:15:00 | B135: 529 | C135: 529 | D135: 906 | F135: 817.7777778 | G135: 1400.57971 | I135: 2017-10-06T13:00:00 | J135: 643.5 | L135: 2018-02-11 | M135: 12548
A136: 2017-10-02T09:30:00 | B136: 535 | C136: 535 | D136: 905 | F136: 827.0531401 | G136: 1399.033816 | I136: 2017-10-06T14:00:00 | J136: 607.25 | L136: 2018-02-12 | M136: 13471
A137: 2017-10-02T09:45:00 | B137: 573 | C137: 573 | D137: 905 | F137: 885.7971014 | G137: 1399.033816 | I137: 2017-10-06T15:00:00 | J137: 623.25 | L137: 2018-02-13 | M137: 13412
A138: 2017-10-02T10:00:00 | B138: 556 | C138: 556 | D138: 904 | F138: 859.5169082 | G138: 1397.487923 | I138: 2017-10-06T16:00:00 | J138: 703.5 | L138: 2018-02-14 | M138: 13688
A139: 2017-10-02T10:15:00 | B139: 500 | C139: 500 | D139: 904 | F139: 772.9468599 | G139: 1397.487923 | I139: 2017-10-06T17:00:00 | J139: 615.25 | L139: 2018-02-15 | M139: 13400
A140: 2017-10-02T10:30:00 | B140: 515 | C140: 515 | D140: 903 | F140: 796.1352657 | G140: 1395.942029 | I140: 2017-10-06T18:00:00 | J140: 546 | L140: 2018-02-16 | M140: 13847
A141: 2017-10-02T10:45:00 | B141: 510 | C141: 510 | D141: 903 | F141: 788.4057971 | G141: 1395.942029 | I141: 2017-10-06T19:00:00 | J141: 558.5 | L141: 2018-02-17 | M141: 12449
A142: 2017-10-02T11:00:00 | B142: 598 | C142: 598 | D142: 903 | F142: 924.4444444 | G142: 1395.942029 | I142: 2017-10-06T20:00:00 | J142: 542.25 | L142: 2018-02-18 | M142: 12353
A143: 2017-10-02T11:15:00 | B143: 564 | C143: 564 | D143: 902 | F143: 871.884058 | G143: 1394.396135 | I143: 2017-10-06T21:00:00 | J143: 552.75 | L143: 2018-02-19 | M143: 13276
A144: 2017-10-02T11:30:00 | B144: 539 | C144: 539 | D144: 902 | F144: 833.236715 | G144: 1394.396135 | I144: 2017-10-06T22:00:00 | J144: 517.25 | L144: 2018-02-20 | M144: 13943
A145: 2017-10-02T11:45:00 | B145: 552 | C145: 552 | D145: 902 | F145: 853.3333333 | G145: 1394.396135 | I145: 2017-10-06T23:00:00 | J145: 504 | L145: 2018-02-21 | M145: 13920
A146: 2017-10-02T12:00:00 | B146: 568 | C146: 568 | D146: 902 | F146: 878.0676329 | G146: 1394.396135 | I146: 2017-10-07 | J146: 523.25 | L146: 2018-02-22 | M146: 14276
A147: 2017-10-02T12:15:00 | B147: 531 | C147: 531 | D147: 902 | F147: 820.8695652 | G147: 1394.396135 | I147: 2017-10-07T01:00:00 | J147: 504.5 | L147: 2018-02-23 | M147: 13975
A148: 2017-10-02T12:30:00 | B148: 555 | C148: 555 | D148: 902 | F148: 857.9710145 | G148: 1394.396135 | I148: 2017-10-07T02:00:00 | J148: 499.25 | L148: 2018-02-24 | M148: 12530
A149: 2017-10-02T12:45:00 | B149: 575 | C149: 575 | D149: 901 | F149: 888.8888889 | G149: 1392.850242 | I149: 2017-10-07T03:00:00 | J149: 472.75 | L149: 2018-02-25 | M149: 12678
A150: 2017-10-02T13:00:00 | B150: 601 | C150: 601 | D150: 901 | F150: 929.0821256 | G150: 1392.850242 | I150: 2017-10-07T04:00:00 | J150: 441.5 | L150: 2018-02-26 | M150: 14487
A151: 2017-10-02T13:15:00 | B151: 563 | C151: 563 | D151: 901 | F151: 870.3381643 | G151: 1392.850242 | I151: 2017-10-07T05:00:00 | J151: 434.5 | L151: 2018-02-27 | M151: 14441
A152: 2017-10-02T13:30:00 | B152: 624 | C152: 624 | D152: 901 | F152: 964.6376812 | G152: 1392.850242 | I152: 2017-10-07T06:00:00 | J152: 501.25 | L152: 2018-02-28T01:00:00 | M152: 14364
A153: 2017-10-02T13:45:00 | B153: 586 | C153: 586 | D153: 901 | F153: 905.8937198 | G153: 1392.850242 | I153: 2017-10-07T07:00:00 | J153: 497.25 | L153: 2018-03-01 | M153: 14713
A154: 2017-10-02T14:00:00 | B154: 619 | C154: 619 | D154: 901 | F154: 956.9082126 | G154: 1392.850242 | I154: 2017-10-07T08:00:00 | J154: 502 | L154: 2018-03-02 | M154: 14551
A155: 2017-10-02T14:15:00 | B155: 616 | C155: 616 | D155: 901 | F155: 952.2705314 | G155: 1392.850242 | I155: 2017-10-07T09:00:00 | J155: 581.5 | L155: 2018-03-03 | M155: 13278
A156: 2017-10-02T14:30:00 | B156: 647 | C156: 647 | D156: 901 | F156: 1000.193237 | G156: 1392.850242 | I156: 2017-10-07T10:00:00 | J156: 542.5 | L156: 2018-03-04 | M156: 12673
A157: 2017-10-02T14:45:00 | B157: 659 | C157: 659 | D157: 900 | F157: 1018.743961 | G157: 1391.304348 | I157: 2017-10-07T11:00:00 | J157: 581.25 | L157: 2018-03-05 | M157: 13714
A158: 2017-10-02T15:00:00 | B158: 701 | C158: 701 | D158: 900 | F158: 1083.671498 | G158: 1391.304348 | I158: 2017-10-07T12:00:00 | J158: 547.75 | L158: 2018-03-06 | M158: 13662
A159: 2017-10-02T15:15:00 | B159: 672 | C159: 672 | D159: 900 | F159: 1038.84058 | G159: 1391.304348 | I159: 2017-10-07T13:00:00 | J159: 541.5 | L159: 2018-03-07 | M159: 13444
A160: 2017-10-02T15:30:00 | B160: 669 | C160: 669 | D160: 900 | F160: 1034.202899 | G160: 1391.304348 | I160: 2017-10-07T14:00:00 | J160: 543.5 | L160: 2018-03-08 | M160: 13769
A161: 2017-10-02T15:45:00 | B161: 640 | C161: 640 | D161: 900 | F161: 989.3719807 | G161: 1391.304348 | I161: 2017-10-07T15:00:00 | J161: 563 | L161: 2018-03-09 | M161: 13966
A162: 2017-10-02T16:00:00 | B162: 590 | C162: 590 | D162: 900 | F162: 912.0772947 | G162: 1391.304348 | I162: 2017-10-07T16:00:00 | J162: 576.75 | L162: 2018-03-10 | M162: 12720
A163: 2017-10-02T16:15:00 | B163: 590 | C163: 590 | D163: 899 | F163: 912.0772947 | G163: 1389.758454 | I163: 2017-10-07T17:00:00 | J163: 516.5 | L163: 2018-03-11 | M163: 12283
A164: 2017-10-02T16:30:00 | B164: 611 | C164: 611 | D164: 899 | F164: 944.5410628 | G164: 1389.758454 | I164: 2017-10-07T18:00:00 | J164: 507.5 | L164: 2018-03-12 | M164: 13535
A165: 2017-10-02T16:45:00 | B165: 541 | C165: 541 | D165: 899 | F165: 836.3285024 | G165: 1389.758454 | I165: 2017-10-07T19:00:00 | J165: 518.25 | L165: 2018-03-13 | M165: 13174
A166: 2017-10-02T17:00:00 | B166: 522 | C166: 522 | D166: 899 | F166: 806.9565217 | G166: 1389.758454 | I166: 2017-10-07T20:00:00 | J166: 567.5 | L166: 2018-03-14 | M166: 13262
A167: 2017-10-02T17:15:00 | B167: 494 | C167: 494 | D167: 899 | F167: 763.6714976 | G167: 1389.758454 | I167: 2017-10-07T21:00:00 | J167: 543.75 | L167: 2018-03-15 | M167: 13556
A168: 2017-10-02T17:30:00 | B168: 526 | C168: 526 | D168: 898 | F168: 813.1400966 | G168: 1388.21256 | I168: 2017-10-07T22:00:00 | J168: 511.25 | L168: 2018-03-16 | M168: 13381
A169: 2017-10-02T17:45:00 | B169: 530 | C169: 530 | D169: 898 | F169: 819.3236715 | G169: 1388.21256 | I169: 2017-10-07T23:00:00 | J169: 482.25 | L169: 2018-03-17 | M169: 12816
A170: 2017-10-02T18:00:00 | B170: 501 | C170: 501 | D170: 898 | F170: 774.4927536 | G170: 1388.21256 | I170: 2017-10-08 | J170: 494 | L170: 2018-03-18 | M170: 13142
A171: 2017-10-02T18:15:00 | B171: 465 | C171: 465 | D171: 898 | F171: 718.8405797 | G171: 1388.21256 | I171: 2017-10-08T01:00:00 | J171: 476.75 | L171: 2018-03-19 | M171: 14047
A172: 2017-10-02T18:30:00 | B172: 469 | C172: 469 | D172: 898 | F172: 725.0241546 | G172: 1388.21256 | I172: 2017-10-08T02:00:00 | J172: 448 | L172: 2018-03-20 | M172: 13998
A173: 2017-10-02T18:45:00 | B173: 496 | C173: 496 | D173: 898 | F173: 766.763285 | G173: 1388.21256 | I173: 2017-10-08T03:00:00 | J173: 428.5 | L173: 2018-03-21 | M173: 7130
A174: 2017-10-02T19:00:00 | B174: 528 | C174: 528 | D174: 898 | F174: 816.2318841 | G174: 1388.21256 | I174: 2017-10-08T04:00:00 | J174: 396 | L174: 2018-03-22 | M174: 14034
A175: 2017-10-02T19:15:00 | B175: 497 | C175: 497 | D175: 897 | F175: 768.3091787 | G175: 1386.666667 | I175: 2017-10-08T05:00:00 | J175: 382.25 | L175: 2018-03-23 | M175: 14074
A176: 2017-10-02T19:30:00 | B176: 457 | C176: 457 | D176: 897 | F176: 706.47343 | G176: 1386.666667 | I176: 2017-10-08T06:00:00 | J176: 396.5 | L176: 2018-03-24 | M176: 12243
A177: 2017-10-02T19:45:00 | B177: 445 | C177: 445 | D177: 897 | F177: 687.9227053 | G177: 1386.666667 | I177: 2017-10-08T07:00:00 | J177: 457.75 | L177: 2018-03-25 | M177: 12063
A178: 2017-10-02T20:00:00 | B178: 485 | C178: 485 | D178: 897 | F178: 749.7584541 | G178: 1386.666667 | I178: 2017-10-08T08:00:00 | J178: 495.75 | L178: 2018-03-26 | M178: 13346
A179: 2017-10-02T20:15:00 | B179: 480 | C179: 480 | D179: 897 | F179: 742.0289855 | G179: 1386.666667 | I179: 2017-10-08T09:00:00 | J179: 491.5 | L179: 2018-03-27 | M179: 14220
A180: 2017-10-02T20:30:00 | B180: 460 | C180: 460 | D180: 897 | F180: 711.1111111 | G180: 1386.666667 | I180: 2017-10-08T10:00:00 | J180: 482.75 | L180: 2018-03-28 | M180: 15271
A181: 2017-10-02T20:45:00 | B181: 500 | C181: 500 | D181: 896 | F181: 772.9468599 | G181: 1385.120773 | I181: 2017-10-08T11:00:00 | J181: 524 | L181: 2018-03-29 | M181: 14912
A182: 2017-10-02T21:00:00 | B182: 534 | C182: 534 | D182: 896 | F182: 825.5072464 | G182: 1385.120773 | I182: 2017-10-08T12:00:00 | J182: 484.5 | L182: 2018-03-30 | M182: 13533
A183: 2017-10-02T21:15:00 | B183: 513 | C183: 513 | D183: 896 | F183: 793.0434783 | G183: 1385.120773 | I183: 2017-10-08T13:00:00 | J183: 515 | L183: 2018-03-31 | M183: 12700
A184: 2017-10-02T21:30:00 | B184: 492 | C184: 492 | D184: 896 | F184: 760.5797101 | G184: 1385.120773 | I184: 2017-10-08T14:00:00 | J184: 525.5 | L184: 2018-04-01 | M184: 11690
A185: 2017-10-02T21:45:00 | B185: 462 | C185: 462 | D185: 896 | F185: 714.2028986 | G185: 1385.120773 | I185: 2017-10-08T15:00:00 | J185: 580.5 | L185: 2018-04-02 | M185: 10266
A186: 2017-10-02T22:00:00 | B186: 486 | C186: 486 | D186: 895 | F186: 751.3043478 | G186: 1383.574879 | I186: 2017-10-08T16:00:00 | J186: 558.25 | L186: 2018-04-03 | M186: 13537
A187: 2017-10-02T22:15:00 | B187: 472 | C187: 472 | D187: 895 | F187: 729.6618357 | G187: 1383.574879 | I187: 2017-10-08T17:00:00 | J187: 525.5 | L187: 2018-04-04 | M187: 13484
A188: 2017-10-02T22:30:00 | B188: 442 | C188: 442 | D188: 895 | F188: 683.2850242 | G188: 1383.574879 | I188: 2017-10-08T18:00:00 | J188: 515.75 | L188: 2018-04-05 | M188: 13820
A189: 2017-10-02T22:45:00 | B189: 442 | C189: 442 | D189: 895 | F189: 683.2850242 | G189: 1383.574879 | I189: 2017-10-08T19:00:00 | J189: 471 | L189: 2018-04-06 | M189: 14050
A190: 2017-10-02T23:00:00 | B190: 467 | C190: 467 | D190: 895 | F190: 721.9323671 | G190: 1383.574879 | I190: 2017-10-08T20:00:00 | J190: 506.75 | L190: 2018-04-07 | M190: 12616
A191: 2017-10-02T23:15:00 | B191: 466 | C191: 466 | D191: 895 | F191: 720.3864734 | G191: 1383.574879 | I191: 2017-10-08T21:00:00 | J191: 528.5 | L191: 2018-04-08 | M191: 12714
A192: 2017-10-02T23:30:00 | B192: 456 | C192: 456 | D192: 895 | F192: 704.9275362 | G192: 1383.574879 | I192: 2017-10-08T22:00:00 | J192: 560.25 | L192: 2018-04-09 | M192: 14128
A193: 2017-10-02T23:45:00 | B193: 467 | C193: 467 | D193: 894 | F193: 721.9323671 | G193: 1382.028986 | I193: 2017-10-08T23:00:00 | J193: 501.75 | L193: 2018-04-10 | M193: 14233
A194: 2017-10-03 | B194: 457 | C194: 457 | D194: 894 | F194: 706.47343 | G194: 1382.028986 | I194: 2017-10-09 | J194: 539.5 | L194: 2018-04-11 | M194: 14307
A195: 2017-10-03T00:15:00 | B195: 489 | C195: 489 | D195: 894 | F195: 755.942029 | G195: 1382.028986 | I195: 2017-10-09T01:00:00 | J195: 498.25 | L195: 2018-04-12 | M195: 14890
A196: 2017-10-03T00:30:00 | B196: 532 | C196: 532 | D196: 894 | F196: 822.4154589 | G196: 1382.028986 | I196: 2017-10-09T02:00:00 | J196: 518 | L196: 2018-04-13 | M196: 15063
A197: 2017-10-03T00:45:00 | B197: 495 | C197: 495 | D197: 894 | F197: 765.2173913 | G197: 1382.028986 | I197: 2017-10-09T03:00:00 | J197: 479.75 | L197: 2018-04-14 | M197: 13331
A198: 2017-10-03T01:00:00 | B198: 483 | C198: 483 | D198: 894 | F198: 746.6666667 | G198: 1382.028986 | I198: 2017-10-09T04:00:00 | J198: 389.5 | L198: 2018-04-15 | M198: 13035
A199: 2017-10-03T01:15:00 | B199: 464 | C199: 464 | D199: 894 | F199: 717.294686 | G199: 1382.028986 | I199: 2017-10-09T05:00:00 | J199: 399.5 | L199: 2018-04-16 | M199: 14129
A200: 2017-10-03T01:30:00 | B200: 528 | C200: 528 | D200: 894 | F200: 816.2318841 | G200: 1382.028986 | I200: 2017-10-09T06:00:00 | J200: 494.75 | L200: 2018-04-17 | M200: 14701
... 4300 more rows

Sheet Hodiny
A2: leden | E2: unor | I2: brezen | M2: duben | Q2: kveten | U2: cerven | Y2: cervenec | AC2: srpen | AG2: zari | AK2: rijen | AO2: listopad | AS2: prosinec | AY2: Spotřeba [MWh] | AZ2: Hodinový příkon MAX [kW] | BA2: Hodinový příkon MIN [kW] | BB2: Hodinový příkon průměrný [kW] | BC2: 1/4hodinové MAX [kW] | BD2: 1/4hodinové MIN [kW]
C3: =C4/B4 -> 1.54589372 | G3: =G4/F4 -> 1.54589372 | K3: =K4/J4 -> 1.54589372
A4: Suma | B4: =SUM(B8:B751) -> 411386.5 | C4: =SUM(C8:C751) -> 635959.8068 | E4: Suma | F4: =SUM(F8:F679) -> 359074.75 | G4: =SUM(G8:G679) -> 555091.401 | I4: Suma | J4: =SUM(J8:J751) -> 394583.5 | K4: =SUM(K8:K751) -> 609984.1546 | M4: Suma | N4: =SUM(N8:N727) -> 406415.25 | O4: =SUM(O8:O727) -> 628274.7826 | Q4: Suma | R4: =SUM(R8:R751) -> 441518.25 | S4: =SUM(S8:S751) -> 682540.2899 | U4: Suma | V4: =SUM(V8:V727) -> 455037 | W4: =SUM(W8:W727) -> 703438.8406 | Y4: Suma | Z4: =SUM(Z8:Z751) -> 455408.75 | AA4: =SUM(AA8:AA751) -> 704013.5266 | AC4: Suma | AD4: =SUM(AD8:AD751) -> 506118.25 | AE4: =SUM(AE8:AE751) -> 782405.0242 | AG4: Suma | AH4: =SUM(AH8:AH727) -> 456454.75 | AI4: =SUM(AI8:AI727) -> 705630.5314 | AK4: Suma | AL4: =SUM(AL8:AL751) -> 409302.75 | AM4: =SUM(AM8:AM751) -> 632738.5507 | AO4: Suma | AP4: =SUM(AP8:AP727) -> 411664 | AQ4: =SUM(AQ8:AQ727) -> 636388.7923 | AS4: Suma | AT4: =SUM(AT8:AT751) -> 423320.25 | AU4: =SUM(AU8:AU751) -> 654408.1159 | AX4: leden | AY4: =B4/1000 -> 411.3865 | AZ4: =B5 -> 774 | BA4: =B6 -> 380 | BB4: =B7 -> 552.9388441 | BC4: ='1_4Hod'!B5 -> 838 | BD4: ='1_4Hod'!B6 -> 341
A5: Max | B5: =MAX(B8:B751) -> 774 | C5: =MAX(C8:C751) -> 1196.521739 | E5: Max | F5: =MAX(F8:F679) -> 794.25 | G5: =MAX(G8:G679) -> 1227.826087 | I5: Max | J5: =MAX(J8:J750) -> 793.25 | K5: =MAX(K8:K750) -> 1226.280193 | M5: Max | N5: =MAX(N8:N727) -> 875 | O5: =MAX(O8:O727) -> 1352.657005 | Q5: Max | R5: =MAX(R8:R751) -> 969.75 | S5: =MAX(S8:S751) -> 1499.130435 | U5: Max | V5: =MAX(V8:V727) -> 928.25 | W5: =MAX(W8:W727) -> 1434.975845 | Y5: Max | Z5: =MAX(Z8:Z751) -> 892.25 | AA5: =MAX(AA8:AA751) -> 1379.323671 | AC5: Max | AD5: =MAX(AD8:AD750) -> 991.25 | AE5: =MAX(AE8:AE750) -> 1532.36715 | AG5: Max | AH5: =MAX(AH8:AH727) -> 967 | AI5: =MAX(AI8:AI727) -> 1494.879227 | AK5: Max | AL5: =MAX(AL8:AL751) -> 846 | AM5: =MAX(AM8:AM751) -> 1307.826087 | AO5: Max | AP5: =MAX(AP8:AP727) -> 835.5 | AQ5: =MAX(AQ8:AQ727) -> 1291.594203 | AS5: Max | AT5: =MAX(AT8:AT751) -> 839.75 | AU5: =MAX(AU8:AU751) -> 1298.164251 | AX5: únor | AY5: =F4/1000 -> 359.07475 | AZ5: =F5 -> 794.25 | BA5: =F6 -> 370 | BB5: =F7 -> 534.3374256 | BC5: ='1_4Hod'!E5 -> 897 | BD5: ='1_4Hod'!E6 -> 343
A6: Min | B6: =MIN(B8:B751) -> 380 | C6: =MIN(C8:C751) -> 587.4396135 | E6: Min | F6: =MIN(F8:F679) -> 370 | G6: =MIN(G8:G679) -> 571.9806763 | I6: Min | J6: =MIN(J8:J750) -> 0 | K6: =MIN(K8:K750) -> 0 | M6: Min | N6: =MIN(N8:N727) -> 336.25 | O6: =MIN(O8:O727) -> 519.8067633 | Q6: Min | R6: =MIN(R8:R751) -> 239.5 | S6: =MIN(S8:S751) -> 370.2415459 | U6: Min | V6: =MIN(V8:V727) -> 373.25 | W6: =MIN(W8:W727) -> 577.0048309 | Y6: Min | Z6: =MIN(Z8:Z751) -> 393 | AA6: =MIN(AA8:AA751) -> 607.5362319 | AC6: Min | AD6: =MIN(AD8:AD750) -> 418.25 | AE6: =MIN(AE8:AE750) -> 646.5700483 | AG6: Min | AH6: =MIN(AH8:AH727) -> 379.25 | AI6: =MIN(AI8:AI727) -> 586.2801932 | AK6: Min | AL6: =MIN(AL8:AL751) -> 382.25 | AM6: =MIN(AM8:AM751) -> 590.9178744 | AO6: Min | AP6: =MIN(AP8:AP727) -> 409 | AQ6: =MIN(AQ8:AQ727) -> 632.2705314 | AS6: Min | AT6: =MIN(AT8:AT751) -> 380.5 | AU6: =MIN(AU8:AU751) -> 588.2125604 | AX6: březen | AY6: =J4/1000 -> 394.5835 | AZ6: =J5 -> 793.25 | BA6: =J6 -> 0 | BB6: =J7 -> 531.0679677 | BC6: ='1_4Hod'!H5 -> 872 | BD6: ='1_4Hod'!H6 -> 0
A7: Avg | B7: =AVERAGE(B8:B751) -> 552.9388441 | C7: =AVERAGE(C8:C751) -> 854.7846865 | E7: Avg | F7: =AVERAGE(F8:F679) -> 534.3374256 | G7: =AVERAGE(G8:G679) -> 826.0288705 | I7: Avg | J7: =AVERAGE(J8:J750) -> 531.0679677 | K7: =AVERAGE(K8:K750) -> 820.9746361 | M7: Avg | N7: =AVERAGE(N8:N727) -> 564.465625 | O7: =AVERAGE(O8:O727) -> 872.6038647 | Q7: Avg | R7: =AVERAGE(R8:R751) -> 593.4385081 | S7: =AVERAGE(S8:S751) -> 917.3928627 | U7: Avg | V7: =AVERAGE(V8:V727) -> 631.9958333 | W7: =AVERAGE(W8:W727) -> 976.9983897 | Y7: Avg | Z7: =AVERAGE(Z8:Z751) -> 612.1085349 | AA7: =AVERAGE(AA8:AA751) -> 946.25474 | AC7: Avg | AD7: =AVERAGE(AD8:AD750) -> 681.1820323 | AE7: =AVERAGE(AE8:AE750) -> 1053.035026 | AG7: Avg | AH7: =AVERAGE(AH8:AH727) -> 633.9649306 | AI7: =AVERAGE(AI8:AI727) -> 980.0424047 | AK7: Avg | AL7: =AVERAGE(AL8:AL751) -> 550.1381048 | AM7: =AVERAGE(AM8:AM751) -> 850.4550413 | AO7: Avg | AP7: =AVERAGE(AP8:AP727) -> 571.7555556 | AQ7: =AVERAGE(AQ8:AQ727) -> 883.8733226 | AS7: Avg | AT7: =AVERAGE(AT8:AT751) -> 568.9788306 | AU7: =AVERAGE(AU8:AU751) -> 879.580801 | AX7: duben | AY7: =N4/1000 -> 406.41525 | AZ7: =N5 -> 875 | BA7: =N6 -> 336.25 | BB7: =N7 -> 564.465625 | BC7: ='1_4Hod'!K5 -> 944 | BD7: ='1_4Hod'!K6 -> 272
A8: 2018-01-01 | B8: 485.25 | C8: =Input!$C$13*Hodiny!B8 -> 750.1449275 | E8: 2018-02-01 | F8: 545 | G8: =Input!$C$13*Hodiny!F8 -> 842.5120773 | I8: 2018-03-01 | J8: 544 | K8: =Input!$C$13*Hodiny!J8 -> 840.9661836 | M8: 2018-04-01 | N8: 473.5 | O8: =Input!$C$13*Hodiny!N8 -> 731.9806763 | Q8: 2018-05-01 | R8: 582.5 | S8: =Input!$C$13*Hodiny!R8 -> 900.4830918 | U8: 2018-06-01 | V8: 574.5 | W8: =Input!$C$13*Hodiny!V8 -> 888.115942 | Y8: 2018-07-01 | Z8: 512.5 | AA8: =Input!$C$13*Hodiny!Z8 -> 792.2705314 | AC8: 2018-08-01T01:00:00 | AD8: 616.5 | AE8: =Input!$C$13*Hodiny!AD8 -> 953.0434783 | AG8: 2018-09-01 | AH8: 689.75 | AI8: =Input!$C$13*Hodiny!AH8 -> 1066.280193 | AK8: 2017-10-01 | AL8: 468.25 | AM8: =Input!$C$13*Hodiny!AL8 -> 723.8647343 | AO8: 2017-11-01 | AP8: 527.25 | AQ8: =Input!$C$13*Hodiny!AP8 -> 815.0724638 | AS8: 2017-12-01 | AT8: 551.75 | AU8: =Input!$C$13*Hodiny!AT8 -> 852.9468599 | AX8: květen | AY8: =R4/1000 -> 441.51825 | AZ8: =R5 -> 969.75 | BA8: =R6 -> 239.5 | BB8: =R7 -> 593.4385081 | BC8: ='1_4Hod'!N5 -> 1035 | BD8: ='1_4Hod'!N6 -> 72
A9: 2018-01-01T01:00:00 | B9: 492 | C9: =Input!$C$13*Hodiny!B9 -> 760.5797101 | E9: 2018-02-01T01:00:00 | F9: 535.75 | G9: =Input!$C$13*Hodiny!F9 -> 828.2125604 | I9: 2018-03-01T01:00:00 | J9: 544 | K9: =Input!$C$13*Hodiny!J9 -> 840.9661836 | M9: 2018-04-01T01:00:00 | N9: 494 | O9: =Input!$C$13*Hodiny!N9 -> 763.6714976 | Q9: 2018-05-01T01:00:00 | R9: 578.5 | S9: =Input!$C$13*Hodiny!R9 -> 894.2995169 | U9: 2018-06-01T01:00:00 | V9: 610 | W9: =Input!$C$13*Hodiny!V9 -> 942.9951691 | Y9: 2018-07-01T01:00:00 | Z9: 522.25 | AA9: =Input!$C$13*Hodiny!Z9 -> 807.3429952 | AC9: 2018-08-01T02:00:00 | AD9: 537.25 | AE9: =Input!$C$13*Hodiny!AD9 -> 830.531401 | AG9: 2018-09-01T01:00:00 | AH9: 704.25 | AI9: =Input!$C$13*Hodiny!AH9 -> 1088.695652 | AK9: 2017-10-01T01:00:00 | AL9: 451.75 | AM9: =Input!$C$13*Hodiny!AL9 -> 698.3574879 | AO9: 2017-11-01T01:00:00 | AP9: 512.5 | AQ9: =Input!$C$13*Hodiny!AP9 -> 792.2705314 | AS9: 2017-12-01T01:00:00 | AT9: 537.75 | AU9: =Input!$C$13*Hodiny!AT9 -> 831.3043478 | AX9: červen | AY9: =V4/1000 -> 455.037 | AZ9: =V5 -> 928.25 | BA9: =V6 -> 373.25 | BB9: =V7 -> 631.9958333 | BC9: ='1_4Hod'!Q5 -> 962 | BD9: ='1_4Hod'!Q6 -> 354
A10: 2018-01-01T02:00:00 | B10: 523.5 | C10: =Input!$C$13*Hodiny!B10 -> 809.2753623 | E10: 2018-02-01T02:00:00 | F10: 516.5 | G10: =Input!$C$13*Hodiny!F10 -> 798.4541063 | I10: 2018-03-01T02:00:00 | J10: 548.5 | K10: =Input!$C$13*Hodiny!J10 -> 847.9227053 | M10: 2018-04-01T02:00:00 | N10: 458 | O10: =Input!$C$13*Hodiny!N10 -> 708.0193237 | Q10: 2018-05-01T02:00:00 | R10: 546.75 | S10: =Input!$C$13*Hodiny!R10 -> 845.2173913 | U10: 2018-06-01T02:00:00 | V10: 589 | W10: =Input!$C$13*Hodiny!V10 -> 910.531401 | Y10: 2018-07-01T02:00:00 | Z10: 454.25 | AA10: =Input!$C$13*Hodiny!Z10 -> 702.2222222 | AC10: 2018-08-01T03:00:00 | AD10: 493 | AE10: =Input!$C$13*Hodiny!AD10 -> 762.1256039 | AG10: 2018-09-01T02:00:00 | AH10: 632.25 | AI10: =Input!$C$13*Hodiny!AH10 -> 977.3913043 | AK10: 2017-10-01T02:00:00 | AL10: 406 | AM10: =Input!$C$13*Hodiny!AL10 -> 627.6328502 | AO10: 2017-11-01T02:00:00 | AP10: 489 | AQ10: =Input!$C$13*Hodiny!AP10 -> 755.942029 | AS10: 2017-12-01T02:00:00 | AT10: 496 | AU10: =Input!$C$13*Hodiny!AT10 -> 766.763285 | AX10: červenec | AY10: =Z4/1000 -> 455.40875 | AZ10: =Z5 -> 892.25 | BA10: =Z6 -> 393 | BB10: =Z7 -> 612.1085349 | BC10: ='1_4Hod'!T5 -> 899 | BD10: ='1_4Hod'!T6 -> 356
A11: 2018-01-01T03:00:00 | B11: 482.75 | C11: =Input!$C$13*Hodiny!B11 -> 746.2801932 | E11: 2018-02-01T03:00:00 | F11: 485.5 | G11: =Input!$C$13*Hodiny!F11 -> 750.531401 | I11: 2018-03-01T03:00:00 | J11: 549.5 | K11: =Input!$C$13*Hodiny!J11 -> 849.468599 | M11: 2018-04-01T03:00:00 | N11: 398.75 | O11: =Input!$C$13*Hodiny!N11 -> 616.4251208 | Q11: 2018-05-01T03:00:00 | R11: 481.5 | S11: =Input!$C$13*Hodiny!R11 -> 744.3478261 | U11: 2018-06-01T03:00:00 | V11: 509.75 | W11: =Input!$C$13*Hodiny!V11 -> 788.0193237 | Y11: 2018-07-01T03:00:00 | Z11: 459.5 | AA11: =Input!$C$13*Hodiny!Z11 -> 710.3381643 | AC11: 2018-08-01T04:00:00 | AD11: 489 | AE11: =Input!$C$13*Hodiny!AD11 -> 755.942029 | AG11: 2018-09-01T03:00:00 | AH11: 635 | AI11: =Input!$C$13*Hodiny!AH11 -> 981.6425121 | AK11: 2017-10-01T03:00:00 | AL11: 430.25 | AM11: =Input!$C$13*Hodiny!AL11 -> 665.1207729 | AO11: 2017-11-01T03:00:00 | AP11: 444 | AQ11: =Input!$C$13*Hodiny!AP11 -> 686.3768116 | AS11: 2017-12-01T03:00:00 | AT11: 464.75 | AU11: =Input!$C$13*Hodiny!AT11 -> 718.4541063 | AX11: srpen | AY11: =AD4/1000 -> 506.11825 | AZ11: =AD5 -> 991.25 | BA11: =AD6 -> 418.25 | BB11: =AD7 -> 681.1820323 | BC11: ='1_4Hod'!W5 -> 996 | BD11: ='1_4Hod'!W6 -> 310
A12: 2018-01-01T04:00:00 | B12: 469.25 | C12: =Input!$C$13*Hodiny!B12 -> 725.410628 | E12: 2018-02-01T04:00:00 | F12: 404 | G12: =Input!$C$13*Hodiny!F12 -> 624.5410628 | I12: 2018-03-01T04:00:00 | J12: 509.25 | K12: =Input!$C$13*Hodiny!J12 -> 787.2463768 | M12: 2018-04-01T04:00:00 | N12: 402.5 | O12: =Input!$C$13*Hodiny!N12 -> 622.2222222 | Q12: 2018-05-01T04:00:00 | R12: 471.25 | S12: =Input!$C$13*Hodiny!R12 -> 728.5024155 | U12: 2018-06-01T04:00:00 | V12: 454.25 | W12: =Input!$C$13*Hodiny!V12 -> 702.2222222 | Y12: 2018-07-01T04:00:00 | Z12: 452.25 | AA12: =Input!$C$13*Hodiny!Z12 -> 699.1304348 | AC12: 2018-08-01T05:00:00 | AD12: 486.75 | AE12: =Input!$C$13*Hodiny!AD12 -> 752.4637681 | AG12: 2018-09-01T04:00:00 | AH12: 552.25 | AI12: =Input!$C$13*Hodiny!AH12 -> 853.7198068 | AK12: 2017-10-01T04:00:00 | AL12: 390 | AM12: =Input!$C$13*Hodiny!AL12 -> 602.8985507 | AO12: 2017-11-01T04:00:00 | AP12: 432.25 | AQ12: =Input!$C$13*Hodiny!AP12 -> 668.2125604 | AS12: 2017-12-01T04:00:00 | AT12: 421.5 | AU12: =Input!$C$13*Hodiny!AT12 -> 651.5942029 | AX12: září | AY12: =AH4/1000 -> 456.45475 | AZ12: =AH5 -> 967 | BA12: =AH6 -> 379.25 | BB12: =AH7 -> 633.9649306 | BC12: ='1_4Hod'!Z5 -> 994 | BD12: ='1_4Hod'!Z6 -> 329
A13: 2018-01-01T05:00:00 | B13: 491.75 | C13: =Input!$C$13*Hodiny!B13 -> 760.1932367 | E13: 2018-02-01T05:00:00 | F13: 405.5 | G13: =Input!$C$13*Hodiny!F13 -> 626.8599034 | I13: 2018-03-01T05:00:00 | J13: 431.75 | K13: =Input!$C$13*Hodiny!J13 -> 667.4396135 | M13: 2018-04-01T05:00:00 | N13: 370.75 | O13: =Input!$C$13*Hodiny!N13 -> 573.1400966 | Q13: 2018-05-01T05:00:00 | R13: 459 | S13: =Input!$C$13*Hodiny!R13 -> 709.5652174 | U13: 2018-06-01T05:00:00 | V13: 411.5 | W13: =Input!$C$13*Hodiny!V13 -> 636.1352657 | Y13: 2018-07-01T05:00:00 | Z13: 412.25 | AA13: =Input!$C$13*Hodiny!Z13 -> 637.294686 | AC13: 2018-08-01T06:00:00 | AD13: 562 | AE13: =Input!$C$13*Hodiny!AD13 -> 868.7922705 | AG13: 2018-09-01T05:00:00 | AH13: 553.5 | AI13: =Input!$C$13*Hodiny!AH13 -> 855.6521739 | AK13: 2017-10-01T05:00:00 | AL13: 412 | AM13: =Input!$C$13*Hodiny!AL13 -> 636.9082126 | AO13: 2017-11-01T05:00:00 | AP13: 424.75 | AQ13: =Input!$C$13*Hodiny!AP13 -> 656.6183575 | AS13: 2017-12-01T05:00:00 | AT13: 454 | AU13: =Input!$C$13*Hodiny!AT13 -> 701.8357488 | AX13: říjen | AY13: =AL4/1000 -> 409.30275 | AZ13: =AL5 -> 846 | BA13: =AL6 -> 382.25 | BB13: =AL7 -> 550.1381048 | BC13: ='1_4Hod'!AC5 -> 885 | BD13: ='1_4Hod'!AC6 -> 304
A14: 2018-01-01T06:00:00 | B14: 472 | C14: =Input!$C$13*Hodiny!B14 -> 729.6618357 | E14: 2018-02-01T06:00:00 | F14: 471.5 | G14: =Input!$C$13*Hodiny!F14 -> 728.8888889 | I14: 2018-03-01T06:00:00 | J14: 527.75 | K14: =Input!$C$13*Hodiny!J14 -> 815.8454106 | M14: 2018-04-01T06:00:00 | N14: 429.25 | O14: =Input!$C$13*Hodiny!N14 -> 663.5748792 | Q14: 2018-05-01T06:00:00 | R14: 477 | S14: =Input!$C$13*Hodiny!R14 -> 737.3913043 | U14: 2018-06-01T06:00:00 | V14: 476 | W14: =Input!$C$13*Hodiny!V14 -> 735.8454106 | Y14: 2018-07-01T06:00:00 | Z14: 405 | AA14: =Input!$C$13*Hodiny!Z14 -> 626.0869565 | AC14: 2018-08-01T07:00:00 | AD14: 571 | AE14: =Input!$C$13*Hodiny!AD14 -> 882.705314 | AG14: 2018-09-01T06:00:00 | AH14: 622 | AI14: =Input!$C$13*Hodiny!AH14 -> 961.5458937 | AK14: 2017-10-01T06:00:00 | AL14: 468.5 | AM14: =Input!$C$13*Hodiny!AL14 -> 724.2512077 | AO14: 2017-11-01T06:00:00 | AP14: 492.5 | AQ14: =Input!$C$13*Hodiny!AP14 -> 761.352657 | AS14: 2017-12-01T06:00:00 | AT14: 499.5 | AU14: =Input!$C$13*Hodiny!AT14 -> 772.173913 | AX14: listopad | AY14: =AP4/1000 -> 411.664 | AZ14: =AP5 -> 835.5 | BA14: =AP6 -> 409 | BB14: =AP7 -> 571.7555556 | BC14: ='1_4Hod'!AF5 -> 930 | BD14: ='1_4Hod'!AF6 -> 394
A15: 2018-01-01T07:00:00 | B15: 471.75 | C15: =Input!$C$13*Hodiny!B15 -> 729.2753623 | E15: 2018-02-01T07:00:00 | F15: 533.75 | G15: =Input!$C$13*Hodiny!F15 -> 825.1207729 | I15: 2018-03-01T07:00:00 | J15: 587.5 | K15: =Input!$C$13*Hodiny!J15 -> 908.2125604 | M15: 2018-04-01T07:00:00 | N15: 472.5 | O15: =Input!$C$13*Hodiny!N15 -> 730.4347826 | Q15: 2018-05-01T07:00:00 | R15: 518.5 | S15: =Input!$C$13*Hodiny!R15 -> 801.5458937 | U15: 2018-06-01T07:00:00 | V15: 552 | W15: =Input!$C$13*Hodiny!V15 -> 853.3333333 | Y15: 2018-07-01T07:00:00 | Z15: 492 | AA15: =Input!$C$13*Hodiny!Z15 -> 760.5797101 | AC15: 2018-08-01T08:00:00 | AD15: 591.5 | AE15: =Input!$C$13*Hodiny!AD15 -> 914.3961353 | AG15: 2018-09-01T07:00:00 | AH15: 643.5 | AI15: =Input!$C$13*Hodiny!AH15 -> 994.7826087 | AK15: 2017-10-01T07:00:00 | AL15: 473.5 | AM15: =Input!$C$13*Hodiny!AL15 -> 731.9806763 | AO15: 2017-11-01T07:00:00 | AP15: 523.25 | AQ15: =Input!$C$13*Hodiny!AP15 -> 808.8888889 | AS15: 2017-12-01T07:00:00 | AT15: 529.25 | AU15: =Input!$C$13*Hodiny!AT15 -> 818.1642512 | AX15: prosinec | AY15: =AT4/1000 -> 423.32025 | AZ15: =AT5 -> 839.75 | BA15: =AT6 -> 380.5 | BB15: =AT7 -> 568.9788306 | BC15: ='1_4Hod'!AI5 -> 880 | BD15: ='1_4Hod'!AI6 -> 335
A16: 2018-01-01T08:00:00 | B16: 497.5 | C16: =Input!$C$13*Hodiny!B16 -> 769.0821256 | E16: 2018-02-01T08:00:00 | F16: 571 | G16: =Input!$C$13*Hodiny!F16 -> 882.705314 | I16: 2018-03-01T08:00:00 | J16: 582 | K16: =Input!$C$13*Hodiny!J16 -> 899.7101449 | M16: 2018-04-01T08:00:00 | N16: 547.5 | O16: =Input!$C$13*Hodiny!N16 -> 846.3768116 | Q16: 2018-05-01T08:00:00 | R16: 583 | S16: =Input!$C$13*Hodiny!R16 -> 901.2560386 | U16: 2018-06-01T08:00:00 | V16: 688.75 | W16: =Input!$C$13*Hodiny!V16 -> 1064.7343 | Y16: 2018-07-01T08:00:00 | Z16: 508.75 | AA16: =Input!$C$13*Hodiny!Z16 -> 786.47343 | AC16: 2018-08-01T09:00:00 | AD16: 662 | AE16: =Input!$C$13*Hodiny!AD16 -> 1023.381643 | AG16: 2018-09-01T08:00:00 | AH16: 660 | AI16: =Input!$C$13*Hodiny!AH16 -> 1020.289855 | AK16: 2017-10-01T08:00:00 | AL16: 512 | AM16: =Input!$C$13*Hodiny!AL16 -> 791.4975845 | AO16: 2017-11-01T08:00:00 | AP16: 627.5 | AQ16: =Input!$C$13*Hodiny!AP16 -> 970.0483092 | AS16: 2017-12-01T08:00:00 | AT16: 577.75 | AU16: =Input!$C$13*Hodiny!AT16 -> 893.1400966 | AX16: Suma, MAX, MIN, AVG | AY16: =SUM(AY4:AY15) -> 5130.284 | AZ16: =MAX(AZ4:AZ15) -> 991.25 | BA16: =MIN(BA4:BA5,BA9:BA15) -> 370 | BB16: =AVERAGE(BB4:BB15) -> 585.5310161 | BC16: =MAX(BC4:BC15) -> 1035 | BD16: =MIN(BD4:BD5,BD9:BD15) -> 304
A17: 2018-01-01T09:00:00 | B17: 496.75 | C17: =Input!$C$13*Hodiny!B17 -> 767.9227053 | E17: 2018-02-01T09:00:00 | F17: 537 | G17: =Input!$C$13*Hodiny!F17 -> 830.1449275 | I17: 2018-03-01T09:00:00 | J17: 589.75 | K17: =Input!$C$13*Hodiny!J17 -> 911.6908213 | M17: 2018-04-01T09:00:00 | N17: 501.75 | O17: =Input!$C$13*Hodiny!N17 -> 775.6521739 | Q17: 2018-05-01T09:00:00 | R17: 629.25 | S17: =Input!$C$13*Hodiny!R17 -> 972.7536232 | U17: 2018-06-01T09:00:00 | V17: 742.5 | W17: =Input!$C$13*Hodiny!V17 -> 1147.826087 | Y17: 2018-07-01T09:00:00 | Z17: 581.5 | AA17: =Input!$C$13*Hodiny!Z17 -> 898.9371981 | AC17: 2018-08-01T10:00:00 | AD17: 756.75 | AE17: =Input!$C$13*Hodiny!AD17 -> 1169.855072 | AG17: 2018-09-01T09:00:00 | AH17: 736.25 | AI17: =Input!$C$13*Hodiny!AH17 -> 1138.164251 | AK17: 2017-10-01T09:00:00 | AL17: 546.75 | AM17: =Input!$C$13*Hodiny!AL17 -> 845.2173913 | AO17: 2017-11-01T09:00:00 | AP17: 598.5 | AQ17: =Input!$C$13*Hodiny!AP17 -> 925.2173913 | AS17: 2017-12-01T09:00:00 | AT17: 606.5 | AU17: =Input!$C$13*Hodiny!AT17 -> 937.5845411
A18: 2018-01-01T10:00:00 | B18: 455 | C18: =Input!$C$13*Hodiny!B18 -> 703.3816425 | E18: 2018-02-01T10:00:00 | F18: 607.5 | G18: =Input!$C$13*Hodiny!F18 -> 939.1304348 | I18: 2018-03-01T10:00:00 | J18: 591.75 | K18: =Input!$C$13*Hodiny!J18 -> 914.7826087 | M18: 2018-04-01T10:00:00 | N18: 493 | O18: =Input!$C$13*Hodiny!N18 -> 762.1256039 | Q18: 2018-05-01T10:00:00 | R18: 678.5 | S18: =Input!$C$13*Hodiny!R18 -> 1048.888889 | U18: 2018-06-01T10:00:00 | V18: 756.25 | W18: =Input!$C$13*Hodiny!V18 -> 1169.082126 | Y18: 2018-07-01T10:00:00 | Z18: 620.75 | AA18: =Input!$C$13*Hodiny!Z18 -> 959.6135266 | AC18: 2018-08-01T11:00:00 | AD18: 759.5 | AE18: =Input!$C$13*Hodiny!AD18 -> 1174.10628 | AG18: 2018-09-01T10:00:00 | AH18: 751 | AI18: =Input!$C$13*Hodiny!AH18 -> 1160.966184 | AK18: 2017-10-01T10:00:00 | AL18: 560.75 | AM18: =Input!$C$13*Hodiny!AL18 -> 866.8599034 | AO18: 2017-11-01T10:00:00 | AP18: 591.5 | AQ18: =Input!$C$13*Hodiny!AP18 -> 914.3961353 | AS18: 2017-12-01T10:00:00 | AT18: 555 | AU18: =Input!$C$13*Hodiny!AT18 -> 857.9710145
A19: 2018-01-01T11:00:00 | B19: 482.25 | C19: =Input!$C$13*Hodiny!B19 -> 745.5072464 | E19: 2018-02-01T11:00:00 | F19: 565 | G19: =Input!$C$13*Hodiny!F19 -> 873.4299517 | I19: 2018-03-01T11:00:00 | J19: 585.5 | K19: =Input!$C$13*Hodiny!J19 -> 905.1207729 | M19: 2018-04-01T11:00:00 | N19: 490.5 | O19: =Input!$C$13*Hodiny!N19 -> 758.2608696 | Q19: 2018-05-01T11:00:00 | R19: 707 | S19: =Input!$C$13*Hodiny!R19 -> 1092.94686 | U19: 2018-06-01T11:00:00 | V19: 779.75 | W19: =Input!$C$13*Hodiny!V19 -> 1205.410628 | Y19: 2018-07-01T11:00:00 | Z19: 635.75 | AA19: =Input!$C$13*Hodiny!Z19 -> 982.8019324 | AC19: 2018-08-01T12:00:00 | AD19: 776.5 | AE19: =Input!$C$13*Hodiny!AD19 -> 1200.386473 | AG19: 2018-09-01T11:00:00 | AH19: 745.5 | AI19: =Input!$C$13*Hodiny!AH19 -> 1152.463768 | AK19: 2017-10-01T11:00:00 | AL19: 549.25 | AM19: =Input!$C$13*Hodiny!AL19 -> 849.0821256 | AO19: 2017-11-01T11:00:00 | AP19: 586.25 | AQ19: =Input!$C$13*Hodiny!AP19 -> 906.2801932 | AS19: 2017-12-01T11:00:00 | AT19: 628.25 | AU19: =Input!$C$13*Hodiny!AT19 -> 971.2077295
A20: 2018-01-01T12:00:00 | B20: 458 | C20: =Input!$C$13*Hodiny!B20 -> 708.0193237 | E20: 2018-02-01T12:00:00 | F20: 553.75 | G20: =Input!$C$13*Hodiny!F20 -> 856.0386473 | I20: 2018-03-01T12:00:00 | J20: 598.5 | K20: =Input!$C$13*Hodiny!J20 -> 925.2173913 | M20: 2018-04-01T12:00:00 | N20: 507 | O20: =Input!$C$13*Hodiny!N20 -> 783.7681159 | Q20: 2018-05-01T12:00:00 | R20: 689.5 | S20: =Input!$C$13*Hodiny!R20 -> 1065.89372 | U20: 2018-06-01T12:00:00 | V20: 753.5 | W20: =Input!$C$13*Hodiny!V20 -> 1164.830918 | Y20: 2018-07-01T12:00:00 | Z20: 595 | AA20: =Input!$C$13*Hodiny!Z20 -> 919.8067633 | AC20: 2018-08-01T13:00:00 | AD20: 792 | AE20: =Input!$C$13*Hodiny!AD20 -> 1224.347826 | AG20: 2018-09-01T12:00:00 | AH20: 737.5 | AI20: =Input!$C$13*Hodiny!AH20 -> 1140.096618 | AK20: 2017-10-01T12:00:00 | AL20: 553.5 | AM20: =Input!$C$13*Hodiny!AL20 -> 855.6521739 | AO20: 2017-11-01T12:00:00 | AP20: 606.25 | AQ20: =Input!$C$13*Hodiny!AP20 -> 937.1980676 | AS20: 2017-12-01T12:00:00 | AT20: 612.25 | AU20: =Input!$C$13*Hodiny!AT20 -> 946.47343 | AY20: Spotřeba [MWh] | AZ20: Hodinový příkon MAX [kW] | BA20: Hodinový příkon MIN [kW] | BB20: Hodinový příkon průměrný [kW] | BC20: 1/4hodinové MAX [kW] | BD20: 1/4hodinové MIN [kW]
A21: 2018-01-01T13:00:00 | B21: 479.75 | C21: =Input!$C$13*Hodiny!B21 -> 741.6425121 | E21: 2018-02-01T13:00:00 | F21: 583.25 | G21: =Input!$C$13*Hodiny!F21 -> 901.6425121 | I21: 2018-03-01T13:00:00 | J21: 600.25 | K21: =Input!$C$13*Hodiny!J21 -> 927.9227053 | M21: 2018-04-01T13:00:00 | N21: 514.25 | O21: =Input!$C$13*Hodiny!N21 -> 794.9758454 | Q21: 2018-05-01T13:00:00 | R21: 715.25 | S21: =Input!$C$13*Hodiny!R21 -> 1105.700483 | U21: 2018-06-01T13:00:00 | V21: 779.75 | W21: =Input!$C$13*Hodiny!V21 -> 1205.410628 | Y21: 2018-07-01T13:00:00 | Z21: 619.5 | AA21: =Input!$C$13*Hodiny!Z21 -> 957.6811594 | AC21: 2018-08-01T14:00:00 | AD21: 811.25 | AE21: =Input!$C$13*Hodiny!AD21 -> 1254.10628 | AG21: 2018-09-01T13:00:00 | AH21: 730.25 | AI21: =Input!$C$13*Hodiny!AH21 -> 1128.888889 | AK21: 2017-10-01T13:00:00 | AL21: 562 | AM21: =Input!$C$13*Hodiny!AL21 -> 868.7922705 | AO21: 2017-11-01T13:00:00 | AP21: 628.5 | AQ21: =Input!$C$13*Hodiny!AP21 -> 971.5942029 | AS21: 2017-12-01T13:00:00 | AT21: 605 | AU21: =Input!$C$13*Hodiny!AT21 -> 935.2657005
A22: 2018-01-01T14:00:00 | B22: 459.75 | C22: =Input!$C$13*Hodiny!B22 -> 710.7246377 | E22: 2018-02-01T14:00:00 | F22: 581 | G22: =Input!$C$13*Hodiny!F22 -> 898.1642512 | I22: 2018-03-01T14:00:00 | J22: 606 | K22: =Input!$C$13*Hodiny!J22 -> 936.8115942 | M22: 2018-04-01T14:00:00 | N22: 480 | O22: =Input!$C$13*Hodiny!N22 -> 742.0289855 | Q22: 2018-05-01T14:00:00 | R22: 809.75 | S22: =Input!$C$13*Hodiny!R22 -> 1251.78744 | U22: 2018-06-01T14:00:00 | V22: 834 | W22: =Input!$C$13*Hodiny!V22 -> 1289.275362 | Y22: 2018-07-01T14:00:00 | Z22: 643.25 | AA22: =Input!$C$13*Hodiny!Z22 -> 994.3961353 | AC22: 2018-08-01T15:00:00 | AD22: 885 | AE22: =Input!$C$13*Hodiny!AD22 -> 1368.115942 | AG22: 2018-09-01T14:00:00 | AH22: 748.25 | AI22: =Input!$C$13*Hodiny!AH22 -> 1156.714976 | AK22: 2017-10-01T14:00:00 | AL22: 545 | AM22: =Input!$C$13*Hodiny!AL22 -> 842.5120773 | AO22: 2017-11-01T14:00:00 | AP22: 644.75 | AQ22: =Input!$C$13*Hodiny!AP22 -> 996.7149758 | AS22: 2017-12-01T14:00:00 | AT22: 622.75 | AU22: =Input!$C$13*Hodiny!AT22 -> 962.705314 | AX22: leden | AY22: =AY4*Input!C13 -> 635.9598068 | AZ22: =AZ4*Input!$C$13 -> 1196.521739 | BA22: =BA4*Input!$C$13 -> 587.4396135 | BB22: =BB4*Input!$C$13 -> 854.7846865 | BC22: =BC4*Input!$C$13 -> 1295.458937 | BD22: =BD4*Input!$C$13 -> 527.1497585
A23: 2018-01-01T15:00:00 | B23: 489 | C23: =Input!$C$13*Hodiny!B23 -> 755.942029 | E23: 2018-02-01T15:00:00 | F23: 620.5 | G23: =Input!$C$13*Hodiny!F23 -> 959.2270531 | I23: 2018-03-01T15:00:00 | J23: 688.25 | K23: =Input!$C$13*Hodiny!J23 -> 1063.961353 | M23: 2018-04-01T15:00:00 | N23: 518.75 | O23: =Input!$C$13*Hodiny!N23 -> 801.9323671 | Q23: 2018-05-01T15:00:00 | R23: 755.25 | S23: =Input!$C$13*Hodiny!R23 -> 1167.536232 | U23: 2018-06-01T15:00:00 | V23: 892.25 | W23: =Input!$C$13*Hodiny!V23 -> 1379.323671 | Y23: 2018-07-01T15:00:00 | Z23: 713 | AA23: =Input!$C$13*Hodiny!Z23 -> 1102.222222 | AC23: 2018-08-01T16:00:00 | AD23: 857.75 | AE23: =Input!$C$13*Hodiny!AD23 -> 1325.990338 | AG23: 2018-09-01T15:00:00 | AH23: 763.25 | AI23: =Input!$C$13*Hodiny!AH23 -> 1179.903382 | AK23: 2017-10-01T15:00:00 | AL23: 573.5 | AM23: =Input!$C$13*Hodiny!AL23 -> 886.5700483 | AO23: 2017-11-01T15:00:00 | AP23: 672.25 | AQ23: =Input!$C$13*Hodiny!AP23 -> 1039.227053 | AS23: 2017-12-01T15:00:00 | AT23: 669 | AU23: =Input!$C$13*Hodiny!AT23 -> 1034.202899 | AX23: únor | AY23: =AY5*Input!$C$13 -> 555.091401 | AZ23: =AZ5*Input!$C$13 -> 1227.826087 | BA23: =BA5*Input!$C$13 -> 571.9806763 | BB23: =BB5*Input!$C$13 -> 826.0288705 | BC23: =BC5*Input!$C$13 -> 1386.666667 | BD23: =BD5*Input!$C$13 -> 530.2415459
A24: 2018-01-01T16:00:00 | B24: 497.5 | C24: =Input!$C$13*Hodiny!B24 -> 769.0821256 | E24: 2018-02-01T16:00:00 | F24: 720.5 | G24: =Input!$C$13*Hodiny!F24 -> 1113.816425 | I24: 2018-03-01T16:00:00 | J24: 753.75 | K24: =Input!$C$13*Hodiny!J24 -> 1165.217391 | M24: 2018-04-01T16:00:00 | N24: 487.25 | O24: =Input!$C$13*Hodiny!N24 -> 753.236715 | Q24: 2018-05-01T16:00:00 | R24: 715.75 | S24: =Input!$C$13*Hodiny!R24 -> 1106.47343 | U24: 2018-06-01T16:00:00 | V24: 898.75 | W24: =Input!$C$13*Hodiny!V24 -> 1389.371981 | Y24: 2018-07-01T16:00:00 | Z24: 708.5 | AA24: =Input!$C$13*Hodiny!Z24 -> 1095.2657 | AC24: 2018-08-01T17:00:00 | AD24: 814 | AE24: =Input!$C$13*Hodiny!AD24 -> 1258.357488 | AG24: 2018-09-01T16:00:00 | AH24: 745.75 | AI24: =Input!$C$13*Hodiny!AH24 -> 1152.850242 | AK24: 2017-10-01T16:00:00 | AL24: 591.5 | AM24: =Input!$C$13*Hodiny!AL24 -> 914.3961353 | AO24: 2017-11-01T16:00:00 | AP24: 750.25 | AQ24: =Input!$C$13*Hodiny!AP24 -> 1159.806763 | AS24: 2017-12-01T16:00:00 | AT24: 746.5 | AU24: =Input!$C$13*Hodiny!AT24 -> 1154.009662 | AX24: březen | AY24: =AY6*Input!$C$13 -> 609.9841546 | AZ24: =AZ6*Input!$C$13 -> 1226.280193 | BA24: =BA6*Input!$C$13 -> 0 | BB24: =BB6*Input!$C$13 -> 820.9746361 | BC24: =BC6*Input!$C$13 -> 1348.019324 | BD24: =BD6*Input!$C$13 -> 0
A25: 2018-01-01T17:00:00 | B25: 564.5 | C25: =Input!$C$13*Hodiny!B25 -> 872.6570048 | E25: 2018-02-01T17:00:00 | F25: 645.5 | G25: =Input!$C$13*Hodiny!F25 -> 997.8743961 | I25: 2018-03-01T17:00:00 | J25: 701.75 | K25: =Input!$C$13*Hodiny!J25 -> 1084.830918 | M25: 2018-04-01T17:00:00 | N25: 462.25 | O25: =Input!$C$13*Hodiny!N25 -> 714.589372 | Q25: 2018-05-01T17:00:00 | R25: 692.5 | S25: =Input!$C$13*Hodiny!R25 -> 1070.531401 | U25: 2018-06-01T17:00:00 | V25: 885.25 | W25: =Input!$C$13*Hodiny!V25 -> 1368.502415 | Y25: 2018-07-01T17:00:00 | Z25: 650 | AA25: =Input!$C$13*Hodiny!Z25 -> 1004.830918 | AC25: 2018-08-01T18:00:00 | AD25: 731.5 | AE25: =Input!$C$13*Hodiny!AD25 -> 1130.821256 | AG25: 2018-09-01T17:00:00 | AH25: 745.5 | AI25: =Input!$C$13*Hodiny!AH25 -> 1152.463768 | AK25: 2017-10-01T17:00:00 | AL25: 516.5 | AM25: =Input!$C$13*Hodiny!AL25 -> 798.4541063 | AO25: 2017-11-01T17:00:00 | AP25: 663.5 | AQ25: =Input!$C$13*Hodiny!AP25 -> 1025.700483 | AS25: 2017-12-01T17:00:00 | AT25: 702 | AU25: =Input!$C$13*Hodiny!AT25 -> 1085.217391 | AX25: duben | AY25: =AY7*Input!$C$13 -> 628.2747826 | AZ25: =AZ7*Input!$C$13 -> 1352.657005 | BA25: =BA7*Input!$C$13 -> 519.8067633 | BB25: =BB7*Input!$C$13 -> 872.6038647 | BC25: =BC7*Input!$C$13 -> 1459.323671 | BD25: =BD7*Input!$C$13 -> 420.4830918
A26: 2018-01-01T18:00:00 | B26: 520 | C26: =Input!$C$13*Hodiny!B26 -> 803.8647343 | E26: 2018-02-01T18:00:00 | F26: 598.75 | G26: =Input!$C$13*Hodiny!F26 -> 925.6038647 | I26: 2018-03-01T18:00:00 | J26: 657 | K26: =Input!$C$13*Hodiny!J26 -> 1015.652174 | M26: 2018-04-01T18:00:00 | N26: 448.75 | O26: =Input!$C$13*Hodiny!N26 -> 693.7198068 | Q26: 2018-05-01T18:00:00 | R26: 671.5 | S26: =Input!$C$13*Hodiny!R26 -> 1038.067633 | U26: 2018-06-01T18:00:00 | V26: 762.25 | W26: =Input!$C$13*Hodiny!V26 -> 1178.357488 | Y26: 2018-07-01T18:00:00 | Z26: 574.5 | AA26: =Input!$C$13*Hodiny!Z26 -> 888.115942 | AC26: 2018-08-01T19:00:00 | AD26: 727.75 | AE26: =Input!$C$13*Hodiny!AD26 -> 1125.024155 | AG26: 2018-09-01T18:00:00 | AH26: 715.75 | AI26: =Input!$C$13*Hodiny!AH26 -> 1106.47343 | AK26: 2017-10-01T18:00:00 | AL26: 505.5 | AM26: =Input!$C$13*Hodiny!AL26 -> 781.4492754 | AO26: 2017-11-01T18:00:00 | AP26: 611 | AQ26: =Input!$C$13*Hodiny!AP26 -> 944.5410628 | AS26: 2017-12-01T18:00:00 | AT26: 649.75 | AU26: =Input!$C$13*Hodiny!AT26 -> 1004.444444 | AX26: květen | AY26: =AY8*Input!$C$13 -> 682.5402899 | AZ26: =AZ8*Input!$C$13 -> 1499.130435 | BA26: =BA8*Input!$C$13 -> 370.2415459 | BB26: =BB8*Input!$C$13 -> 917.3928627 | BC26: =BC8*Input!$C$13 -> 1600 | BD26: =BD8*Input!$C$13 -> 111.3043478
A27: 2018-01-01T19:00:00 | B27: 513.25 | C27: =Input!$C$13*Hodiny!B27 -> 793.4299517 | E27: 2018-02-01T19:00:00 | F27: 544.75 | G27: =Input!$C$13*Hodiny!F27 -> 842.1256039 | I27: 2018-03-01T19:00:00 | J27: 625.75 | K27: =Input!$C$13*Hodiny!J27 -> 967.3429952 | M27: 2018-04-01T19:00:00 | N27: 445.5 | O27: =Input!$C$13*Hodiny!N27 -> 688.6956522 | Q27: 2018-05-01T19:00:00 | R27: 603.5 | S27: =Input!$C$13*Hodiny!R27 -> 932.9468599 | U27: 2018-06-01T19:00:00 | V27: 714.5 | W27: =Input!$C$13*Hodiny!V27 -> 1104.541063 | Y27: 2018-07-01T19:00:00 | Z27: 589.75 | AA27: =Input!$C$13*Hodiny!Z27 -> 911.6908213 | AC27: 2018-08-01T20:00:00 | AD27: 635.75 | AE27: =Input!$C$13*Hodiny!AD27 -> 982.8019324 | AG27: 2018-09-01T19:00:00 | AH27: 708.5 | AI27: =Input!$C$13*Hodiny!AH27 -> 1095.2657 | AK27: 2017-10-01T19:00:00 | AL27: 503.25 | AM27: =Input!$C$13*Hodiny!AL27 -> 777.9710145 | AO27: 2017-11-01T19:00:00 | AP27: 567.25 | AQ27: =Input!$C$13*Hodiny!AP27 -> 876.9082126 | AS27: 2017-12-01T19:00:00 | AT27: 565 | AU27: =Input!$C$13*Hodiny!AT27 -> 873.4299517 | AX27: červen | AY27: =AY9*Input!$C$13 -> 703.4388406 | AZ27: =AZ9*Input!$C$13 -> 1434.975845 | BA27: =BA9*Input!$C$13 -> 577.0048309 | BB27: =BB9*Input!$C$13 -> 976.9983897 | BC27: =BC9*Input!$C$13 -> 1487.149758 | BD27: =BD9*Input!$C$13 -> 547.2463768
A28: 2018-01-01T20:00:00 | B28: 541 | C28: =Input!$C$13*Hodiny!B28 -> 836.3285024 | E28: 2018-02-01T20:00:00 | F28: 524.25 | G28: =Input!$C$13*Hodiny!F28 -> 810.4347826 | I28: 2018-03-01T20:00:00 | J28: 614.75 | K28: =Input!$C$13*Hodiny!J28 -> 950.3381643 | M28: 2018-04-01T20:00:00 | N28: 440 | O28: =Input!$C$13*Hodiny!N28 -> 680.1932367 | Q28: 2018-05-01T20:00:00 | R28: 584.25 | S28: =Input!$C$13*Hodiny!R28 -> 903.1884058 | U28: 2018-06-01T20:00:00 | V28: 674 | W28: =Input!$C$13*Hodiny!V28 -> 1041.932367 | Y28: 2018-07-01T20:00:00 | Z28: 536 | AA28: =Input!$C$13*Hodiny!Z28 -> 828.5990338 | AC28: 2018-08-01T21:00:00 | AD28: 639.5 | AE28: =Input!$C$13*Hodiny!AD28 -> 988.5990338 | AG28: 2018-09-01T20:00:00 | AH28: 666.25 | AI28: =Input!$C$13*Hodiny!AH28 -> 1029.951691 | AK28: 2017-10-01T20:00:00 | AL28: 519 | AM28: =Input!$C$13*Hodiny!AL28 -> 802.3188406 | AO28: 2017-11-01T20:00:00 | AP28: 557 | AQ28: =Input!$C$13*Hodiny!AP28 -> 861.0628019 | AS28: 2017-12-01T20:00:00 | AT28: 551.5 | AU28: =Input!$C$13*Hodiny!AT28 -> 852.5603865 | AX28: červenec | AY28: =AY10*Input!$C$13 -> 704.0135266 | AZ28: =AZ10*Input!$C$13 -> 1379.323671 | BA28: =BA10*Input!$C$13 -> 607.5362319 | BB28: =BB10*Input!$C$13 -> 946.25474 | BC28: =BC10*Input!$C$13 -> 1389.758454 | BD28: =BD10*Input!$C$13 -> 550.3381643
A29: 2018-01-01T21:00:00 | B29: 499.5 | C29: =Input!$C$13*Hodiny!B29 -> 772.173913 | E29: 2018-02-01T21:00:00 | F29: 495.25 | G29: =Input!$C$13*Hodiny!F29 -> 765.6038647 | I29: 2018-03-01T21:00:00 | J29: 580 | K29: =Input!$C$13*Hodiny!J29 -> 896.6183575 | M29: 2018-04-01T21:00:00 | N29: 422.75 | O29: =Input!$C$13*Hodiny!N29 -> 653.52657 | Q29: 2018-05-01T21:00:00 | R29: 511.5 | S29: =Input!$C$13*Hodiny!R29 -> 790.7246377 | U29: 2018-06-01T21:00:00 | V29: 660 | W29: =Input!$C$13*Hodiny!V29 -> 1020.289855 | Y29: 2018-07-01T21:00:00 | Z29: 541 | AA29: =Input!$C$13*Hodiny!Z29 -> 836.3285024 | AC29: 2018-08-01T22:00:00 | AD29: 641.5 | AE29: =Input!$C$13*Hodiny!AD29 -> 991.6908213 | AG29: 2018-09-01T21:00:00 | AH29: 687.25 | AI29: =Input!$C$13*Hodiny!AH29 -> 1062.415459 | AK29: 2017-10-01T21:00:00 | AL29: 528 | AM29: =Input!$C$13*Hodiny!AL29 -> 816.2318841 | AO29: 2017-11-01T21:00:00 | AP29: 536.25 | AQ29: =Input!$C$13*Hodiny!AP29 -> 828.9855072 | AS29: 2017-12-01T21:00:00 | AT29: 576.25 | AU29: =Input!$C$13*Hodiny!AT29 -> 890.821256 | AX29: srpen | AY29: =AY11*Input!$C$13 -> 782.4050242 | AZ29: =AZ11*Input!$C$13 -> 1532.36715 | BA29: =BA11*Input!$C$13 -> 646.5700483 | BB29: =BB11*Input!$C$13 -> 1053.035026 | BC29: =BC11*Input!$C$13 -> 1539.710145 | BD29: =BD11*Input!$C$13 -> 479.2270531
A30: 2018-01-01T22:00:00 | B30: 494.5 | C30: =Input!$C$13*Hodiny!B30 -> 764.4444444 | E30: 2018-02-01T22:00:00 | F30: 500.25 | G30: =Input!$C$13*Hodiny!F30 -> 773.3333333 | I30: 2018-03-01T22:00:00 | J30: 555.25 | K30: =Input!$C$13*Hodiny!J30 -> 858.3574879 | M30: 2018-04-01T22:00:00 | N30: 407 | O30: =Input!$C$13*Hodiny!N30 -> 629.178744 | Q30: 2018-05-01T22:00:00 | R30: 527.5 | S30: =Input!$C$13*Hodiny!R30 -> 815.4589372 | U30: 2018-06-01T22:00:00 | V30: 619.5 | W30: =Input!$C$13*Hodiny!V30 -> 957.6811594 | Y30: 2018-07-01T22:00:00 | Z30: 543.25 | AA30: =Input!$C$13*Hodiny!Z30 -> 839.8067633 | AC30: 2018-08-01T23:00:00 | AD30: 621.75 | AE30: =Input!$C$13*Hodiny!AD30 -> 961.1594203 | AG30: 2018-09-01T22:00:00 | AH30: 652.75 | AI30: =Input!$C$13*Hodiny!AH30 -> 1009.082126 | AK30: 2017-10-01T22:00:00 | AL30: 483.75 | AM30: =Input!$C$13*Hodiny!AL30 -> 747.826087 | AO30: 2017-11-01T22:00:00 | AP30: 528.25 | AQ30: =Input!$C$13*Hodiny!AP30 -> 816.6183575 | AS30: 2017-12-01T22:00:00 | AT30: 539.5 | AU30: =Input!$C$13*Hodiny!AT30 -> 834.0096618 | AX30: září | AY30: =AY12*Input!$C$13 -> 705.6305314 | AZ30: =AZ12*Input!$C$13 -> 1494.879227 | BA30: =BA12*Input!$C$13 -> 586.2801932 | BB30: =BB12*Input!$C$13 -> 980.0424047 | BC30: =BC12*Input!$C$13 -> 1536.618357 | BD30: =BD12*Input!$C$13 -> 508.5990338
A31: 2018-01-01T23:00:00 | B31: 514 | C31: =Input!$C$13*Hodiny!B31 -> 794.589372 | E31: 2018-02-01T23:00:00 | F31: 502.5 | G31: =Input!$C$13*Hodiny!F31 -> 776.8115942 | I31: 2018-03-01T23:00:00 | J31: 562.25 | K31: =Input!$C$13*Hodiny!J31 -> 869.178744 | M31: 2018-04-01T23:00:00 | N31: 396.25 | O31: =Input!$C$13*Hodiny!N31 -> 612.5603865 | Q31: 2018-05-01T23:00:00 | R31: 495.5 | S31: =Input!$C$13*Hodiny!R31 -> 765.9903382 | U31: 2018-06-01T23:00:00 | V31: 585.75 | W31: =Input!$C$13*Hodiny!V31 -> 905.5072464 | Y31: 2018-07-01T23:00:00 | Z31: 494 | AA31: =Input!$C$13*Hodiny!Z31 -> 763.6714976 | AC31: 2018-08-02 | AD31: 591.25 | AE31: =Input!$C$13*Hodiny!AD31 -> 914.0096618 | AG31: 2018-09-01T23:00:00 | AH31: 662.5 | AI31: =Input!$C$13*Hodiny!AH31 -> 1024.154589 | AK31: 2017-10-01T23:00:00 | AL31: 460.5 | AM31: =Input!$C$13*Hodiny!AL31 -> 711.884058 | AO31: 2017-11-01T23:00:00 | AP31: 523.75 | AQ31: =Input!$C$13*Hodiny!AP31 -> 809.6618357 | AS31: 2017-12-01T23:00:00 | AT31: 512 | AU31: =Input!$C$13*Hodiny!AT31 -> 791.4975845 | AX31: říjen | AY31: =AY13*Input!$C$13 -> 632.7385507 | AZ31: =AZ13*Input!$C$13 -> 1307.826087 | BA31: =BA13*Input!$C$13 -> 590.9178744 | BB31: =BB13*Input!$C$13 -> 850.4550413 | BC31: =BC13*Input!$C$13 -> 1368.115942 | BD31: =BD13*Input!$C$13 -> 469.9516908
A32: 2018-01-02 | B32: 522.25 | C32: =Input!$C$13*Hodiny!B32 -> 807.3429952 | E32: 2018-02-02 | F32: 507.25 | G32: =Input!$C$13*Hodiny!F32 -> 784.1545894 | I32: 2018-03-02 | J32: 575.75 | K32: =Input!$C$13*Hodiny!J32 -> 890.0483092 | M32: 2018-04-02 | N32: 426.25 | O32: =Input!$C$13*Hodiny!N32 -> 658.9371981 | Q32: 2018-05-02 | R32: 562.75 | S32: =Input!$C$13*Hodiny!R32 -> 869.9516908 | U32: 2018-06-02 | V32: 539.5 | W32: =Input!$C$13*Hodiny!V32 -> 834.0096618 | Y32: 2018-07-02 | Z32: 515.5 | AA32: =Input!$C$13*Hodiny!Z32 -> 796.9082126 | AC32: 2018-08-02T01:00:00 | AD32: 623.25 | AE32: =Input!$C$13*Hodiny!AD32 -> 963.4782609 | AG32: 2018-09-02 | AH32: 650.75 | AI32: =Input!$C$13*Hodiny!AH32 -> 1005.990338 | AK32: 2017-10-02 | AL32: 486.5 | AM32: =Input!$C$13*Hodiny!AL32 -> 752.0772947 | AO32: 2017-11-02 | AP32: 566.75 | AQ32: =Input!$C$13*Hodiny!AP32 -> 876.1352657 | AS32: 2017-12-02 | AT32: 584.5 | AU32: =Input!$C$13*Hodiny!AT32 -> 903.5748792 | AX32: listopad | AY32: =AY14*Input!$C$13 -> 636.3887923 | AZ32: =AZ14*Input!$C$13 -> 1291.594203 | BA32: =BA14*Input!$C$13 -> 632.2705314 | BB32: =BB14*Input!$C$13 -> 883.8733226 | BC32: =BC14*Input!$C$13 -> 1437.681159 | BD32: =BD14*Input!$C$13 -> 609.0821256
A33: 2018-01-02T01:00:00 | B33: 574.5 | C33: =Input!$C$13*Hodiny!B33 -> 888.115942 | E33: 2018-02-02T01:00:00 | F33: 492.75 | G33: =Input!$C$13*Hodiny!F33 -> 761.7391304 | I33: 2018-03-02T01:00:00 | J33: 534.25 | K33: =Input!$C$13*Hodiny!J33 -> 825.8937198 | M33: 2018-04-02T01:00:00 | N33: 426.25 | O33: =Input!$C$13*Hodiny!N33 -> 658.9371981 | Q33: 2018-05-02T01:00:00 | R33: 561.75 | S33: =Input!$C$13*Hodiny!R33 -> 868.4057971 | U33: 2018-06-02T01:00:00 | V33: 572 | W33: =Input!$C$13*Hodiny!V33 -> 884.2512077 | Y33: 2018-07-02T01:00:00 | Z33: 504.75 | AA33: =Input!$C$13*Hodiny!Z33 -> 780.2898551 | AC33: 2018-08-02T02:00:00 | AD33: 555 | AE33: =Input!$C$13*Hodiny!AD33 -> 857.9710145 | AG33: 2018-09-02T01:00:00 | AH33: 656.5 | AI33: =Input!$C$13*Hodiny!AH33 -> 1014.879227 | AK33: 2017-10-02T01:00:00 | AL33: 452.25 | AM33: =Input!$C$13*Hodiny!AL33 -> 699.1304348 | AO33: 2017-11-02T01:00:00 | AP33: 549.75 | AQ33: =Input!$C$13*Hodiny!AP33 -> 849.8550725 | AS33: 2017-12-02T01:00:00 | AT33: 561 | AU33: =Input!$C$13*Hodiny!AT33 -> 867.2463768 | AX33: prosinec | AY33: =AY15*Input!$C$13 -> 654.4081159 | AZ33: =AZ15*Input!$C$13 -> 1298.164251 | BA33: =BA15*Input!$C$13 -> 588.2125604 | BB33: =BB15*Input!$C$13 -> 879.580801 | BC33: =BC15*Input!$C$13 -> 1360.386473 | BD33: =BD15*Input!C13 -> 517.8743961
A34: 2018-01-02T02:00:00 | B34: 509.25 | C34: =Input!$C$13*Hodiny!B34 -> 787.2463768 | E34: 2018-02-02T02:00:00 | F34: 486 | G34: =Input!$C$13*Hodiny!F34 -> 751.3043478 | I34: 2018-03-02T02:00:00 | J34: 536.25 | K34: =Input!$C$13*Hodiny!J34 -> 828.9855072 | M34: 2018-04-02T02:00:00 | N34: 427.25 | O34: =Input!$C$13*Hodiny!N34 -> 660.4830918 | Q34: 2018-05-02T02:00:00 | R34: 510 | S34: =Input!$C$13*Hodiny!R34 -> 788.4057971 | U34: 2018-06-02T02:00:00 | V34: 570.75 | W34: =Input!$C$13*Hodiny!V34 -> 882.3188406 | Y34: 2018-07-02T02:00:00 | Z34: 489.5 | AA34: =Input!$C$13*Hodiny!Z34 -> 756.7149758 | AC34: 2018-08-02T03:00:00 | AD34: 619.75 | AE34: =Input!$C$13*Hodiny!AD34 -> 958.0676329 | AG34: 2018-09-02T02:00:00 | AH34: 564.25 | AI34: =Input!$C$13*Hodiny!AH34 -> 872.2705314 | AK34: 2017-10-02T02:00:00 | AL34: 490 | AM34: =Input!$C$13*Hodiny!AL34 -> 757.4879227 | AO34: 2017-11-02T02:00:00 | AP34: 516.75 | AQ34: =Input!$C$13*Hodiny!AP34 -> 798.8405797 | AS34: 2017-12-02T02:00:00 | AT34: 554.25 | AU34: =Input!$C$13*Hodiny!AT34 -> 856.8115942 | AX34: Suma, MAX, MIN, AVG | AY34: =SUM(AY22:AY33) -> 7930.873816 | AZ34: =MAX(AZ22:AZ33) -> 1532.36715 | BA34: =MIN(BA22:BA23,BA27:BA33) -> 571.9806763 | BB34: =AVERAGE(BB22:BB33) -> 905.1687205 | BC34: =MAX(BC22:BC33) -> 1600 | BD34: =MIN(BD22:BD23,BD27:BD33) -> 469.9516908
A35: 2018-01-02T03:00:00 | B35: 497.5 | C35: =Input!$C$13*Hodiny!B35 -> 769.0821256 | E35: 2018-02-02T03:00:00 | F35: 460.5 | G35: =Input!$C$13*Hodiny!F35 -> 711.884058 | I35: 2018-03-02T03:00:00 | J35: 439 | K35: =Input!$C$13*Hodiny!J35 -> 678.647343 | M35: 2018-04-02T03:00:00 | N35: 418.5 | O35: =Input!$C$13*Hodiny!N35 -> 646.9565217 | Q35: 2018-05-02T03:00:00 | R35: 466.25 | S35: =Input!$C$13*Hodiny!R35 -> 720.7729469 | U35: 2018-06-02T03:00:00 | V35: 548.5 | W35: =Input!$C$13*Hodiny!V35 -> 847.9227053 | Y35: 2018-07-02T03:00:00 | Z35: 466.5 | AA35: =Input!$C$13*Hodiny!Z35 -> 721.1594203 | AC35: 2018-08-02T04:00:00 | AD35: 483.75 | AE35: =Input!$C$13*Hodiny!AD35 -> 747.826087 | AG35: 2018-09-02T03:00:00 | AH35: 586.75 | AI35: =Input!$C$13*Hodiny!AH35 -> 907.0531401 | AK35: 2017-10-02T03:00:00 | AL35: 446 | AM35: =Input!$C$13*Hodiny!AL35 -> 689.468599 | AO35: 2017-11-02T03:00:00 | AP35: 550.5 | AQ35: =Input!$C$13*Hodiny!AP35 -> 851.0144928 | AS35: 2017-12-02T03:00:00 | AT35: 518.25 | AU35: =Input!$C$13*Hodiny!AT35 -> 801.1594203
A36: 2018-01-02T04:00:00 | B36: 439.5 | C36: =Input!$C$13*Hodiny!B36 -> 679.4202899 | E36: 2018-02-02T04:00:00 | F36: 392 | G36: =Input!$C$13*Hodiny!F36 -> 605.9903382 | I36: 2018-03-02T04:00:00 | J36: 423.75 | K36: =Input!$C$13*Hodiny!J36 -> 655.0724638 | M36: 2018-04-02T04:00:00 | N36: 413.25 | O36: =Input!$C$13*Hodiny!N36 -> 638.8405797 | Q36: 2018-05-02T04:00:00 | R36: 468.25 | S36: =Input!$C$13*Hodiny!R36 -> 723.8647343 | U36: 2018-06-02T04:00:00 | V36: 502.5 | W36: =Input!$C$13*Hodiny!V36 -> 776.8115942 | Y36: 2018-07-02T04:00:00 | Z36: 414.25 | AA36: =Input!$C$13*Hodiny!Z36 -> 640.3864734 | AC36: 2018-08-02T05:00:00 | AD36: 460 | AE36: =Input!$C$13*Hodiny!AD36 -> 711.1111111 | AG36: 2018-09-02T04:00:00 | AH36: 542.5 | AI36: =Input!$C$13*Hodiny!AH36 -> 838.647343 | AK36: 2017-10-02T04:00:00 | AL36: 397.5 | AM36: =Input!$C$13*Hodiny!AL36 -> 614.4927536 | AO36: 2017-11-02T04:00:00 | AP36: 474 | AQ36: =Input!$C$13*Hodiny!AP36 -> 732.7536232 | AS36: 2017-12-02T04:00:00 | AT36: 453.25 | AU36: =Input!$C$13*Hodiny!AT36 -> 700.6763285 | AZ36: =AZ4*$K$3 -> 1196.521739
A37: 2018-01-02T05:00:00 | B37: 436.25 | C37: =Input!$C$13*Hodiny!B37 -> 674.3961353 | E37: 2018-02-02T05:00:00 | F37: 438 | G37: =Input!$C$13*Hodiny!F37 -> 677.1014493 | I37: 2018-03-02T05:00:00 | J37: 434.5 | K37: =Input!$C$13*Hodiny!J37 -> 671.6908213 | M37: 2018-04-02T05:00:00 | N37: 402 | O37: =Input!$C$13*Hodiny!N37 -> 621.4492754 | Q37: 2018-05-02T05:00:00 | R37: 450.5 | S37: =Input!$C$13*Hodiny!R37 -> 696.4251208 | U37: 2018-06-02T05:00:00 | V37: 491.75 | W37: =Input!$C$13*Hodiny!V37 -> 760.1932367 | Y37: 2018-07-02T05:00:00 | Z37: 423 | AA37: =Input!$C$13*Hodiny!Z37 -> 653.9130435 | AC37: 2018-08-02T06:00:00 | AD37: 556.75 | AE37: =Input!$C$13*Hodiny!AD37 -> 860.6763285 | AG37: 2018-09-02T05:00:00 | AH37: 544.5 | AI37: =Input!$C$13*Hodiny!AH37 -> 841.7391304 | AK37: 2017-10-02T05:00:00 | AL37: 427.75 | AM37: =Input!$C$13*Hodiny!AL37 -> 661.2560386 | AO37: 2017-11-02T05:00:00 | AP37: 453.25 | AQ37: =Input!$C$13*Hodiny!AP37 -> 700.6763285 | AS37: 2017-12-02T05:00:00 | AT37: 481.5 | AU37: =Input!$C$13*Hodiny!AT37 -> 744.3478261 | AZ37: =AZ5*$K$3 -> 1227.826087
A38: 2018-01-02T06:00:00 | B38: 552.75 | C38: =Input!$C$13*Hodiny!B38 -> 854.4927536 | E38: 2018-02-02T06:00:00 | F38: 478.75 | G38: =Input!$C$13*Hodiny!F38 -> 740.0966184 | I38: 2018-03-02T06:00:00 | J38: 500.75 | K38: =Input!$C$13*Hodiny!J38 -> 774.1062802 | M38: 2018-04-02T06:00:00 | N38: 351.5 | O38: =Input!$C$13*Hodiny!N38 -> 543.3816425 | Q38: 2018-05-02T06:00:00 | R38: 505 | S38: =Input!$C$13*Hodiny!R38 -> 780.6763285 | U38: 2018-06-02T06:00:00 | V38: 495.25 | W38: =Input!$C$13*Hodiny!V38 -> 765.6038647 | Y38: 2018-07-02T06:00:00 | Z38: 454.5 | AA38: =Input!$C$13*Hodiny!Z38 -> 702.6086957 | AC38: 2018-08-02T07:00:00 | AD38: 611.25 | AE38: =Input!$C$13*Hodiny!AD38 -> 944.9275362 | AG38: 2018-09-02T06:00:00 | AH38: 564.25 | AI38: =Input!$C$13*Hodiny!AH38 -> 872.2705314 | AK38: 2017-10-02T06:00:00 | AL38: 510.75 | AM38: =Input!$C$13*Hodiny!AL38 -> 789.5652174 | AO38: 2017-11-02T06:00:00 | AP38: 517.25 | AQ38: =Input!$C$13*Hodiny!AP38 -> 799.6135266 | AS38: 2017-12-02T06:00:00 | AT38: 532.5 | AU38: =Input!$C$13*Hodiny!AT38 -> 823.1884058 | AZ38: 1226.280193
A39: 2018-01-02T07:00:00 | B39: 572.5 | C39: =Input!$C$13*Hodiny!B39 -> 885.0241546 | E39: 2018-02-02T07:00:00 | F39: 521.5 | G39: =Input!$C$13*Hodiny!F39 -> 806.1835749 | I39: 2018-03-02T07:00:00 | J39: 580 | K39: =Input!$C$13*Hodiny!J39 -> 896.6183575 | M39: 2018-04-02T07:00:00 | N39: 343.5 | O39: =Input!$C$13*Hodiny!N39 -> 531.0144928 | Q39: 2018-05-02T07:00:00 | R39: 580.25 | S39: =Input!$C$13*Hodiny!R39 -> 897.0048309 | U39: 2018-06-02T07:00:00 | V39: 533.25 | W39: =Input!$C$13*Hodiny!V39 -> 824.3478261 | Y39: 2018-07-02T07:00:00 | Z39: 536.5 | AA39: =Input!$C$13*Hodiny!Z39 -> 829.3719807 | AC39: 2018-08-02T08:00:00 | AD39: 666.75 | AE39: =Input!$C$13*Hodiny!AD39 -> 1030.724638 | AG39: 2018-09-02T07:00:00 | AH39: 619.5 | AI39: =Input!$C$13*Hodiny!AH39 -> 957.6811594 | AK39: 2017-10-02T07:00:00 | AL39: 534.5 | AM39: =Input!$C$13*Hodiny!AL39 -> 826.2801932 | AO39: 2017-11-02T07:00:00 | AP39: 551.25 | AQ39: =Input!$C$13*Hodiny!AP39 -> 852.173913 | AS39: 2017-12-02T07:00:00 | AT39: 515.75 | AU39: =Input!$C$13*Hodiny!AT39 -> 797.294686 | AZ39: 1352.657005
A40: 2018-01-02T08:00:00 | B40: 616.5 | C40: =Input!$C$13*Hodiny!B40 -> 953.0434783 | E40: 2018-02-02T08:00:00 | F40: 600.5 | G40: =Input!$C$13*Hodiny!F40 -> 928.3091787 | I40: 2018-03-02T08:00:00 | J40: 594 | K40: =Input!$C$13*Hodiny!J40 -> 918.2608696 | M40: 2018-04-02T08:00:00 | N40: 365.5 | O40: =Input!$C$13*Hodiny!N40 -> 565.0241546 | Q40: 2018-05-02T08:00:00 | R40: 639 | S40: =Input!$C$13*Hodiny!R40 -> 987.826087 | U40: 2018-06-02T08:00:00 | V40: 549 | W40: =Input!$C$13*Hodiny!V40 -> 848.6956522 | Y40: 2018-07-02T08:00:00 | Z40: 583 | AA40: =Input!$C$13*Hodiny!Z40 -> 901.2560386 | AC40: 2018-08-02T09:00:00 | AD40: 730.5 | AE40: =Input!$C$13*Hodiny!AD40 -> 1129.275362 | AG40: 2018-09-02T08:00:00 | AH40: 629 | AI40: =Input!$C$13*Hodiny!AH40 -> 972.3671498 | AK40: 2017-10-02T08:00:00 | AL40: 555.5 | AM40: =Input!$C$13*Hodiny!AL40 -> 858.7439614 | AO40: 2017-11-02T08:00:00 | AP40: 574.75 | AQ40: =Input!$C$13*Hodiny!AP40 -> 888.5024155 | AS40: 2017-12-02T08:00:00 | AT40: 515.5 | AU40: =Input!$C$13*Hodiny!AT40 -> 796.9082126 | AZ40: 1499.130435
A41: 2018-01-02T09:00:00 | B41: 604.5 | C41: =Input!$C$13*Hodiny!B41 -> 934.4927536 | E41: 2018-02-02T09:00:00 | F41: 579.5 | G41: =Input!$C$13*Hodiny!F41 -> 895.8454106 | I41: 2018-03-02T09:00:00 | J41: 593.5 | K41: =Input!$C$13*Hodiny!J41 -> 917.4879227 | M41: 2018-04-02T09:00:00 | N41: 361.5 | O41: =Input!$C$13*Hodiny!N41 -> 558.8405797 | Q41: 2018-05-02T09:00:00 | R41: 715 | S41: =Input!$C$13*Hodiny!R41 -> 1105.31401 | U41: 2018-06-02T09:00:00 | V41: 624.75 | W41: =Input!$C$13*Hodiny!V41 -> 965.7971014 | Y41: 2018-07-02T09:00:00 | Z41: 638.5 | AA41: =Input!$C$13*Hodiny!Z41 -> 987.0531401 | AC41: 2018-08-02T10:00:00 | AD41: 727.25 | AE41: =Input!$C$13*Hodiny!AD41 -> 1124.251208 | AG41: 2018-09-02T09:00:00 | AH41: 763.75 | AI41: =Input!$C$13*Hodiny!AH41 -> 1180.676329 | AK41: 2017-10-02T09:00:00 | AL41: 556.5 | AM41: =Input!$C$13*Hodiny!AL41 -> 860.2898551 | AO41: 2017-11-02T09:00:00 | AP41: 576.5 | AQ41: =Input!$C$13*Hodiny!AP41 -> 891.2077295 | AS41: 2017-12-02T09:00:00 | AT41: 583.25 | AU41: =Input!$C$13*Hodiny!AT41 -> 901.6425121 | AZ41: 1434.975845
A42: 2018-01-02T10:00:00 | B42: 594.25 | C42: =Input!$C$13*Hodiny!B42 -> 918.647343 | E42: 2018-02-02T10:00:00 | F42: 591.5 | G42: =Input!$C$13*Hodiny!F42 -> 914.3961353 | I42: 2018-03-02T10:00:00 | J42: 590.25 | K42: =Input!$C$13*Hodiny!J42 -> 912.4637681 | M42: 2018-04-02T10:00:00 | N42: 350 | O42: =Input!$C$13*Hodiny!N42 -> 541.0628019 | Q42: 2018-05-02T10:00:00 | R42: 713.25 | S42: =Input!$C$13*Hodiny!R42 -> 1102.608696 | U42: 2018-06-02T10:00:00 | V42: 704.25 | W42: =Input!$C$13*Hodiny!V42 -> 1088.695652 | Y42: 2018-07-02T10:00:00 | Z42: 642.25 | AA42: =Input!$C$13*Hodiny!Z42 -> 992.8502415 | AC42: 2018-08-02T11:00:00 | AD42: 735.5 | AE42: =Input!$C$13*Hodiny!AD42 -> 1137.004831 | AG42: 2018-09-02T10:00:00 | AH42: 812.75 | AI42: =Input!$C$13*Hodiny!AH42 -> 1256.425121 | AK42: 2017-10-02T10:00:00 | AL42: 520.25 | AM42: =Input!$C$13*Hodiny!AL42 -> 804.2512077 | AO42: 2017-11-02T10:00:00 | AP42: 573.5 | AQ42: =Input!$C$13*Hodiny!AP42 -> 886.5700483 | AS42: 2017-12-02T10:00:00 | AT42: 572.25 | AU42: =Input!$C$13*Hodiny!AT42 -> 884.6376812 | AZ42: 1379.323671
A43: 2018-01-02T11:00:00 | B43: 584 | C43: =Input!$C$13*Hodiny!B43 -> 902.8019324 | E43: 2018-02-02T11:00:00 | F43: 554.75 | G43: =Input!$C$13*Hodiny!F43 -> 857.5845411 | I43: 2018-03-02T11:00:00 | J43: 618.75 | K43: =Input!$C$13*Hodiny!J43 -> 956.5217391 | M43: 2018-04-02T11:00:00 | N43: 358 | O43: =Input!$C$13*Hodiny!N43 -> 553.4299517 | Q43: 2018-05-02T11:00:00 | R43: 689.25 | S43: =Input!$C$13*Hodiny!R43 -> 1065.507246 | U43: 2018-06-02T11:00:00 | V43: 700.25 | W43: =Input!$C$13*Hodiny!V43 -> 1082.512077 | Y43: 2018-07-02T11:00:00 | Z43: 652.25 | AA43: =Input!$C$13*Hodiny!Z43 -> 1008.309179 | AC43: 2018-08-02T12:00:00 | AD43: 744.25 | AE43: =Input!$C$13*Hodiny!AD43 -> 1150.531401 | AG43: 2018-09-02T11:00:00 | AH43: 816.5 | AI43: =Input!$C$13*Hodiny!AH43 -> 1262.222222 | AK43: 2017-10-02T11:00:00 | AL43: 563.25 | AM43: =Input!$C$13*Hodiny!AL43 -> 870.7246377 | AO43: 2017-11-02T11:00:00 | AP43: 561.5 | AQ43: =Input!$C$13*Hodiny!AP43 -> 868.0193237 | AS43: 2017-12-02T11:00:00 | AT43: 583.5 | AU43: =Input!$C$13*Hodiny!AT43 -> 902.0289855 | AZ43: 1532.36715
A44: 2018-01-02T12:00:00 | B44: 575.75 | C44: =Input!$C$13*Hodiny!B44 -> 890.0483092 | E44: 2018-02-02T12:00:00 | F44: 568 | G44: =Input!$C$13*Hodiny!F44 -> 878.0676329 | I44: 2018-03-02T12:00:00 | J44: 595.75 | K44: =Input!$C$13*Hodiny!J44 -> 920.9661836 | M44: 2018-04-02T12:00:00 | N44: 357.5 | O44: =Input!$C$13*Hodiny!N44 -> 552.6570048 | Q44: 2018-05-02T12:00:00 | R44: 714.75 | S44: =Input!$C$13*Hodiny!R44 -> 1104.927536 | U44: 2018-06-02T12:00:00 | V44: 723.25 | W44: =Input!$C$13*Hodiny!V44 -> 1118.067633 | Y44: 2018-07-02T12:00:00 | Z44: 669 | AA44: =Input!$C$13*Hodiny!Z44 -> 1034.202899 | AC44: 2018-08-02T13:00:00 | AD44: 768.75 | AE44: =Input!$C$13*Hodiny!AD44 -> 1188.405797 | AG44: 2018-09-02T12:00:00 | AH44: 804 | AI44: =Input!$C$13*Hodiny!AH44 -> 1242.898551 | AK44: 2017-10-02T12:00:00 | AL44: 557.25 | AM44: =Input!$C$13*Hodiny!AL44 -> 861.4492754 | AO44: 2017-11-02T12:00:00 | AP44: 598 | AQ44: =Input!$C$13*Hodiny!AP44 -> 924.4444444 | AS44: 2017-12-02T12:00:00 | AT44: 576.5 | AU44: =Input!$C$13*Hodiny!AT44 -> 891.2077295 | AZ44: 1494.879227
A45: 2018-01-02T13:00:00 | B45: 703.25 | C45: =Input!$C$13*Hodiny!B45 -> 1087.149758 | E45: 2018-02-02T13:00:00 | F45: 597.75 | G45: =Input!$C$13*Hodiny!F45 -> 924.057971 | I45: 2018-03-02T13:00:00 | J45: 616.5 | K45: =Input!$C$13*Hodiny!J45 -> 953.0434783 | M45: 2018-04-02T13:00:00 | N45: 368.75 | O45: =Input!$C$13*Hodiny!N45 -> 570.0483092 | Q45: 2018-05-02T13:00:00 | R45: 738.5 | S45: =Input!$C$13*Hodiny!R45 -> 1141.642512 | U45: 2018-06-02T13:00:00 | V45: 672.25 | W45: =Input!$C$13*Hodiny!V45 -> 1039.227053 | Y45: 2018-07-02T13:00:00 | Z45: 653.25 | AA45: =Input!$C$13*Hodiny!Z45 -> 1009.855072 | AC45: 2018-08-02T14:00:00 | AD45: 829.75 | AE45: =Input!$C$13*Hodiny!AD45 -> 1282.705314 | AG45: 2018-09-02T13:00:00 | AH45: 858 | AI45: =Input!$C$13*Hodiny!AH45 -> 1326.376812 | AK45: 2017-10-02T13:00:00 | AL45: 593.5 | AM45: =Input!$C$13*Hodiny!AL45 -> 917.4879227 | AO45: 2017-11-02T13:00:00 | AP45: 607 | AQ45: =Input!$C$13*Hodiny!AP45 -> 938.3574879 | AS45: 2017-12-02T13:00:00 | AT45: 564.25 | AU45: =Input!$C$13*Hodiny!AT45 -> 872.2705314
A46: 2018-01-02T14:00:00 | B46: 669.25 | C46: =Input!$C$13*Hodiny!B46 -> 1034.589372 | E46: 2018-02-02T14:00:00 | F46: 626.25 | G46: =Input!$C$13*Hodiny!F46 -> 968.115942 | I46: 2018-03-02T14:00:00 | J46: 660 | K46: =Input!$C$13*Hodiny!J46 -> 1020.289855 | M46: 2018-04-02T14:00:00 | N46: 336.25 | O46: =Input!$C$13*Hodiny!N46 -> 519.8067633 | Q46: 2018-05-02T14:00:00 | R46: 752.25 | S46: =Input!$C$13*Hodiny!R46 -> 1162.898551 | U46: 2018-06-02T14:00:00 | V46: 696.25 | W46: =Input!$C$13*Hodiny!V46 -> 1076.328502 | Y46: 2018-07-02T14:00:00 | Z46: 729.5 | AA46: =Input!$C$13*Hodiny!Z46 -> 1127.729469 | AC46: 2018-08-02T15:00:00 | AD46: 886.25 | AE46: =Input!$C$13*Hodiny!AD46 -> 1370.048309 | AG46: 2018-09-02T14:00:00 | AH46: 808.5 | AI46: =Input!$C$13*Hodiny!AH46 -> 1249.855072 | AK46: 2017-10-02T14:00:00 | AL46: 635.25 | AM46: =Input!$C$13*Hodiny!AL46 -> 982.0289855 | AO46: 2017-11-02T14:00:00 | AP46: 630.5 | AQ46: =Input!$C$13*Hodiny!AP46 -> 974.6859903 | AS46: 2017-12-02T14:00:00 | AT46: 554 | AU46: =Input!$C$13*Hodiny!AT46 -> 856.4251208
A47: 2018-01-02T15:00:00 | B47: 639 | C47: =Input!$C$13*Hodiny!B47 -> 987.826087 | E47: 2018-02-02T15:00:00 | F47: 630.5 | G47: =Input!$C$13*Hodiny!F47 -> 974.6859903 | I47: 2018-03-02T15:00:00 | J47: 654.75 | K47: =Input!$C$13*Hodiny!J47 -> 1012.173913 | M47: 2018-04-02T15:00:00 | N47: 376 | O47: =Input!$C$13*Hodiny!N47 -> 581.2560386 | Q47: 2018-05-02T15:00:00 | R47: 822.25 | S47: =Input!$C$13*Hodiny!R47 -> 1271.111111 | U47: 2018-06-02T15:00:00 | V47: 719.25 | W47: =Input!$C$13*Hodiny!V47 -> 1111.884058 | Y47: 2018-07-02T15:00:00 | Z47: 786.5 | AA47: =Input!$C$13*Hodiny!Z47 -> 1215.845411 | AC47: 2018-08-02T16:00:00 | AD47: 883.5 | AE47: =Input!$C$13*Hodiny!AD47 -> 1365.797101 | AG47: 2018-09-02T15:00:00 | AH47: 765 | AI47: =Input!$C$13*Hodiny!AH47 -> 1182.608696 | AK47: 2017-10-02T15:00:00 | AL47: 670.5 | AM47: =Input!$C$13*Hodiny!AL47 -> 1036.521739 | AO47: 2017-11-02T15:00:00 | AP47: 704.25 | AQ47: =Input!$C$13*Hodiny!AP47 -> 1088.695652 | AS47: 2017-12-02T15:00:00 | AT47: 571 | AU47: =Input!$C$13*Hodiny!AT47 -> 882.705314
A48: 2018-01-02T16:00:00 | B48: 588.75 | C48: =Input!$C$13*Hodiny!B48 -> 910.1449275 | E48: 2018-02-02T16:00:00 | F48: 739 | G48: =Input!$C$13*Hodiny!F48 -> 1142.415459 | I48: 2018-03-02T16:00:00 | J48: 771.25 | K48: =Input!$C$13*Hodiny!J48 -> 1192.270531 | M48: 2018-04-02T16:00:00 | N48: 388.75 | O48: =Input!$C$13*Hodiny!N48 -> 600.9661836 | Q48: 2018-05-02T16:00:00 | R48: 856.25 | S48: =Input!$C$13*Hodiny!R48 -> 1323.671498 | U48: 2018-06-02T16:00:00 | V48: 734.25 | W48: =Input!$C$13*Hodiny!V48 -> 1135.072464 | Y48: 2018-07-02T16:00:00 | Z48: 800.25 | AA48: =Input!$C$13*Hodiny!Z48 -> 1237.101449 | AC48: 2018-08-02T17:00:00 | AD48: 845.25 | AE48: =Input!$C$13*Hodiny!AD48 -> 1306.666667 | AG48: 2018-09-02T16:00:00 | AH48: 727.25 | AI48: =Input!$C$13*Hodiny!AH48 -> 1124.251208 | AK48: 2017-10-02T16:00:00 | AL48: 583 | AM48: =Input!$C$13*Hodiny!AL48 -> 901.2560386 | AO48: 2017-11-02T16:00:00 | AP48: 713.5 | AQ48: =Input!$C$13*Hodiny!AP48 -> 1102.995169 | AS48: 2017-12-02T16:00:00 | AT48: 596.75 | AU48: =Input!$C$13*Hodiny!AT48 -> 922.5120773
A49: 2018-01-02T17:00:00 | B49: 622 | C49: =Input!$C$13*Hodiny!B49 -> 961.5458937 | E49: 2018-02-02T17:00:00 | F49: 650.75 | G49: =Input!$C$13*Hodiny!F49 -> 1005.990338 | I49: 2018-03-02T17:00:00 | J49: 729.25 | K49: =Input!$C$13*Hodiny!J49 -> 1127.342995 | M49: 2018-04-02T17:00:00 | N49: 411.5 | O49: =Input!$C$13*Hodiny!N49 -> 636.1352657 | Q49: 2018-05-02T17:00:00 | R49: 809.5 | S49: =Input!$C$13*Hodiny!R49 -> 1251.400966 | U49: 2018-06-02T17:00:00 | V49: 742.25 | W49: =Input!$C$13*Hodiny!V49 -> 1147.439614 | Y49: 2018-07-02T17:00:00 | Z49: 792 | AA49: =Input!$C$13*Hodiny!Z49 -> 1224.347826 | AC49: 2018-08-02T18:00:00 | AD49: 778.75 | AE49: =Input!$C$13*Hodiny!AD49 -> 1203.864734 | AG49: 2018-09-02T17:00:00 | AH49: 728 | AI49: =Input!$C$13*Hodiny!AH49 -> 1125.410628 | AK49: 2017-10-02T17:00:00 | AL49: 518 | AM49: =Input!$C$13*Hodiny!AL49 -> 800.7729469 | AO49: 2017-11-02T17:00:00 | AP49: 641.75 | AQ49: =Input!$C$13*Hodiny!AP49 -> 992.0772947 | AS49: 2017-12-02T17:00:00 | AT49: 567.75 | AU49: =Input!$C$13*Hodiny!AT49 -> 877.6811594
A50: 2018-01-02T18:00:00 | B50: 574 | C50: =Input!$C$13*Hodiny!B50 -> 887.3429952 | E50: 2018-02-02T18:00:00 | F50: 594 | G50: =Input!$C$13*Hodiny!F50 -> 918.2608696 | I50: 2018-03-02T18:00:00 | J50: 661.75 | K50: =Input!$C$13*Hodiny!J50 -> 1022.995169 | M50: 2018-04-02T18:00:00 | N50: 468.25 | O50: =Input!$C$13*Hodiny!N50 -> 723.8647343 | Q50: 2018-05-02T18:00:00 | R50: 753.75 | S50: =Input!$C$13*Hodiny!R50 -> 1165.217391 | U50: 2018-06-02T18:00:00 | V50: 688 | W50: =Input!$C$13*Hodiny!V50 -> 1063.574879 | Y50: 2018-07-02T18:00:00 | Z50: 677.75 | AA50: =Input!$C$13*Hodiny!Z50 -> 1047.729469 | AC50: 2018-08-02T19:00:00 | AD50: 713.5 | AE50: =Input!$C$13*Hodiny!AD50 -> 1102.995169 | AG50: 2018-09-02T18:00:00 | AH50: 687.5 | AI50: =Input!$C$13*Hodiny!AH50 -> 1062.801932 | AK50: 2017-10-02T18:00:00 | AL50: 482.75 | AM50: =Input!$C$13*Hodiny!AL50 -> 746.2801932 | AO50: 2017-11-02T18:00:00 | AP50: 585.5 | AQ50: =Input!$C$13*Hodiny!AP50 -> 905.1207729 | AS50: 2017-12-02T18:00:00 | AT50: 545 | AU50: =Input!$C$13*Hodiny!AT50 -> 842.5120773
A51: 2018-01-02T19:00:00 | B51: 583.75 | C51: =Input!$C$13*Hodiny!B51 -> 902.4154589 | E51: 2018-02-02T19:00:00 | F51: 560.75 | G51: =Input!$C$13*Hodiny!F51 -> 866.8599034 | I51: 2018-03-02T19:00:00 | J51: 633.25 | K51: =Input!$C$13*Hodiny!J51 -> 978.9371981 | M51: 2018-04-02T19:00:00 | N51: 473.5 | O51: =Input!$C$13*Hodiny!N51 -> 731.9806763 | Q51: 2018-05-02T19:00:00 | R51: 699.5 | S51: =Input!$C$13*Hodiny!R51 -> 1081.352657 | U51: 2018-06-02T19:00:00 | V51: 654.75 | W51: =Input!$C$13*Hodiny!V51 -> 1012.173913 | Y51: 2018-07-02T19:00:00 | Z51: 681.75 | AA51: =Input!$C$13*Hodiny!Z51 -> 1053.913043 | AC51: 2018-08-02T20:00:00 | AD51: 650 | AE51: =Input!$C$13*Hodiny!AD51 -> 1004.830918 | AG51: 2018-09-02T19:00:00 | AH51: 718.5 | AI51: =Input!$C$13*Hodiny!AH51 -> 1110.724638 | AK51: 2017-10-02T19:00:00 | AL51: 481.75 | AM51: =Input!$C$13*Hodiny!AL51 -> 744.7342995 | AO51: 2017-11-02T19:00:00 | AP51: 544.75 | AQ51: =Input!$C$13*Hodiny!AP51 -> 842.1256039 | AS51: 2017-12-02T19:00:00 | AT51: 551.25 | AU51: =Input!$C$13*Hodiny!AT51 -> 852.173913
A52: 2018-01-02T20:00:00 | B52: 573 | C52: =Input!$C$13*Hodiny!B52 -> 885.7971014 | E52: 2018-02-02T20:00:00 | F52: 545.5 | G52: =Input!$C$13*Hodiny!F52 -> 843.2850242 | I52: 2018-03-02T20:00:00 | J52: 588.25 | K52: =Input!$C$13*Hodiny!J52 -> 909.3719807 | M52: 2018-04-02T20:00:00 | N52: 447.75 | O52: =Input!$C$13*Hodiny!N52 -> 692.173913 | Q52: 2018-05-02T20:00:00 | R52: 654 | S52: =Input!$C$13*Hodiny!R52 -> 1011.014493 | U52: 2018-06-02T20:00:00 | V52: 651.25 | W52: =Input!$C$13*Hodiny!V52 -> 1006.763285 | Y52: 2018-07-02T20:00:00 | Z52: 609.25 | AA52: =Input!$C$13*Hodiny!Z52 -> 941.8357488 | AC52: 2018-08-02T21:00:00 | AD52: 620.5 | AE52: =Input!$C$13*Hodiny!AD52 -> 959.2270531 | AG52: 2018-09-02T20:00:00 | AH52: 695.5 | AI52: =Input!$C$13*Hodiny!AH52 -> 1075.169082 | AK52: 2017-10-02T20:00:00 | AL52: 481.25 | AM52: =Input!$C$13*Hodiny!AL52 -> 743.9613527 | AO52: 2017-11-02T20:00:00 | AP52: 554.5 | AQ52: =Input!$C$13*Hodiny!AP52 -> 857.1980676 | AS52: 2017-12-02T20:00:00 | AT52: 528.5 | AU52: =Input!$C$13*Hodiny!AT52 -> 817.0048309
A53: 2018-01-02T21:00:00 | B53: 551 | C53: =Input!$C$13*Hodiny!B53 -> 851.7874396 | E53: 2018-02-02T21:00:00 | F53: 534.25 | G53: =Input!$C$13*Hodiny!F53 -> 825.8937198 | I53: 2018-03-02T21:00:00 | J53: 556.25 | K53: =Input!$C$13*Hodiny!J53 -> 859.9033816 | M53: 2018-04-02T21:00:00 | N53: 450.75 | O53: =Input!$C$13*Hodiny!N53 -> 696.8115942 | Q53: 2018-05-02T21:00:00 | R53: 587.5 | S53: =Input!$C$13*Hodiny!R53 -> 908.2125604 | U53: 2018-06-02T21:00:00 | V53: 658 | W53: =Input!$C$13*Hodiny!V53 -> 1017.198068 | Y53: 2018-07-02T21:00:00 | Z53: 569.75 | AA53: =Input!$C$13*Hodiny!Z53 -> 880.7729469 | AC53: 2018-08-02T22:00:00 | AD53: 618 | AE53: =Input!$C$13*Hodiny!AD53 -> 955.3623188 | AG53: 2018-09-02T21:00:00 | AH53: 796 | AI53: =Input!$C$13*Hodiny!AH53 -> 1230.531401 | AK53: 2017-10-02T21:00:00 | AL53: 500.25 | AM53: =Input!$C$13*Hodiny!AL53 -> 773.3333333 | AO53: 2017-11-02T21:00:00 | AP53: 542.75 | AQ53: =Input!$C$13*Hodiny!AP53 -> 839.0338164 | AS53: 2017-12-02T21:00:00 | AT53: 540.5 | AU53: =Input!$C$13*Hodiny!AT53 -> 835.5555556
A54: 2018-01-02T22:00:00 | B54: 539 | C54: =Input!$C$13*Hodiny!B54 -> 833.236715 | E54: 2018-02-02T22:00:00 | F54: 544 | G54: =Input!$C$13*Hodiny!F54 -> 840.9661836 | I54: 2018-03-02T22:00:00 | J54: 560.5 | K54: =Input!$C$13*Hodiny!J54 -> 866.47343 | M54: 2018-04-02T22:00:00 | N54: 431.25 | O54: =Input!$C$13*Hodiny!N54 -> 666.6666667 | Q54: 2018-05-02T22:00:00 | R54: 605.25 | S54: =Input!$C$13*Hodiny!R54 -> 935.6521739 | U54: 2018-06-02T22:00:00 | V54: 640.75 | W54: =Input!$C$13*Hodiny!V54 -> 990.531401 | Y54: 2018-07-02T22:00:00 | Z54: 565.25 | AA54: =Input!$C$13*Hodiny!Z54 -> 873.8164251 | AC54: 2018-08-02T23:00:00 | AD54: 548.75 | AE54: =Input!$C$13*Hodiny!AD54 -> 848.3091787 | AG54: 2018-09-02T22:00:00 | AH54: 727.5 | AI54: =Input!$C$13*Hodiny!AH54 -> 1124.637681 | AK54: 2017-10-02T22:00:00 | AL54: 460.5 | AM54: =Input!$C$13*Hodiny!AL54 -> 711.884058 | AO54: 2017-11-02T22:00:00 | AP54: 524.75 | AQ54: =Input!$C$13*Hodiny!AP54 -> 811.2077295 | AS54: 2017-12-02T22:00:00 | AT54: 511.5 | AU54: =Input!$C$13*Hodiny!AT54 -> 790.7246377
A55: 2018-01-02T23:00:00 | B55: 520 | C55: =Input!$C$13*Hodiny!B55 -> 803.8647343 | E55: 2018-02-02T23:00:00 | F55: 519 | G55: =Input!$C$13*Hodiny!F55 -> 802.3188406 | I55: 2018-03-02T23:00:00 | J55: 559.25 | K55: =Input!$C$13*Hodiny!J55 -> 864.5410628 | M55: 2018-04-02T23:00:00 | N55: 438 | O55: =Input!$C$13*Hodiny!N55 -> 677.1014493 | Q55: 2018-05-02T23:00:00 | R55: 584 | S55: =Input!$C$13*Hodiny!R55 -> 902.8019324 | U55: 2018-06-02T23:00:00 | V55: 583.25 | W55: =Input!$C$13*Hodiny!V55 -> 901.6425121 | Y55: 2018-07-02T23:00:00 | Z55: 526.5 | AA55: =Input!$C$13*Hodiny!Z55 -> 813.9130435 | AC55: 2018-08-03 | AD55: 669.25 | AE55: =Input!$C$13*Hodiny!AD55 -> 1034.589372 | AG55: 2018-09-02T23:00:00 | AH55: 725.5 | AI55: =Input!$C$13*Hodiny!AH55 -> 1121.545894 | AK55: 2017-10-02T23:00:00 | AL55: 464 | AM55: =Input!$C$13*Hodiny!AL55 -> 717.294686 | AO55: 2017-11-02T23:00:00 | AP55: 514.25 | AQ55: =Input!$C$13*Hodiny!AP55 -> 794.9758454 | AS55: 2017-12-02T23:00:00 | AT55: 497.5 | AU55: =Input!$C$13*Hodiny!AT55 -> 769.0821256
A56: 2018-01-03 | B56: 513.75 | C56: =Input!$C$13*Hodiny!B56 -> 794.2028986 | E56: 2018-02-03 | F56: 533 | G56: =Input!$C$13*Hodiny!F56 -> 823.9613527 | I56: 2018-03-03 | J56: 551.25 | K56: =Input!$C$13*Hodiny!J56 -> 852.173913 | M56: 2018-04-03 | N56: 465.25 | O56: =Input!$C$13*Hodiny!N56 -> 719.2270531 | Q56: 2018-05-03 | R56: 617 | S56: =Input!$C$13*Hodiny!R56 -> 953.8164251 | U56: 2018-06-03 | V56: 570.25 | W56: =Input!$C$13*Hodiny!V56 -> 881.5458937 | Y56: 2018-07-03 | Z56: 526.5 | AA56: =Input!$C$13*Hodiny!Z56 -> 813.9130435 | AC56: 2018-08-03T01:00:00 | AD56: 676.5 | AE56: =Input!$C$13*Hodiny!AD56 -> 1045.797101 | AG56: 2018-09-03 | AH56: 667 | AI56: =Input!$C$13*Hodiny!AH56 -> 1031.111111 | AK56: 2017-10-03 | AL56: 493.25 | AM56: =Input!$C$13*Hodiny!AL56 -> 762.5120773 | AO56: 2017-11-03 | AP56: 545.5 | AQ56: =Input!$C$13*Hodiny!AP56 -> 843.2850242 | AS56: 2017-12-03 | AT56: 535 | AU56: =Input!$C$13*Hodiny!AT56 -> 827.0531401
A57: 2018-01-03T01:00:00 | B57: 537.25 | C57: =Input!$C$13*Hodiny!B57 -> 830.531401 | E57: 2018-02-03T01:00:00 | F57: 495 | G57: =Input!$C$13*Hodiny!F57 -> 765.2173913 | I57: 2018-03-03T01:00:00 | J57: 530.5 | K57: =Input!$C$13*Hodiny!J57 -> 820.0966184 | M57: 2018-04-03T01:00:00 | N57: 499.25 | O57: =Input!$C$13*Hodiny!N57 -> 771.7874396 | Q57: 2018-05-03T01:00:00 | R57: 612.25 | S57: =Input!$C$13*Hodiny!R57 -> 946.47343 | U57: 2018-06-03T01:00:00 | V57: 564.25 | W57: =Input!$C$13*Hodiny!V57 -> 872.2705314 | Y57: 2018-07-03T01:00:00 | Z57: 538.25 | AA57: =Input!$C$13*Hodiny!Z57 -> 832.0772947 | AC57: 2018-08-03T02:00:00 | AD57: 601.5 | AE57: =Input!$C$13*Hodiny!AD57 -> 929.8550725 | AG57: 2018-09-03T01:00:00 | AH57: 685.75 | AI57: =Input!$C$13*Hodiny!AH57 -> 1060.096618 | AK57: 2017-10-03T01:00:00 | AL57: 490.5 | AM57: =Input!$C$13*Hodiny!AL57 -> 758.2608696 | AO57: 2017-11-03T01:00:00 | AP57: 557.5 | AQ57: =Input!$C$13*Hodiny!AP57 -> 861.8357488 | AS57: 2017-12-03T01:00:00 | AT57: 517.75 | AU57: =Input!$C$13*Hodiny!AT57 -> 800.3864734
A58: 2018-01-03T02:00:00 | B58: 536.75 | C58: =Input!$C$13*Hodiny!B58 -> 829.7584541 | E58: 2018-02-03T02:00:00 | F58: 483.5 | G58: =Input!$C$13*Hodiny!F58 -> 747.4396135 | I58: 2018-03-03T02:00:00 | J58: 536.75 | K58: =Input!$C$13*Hodiny!J58 -> 829.7584541 | M58: 2018-04-03T02:00:00 | N58: 462.75 | O58: =Input!$C$13*Hodiny!N58 -> 715.3623188 | Q58: 2018-05-03T02:00:00 | R58: 599.5 | S58: =Input!$C$13*Hodiny!R58 -> 926.763285 | U58: 2018-06-03T02:00:00 | V58: 554.5 | W58: =Input!$C$13*Hodiny!V58 -> 857.1980676 | Y58: 2018-07-03T02:00:00 | Z58: 522.75 | AA58: =Input!$C$13*Hodiny!Z58 -> 808.115942 | AC58: 2018-08-03T03:00:00 | AD58: 546.5 | AE58: =Input!$C$13*Hodiny!AD58 -> 844.8309179 | AG58: 2018-09-03T02:00:00 | AH58: 573.5 | AI58: =Input!$C$13*Hodiny!AH58 -> 886.5700483 | AK58: 2017-10-03T02:00:00 | AL58: 505.5 | AM58: =Input!$C$13*Hodiny!AL58 -> 781.4492754 | AO58: 2017-11-03T02:00:00 | AP58: 558.25 | AQ58: =Input!$C$13*Hodiny!AP58 -> 862.9951691 | AS58: 2017-12-03T02:00:00 | AT58: 481 | AU58: =Input!$C$13*Hodiny!AT58 -> 743.5748792
A59: 2018-01-03T03:00:00 | B59: 501.25 | C59: =Input!$C$13*Hodiny!B59 -> 774.8792271 | E59: 2018-02-03T03:00:00 | F59: 429 | G59: =Input!$C$13*Hodiny!F59 -> 663.1884058 | I59: 2018-03-03T03:00:00 | J59: 461.75 | K59: =Input!$C$13*Hodiny!J59 -> 713.8164251 | M59: 2018-04-03T03:00:00 | N59: 400.5 | O59: =Input!$C$13*Hodiny!N59 -> 619.1304348 | Q59: 2018-05-03T03:00:00 | R59: 497.75 | S59: =Input!$C$13*Hodiny!R59 -> 769.468599 | U59: 2018-06-03T03:00:00 | V59: 565.5 | W59: =Input!$C$13*Hodiny!V59 -> 874.2028986 | Y59: 2018-07-03T03:00:00 | Z59: 494.25 | AA59: =Input!$C$13*Hodiny!Z59 -> 764.057971 | AC59: 2018-08-03T04:00:00 | AD59: 488 | AE59: =Input!$C$13*Hodiny!AD59 -> 754.3961353 | AG59: 2018-09-03T03:00:00 | AH59: 579.75 | AI59: =Input!$C$13*Hodiny!AH59 -> 896.2318841 | AK59: 2017-10-03T03:00:00 | AL59: 514.5 | AM59: =Input!$C$13*Hodiny!AL59 -> 795.3623188 | AO59: 2017-11-03T03:00:00 | AP59: 515.75 | AQ59: =Input!$C$13*Hodiny!AP59 -> 797.294686 | AS59: 2017-12-03T03:00:00 | AT59: 433.25 | AU59: =Input!$C$13*Hodiny!AT59 -> 669.7584541
A60: 2018-01-03T04:00:00 | B60: 432 | C60: =Input!$C$13*Hodiny!B60 -> 667.826087 | E60: 2018-02-03T04:00:00 | F60: 413.25 | G60: =Input!$C$13*Hodiny!F60 -> 638.8405797 | I60: 2018-03-03T04:00:00 | J60: 445.75 | K60: =Input!$C$13*Hodiny!J60 -> 689.0821256 | M60: 2018-04-03T04:00:00 | N60: 371.25 | O60: =Input!$C$13*Hodiny!N60 -> 573.9130435 | Q60: 2018-05-03T04:00:00 | R60: 496.75 | S60: =Input!$C$13*Hodiny!R60 -> 767.9227053 | U60: 2018-06-03T04:00:00 | V60: 474.75 | W60: =Input!$C$13*Hodiny!V60 -> 733.9130435 | Y60: 2018-07-03T04:00:00 | Z60: 449.25 | AA60: =Input!$C$13*Hodiny!Z60 -> 694.4927536 | AC60: 2018-08-03T05:00:00 | AD60: 460 | AE60: =Input!$C$13*Hodiny!AD60 -> 711.1111111 | AG60: 2018-09-03T04:00:00 | AH60: 547.75 | AI60: =Input!$C$13*Hodiny!AH60 -> 846.763285 | AK60: 2017-10-03T04:00:00 | AL60: 466.5 | AM60: =Input!$C$13*Hodiny!AL60 -> 721.1594203 | AO60: 2017-11-03T04:00:00 | AP60: 477.5 | AQ60: =Input!$C$13*Hodiny!AP60 -> 738.1642512 | AS60: 2017-12-03T04:00:00 | AT60: 421.25 | AU60: =Input!$C$13*Hodiny!AT60 -> 651.2077295
A61: 2018-01-03T05:00:00 | B61: 431.5 | C61: =Input!$C$13*Hodiny!B61 -> 667.0531401 | E61: 2018-02-03T05:00:00 | F61: 425 | G61: =Input!$C$13*Hodiny!F61 -> 657.0048309 | I61: 2018-03-03T05:00:00 | J61: 468 | K61: =Input!$C$13*Hodiny!J61 -> 723.4782609 | M61: 2018-04-03T05:00:00 | N61: 367.25 | O61: =Input!$C$13*Hodiny!N61 -> 567.7294686 | Q61: 2018-05-03T05:00:00 | R61: 453.25 | S61: =Input!$C$13*Hodiny!R61 -> 700.6763285 | U61: 2018-06-03T05:00:00 | V61: 479 | W61: =Input!$C$13*Hodiny!V61 -> 740.4830918 | Y61: 2018-07-03T05:00:00 | Z61: 422.75 | AA61: =Input!$C$13*Hodiny!Z61 -> 653.52657 | AC61: 2018-08-03T06:00:00 | AD61: 524.5 | AE61: =Input!$C$13*Hodiny!AD61 -> 810.821256 | AG61: 2018-09-03T05:00:00 | AH61: 551 | AI61: =Input!$C$13*Hodiny!AH61 -> 851.7874396 | AK61: 2017-10-03T05:00:00 | AL61: 469 | AM61: =Input!$C$13*Hodiny!AL61 -> 725.0241546 | AO61: 2017-11-03T05:00:00 | AP61: 456.5 | AQ61: =Input!$C$13*Hodiny!AP61 -> 705.7004831 | AS61: 2017-12-03T05:00:00 | AT61: 413.75 | AU61: =Input!$C$13*Hodiny!AT61 -> 639.6135266
A62: 2018-01-03T06:00:00 | B62: 536.75 | C62: =Input!$C$13*Hodiny!B62 -> 829.7584541 | E62: 2018-02-03T06:00:00 | F62: 486.5 | G62: =Input!$C$13*Hodiny!F62 -> 752.0772947 | I62: 2018-03-03T06:00:00 | J62: 490.75 | K62: =Input!$C$13*Hodiny!J62 -> 758.647343 | M62: 2018-04-03T06:00:00 | N62: 447 | O62: =Input!$C$13*Hodiny!N62 -> 691.0144928 | Q62: 2018-05-03T06:00:00 | R62: 528.75 | S62: =Input!$C$13*Hodiny!R62 -> 817.3913043 | U62: 2018-06-03T06:00:00 | V62: 473.5 | W62: =Input!$C$13*Hodiny!V62 -> 731.9806763 | Y62: 2018-07-03T06:00:00 | Z62: 470.75 | AA62: =Input!$C$13*Hodiny!Z62 -> 727.7294686 | AC62: 2018-08-03T07:00:00 | AD62: 618.75 | AE62: =Input!$C$13*Hodiny!AD62 -> 956.5217391 | AG62: 2018-09-03T06:00:00 | AH62: 646.5 | AI62: =Input!$C$13*Hodiny!AH62 -> 999.4202899 | AK62: 2017-10-03T06:00:00 | AL62: 511 | AM62: =Input!$C$13*Hodiny!AL62 -> 789.9516908 | AO62: 2017-11-03T06:00:00 | AP62: 509 | AQ62: =Input!$C$13*Hodiny!AP62 -> 786.8599034 | AS62: 2017-12-03T06:00:00 | AT62: 501.25 | AU62: =Input!$C$13*Hodiny!AT62 -> 774.8792271
A63: 2018-01-03T07:00:00 | B63: 538.25 | C63: =Input!$C$13*Hodiny!B63 -> 832.0772947 | E63: 2018-02-03T07:00:00 | F63: 494 | G63: =Input!$C$13*Hodiny!F63 -> 763.6714976 | I63: 2018-03-03T07:00:00 | J63: 528.5 | K63: =Input!$C$13*Hodiny!J63 -> 817.0048309 | M63: 2018-04-03T07:00:00 | N63: 496.5 | O63: =Input!$C$13*Hodiny!N63 -> 767.5362319 | Q63: 2018-05-03T07:00:00 | R63: 598.25 | S63: =Input!$C$13*Hodiny!R63 -> 924.8309179 | U63: 2018-06-03T07:00:00 | V63: 522.5 | W63: =Input!$C$13*Hodiny!V63 -> 807.7294686 | Y63: 2018-07-03T07:00:00 | Z63: 558.25 | AA63: =Input!$C$13*Hodiny!Z63 -> 862.9951691 | AC63: 2018-08-03T08:00:00 | AD63: 634 | AE63: =Input!$C$13*Hodiny!AD63 -> 980.0966184 | AG63: 2018-09-03T07:00:00 | AH63: 692.5 | AI63: =Input!$C$13*Hodiny!AH63 -> 1070.531401 | AK63: 2017-10-03T07:00:00 | AL63: 540 | AM63: =Input!$C$13*Hodiny!AL63 -> 834.7826087 | AO63: 2017-11-03T07:00:00 | AP63: 549 | AQ63: =Input!$C$13*Hodiny!AP63 -> 848.6956522 | AS63: 2017-12-03T07:00:00 | AT63: 474.75 | AU63: =Input!$C$13*Hodiny!AT63 -> 733.9130435
A64: 2018-01-03T08:00:00 | B64: 561.5 | C64: =Input!$C$13*Hodiny!B64 -> 868.0193237 | E64: 2018-02-03T08:00:00 | F64: 510 | G64: =Input!$C$13*Hodiny!F64 -> 788.4057971 | I64: 2018-03-03T08:00:00 | J64: 510.5 | K64: =Input!$C$13*Hodiny!J64 -> 789.178744 | M64: 2018-04-03T08:00:00 | N64: 561.25 | O64: =Input!$C$13*Hodiny!N64 -> 867.6328502 | Q64: 2018-05-03T08:00:00 | R64: 692.25 | S64: =Input!$C$13*Hodiny!R64 -> 1070.144928 | U64: 2018-06-03T08:00:00 | V64: 531.25 | W64: =Input!$C$13*Hodiny!V64 -> 821.2560386 | Y64: 2018-07-03T08:00:00 | Z64: 614 | AA64: =Input!$C$13*Hodiny!Z64 -> 949.178744 | AC64: 2018-08-03T09:00:00 | AD64: 731 | AE64: =Input!$C$13*Hodiny!AD64 -> 1130.048309 | AG64: 2018-09-03T08:00:00 | AH64: 750.5 | AI64: =Input!$C$13*Hodiny!AH64 -> 1160.193237 | AK64: 2017-10-03T08:00:00 | AL64: 607 | AM64: =Input!$C$13*Hodiny!AL64 -> 938.3574879 | AO64: 2017-11-03T08:00:00 | AP64: 651.5 | AQ64: =Input!$C$13*Hodiny!AP64 -> 1007.149758 | AS64: 2017-12-03T08:00:00 | AT64: 483.5 | AU64: =Input!$C$13*Hodiny!AT64 -> 747.4396135
A65: 2018-01-03T09:00:00 | B65: 565.75 | C65: =Input!$C$13*Hodiny!B65 -> 874.589372 | E65: 2018-02-03T09:00:00 | F65: 527 | G65: =Input!$C$13*Hodiny!F65 -> 814.6859903 | I65: 2018-03-03T09:00:00 | J65: 570.75 | K65: =Input!$C$13*Hodiny!J65 -> 882.3188406 | M65: 2018-04-03T09:00:00 | N65: 545 | O65: =Input!$C$13*Hodiny!N65 -> 842.5120773 | Q65: 2018-05-03T09:00:00 | R65: 677.5 | S65: =Input!$C$13*Hodiny!R65 -> 1047.342995 | U65: 2018-06-03T09:00:00 | V65: 631.25 | W65: =Input!$C$13*Hodiny!V65 -> 975.8454106 | Y65: 2018-07-03T09:00:00 | Z65: 670.25 | AA65: =Input!$C$13*Hodiny!Z65 -> 1036.135266 | AC65: 2018-08-03T10:00:00 | AD65: 737.5 | AE65: =Input!$C$13*Hodiny!AD65 -> 1140.096618 | AG65: 2018-09-03T09:00:00 | AH65: 812.25 | AI65: =Input!$C$13*Hodiny!AH65 -> 1255.652174 | AK65: 2017-10-03T09:00:00 | AL65: 617.75 | AM65: =Input!$C$13*Hodiny!AL65 -> 954.9758454 | AO65: 2017-11-03T09:00:00 | AP65: 615.75 | AQ65: =Input!$C$13*Hodiny!AP65 -> 951.884058 | AS65: 2017-12-03T09:00:00 | AT65: 524 | AU65: =Input!$C$13*Hodiny!AT65 -> 810.0483092
A66: 2018-01-03T10:00:00 | B66: 613 | C66: =Input!$C$13*Hodiny!B66 -> 947.6328502 | E66: 2018-02-03T10:00:00 | F66: 530.5 | G66: =Input!$C$13*Hodiny!F66 -> 820.0966184 | I66: 2018-03-03T10:00:00 | J66: 530 | K66: =Input!$C$13*Hodiny!J66 -> 819.3236715 | M66: 2018-04-03T10:00:00 | N66: 534 | O66: =Input!$C$13*Hodiny!N66 -> 825.5072464 | Q66: 2018-05-03T10:00:00 | R66: 701 | S66: =Input!$C$13*Hodiny!R66 -> 1083.671498 | U66: 2018-06-03T10:00:00 | V66: 640.5 | W66: =Input!$C$13*Hodiny!V66 -> 990.1449275 | Y66: 2018-07-03T10:00:00 | Z66: 669.5 | AA66: =Input!$C$13*Hodiny!Z66 -> 1034.975845 | AC66: 2018-08-03T11:00:00 | AD66: 751.75 | AE66: =Input!$C$13*Hodiny!AD66 -> 1162.125604 | AG66: 2018-09-03T10:00:00 | AH66: 776.5 | AI66: =Input!$C$13*Hodiny!AH66 -> 1200.386473 | AK66: 2017-10-03T10:00:00 | AL66: 579.5 | AM66: =Input!$C$13*Hodiny!AL66 -> 895.8454106 | AO66: 2017-11-03T10:00:00 | AP66: 606.25 | AQ66: =Input!$C$13*Hodiny!AP66 -> 937.1980676 | AS66: 2017-12-03T10:00:00 | AT66: 518.75 | AU66: =Input!$C$13*Hodiny!AT66 -> 801.9323671
A67: 2018-01-03T11:00:00 | B67: 613.75 | C67: =Input!$C$13*Hodiny!B67 -> 948.7922705 | E67: 2018-02-03T11:00:00 | F67: 515.75 | G67: =Input!$C$13*Hodiny!F67 -> 797.294686 | I67: 2018-03-03T11:00:00 | J67: 515.75 | K67: =Input!$C$13*Hodiny!J67 -> 797.294686 | M67: 2018-04-03T11:00:00 | N67: 548 | O67: =Input!$C$13*Hodiny!N67 -> 847.1497585 | Q67: 2018-05-03T11:00:00 | R67: 708.5 | S67: =Input!$C$13*Hodiny!R67 -> 1095.2657 | U67: 2018-06-03T11:00:00 | V67: 661.5 | W67: =Input!$C$13*Hodiny!V67 -> 1022.608696 | Y67: 2018-07-03T11:00:00 | Z67: 661.75 | AA67: =Input!$C$13*Hodiny!Z67 -> 1022.995169 | AC67: 2018-08-03T12:00:00 | AD67: 716.75 | AE67: =Input!$C$13*Hodiny!AD67 -> 1108.019324 | AG67: 2018-09-03T11:00:00 | AH67: 826 | AI67: =Input!$C$13*Hodiny!AH67 -> 1276.908213 | AK67: 2017-10-03T11:00:00 | AL67: 605 | AM67: =Input!$C$13*Hodiny!AL67 -> 935.2657005 | AO67: 2017-11-03T11:00:00 | AP67: 631.25 | AQ67: =Input!$C$13*Hodiny!AP67 -> 975.8454106 | AS67: 2017-12-03T11:00:00 | AT67: 501.5 | AU67: =Input!$C$13*Hodiny!AT67 -> 775.2657005
A68: 2018-01-03T12:00:00 | B68: 570 | C68: =Input!$C$13*Hodiny!B68 -> 881.1594203 | E68: 2018-02-03T12:00:00 | F68: 494.5 | G68: =Input!$C$13*Hodiny!F68 -> 764.4444444 | I68: 2018-03-03T12:00:00 | J68: 512 | K68: =Input!$C$13*Hodiny!J68 -> 791.4975845 | M68: 2018-04-03T12:00:00 | N68: 560.75 | O68: =Input!$C$13*Hodiny!N68 -> 866.8599034 | Q68: 2018-05-03T12:00:00 | R68: 754.75 | S68: =Input!$C$13*Hodiny!R68 -> 1166.763285 | U68: 2018-06-03T12:00:00 | V68: 712 | W68: =Input!$C$13*Hodiny!V68 -> 1100.676329 | Y68: 2018-07-03T12:00:00 | Z68: 659 | AA68: =Input!$C$13*Hodiny!Z68 -> 1018.743961 | AC68: 2018-08-03T13:00:00 | AD68: 735.5 | AE68: =Input!$C$13*Hodiny!AD68 -> 1137.004831 | AG68: 2018-09-03T12:00:00 | AH68: 825 | AI68: =Input!$C$13*Hodiny!AH68 -> 1275.362319 | AK68: 2017-10-03T12:00:00 | AL68: 566.5 | AM68: =Input!$C$13*Hodiny!AL68 -> 875.7487923 | AO68: 2017-11-03T12:00:00 | AP68: 618.5 | AQ68: =Input!$C$13*Hodiny!AP68 -> 956.1352657 | AS68: 2017-12-03T12:00:00 | AT68: 536.5 | AU68: =Input!$C$13*Hodiny!AT68 -> 829.3719807
A69: 2018-01-03T13:00:00 | B69: 575.5 | C69: =Input!$C$13*Hodiny!B69 -> 889.6618357 | E69: 2018-02-03T13:00:00 | F69: 521.25 | G69: =Input!$C$13*Hodiny!F69 -> 805.7971014 | I69: 2018-03-03T13:00:00 | J69: 514.25 | K69: =Input!$C$13*Hodiny!J69 -> 794.9758454 | M69: 2018-04-03T13:00:00 | N69: 601.25 | O69: =Input!$C$13*Hodiny!N69 -> 929.468599 | Q69: 2018-05-03T13:00:00 | R69: 756.5 | S69: =Input!$C$13*Hodiny!R69 -> 1169.468599 | U69: 2018-06-03T13:00:00 | V69: 651 | W69: =Input!$C$13*Hodiny!V69 -> 1006.376812 | Y69: 2018-07-03T13:00:00 | Z69: 714.25 | AA69: =Input!$C$13*Hodiny!Z69 -> 1104.154589 | AC69: 2018-08-03T14:00:00 | AD69: 753.25 | AE69: =Input!$C$13*Hodiny!AD69 -> 1164.444444 | AG69: 2018-09-03T13:00:00 | AH69: 878 | AI69: =Input!$C$13*Hodiny!AH69 -> 1357.294686 | AK69: 2017-10-03T13:00:00 | AL69: 627 | AM69: =Input!$C$13*Hodiny!AL69 -> 969.2753623 | AO69: 2017-11-03T13:00:00 | AP69: 621 | AQ69: =Input!$C$13*Hodiny!AP69 -> 960 | AS69: 2017-12-03T13:00:00 | AT69: 520.5 | AU69: =Input!$C$13*Hodiny!AT69 -> 804.6376812
A70: 2018-01-03T14:00:00 | B70: 610.5 | C70: =Input!$C$13*Hodiny!B70 -> 943.7681159 | E70: 2018-02-03T14:00:00 | F70: 545.75 | G70: =Input!$C$13*Hodiny!F70 -> 843.6714976 | I70: 2018-03-03T14:00:00 | J70: 525.75 | K70: =Input!$C$13*Hodiny!J70 -> 812.7536232 | M70: 2018-04-03T14:00:00 | N70: 590.25 | O70: =Input!$C$13*Hodiny!N70 -> 912.4637681 | Q70: 2018-05-03T14:00:00 | R70: 800.5 | S70: =Input!$C$13*Hodiny!R70 -> 1237.487923 | U70: 2018-06-03T14:00:00 | V70: 678.75 | W70: =Input!$C$13*Hodiny!V70 -> 1049.275362 | Y70: 2018-07-03T14:00:00 | Z70: 756.25 | AA70: =Input!$C$13*Hodiny!Z70 -> 1169.082126 | AC70: 2018-08-03T15:00:00 | AD70: 839.25 | AE70: =Input!$C$13*Hodiny!AD70 -> 1297.391304 | AG70: 2018-09-03T14:00:00 | AH70: 864 | AI70: =Input!$C$13*Hodiny!AH70 -> 1335.652174 | AK70: 2017-10-03T14:00:00 | AL70: 633.25 | AM70: =Input!$C$13*Hodiny!AL70 -> 978.9371981 | AO70: 2017-11-03T14:00:00 | AP70: 705.25 | AQ70: =Input!$C$13*Hodiny!AP70 -> 1090.241546 | AS70: 2017-12-03T14:00:00 | AT70: 542.75 | AU70: =Input!$C$13*Hodiny!AT70 -> 839.0338164
A71: 2018-01-03T15:00:00 | B71: 677.75 | C71: =Input!$C$13*Hodiny!B71 -> 1047.729469 | E71: 2018-02-03T15:00:00 | F71: 527 | G71: =Input!$C$13*Hodiny!F71 -> 814.6859903 | I71: 2018-03-03T15:00:00 | J71: 520.25 | K71: =Input!$C$13*Hodiny!J71 -> 804.2512077 | M71: 2018-04-03T15:00:00 | N71: 643.75 | O71: =Input!$C$13*Hodiny!N71 -> 995.1690821 | Q71: 2018-05-03T15:00:00 | R71: 827.25 | S71: =Input!$C$13*Hodiny!R71 -> 1278.84058 | U71: 2018-06-03T15:00:00 | V71: 713.5 | W71: =Input!$C$13*Hodiny!V71 -> 1102.995169 | Y71: 2018-07-03T15:00:00 | Z71: 808 | AA71: =Input!$C$13*Hodiny!Z71 -> 1249.082126 | AC71: 2018-08-03T16:00:00 | AD71: 864.75 | AE71: =Input!$C$13*Hodiny!AD71 -> 1336.811594 | AG71: 2018-09-03T15:00:00 | AH71: 877.75 | AI71: =Input!$C$13*Hodiny!AH71 -> 1356.908213 | AK71: 2017-10-03T15:00:00 | AL71: 708 | AM71: =Input!$C$13*Hodiny!AL71 -> 1094.492754 | AO71: 2017-11-03T15:00:00 | AP71: 717.5 | AQ71: =Input!$C$13*Hodiny!AP71 -> 1109.178744 | AS71: 2017-12-03T15:00:00 | AT71: 586.5 | AU71: =Input!$C$13*Hodiny!AT71 -> 906.6666667
A72: 2018-01-03T16:00:00 | B72: 674 | C72: =Input!$C$13*Hodiny!B72 -> 1041.932367 | E72: 2018-02-03T16:00:00 | F72: 519.5 | G72: =Input!$C$13*Hodiny!F72 -> 803.0917874 | I72: 2018-03-03T16:00:00 | J72: 608.5 | K72: =Input!$C$13*Hodiny!J72 -> 940.6763285 | M72: 2018-04-03T16:00:00 | N72: 754.5 | O72: =Input!$C$13*Hodiny!N72 -> 1166.376812 | Q72: 2018-05-03T16:00:00 | R72: 848.5 | S72: =Input!$C$13*Hodiny!R72 -> 1311.690821 | U72: 2018-06-03T16:00:00 | V72: 675.25 | W72: =Input!$C$13*Hodiny!V72 -> 1043.864734 | Y72: 2018-07-03T16:00:00 | Z72: 838.5 | AA72: =Input!$C$13*Hodiny!Z72 -> 1296.231884 | AC72: 2018-08-03T17:00:00 | AD72: 879.5 | AE72: =Input!$C$13*Hodiny!AD72 -> 1359.613527 | AG72: 2018-09-03T16:00:00 | AH72: 863.75 | AI72: =Input!$C$13*Hodiny!AH72 -> 1335.2657 | AK72: 2017-10-03T16:00:00 | AL72: 674.25 | AM72: =Input!$C$13*Hodiny!AL72 -> 1042.318841 | AO72: 2017-11-03T16:00:00 | AP72: 698.25 | AQ72: =Input!$C$13*Hodiny!AP72 -> 1079.42029 | AS72: 2017-12-03T16:00:00 | AT72: 654.5 | AU72: =Input!$C$13*Hodiny!AT72 -> 1011.78744
A73: 2018-01-03T17:00:00 | B73: 688.5 | C73: =Input!$C$13*Hodiny!B73 -> 1064.347826 | E73: 2018-02-03T17:00:00 | F73: 542 | G73: =Input!$C$13*Hodiny!F73 -> 837.8743961 | I73: 2018-03-03T17:00:00 | J73: 598.5 | K73: =Input!$C$13*Hodiny!J73 -> 925.2173913 | M73: 2018-04-03T17:00:00 | N73: 694.25 | O73: =Input!$C$13*Hodiny!N73 -> 1073.236715 | Q73: 2018-05-03T17:00:00 | R73: 908.25 | S73: =Input!$C$13*Hodiny!R73 -> 1404.057971 | U73: 2018-06-03T17:00:00 | V73: 662 | W73: =Input!$C$13*Hodiny!V73 -> 1023.381643 | Y73: 2018-07-03T17:00:00 | Z73: 802.75 | AA73: =Input!$C$13*Hodiny!Z73 -> 1240.966184 | AC73: 2018-08-03T18:00:00 | AD73: 838 | AE73: =Input!$C$13*Hodiny!AD73 -> 1295.458937 | AG73: 2018-09-03T17:00:00 | AH73: 857.5 | AI73: =Input!$C$13*Hodiny!AH73 -> 1325.603865 | AK73: 2017-10-03T17:00:00 | AL73: 597.25 | AM73: =Input!$C$13*Hodiny!AL73 -> 923.2850242 | AO73: 2017-11-03T17:00:00 | AP73: 631 | AQ73: =Input!$C$13*Hodiny!AP73 -> 975.4589372 | AS73: 2017-12-03T17:00:00 | AT73: 624 | AU73: =Input!$C$13*Hodiny!AT73 -> 964.6376812
A74: 2018-01-03T18:00:00 | B74: 648.5 | C74: =Input!$C$13*Hodiny!B74 -> 1002.512077 | E74: 2018-02-03T18:00:00 | F74: 529.5 | G74: =Input!$C$13*Hodiny!F74 -> 818.5507246 | I74: 2018-03-03T18:00:00 | J74: 590 | K74: =Input!$C$13*Hodiny!J74 -> 912.0772947 | M74: 2018-04-03T18:00:00 | N74: 666 | O74: =Input!$C$13*Hodiny!N74 -> 1029.565217 | Q74: 2018-05-03T18:00:00 | R74: 825.25 | S74: =Input!$C$13*Hodiny!R74 -> 1275.748792 | U74: 2018-06-03T18:00:00 | V74: 623 | W74: =Input!$C$13*Hodiny!V74 -> 963.0917874 | Y74: 2018-07-03T18:00:00 | Z74: 729.25 | AA74: =Input!$C$13*Hodiny!Z74 -> 1127.342995 | AC74: 2018-08-03T19:00:00 | AD74: 822.25 | AE74: =Input!$C$13*Hodiny!AD74 -> 1271.111111 | AG74: 2018-09-03T18:00:00 | AH74: 766.25 | AI74: =Input!$C$13*Hodiny!AH74 -> 1184.541063 | AK74: 2017-10-03T18:00:00 | AL74: 526.25 | AM74: =Input!$C$13*Hodiny!AL74 -> 813.52657 | AO74: 2017-11-03T18:00:00 | AP74: 608.5 | AQ74: =Input!$C$13*Hodiny!AP74 -> 940.6763285 | AS74: 2017-12-03T18:00:00 | AT74: 611.75 | AU74: =Input!$C$13*Hodiny!AT74 -> 945.7004831
A75: 2018-01-03T19:00:00 | B75: 632.25 | C75: =Input!$C$13*Hodiny!B75 -> 977.3913043 | E75: 2018-02-03T19:00:00 | F75: 526.25 | G75: =Input!$C$13*Hodiny!F75 -> 813.52657 | I75: 2018-03-03T19:00:00 | J75: 566 | K75: =Input!$C$13*Hodiny!J75 -> 874.9758454 | M75: 2018-04-03T19:00:00 | N75: 581.75 | O75: =Input!$C$13*Hodiny!N75 -> 899.3236715 | Q75: 2018-05-03T19:00:00 | R75: 763.75 | S75: =Input!$C$13*Hodiny!R75 -> 1180.676329 | U75: 2018-06-03T19:00:00 | V75: 640 | W75: =Input!$C$13*Hodiny!V75 -> 989.3719807 | Y75: 2018-07-03T19:00:00 | Z75: 698.75 | AA75: =Input!$C$13*Hodiny!Z75 -> 1080.193237 | AC75: 2018-08-03T20:00:00 | AD75: 702.25 | AE75: =Input!$C$13*Hodiny!AD75 -> 1085.603865 | AG75: 2018-09-03T19:00:00 | AH75: 748.5 | AI75: =Input!$C$13*Hodiny!AH75 -> 1157.101449 | AK75: 2017-10-03T19:00:00 | AL75: 515 | AM75: =Input!$C$13*Hodiny!AL75 -> 796.1352657 | AO75: 2017-11-03T19:00:00 | AP75: 560 | AQ75: =Input!$C$13*Hodiny!AP75 -> 865.7004831 | AS75: 2017-12-03T19:00:00 | AT75: 584.25 | AU75: =Input!$C$13*Hodiny!AT75 -> 903.1884058
A76: 2018-01-03T20:00:00 | B76: 565.75 | C76: =Input!$C$13*Hodiny!B76 -> 874.589372 | E76: 2018-02-03T20:00:00 | F76: 496.75 | G76: =Input!$C$13*Hodiny!F76 -> 767.9227053 | I76: 2018-03-03T20:00:00 | J76: 538 | K76: =Input!$C$13*Hodiny!J76 -> 831.6908213 | M76: 2018-04-03T20:00:00 | N76: 570.25 | O76: =Input!$C$13*Hodiny!N76 -> 881.5458937 | Q76: 2018-05-03T20:00:00 | R76: 700 | S76: =Input!$C$13*Hodiny!R76 -> 1082.125604 | U76: 2018-06-03T20:00:00 | V76: 618.75 | W76: =Input!$C$13*Hodiny!V76 -> 956.5217391 | Y76: 2018-07-03T20:00:00 | Z76: 599.75 | AA76: =Input!$C$13*Hodiny!Z76 -> 927.1497585 | AC76: 2018-08-03T21:00:00 | AD76: 682.75 | AE76: =Input!$C$13*Hodiny!AD76 -> 1055.458937 | AG76: 2018-09-03T20:00:00 | AH76: 723.25 | AI76: =Input!$C$13*Hodiny!AH76 -> 1118.067633 | AK76: 2017-10-03T20:00:00 | AL76: 531.5 | AM76: =Input!$C$13*Hodiny!AL76 -> 821.6425121 | AO76: 2017-11-03T20:00:00 | AP76: 564.25 | AQ76: =Input!$C$13*Hodiny!AP76 -> 872.2705314 | AS76: 2017-12-03T20:00:00 | AT76: 536.5 | AU76: =Input!$C$13*Hodiny!AT76 -> 829.3719807
A77: 2018-01-03T21:00:00 | B77: 557.25 | C77: =Input!$C$13*Hodiny!B77 -> 861.4492754 | E77: 2018-02-03T21:00:00 | F77: 462.75 | G77: =Input!$C$13*Hodiny!F77 -> 715.3623188 | I77: 2018-03-03T21:00:00 | J77: 537.75 | K77: =Input!$C$13*Hodiny!J77 -> 831.3043478 | M77: 2018-04-03T21:00:00 | N77: 531.25 | O77: =Input!$C$13*Hodiny!N77 -> 821.2560386 | Q77: 2018-05-03T21:00:00 | R77: 675.5 | S77: =Input!$C$13*Hodiny!R77 -> 1044.251208 | U77: 2018-06-03T21:00:00 | V77: 619.25 | W77: =Input!$C$13*Hodiny!V77 -> 957.294686 | Y77: 2018-07-03T21:00:00 | Z77: 591.25 | AA77: =Input!$C$13*Hodiny!Z77 -> 914.0096618 | AC77: 2018-08-03T22:00:00 | AD77: 692.75 | AE77: =Input!$C$13*Hodiny!AD77 -> 1070.917874 | AG77: 2018-09-03T21:00:00 | AH77: 714.25 | AI77: =Input!$C$13*Hodiny!AH77 -> 1104.154589 | AK77: 2017-10-03T21:00:00 | AL77: 536.5 | AM77: =Input!$C$13*Hodiny!AL77 -> 829.3719807 | AO77: 2017-11-03T21:00:00 | AP77: 559.75 | AQ77: =Input!$C$13*Hodiny!AP77 -> 865.3140097 | AS77: 2017-12-03T21:00:00 | AT77: 543 | AU77: =Input!$C$13*Hodiny!AT77 -> 839.4202899
A78: 2018-01-03T22:00:00 | B78: 533.5 | C78: =Input!$C$13*Hodiny!B78 -> 824.7342995 | E78: 2018-02-03T22:00:00 | F78: 442.5 | G78: =Input!$C$13*Hodiny!F78 -> 684.057971 | I78: 2018-03-03T22:00:00 | J78: 535.25 | K78: =Input!$C$13*Hodiny!J78 -> 827.4396135 | M78: 2018-04-03T22:00:00 | N78: 501 | O78: =Input!$C$13*Hodiny!N78 -> 774.4927536 | Q78: 2018-05-03T22:00:00 | R78: 609.5 | S78: =Input!$C$13*Hodiny!R78 -> 942.2222222 | U78: 2018-06-03T22:00:00 | V78: 579.75 | W78: =Input!$C$13*Hodiny!V78 -> 896.2318841 | Y78: 2018-07-03T22:00:00 | Z78: 583.25 | AA78: =Input!$C$13*Hodiny!Z78 -> 901.6425121 | AC78: 2018-08-03T23:00:00 | AD78: 695.5 | AE78: =Input!$C$13*Hodiny!AD78 -> 1075.169082 | AG78: 2018-09-03T22:00:00 | AH78: 718 | AI78: =Input!$C$13*Hodiny!AH78 -> 1109.951691 | AK78: 2017-10-03T22:00:00 | AL78: 497.5 | AM78: =Input!$C$13*Hodiny!AL78 -> 769.0821256 | AO78: 2017-11-03T22:00:00 | AP78: 552.5 | AQ78: =Input!$C$13*Hodiny!AP78 -> 854.1062802 | AS78: 2017-12-03T22:00:00 | AT78: 546.25 | AU78: =Input!$C$13*Hodiny!AT78 -> 844.4444444
A79: 2018-01-03T23:00:00 | B79: 529 | C79: =Input!$C$13*Hodiny!B79 -> 817.7777778 | E79: 2018-02-03T23:00:00 | F79: 446 | G79: =Input!$C$13*Hodiny!F79 -> 689.468599 | I79: 2018-03-03T23:00:00 | J79: 523.5 | K79: =Input!$C$13*Hodiny!J79 -> 809.2753623 | M79: 2018-04-03T23:00:00 | N79: 513.25 | O79: =Input!$C$13*Hodiny!N79 -> 793.4299517 | Q79: 2018-05-03T23:00:00 | R79: 617.75 | S79: =Input!$C$13*Hodiny!R79 -> 954.9758454 | U79: 2018-06-03T23:00:00 | V79: 573.75 | W79: =Input!$C$13*Hodiny!V79 -> 886.9565217 | Y79: 2018-07-03T23:00:00 | Z79: 552.75 | AA79: =Input!$C$13*Hodiny!Z79 -> 854.4927536 | AC79: 2018-08-04 | AD79: 688.5 | AE79: =Input!$C$13*Hodiny!AD79 -> 1064.347826 | AG79: 2018-09-03T23:00:00 | AH79: 698.25 | AI79: =Input!$C$13*Hodiny!AH79 -> 1079.42029 | AK79: 2017-10-03T23:00:00 | AL79: 505.5 | AM79: =Input!$C$13*Hodiny!AL79 -> 781.4492754 | AO79: 2017-11-03T23:00:00 | AP79: 532.25 | AQ79: =Input!$C$13*Hodiny!AP79 -> 822.8019324 | AS79: 2017-12-03T23:00:00 | AT79: 527.25 | AU79: =Input!$C$13*Hodiny!AT79 -> 815.0724638
A80: 2018-01-04 | B80: 540.75 | C80: =Input!$C$13*Hodiny!B80 -> 835.942029 | E80: 2018-02-04 | F80: 454 | G80: =Input!$C$13*Hodiny!F80 -> 701.8357488 | I80: 2018-03-04 | J80: 512 | K80: =Input!$C$13*Hodiny!J80 -> 791.4975845 | M80: 2018-04-04 | N80: 488.75 | O80: =Input!$C$13*Hodiny!N80 -> 755.5555556 | Q80: 2018-05-04 | R80: 648 | S80: =Input!$C$13*Hodiny!R80 -> 1001.73913 | U80: 2018-06-04 | V80: 566.75 | W80: =Input!$C$13*Hodiny!V80 -> 876.1352657 | Y80: 2018-07-04 | Z80: 537 | AA80: =Input!$C$13*Hodiny!Z80 -> 830.1449275 | AC80: 2018-08-04T01:00:00 | AD80: 714.5 | AE80: =Input!$C$13*Hodiny!AD80 -> 1104.541063 | AG80: 2018-09-04 | AH80: 663.75 | AI80: =Input!$C$13*Hodiny!AH80 -> 1026.086957 | AK80: 2017-10-04 | AL80: 537.5 | AM80: =Input!$C$13*Hodiny!AL80 -> 830.9178744 | AO80: 2017-11-04 | AP80: 572.5 | AQ80: =Input!$C$13*Hodiny!AP80 -> 885.0241546 | AS80: 2017-12-04 | AT80: 548.5 | AU80: =Input!$C$13*Hodiny!AT80 -> 847.9227053
A81: 2018-01-04T01:00:00 | B81: 559.5 | C81: =Input!$C$13*Hodiny!B81 -> 864.9275362 | E81: 2018-02-04T01:00:00 | F81: 497 | G81: =Input!$C$13*Hodiny!F81 -> 768.3091787 | I81: 2018-03-04T01:00:00 | J81: 495.5 | K81: =Input!$C$13*Hodiny!J81 -> 765.9903382 | M81: 2018-04-04T01:00:00 | N81: 489 | O81: =Input!$C$13*Hodiny!N81 -> 755.942029 | Q81: 2018-05-04T01:00:00 | R81: 617 | S81: =Input!$C$13*Hodiny!R81 -> 953.8164251 | U81: 2018-06-04T01:00:00 | V81: 556.75 | W81: =Input!$C$13*Hodiny!V81 -> 860.6763285 | Y81: 2018-07-04T01:00:00 | Z81: 556 | AA81: =Input!$C$13*Hodiny!Z81 -> 859.5169082 | AC81: 2018-08-04T02:00:00 | AD81: 614.25 | AE81: =Input!$C$13*Hodiny!AD81 -> 949.5652174 | AG81: 2018-09-04T01:00:00 | AH81: 689.75 | AI81: =Input!$C$13*Hodiny!AH81 -> 1066.280193 | AK81: 2017-10-04T01:00:00 | AL81: 540 | AM81: =Input!$C$13*Hodiny!AL81 -> 834.7826087 | AO81: 2017-11-04T01:00:00 | AP81: 555.5 | AQ81: =Input!$C$13*Hodiny!AP81 -> 858.7439614 | AS81: 2017-12-04T01:00:00 | AT81: 527.5 | AU81: =Input!$C$13*Hodiny!AT81 -> 815.4589372
A82: 2018-01-04T02:00:00 | B82: 562 | C82: =Input!$C$13*Hodiny!B82 -> 868.7922705 | E82: 2018-02-04T02:00:00 | F82: 436.75 | G82: =Input!$C$13*Hodiny!F82 -> 675.1690821 | I82: 2018-03-04T02:00:00 | J82: 468 | K82: =Input!$C$13*Hodiny!J82 -> 723.4782609 | M82: 2018-04-04T02:00:00 | N82: 494.25 | O82: =Input!$C$13*Hodiny!N82 -> 764.057971 | Q82: 2018-05-04T02:00:00 | R82: 626.75 | S82: =Input!$C$13*Hodiny!R82 -> 968.8888889 | U82: 2018-06-04T02:00:00 | V82: 567 | W82: =Input!$C$13*Hodiny!V82 -> 876.5217391 | Y82: 2018-07-04T02:00:00 | Z82: 547.25 | AA82: =Input!$C$13*Hodiny!Z82 -> 845.9903382 | AC82: 2018-08-04T03:00:00 | AD82: 629 | AE82: =Input!$C$13*Hodiny!AD82 -> 972.3671498 | AG82: 2018-09-04T02:00:00 | AH82: 610.5 | AI82: =Input!$C$13*Hodiny!AH82 -> 943.7681159 | AK82: 2017-10-04T02:00:00 | AL82: 510.25 | AM82: =Input!$C$13*Hodiny!AL82 -> 788.7922705 | AO82: 2017-11-04T02:00:00 | AP82: 566 | AQ82: =Input!$C$13*Hodiny!AP82 -> 874.9758454 | AS82: 2017-12-04T02:00:00 | AT82: 514.75 | AU82: =Input!$C$13*Hodiny!AT82 -> 795.7487923
A83: 2018-01-04T03:00:00 | B83: 499.75 | C83: =Input!$C$13*Hodiny!B83 -> 772.5603865 | E83: 2018-02-04T03:00:00 | F83: 402.5 | G83: =Input!$C$13*Hodiny!F83 -> 622.2222222 | I83: 2018-03-04T03:00:00 | J83: 457.75 | K83: =Input!$C$13*Hodiny!J83 -> 707.6328502 | M83: 2018-04-04T03:00:00 | N83: 427.25 | O83: =Input!$C$13*Hodiny!N83 -> 660.4830918 | Q83: 2018-05-04T03:00:00 | R83: 570.75 | S83: =Input!$C$13*Hodiny!R83 -> 882.3188406 | U83: 2018-06-04T03:00:00 | V83: 570.5 | W83: =Input!$C$13*Hodiny!V83 -> 881.9323671 | Y83: 2018-07-04T03:00:00 | Z83: 563 | AA83: =Input!$C$13*Hodiny!Z83 -> 870.3381643 | AC83: 2018-08-04T04:00:00 | AD83: 546 | AE83: =Input!$C$13*Hodiny!AD83 -> 844.057971 | AG83: 2018-09-04T03:00:00 | AH83: 574.25 | AI83: =Input!$C$13*Hodiny!AH83 -> 887.7294686 | AK83: 2017-10-04T03:00:00 | AL83: 466.25 | AM83: =Input!$C$13*Hodiny!AL83 -> 720.7729469 | AO83: 2017-11-04T03:00:00 | AP83: 503.75 | AQ83: =Input!$C$13*Hodiny!AP83 -> 778.7439614 | AS83: 2017-12-04T03:00:00 | AT83: 484.5 | AU83: =Input!$C$13*Hodiny!AT83 -> 748.9855072
A84: 2018-01-04T04:00:00 | B84: 439.5 | C84: =Input!$C$13*Hodiny!B84 -> 679.4202899 | E84: 2018-02-04T04:00:00 | F84: 394.5 | G84: =Input!$C$13*Hodiny!F84 -> 609.8550725 | I84: 2018-03-04T04:00:00 | J84: 444.25 | K84: =Input!$C$13*Hodiny!J84 -> 686.763285 | M84: 2018-04-04T04:00:00 | N84: 389 | O84: =Input!$C$13*Hodiny!N84 -> 601.352657 | Q84: 2018-05-04T04:00:00 | R84: 528 | S84: =Input!$C$13*Hodiny!R84 -> 816.2318841 | U84: 2018-06-04T04:00:00 | V84: 618.5 | W84: =Input!$C$13*Hodiny!V84 -> 956.1352657 | Y84: 2018-07-04T04:00:00 | Z84: 474 | AA84: =Input!$C$13*Hodiny!Z84 -> 732.7536232 | AC84: 2018-08-04T05:00:00 | AD84: 496.75 | AE84: =Input!$C$13*Hodiny!AD84 -> 767.9227053 | AG84: 2018-09-04T04:00:00 | AH84: 538.5 | AI84: =Input!$C$13*Hodiny!AH84 -> 832.4637681 | AK84: 2017-10-04T04:00:00 | AL84: 427.25 | AM84: =Input!$C$13*Hodiny!AL84 -> 660.4830918 | AO84: 2017-11-04T04:00:00 | AP84: 468 | AQ84: =Input!$C$13*Hodiny!AP84 -> 723.4782609 | AS84: 2017-12-04T04:00:00 | AT84: 443 | AU84: =Input!$C$13*Hodiny!AT84 -> 684.8309179
A85: 2018-01-04T05:00:00 | B85: 449.75 | C85: =Input!$C$13*Hodiny!B85 -> 695.2657005 | E85: 2018-02-04T05:00:00 | F85: 387.5 | G85: =Input!$C$13*Hodiny!F85 -> 599.0338164 | I85: 2018-03-04T05:00:00 | J85: 445.75 | K85: =Input!$C$13*Hodiny!J85 -> 689.0821256 | M85: 2018-04-04T05:00:00 | N85: 402.75 | O85: =Input!$C$13*Hodiny!N85 -> 622.6086957 | Q85: 2018-05-04T05:00:00 | R85: 498.5 | S85: =Input!$C$13*Hodiny!R85 -> 770.6280193 | U85: 2018-06-04T05:00:00 | V85: 583.5 | W85: =Input!$C$13*Hodiny!V85 -> 902.0289855 | Y85: 2018-07-04T05:00:00 | Z85: 441.25 | AA85: =Input!$C$13*Hodiny!Z85 -> 682.1256039 | AC85: 2018-08-04T06:00:00 | AD85: 512.75 | AE85: =Input!$C$13*Hodiny!AD85 -> 792.6570048 | AG85: 2018-09-04T05:00:00 | AH85: 558 | AI85: =Input!$C$13*Hodiny!AH85 -> 862.6086957 | AK85: 2017-10-04T05:00:00 | AL85: 430.5 | AM85: =Input!$C$13*Hodiny!AL85 -> 665.5072464 | AO85: 2017-11-04T05:00:00 | AP85: 458.5 | AQ85: =Input!$C$13*Hodiny!AP85 -> 708.7922705 | AS85: 2017-12-04T05:00:00 | AT85: 444.5 | AU85: =Input!$C$13*Hodiny!AT85 -> 687.1497585
A86: 2018-01-04T06:00:00 | B86: 514.75 | C86: =Input!$C$13*Hodiny!B86 -> 795.7487923 | E86: 2018-02-04T06:00:00 | F86: 460.75 | G86: =Input!$C$13*Hodiny!F86 -> 712.2705314 | I86: 2018-03-04T06:00:00 | J86: 451.25 | K86: =Input!$C$13*Hodiny!J86 -> 697.5845411 | M86: 2018-04-04T06:00:00 | N86: 441.25 | O86: =Input!$C$13*Hodiny!N86 -> 682.1256039 | Q86: 2018-05-04T06:00:00 | R86: 542 | S86: =Input!$C$13*Hodiny!R86 -> 837.8743961 | U86: 2018-06-04T06:00:00 | V86: 576.5 | W86: =Input!$C$13*Hodiny!V86 -> 891.2077295 | Y86: 2018-07-04T06:00:00 | Z86: 497.5 | AA86: =Input!$C$13*Hodiny!Z86 -> 769.0821256 | AC86: 2018-08-04T07:00:00 | AD86: 576.25 | AE86: =Input!$C$13*Hodiny!AD86 -> 890.821256 | AG86: 2018-09-04T06:00:00 | AH86: 626.5 | AI86: =Input!$C$13*Hodiny!AH86 -> 968.5024155 | AK86: 2017-10-04T06:00:00 | AL86: 502.75 | AM86: =Input!$C$13*Hodiny!AL86 -> 777.1980676 | AO86: 2017-11-04T06:00:00 | AP86: 519.5 | AQ86: =Input!$C$13*Hodiny!AP86 -> 803.0917874 | AS86: 2017-12-04T06:00:00 | AT86: 533.75 | AU86: =Input!$C$13*Hodiny!AT86 -> 825.1207729
A87: 2018-01-04T07:00:00 | B87: 553.75 | C87: =Input!$C$13*Hodiny!B87 -> 856.0386473 | E87: 2018-02-04T07:00:00 | F87: 470.25 | G87: =Input!$C$13*Hodiny!F87 -> 726.9565217 | I87: 2018-03-04T07:00:00 | J87: 496.25 | K87: =Input!$C$13*Hodiny!J87 -> 767.1497585 | M87: 2018-04-04T07:00:00 | N87: 514.5 | O87: =Input!$C$13*Hodiny!N87 -> 795.3623188 | Q87: 2018-05-04T07:00:00 | R87: 609 | S87: =Input!$C$13*Hodiny!R87 -> 941.4492754 | U87: 2018-06-04T07:00:00 | V87: 576.75 | W87: =Input!$C$13*Hodiny!V87 -> 891.5942029 | Y87: 2018-07-04T07:00:00 | Z87: 541.25 | AA87: =Input!$C$13*Hodiny!Z87 -> 836.7149758 | AC87: 2018-08-04T08:00:00 | AD87: 590 | AE87: =Input!$C$13*Hodiny!AD87 -> 912.0772947 | AG87: 2018-09-04T07:00:00 | AH87: 669.25 | AI87: =Input!$C$13*Hodiny!AH87 -> 1034.589372 | AK87: 2017-10-04T07:00:00 | AL87: 569.75 | AM87: =Input!$C$13*Hodiny!AL87 -> 880.7729469 | AO87: 2017-11-04T07:00:00 | AP87: 493.5 | AQ87: =Input!$C$13*Hodiny!AP87 -> 762.8985507 | AS87: 2017-12-04T07:00:00 | AT87: 510.5 | AU87: =Input!$C$13*Hodiny!AT87 -> 789.178744
A88: 2018-01-04T08:00:00 | B88: 614.75 | C88: =Input!$C$13*Hodiny!B88 -> 950.3381643 | E88: 2018-02-04T08:00:00 | F88: 489.75 | G88: =Input!$C$13*Hodiny!F88 -> 757.1014493 | I88: 2018-03-04T08:00:00 | J88: 485.75 | K88: =Input!$C$13*Hodiny!J88 -> 750.9178744 | M88: 2018-04-04T08:00:00 | N88: 559.25 | O88: =Input!$C$13*Hodiny!N88 -> 864.5410628 | Q88: 2018-05-04T08:00:00 | R88: 684 | S88: =Input!$C$13*Hodiny!R88 -> 1057.391304 | U88: 2018-06-04T08:00:00 | V88: 609.25 | W88: =Input!$C$13*Hodiny!V88 -> 941.8357488 | Y88: 2018-07-04T08:00:00 | Z88: 526.75 | AA88: =Input!$C$13*Hodiny!Z88 -> 814.2995169 | AC88: 2018-08-04T09:00:00 | AD88: 664.25 | AE88: =Input!$C$13*Hodiny!AD88 -> 1026.859903 | AG88: 2018-09-04T08:00:00 | AH88: 688 | AI88: =Input!$C$13*Hodiny!AH88 -> 1063.574879 | AK88: 2017-10-04T08:00:00 | AL88: 586.75 | AM88: =Input!$C$13*Hodiny!AL88 -> 907.0531401 | AO88: 2017-11-04T08:00:00 | AP88: 515.25 | AQ88: =Input!$C$13*Hodiny!AP88 -> 796.5217391 | AS88: 2017-12-04T08:00:00 | AT88: 569.25 | AU88: =Input!$C$13*Hodiny!AT88 -> 880
A89: 2018-01-04T09:00:00 | B89: 614.75 | C89: =Input!$C$13*Hodiny!B89 -> 950.3381643 | E89: 2018-02-04T09:00:00 | F89: 536 | G89: =Input!$C$13*Hodiny!F89 -> 828.5990338 | I89: 2018-03-04T09:00:00 | J89: 526.75 | K89: =Input!$C$13*Hodiny!J89 -> 814.2995169 | M89: 2018-04-04T09:00:00 | N89: 550.25 | O89: =Input!$C$13*Hodiny!N89 -> 850.6280193 | Q89: 2018-05-04T09:00:00 | R89: 675.25 | S89: =Input!$C$13*Hodiny!R89 -> 1043.864734 | U89: 2018-06-04T09:00:00 | V89: 677.75 | W89: =Input!$C$13*Hodiny!V89 -> 1047.729469 | Y89: 2018-07-04T09:00:00 | Z89: 587 | AA89: =Input!$C$13*Hodiny!Z89 -> 907.4396135 | AC89: 2018-08-04T10:00:00 | AD89: 744 | AE89: =Input!$C$13*Hodiny!AD89 -> 1150.144928 | AG89: 2018-09-04T09:00:00 | AH89: 771 | AI89: =Input!$C$13*Hodiny!AH89 -> 1191.884058 | AK89: 2017-10-04T09:00:00 | AL89: 587 | AM89: =Input!$C$13*Hodiny!AL89 -> 907.4396135 | AO89: 2017-11-04T09:00:00 | AP89: 548.5 | AQ89: =Input!$C$13*Hodiny!AP89 -> 847.9227053 | AS89: 2017-12-04T09:00:00 | AT89: 585.75 | AU89: =Input!$C$13*Hodiny!AT89 -> 905.5072464
A90: 2018-01-04T10:00:00 | B90: 593.25 | C90: =Input!$C$13*Hodiny!B90 -> 917.1014493 | E90: 2018-02-04T10:00:00 | F90: 525.75 | G90: =Input!$C$13*Hodiny!F90 -> 812.7536232 | I90: 2018-03-04T10:00:00 | J90: 539.5 | K90: =Input!$C$13*Hodiny!J90 -> 834.0096618 | M90: 2018-04-04T10:00:00 | N90: 564 | O90: =Input!$C$13*Hodiny!N90 -> 871.884058 | Q90: 2018-05-04T10:00:00 | R90: 676.75 | S90: =Input!$C$13*Hodiny!R90 -> 1046.183575 | U90: 2018-06-04T10:00:00 | V90: 688 | W90: =Input!$C$13*Hodiny!V90 -> 1063.574879 | Y90: 2018-07-04T10:00:00 | Z90: 756.75 | AA90: =Input!$C$13*Hodiny!Z90 -> 1169.855072 | AC90: 2018-08-04T11:00:00 | AD90: 716.25 | AE90: =Input!$C$13*Hodiny!AD90 -> 1107.246377 | AG90: 2018-09-04T10:00:00 | AH90: 764.5 | AI90: =Input!$C$13*Hodiny!AH90 -> 1181.835749 | AK90: 2017-10-04T10:00:00 | AL90: 554.5 | AM90: =Input!$C$13*Hodiny!AL90 -> 857.1980676 | AO90: 2017-11-04T10:00:00 | AP90: 553.75 | AQ90: =Input!$C$13*Hodiny!AP90 -> 856.0386473 | AS90: 2017-12-04T10:00:00 | AT90: 591 | AU90: =Input!$C$13*Hodiny!AT90 -> 913.6231884
A91: 2018-01-04T11:00:00 | B91: 623.25 | C91: =Input!$C$13*Hodiny!B91 -> 963.4782609 | E91: 2018-02-04T11:00:00 | F91: 498.25 | G91: =Input!$C$13*Hodiny!F91 -> 770.2415459 | I91: 2018-03-04T11:00:00 | J91: 482.75 | K91: =Input!$C$13*Hodiny!J91 -> 746.2801932 | M91: 2018-04-04T11:00:00 | N91: 546.5 | O91: =Input!$C$13*Hodiny!N91 -> 844.8309179 | Q91: 2018-05-04T11:00:00 | R91: 654.75 | S91: =Input!$C$13*Hodiny!R91 -> 1012.173913 | U91: 2018-06-04T11:00:00 | V91: 678.25 | W91: =Input!$C$13*Hodiny!V91 -> 1048.502415 | Y91: 2018-07-04T11:00:00 | Z91: 736 | AA91: =Input!$C$13*Hodiny!Z91 -> 1137.777778 | AC91: 2018-08-04T12:00:00 | AD91: 735.75 | AE91: =Input!$C$13*Hodiny!AD91 -> 1137.391304 | AG91: 2018-09-04T11:00:00 | AH91: 790.25 | AI91: =Input!$C$13*Hodiny!AH91 -> 1221.642512 | AK91: 2017-10-04T11:00:00 | AL91: 566.75 | AM91: =Input!$C$13*Hodiny!AL91 -> 876.1352657 | AO91: 2017-11-04T11:00:00 | AP91: 571.5 | AQ91: =Input!$C$13*Hodiny!AP91 -> 883.4782609 | AS91: 2017-12-04T11:00:00 | AT91: 669.75 | AU91: =Input!$C$13*Hodiny!AT91 -> 1035.362319
A92: 2018-01-04T12:00:00 | B92: 578 | C92: =Input!$C$13*Hodiny!B92 -> 893.52657 | E92: 2018-02-04T12:00:00 | F92: 505.25 | G92: =Input!$C$13*Hodiny!F92 -> 781.0628019 | I92: 2018-03-04T12:00:00 | J92: 510 | K92: =Input!$C$13*Hodiny!J92 -> 788.4057971 | M92: 2018-04-04T12:00:00 | N92: 569.75 | O92: =Input!$C$13*Hodiny!N92 -> 880.7729469 | Q92: 2018-05-04T12:00:00 | R92: 684 | S92: =Input!$C$13*Hodiny!R92 -> 1057.391304 | U92: 2018-06-04T12:00:00 | V92: 736.75 | W92: =Input!$C$13*Hodiny!V92 -> 1138.937198 | Y92: 2018-07-04T12:00:00 | Z92: 733.75 | AA92: =Input!$C$13*Hodiny!Z92 -> 1134.299517 | AC92: 2018-08-04T13:00:00 | AD92: 723.75 | AE92: =Input!$C$13*Hodiny!AD92 -> 1118.84058 | AG92: 2018-09-04T12:00:00 | AH92: 814 | AI92: =Input!$C$13*Hodiny!AH92 -> 1258.357488 | AK92: 2017-10-04T12:00:00 | AL92: 570.5 | AM92: =Input!$C$13*Hodiny!AL92 -> 881.9323671 | AO92: 2017-11-04T12:00:00 | AP92: 560.75 | AQ92: =Input!$C$13*Hodiny!AP92 -> 866.8599034 | AS92: 2017-12-04T12:00:00 | AT92: 636.25 | AU92: =Input!$C$13*Hodiny!AT92 -> 983.5748792
A93: 2018-01-04T13:00:00 | B93: 602.5 | C93: =Input!$C$13*Hodiny!B93 -> 931.4009662 | E93: 2018-02-04T13:00:00 | F93: 493 | G93: =Input!$C$13*Hodiny!F93 -> 762.1256039 | I93: 2018-03-04T13:00:00 | J93: 505.75 | K93: =Input!$C$13*Hodiny!J93 -> 781.8357488 | M93: 2018-04-04T13:00:00 | N93: 588.5 | O93: =Input!$C$13*Hodiny!N93 -> 909.7584541 | Q93: 2018-05-04T13:00:00 | R93: 716 | S93: =Input!$C$13*Hodiny!R93 -> 1106.859903 | U93: 2018-06-04T13:00:00 | V93: 728.25 | W93: =Input!$C$13*Hodiny!V93 -> 1125.797101 | Y93: 2018-07-04T13:00:00 | Z93: 788.75 | AA93: =Input!$C$13*Hodiny!Z93 -> 1219.323671 | AC93: 2018-08-04T14:00:00 | AD93: 763.5 | AE93: =Input!$C$13*Hodiny!AD93 -> 1180.289855 | AG93: 2018-09-04T13:00:00 | AH93: 908.75 | AI93: =Input!$C$13*Hodiny!AH93 -> 1404.830918 | AK93: 2017-10-04T13:00:00 | AL93: 576.75 | AM93: =Input!$C$13*Hodiny!AL93 -> 891.5942029 | AO93: 2017-11-04T13:00:00 | AP93: 578.75 | AQ93: =Input!$C$13*Hodiny!AP93 -> 894.6859903 | AS93: 2017-12-04T13:00:00 | AT93: 628.5 | AU93: =Input!$C$13*Hodiny!AT93 -> 971.5942029
A94: 2018-01-04T14:00:00 | B94: 690 | C94: =Input!$C$13*Hodiny!B94 -> 1066.666667 | E94: 2018-02-04T14:00:00 | F94: 505 | G94: =Input!$C$13*Hodiny!F94 -> 780.6763285 | I94: 2018-03-04T14:00:00 | J94: 525.5 | K94: =Input!$C$13*Hodiny!J94 -> 812.3671498 | M94: 2018-04-04T14:00:00 | N94: 678 | O94: =Input!$C$13*Hodiny!N94 -> 1048.115942 | Q94: 2018-05-04T14:00:00 | R94: 684.25 | S94: =Input!$C$13*Hodiny!R94 -> 1057.777778 | U94: 2018-06-04T14:00:00 | V94: 694.25 | W94: =Input!$C$13*Hodiny!V94 -> 1073.236715 | Y94: 2018-07-04T14:00:00 | Z94: 887.25 | AA94: =Input!$C$13*Hodiny!Z94 -> 1371.594203 | AC94: 2018-08-04T15:00:00 | AD94: 802.25 | AE94: =Input!$C$13*Hodiny!AD94 -> 1240.193237 | AG94: 2018-09-04T14:00:00 | AH94: 864.75 | AI94: =Input!$C$13*Hodiny!AH94 -> 1336.811594 | AK94: 2017-10-04T14:00:00 | AL94: 587.25 | AM94: =Input!$C$13*Hodiny!AL94 -> 907.826087 | AO94: 2017-11-04T14:00:00 | AP94: 577.25 | AQ94: =Input!$C$13*Hodiny!AP94 -> 892.3671498 | AS94: 2017-12-04T14:00:00 | AT94: 681.75 | AU94: =Input!$C$13*Hodiny!AT94 -> 1053.913043
A95: 2018-01-04T15:00:00 | B95: 736.25 | C95: =Input!$C$13*Hodiny!B95 -> 1138.164251 | E95: 2018-02-04T15:00:00 | F95: 548.25 | G95: =Input!$C$13*Hodiny!F95 -> 847.5362319 | I95: 2018-03-04T15:00:00 | J95: 552.75 | K95: =Input!$C$13*Hodiny!J95 -> 854.4927536 | M95: 2018-04-04T15:00:00 | N95: 710.25 | O95: =Input!$C$13*Hodiny!N95 -> 1097.971014 | Q95: 2018-05-04T15:00:00 | R95: 718.5 | S95: =Input!$C$13*Hodiny!R95 -> 1110.724638 | U95: 2018-06-04T15:00:00 | V95: 828 | W95: =Input!$C$13*Hodiny!V95 -> 1280 | Y95: 2018-07-04T15:00:00 | Z95: 835 | AA95: =Input!$C$13*Hodiny!Z95 -> 1290.821256 | AC95: 2018-08-04T16:00:00 | AD95: 837.5 | AE95: =Input!$C$13*Hodiny!AD95 -> 1294.68599 | AG95: 2018-09-04T15:00:00 | AH95: 894.5 | AI95: =Input!$C$13*Hodiny!AH95 -> 1382.801932 | AK95: 2017-10-04T15:00:00 | AL95: 726.25 | AM95: =Input!$C$13*Hodiny!AL95 -> 1122.705314 | AO95: 2017-11-04T15:00:00 | AP95: 611 | AQ95: =Input!$C$13*Hodiny!AP95 -> 944.5410628 | AS95: 2017-12-04T15:00:00 | AT95: 720.25 | AU95: =Input!$C$13*Hodiny!AT95 -> 1113.429952
A96: 2018-01-04T16:00:00 | B96: 724 | C96: =Input!$C$13*Hodiny!B96 -> 1119.227053 | E96: 2018-02-04T16:00:00 | F96: 544.75 | G96: =Input!$C$13*Hodiny!F96 -> 842.1256039 | I96: 2018-03-04T16:00:00 | J96: 520 | K96: =Input!$C$13*Hodiny!J96 -> 803.8647343 | M96: 2018-04-04T16:00:00 | N96: 664 | O96: =Input!$C$13*Hodiny!N96 -> 1026.47343 | Q96: 2018-05-04T16:00:00 | R96: 716.5 | S96: =Input!$C$13*Hodiny!R96 -> 1107.63285 | U96: 2018-06-04T16:00:00 | V96: 842.75 | W96: =Input!$C$13*Hodiny!V96 -> 1302.801932 | Y96: 2018-07-04T16:00:00 | Z96: 752.75 | AA96: =Input!$C$13*Hodiny!Z96 -> 1163.671498 | AC96: 2018-08-04T17:00:00 | AD96: 801.25 | AE96: =Input!$C$13*Hodiny!AD96 -> 1238.647343 | AG96: 2018-09-04T16:00:00 | AH96: 804.75 | AI96: =Input!$C$13*Hodiny!AH96 -> 1244.057971 | AK96: 2017-10-04T16:00:00 | AL96: 692 | AM96: =Input!$C$13*Hodiny!AL96 -> 1069.758454 | AO96: 2017-11-04T16:00:00 | AP96: 637.5 | AQ96: =Input!$C$13*Hodiny!AP96 -> 985.5072464 | AS96: 2017-12-04T16:00:00 | AT96: 717.75 | AU96: =Input!$C$13*Hodiny!AT96 -> 1109.565217
A97: 2018-01-04T17:00:00 | B97: 670.5 | C97: =Input!$C$13*Hodiny!B97 -> 1036.521739 | E97: 2018-02-04T17:00:00 | F97: 573.75 | G97: =Input!$C$13*Hodiny!F97 -> 886.9565217 | I97: 2018-03-04T17:00:00 | J97: 511.25 | K97: =Input!$C$13*Hodiny!J97 -> 790.3381643 | M97: 2018-04-04T17:00:00 | N97: 644.5 | O97: =Input!$C$13*Hodiny!N97 -> 996.3285024 | Q97: 2018-05-04T17:00:00 | R97: 834.75 | S97: =Input!$C$13*Hodiny!R97 -> 1290.434783 | U97: 2018-06-04T17:00:00 | V97: 845.5 | W97: =Input!$C$13*Hodiny!V97 -> 1307.05314 | Y97: 2018-07-04T17:00:00 | Z97: 738.5 | AA97: =Input!$C$13*Hodiny!Z97 -> 1141.642512 | AC97: 2018-08-04T18:00:00 | AD97: 730 | AE97: =Input!$C$13*Hodiny!AD97 -> 1128.502415 | AG97: 2018-09-04T17:00:00 | AH97: 805.5 | AI97: =Input!$C$13*Hodiny!AH97 -> 1245.217391 | AK97: 2017-10-04T17:00:00 | AL97: 601.5 | AM97: =Input!$C$13*Hodiny!AL97 -> 929.8550725 | AO97: 2017-11-04T17:00:00 | AP97: 584.5 | AQ97: =Input!$C$13*Hodiny!AP97 -> 903.5748792 | AS97: 2017-12-04T17:00:00 | AT97: 665.25 | AU97: =Input!$C$13*Hodiny!AT97 -> 1028.405797
A98: 2018-01-04T18:00:00 | B98: 603.25 | C98: =Input!$C$13*Hodiny!B98 -> 932.5603865 | E98: 2018-02-04T18:00:00 | F98: 557 | G98: =Input!$C$13*Hodiny!F98 -> 861.0628019 | I98: 2018-03-04T18:00:00 | J98: 497.75 | K98: =Input!$C$13*Hodiny!J98 -> 769.468599 | M98: 2018-04-04T18:00:00 | N98: 597.25 | O98: =Input!$C$13*Hodiny!N98 -> 923.2850242 | Q98: 2018-05-04T18:00:00 | R98: 837.5 | S98: =Input!$C$13*Hodiny!R98 -> 1294.68599 | U98: 2018-06-04T18:00:00 | V98: 758.25 | W98: =Input!$C$13*Hodiny!V98 -> 1172.173913 | Y98: 2018-07-04T18:00:00 | Z98: 675.75 | AA98: =Input!$C$13*Hodiny!Z98 -> 1044.637681 | AC98: 2018-08-04T19:00:00 | AD98: 722.5 | AE98: =Input!$C$13*Hodiny!AD98 -> 1116.908213 | AG98: 2018-09-04T18:00:00 | AH98: 703 | AI98: =Input!$C$13*Hodiny!AH98 -> 1086.763285 | AK98: 2017-10-04T18:00:00 | AL98: 556 | AM98: =Input!$C$13*Hodiny!AL98 -> 859.5169082 | AO98: 2017-11-04T18:00:00 | AP98: 567.25 | AQ98: =Input!$C$13*Hodiny!AP98 -> 876.9082126 | AS98: 2017-12-04T18:00:00 | AT98: 620.5 | AU98: =Input!$C$13*Hodiny!AT98 -> 959.2270531
A99: 2018-01-04T19:00:00 | B99: 579 | C99: =Input!$C$13*Hodiny!B99 -> 895.0724638 | E99: 2018-02-04T19:00:00 | F99: 525.75 | G99: =Input!$C$13*Hodiny!F99 -> 812.7536232 | I99: 2018-03-04T19:00:00 | J99: 537.75 | K99: =Input!$C$13*Hodiny!J99 -> 831.3043478 | M99: 2018-04-04T19:00:00 | N99: 553.25 | O99: =Input!$C$13*Hodiny!N99 -> 855.2657005 | Q99: 2018-05-04T19:00:00 | R99: 769 | S99: =Input!$C$13*Hodiny!R99 -> 1188.792271 | U99: 2018-06-04T19:00:00 | V99: 730 | W99: =Input!$C$13*Hodiny!V99 -> 1128.502415 | Y99: 2018-07-04T19:00:00 | Z99: 680.5 | AA99: =Input!$C$13*Hodiny!Z99 -> 1051.980676 | AC99: 2018-08-04T20:00:00 | AD99: 649.25 | AE99: =Input!$C$13*Hodiny!AD99 -> 1003.671498 | AG99: 2018-09-04T19:00:00 | AH99: 736 | AI99: =Input!$C$13*Hodiny!AH99 -> 1137.777778 | AK99: 2017-10-04T19:00:00 | AL99: 531 | AM99: =Input!$C$13*Hodiny!AL99 -> 820.8695652 | AO99: 2017-11-04T19:00:00 | AP99: 523 | AQ99: =Input!$C$13*Hodiny!AP99 -> 808.5024155 | AS99: 2017-12-04T19:00:00 | AT99: 556 | AU99: =Input!$C$13*Hodiny!AT99 -> 859.5169082
A100: 2018-01-04T20:00:00 | B100: 585.5 | C100: =Input!$C$13*Hodiny!B100 -> 905.1207729 | E100: 2018-02-04T20:00:00 | F100: 503.5 | G100: =Input!$C$13*Hodiny!F100 -> 778.3574879 | I100: 2018-03-04T20:00:00 | J100: 527 | K100: =Input!$C$13*Hodiny!J100 -> 814.6859903 | M100: 2018-04-04T20:00:00 | N100: 539 | O100: =Input!$C$13*Hodiny!N100 -> 833.236715 | Q100: 2018-05-04T20:00:00 | R100: 702.25 | S100: =Input!$C$13*Hodiny!R100 -> 1085.603865 | U100: 2018-06-04T20:00:00 | V100: 668.5 | W100: =Input!$C$13*Hodiny!V100 -> 1033.429952 | Y100: 2018-07-04T20:00:00 | Z100: 600 | AA100: =Input!$C$13*Hodiny!Z100 -> 927.5362319 | AC100: 2018-08-04T21:00:00 | AD100: 702.25 | AE100: =Input!$C$13*Hodiny!AD100 -> 1085.603865 | AG100: 2018-09-04T20:00:00 | AH100: 687 | AI100: =Input!$C$13*Hodiny!AH100 -> 1062.028986 | AK100: 2017-10-04T20:00:00 | AL100: 527.75 | AM100: =Input!$C$13*Hodiny!AL100 -> 815.8454106 | AO100: 2017-11-04T20:00:00 | AP100: 541.75 | AQ100: =Input!$C$13*Hodiny!AP100 -> 837.4879227 | AS100: 2017-12-04T20:00:00 | AT100: 582.75 | AU100: =Input!$C$13*Hodiny!AT100 -> 900.8695652
A101: 2018-01-04T21:00:00 | B101: 532.5 | C101: =Input!$C$13*Hodiny!B101 -> 823.1884058 | E101: 2018-02-04T21:00:00 | F101: 506 | G101: =Input!$C$13*Hodiny!F101 -> 782.2222222 | I101: 2018-03-04T21:00:00 | J101: 529 | K101: =Input!$C$13*Hodiny!J101 -> 817.7777778 | M101: 2018-04-04T21:00:00 | N101: 515 | O101: =Input!$C$13*Hodiny!N101 -> 796.1352657 | Q101: 2018-05-04T21:00:00 | R101: 611.25 | S101: =Input!$C$13*Hodiny!R101 -> 944.9275362 | U101: 2018-06-04T21:00:00 | V101: 645.75 | W101: =Input!$C$13*Hodiny!V101 -> 998.2608696 | Y101: 2018-07-04T21:00:00 | Z101: 603.75 | AA101: =Input!$C$13*Hodiny!Z101 -> 933.3333333 | AC101: 2018-08-04T22:00:00 | AD101: 692.25 | AE101: =Input!$C$13*Hodiny!AD101 -> 1070.144928 | AG101: 2018-09-04T21:00:00 | AH101: 765.75 | AI101: =Input!$C$13*Hodiny!AH101 -> 1183.768116 | AK101: 2017-10-04T21:00:00 | AL101: 546.75 | AM101: =Input!$C$13*Hodiny!AL101 -> 845.2173913 | AO101: 2017-11-04T21:00:00 | AP101: 554.75 | AQ101: =Input!$C$13*Hodiny!AP101 -> 857.5845411 | AS101: 2017-12-04T21:00:00 | AT101: 536.25 | AU101: =Input!$C$13*Hodiny!AT101 -> 828.9855072
A102: 2018-01-04T22:00:00 | B102: 504 | C102: =Input!$C$13*Hodiny!B102 -> 779.1304348 | E102: 2018-02-04T22:00:00 | F102: 479.5 | G102: =Input!$C$13*Hodiny!F102 -> 741.2560386 | I102: 2018-03-04T22:00:00 | J102: 523.5 | K102: =Input!$C$13*Hodiny!J102 -> 809.2753623 | M102: 2018-04-04T22:00:00 | N102: 479.25 | O102: =Input!$C$13*Hodiny!N102 -> 740.8695652 | Q102: 2018-05-04T22:00:00 | R102: 577.75 | S102: =Input!$C$13*Hodiny!R102 -> 893.1400966 | U102: 2018-06-04T22:00:00 | V102: 614.5 | W102: =Input!$C$13*Hodiny!V102 -> 949.9516908 | Y102: 2018-07-04T22:00:00 | Z102: 597.5 | AA102: =Input!$C$13*Hodiny!Z102 -> 923.6714976 | AC102: 2018-08-04T23:00:00 | AD102: 640.5 | AE102: =Input!$C$13*Hodiny!AD102 -> 990.1449275 | AG102: 2018-09-04T22:00:00 | AH102: 717.25 | AI102: =Input!$C$13*Hodiny!AH102 -> 1108.792271 | AK102: 2017-10-04T22:00:00 | AL102: 526 | AM102: =Input!$C$13*Hodiny!AL102 -> 813.1400966 | AO102: 2017-11-04T22:00:00 | AP102: 530.75 | AQ102: =Input!$C$13*Hodiny!AP102 -> 820.4830918 | AS102: 2017-12-04T22:00:00 | AT102: 546.5 | AU102: =Input!$C$13*Hodiny!AT102 -> 844.8309179
A103: 2018-01-04T23:00:00 | B103: 531.25 | C103: =Input!$C$13*Hodiny!B103 -> 821.2560386 | E103: 2018-02-04T23:00:00 | F103: 497.25 | G103: =Input!$C$13*Hodiny!F103 -> 768.6956522 | I103: 2018-03-04T23:00:00 | J103: 519.25 | K103: =Input!$C$13*Hodiny!J103 -> 802.705314 | M103: 2018-04-04T23:00:00 | N103: 471.5 | O103: =Input!$C$13*Hodiny!N103 -> 728.8888889 | Q103: 2018-05-04T23:00:00 | R103: 589.5 | S103: =Input!$C$13*Hodiny!R103 -> 911.3043478 | U103: 2018-06-04T23:00:00 | V103: 706.25 | W103: =Input!$C$13*Hodiny!V103 -> 1091.78744 | Y103: 2018-07-04T23:00:00 | Z103: 567.5 | AA103: =Input!$C$13*Hodiny!Z103 -> 877.294686 | AC103: 2018-08-05 | AD103: 619.75 | AE103: =Input!$C$13*Hodiny!AD103 -> 958.0676329 | AG103: 2018-09-04T23:00:00 | AH103: 739 | AI103: =Input!$C$13*Hodiny!AH103 -> 1142.415459 | AK103: 2017-10-04T23:00:00 | AL103: 482.25 | AM103: =Input!$C$13*Hodiny!AL103 -> 745.5072464 | AO103: 2017-11-04T23:00:00 | AP103: 516.25 | AQ103: =Input!$C$13*Hodiny!AP103 -> 798.0676329 | AS103: 2017-12-04T23:00:00 | AT103: 581.75 | AU103: =Input!$C$13*Hodiny!AT103 -> 899.3236715
A104: 2018-01-05 | B104: 542.25 | C104: =Input!$C$13*Hodiny!B104 -> 838.2608696 | E104: 2018-02-05 | F104: 506.25 | G104: =Input!$C$13*Hodiny!F104 -> 782.6086957 | I104: 2018-03-05 | J104: 488.25 | K104: =Input!$C$13*Hodiny!J104 -> 754.7826087 | M104: 2018-04-05 | N104: 514.5 | O104: =Input!$C$13*Hodiny!N104 -> 795.3623188 | Q104: 2018-05-05 | R104: 633 | S104: =Input!$C$13*Hodiny!R104 -> 978.5507246 | U104: 2018-06-05 | V104: 687.75 | W104: =Input!$C$13*Hodiny!V104 -> 1063.188406 | Y104: 2018-07-05 | Z104: 549 | AA104: =Input!$C$13*Hodiny!Z104 -> 848.6956522 | AC104: 2018-08-05T01:00:00 | AD104: 634.5 | AE104: =Input!$C$13*Hodiny!AD104 -> 980.8695652 | AG104: 2018-09-05 | AH104: 685 | AI104: =Input!$C$13*Hodiny!AH104 -> 1058.937198 | AK104: 2017-10-05 | AL104: 508.5 | AM104: =Input!$C$13*Hodiny!AL104 -> 786.0869565 | AO104: 2017-11-05 | AP104: 521 | AQ104: =Input!$C$13*Hodiny!AP104 -> 805.410628 | AS104: 2017-12-05 | AT104: 588.5 | AU104: =Input!$C$13*Hodiny!AT104 -> 909.7584541
A105: 2018-01-05T01:00:00 | B105: 537.25 | C105: =Input!$C$13*Hodiny!B105 -> 830.531401 | E105: 2018-02-05T01:00:00 | F105: 533.75 | G105: =Input!$C$13*Hodiny!F105 -> 825.1207729 | I105: 2018-03-05T01:00:00 | J105: 481.25 | K105: =Input!$C$13*Hodiny!J105 -> 743.9613527 | M105: 2018-04-05T01:00:00 | N105: 516.75 | O105: =Input!$C$13*Hodiny!N105 -> 798.8405797 | Q105: 2018-05-05T01:00:00 | R105: 618.5 | S105: =Input!$C$13*Hodiny!R105 -> 956.1352657 | U105: 2018-06-05T01:00:00 | V105: 667 | W105: =Input!$C$13*Hodiny!V105 -> 1031.111111 | Y105: 2018-07-05T01:00:00 | Z105: 569 | AA105: =Input!$C$13*Hodiny!Z105 -> 879.6135266 | AC105: 2018-08-05T02:00:00 | AD105: 582 | AE105: =Input!$C$13*Hodiny!AD105 -> 899.7101449 | AG105: 2018-09-05T01:00:00 | AH105: 702.75 | AI105: =Input!$C$13*Hodiny!AH105 -> 1086.376812 | AK105: 2017-10-05T01:00:00 | AL105: 534 | AM105: =Input!$C$13*Hodiny!AL105 -> 825.5072464 | AO105: 2017-11-05T01:00:00 | AP105: 530 | AQ105: =Input!$C$13*Hodiny!AP105 -> 819.3236715 | AS105: 2017-12-05T01:00:00 | AT105: 574 | AU105: =Input!$C$13*Hodiny!AT105 -> 887.3429952
A106: 2018-01-05T02:00:00 | B106: 490 | C106: =Input!$C$13*Hodiny!B106 -> 757.4879227 | E106: 2018-02-05T02:00:00 | F106: 501 | G106: =Input!$C$13*Hodiny!F106 -> 774.4927536 | I106: 2018-03-05T02:00:00 | J106: 478.25 | K106: =Input!$C$13*Hodiny!J106 -> 739.3236715 | M106: 2018-04-05T02:00:00 | N106: 495.75 | O106: =Input!$C$13*Hodiny!N106 -> 766.3768116 | Q106: 2018-05-05T02:00:00 | R106: 610.75 | S106: =Input!$C$13*Hodiny!R106 -> 944.1545894 | U106: 2018-06-05T02:00:00 | V106: 598.25 | W106: =Input!$C$13*Hodiny!V106 -> 924.8309179 | Y106: 2018-07-05T02:00:00 | Z106: 515.25 | AA106: =Input!$C$13*Hodiny!Z106 -> 796.5217391 | AC106: 2018-08-05T03:00:00 | AD106: 581 | AE106: =Input!$C$13*Hodiny!AD106 -> 898.1642512 | AG106: 2018-09-05T02:00:00 | AH106: 625.25 | AI106: =Input!$C$13*Hodiny!AH106 -> 966.5700483 | AK106: 2017-10-05T02:00:00 | AL106: 521 | AM106: =Input!$C$13*Hodiny!AL106 -> 805.410628 | AO106: 2017-11-05T02:00:00 | AP106: 470.75 | AQ106: =Input!$C$13*Hodiny!AP106 -> 727.7294686 | AS106: 2017-12-05T02:00:00 | AT106: 560.5 | AU106: =Input!$C$13*Hodiny!AT106 -> 866.47343
A107: 2018-01-05T03:00:00 | B107: 467.25 | C107: =Input!$C$13*Hodiny!B107 -> 722.3188406 | E107: 2018-02-05T03:00:00 | F107: 463.25 | G107: =Input!$C$13*Hodiny!F107 -> 716.1352657 | I107: 2018-03-05T03:00:00 | J107: 437.75 | K107: =Input!$C$13*Hodiny!J107 -> 676.7149758 | M107: 2018-04-05T03:00:00 | N107: 402.75 | O107: =Input!$C$13*Hodiny!N107 -> 622.6086957 | Q107: 2018-05-05T03:00:00 | R107: 558.5 | S107: =Input!$C$13*Hodiny!R107 -> 863.3816425 | U107: 2018-06-05T03:00:00 | V107: 596.25 | W107: =Input!$C$13*Hodiny!V107 -> 921.7391304 | Y107: 2018-07-05T03:00:00 | Z107: 492.5 | AA107: =Input!$C$13*Hodiny!Z107 -> 761.352657 | AC107: 2018-08-05T04:00:00 | AD107: 521.25 | AE107: =Input!$C$13*Hodiny!AD107 -> 805.7971014 | AG107: 2018-09-05T03:00:00 | AH107: 625.75 | AI107: =Input!$C$13*Hodiny!AH107 -> 967.3429952 | AK107: 2017-10-05T03:00:00 | AL107: 478.25 | AM107: =Input!$C$13*Hodiny!AL107 -> 739.3236715 | AO107: 2017-11-05T03:00:00 | AP107: 488.25 | AQ107: =Input!$C$13*Hodiny!AP107 -> 754.7826087 | AS107: 2017-12-05T03:00:00 | AT107: 493.5 | AU107: =Input!$C$13*Hodiny!AT107 -> 762.8985507
A108: 2018-01-05T04:00:00 | B108: 424.5 | C108: =Input!$C$13*Hodiny!B108 -> 656.2318841 | E108: 2018-02-05T04:00:00 | F108: 457.25 | G108: =Input!$C$13*Hodiny!F108 -> 706.8599034 | I108: 2018-03-05T04:00:00 | J108: 412 | K108: =Input!$C$13*Hodiny!J108 -> 636.9082126 | M108: 2018-04-05T04:00:00 | N108: 393.25 | O108: =Input!$C$13*Hodiny!N108 -> 607.9227053 | Q108: 2018-05-05T04:00:00 | R108: 508 | S108: =Input!$C$13*Hodiny!R108 -> 785.3140097 | U108: 2018-06-05T04:00:00 | V108: 563.25 | W108: =Input!$C$13*Hodiny!V108 -> 870.7246377 | Y108: 2018-07-05T04:00:00 | Z108: 463.75 | AA108: =Input!$C$13*Hodiny!Z108 -> 716.9082126 | AC108: 2018-08-05T05:00:00 | AD108: 496.75 | AE108: =Input!$C$13*Hodiny!AD108 -> 767.9227053 | AG108: 2018-09-05T04:00:00 | AH108: 595.5 | AI108: =Input!$C$13*Hodiny!AH108 -> 920.5797101 | AK108: 2017-10-05T04:00:00 | AL108: 415 | AM108: =Input!$C$13*Hodiny!AL108 -> 641.5458937 | AO108: 2017-11-05T04:00:00 | AP108: 445.25 | AQ108: =Input!$C$13*Hodiny!AP108 -> 688.3091787 | AS108: 2017-12-05T04:00:00 | AT108: 473.5 | AU108: =Input!$C$13*Hodiny!AT108 -> 731.9806763
A109: 2018-01-05T05:00:00 | B109: 435.75 | C109: =Input!$C$13*Hodiny!B109 -> 673.6231884 | E109: 2018-02-05T05:00:00 | F109: 411.5 | G109: =Input!$C$13*Hodiny!F109 -> 636.1352657 | I109: 2018-03-05T05:00:00 | J109: 414.25 | K109: =Input!$C$13*Hodiny!J109 -> 640.3864734 | M109: 2018-04-05T05:00:00 | N109: 394.5 | O109: =Input!$C$13*Hodiny!N109 -> 609.8550725 | Q109: 2018-05-05T05:00:00 | R109: 472 | S109: =Input!$C$13*Hodiny!R109 -> 729.6618357 | U109: 2018-06-05T05:00:00 | V109: 525.75 | W109: =Input!$C$13*Hodiny!V109 -> 812.7536232 | Y109: 2018-07-05T05:00:00 | Z109: 437.25 | AA109: =Input!$C$13*Hodiny!Z109 -> 675.942029 | AC109: 2018-08-05T06:00:00 | AD109: 500.5 | AE109: =Input!$C$13*Hodiny!AD109 -> 773.7198068 | AG109: 2018-09-05T05:00:00 | AH109: 558.25 | AI109: =Input!$C$13*Hodiny!AH109 -> 862.9951691 | AK109: 2017-10-05T05:00:00 | AL109: 429 | AM109: =Input!$C$13*Hodiny!AL109 -> 663.1884058 | AO109: 2017-11-05T05:00:00 | AP109: 450.75 | AQ109: =Input!$C$13*Hodiny!AP109 -> 696.8115942 | AS109: 2017-12-05T05:00:00 | AT109: 469.75 | AU109: =Input!$C$13*Hodiny!AT109 -> 726.1835749
A110: 2018-01-05T06:00:00 | B110: 535.5 | C110: =Input!$C$13*Hodiny!B110 -> 827.826087 | E110: 2018-02-05T06:00:00 | F110: 482 | G110: =Input!$C$13*Hodiny!F110 -> 745.1207729 | I110: 2018-03-05T06:00:00 | J110: 466 | K110: =Input!$C$13*Hodiny!J110 -> 720.3864734 | M110: 2018-04-05T06:00:00 | N110: 482.5 | O110: =Input!$C$13*Hodiny!N110 -> 745.8937198 | Q110: 2018-05-05T06:00:00 | R110: 492.5 | S110: =Input!$C$13*Hodiny!R110 -> 761.352657 | U110: 2018-06-05T06:00:00 | V110: 548.75 | W110: =Input!$C$13*Hodiny!V110 -> 848.3091787 | Y110: 2018-07-05T06:00:00 | Z110: 486.75 | AA110: =Input!$C$13*Hodiny!Z110 -> 752.4637681 | AC110: 2018-08-05T07:00:00 | AD110: 554 | AE110: =Input!$C$13*Hodiny!AD110 -> 856.4251208 | AG110: 2018-09-05T06:00:00 | AH110: 621.25 | AI110: =Input!$C$13*Hodiny!AH110 -> 960.3864734 | AK110: 2017-10-05T06:00:00 | AL110: 528.5 | AM110: =Input!$C$13*Hodiny!AL110 -> 817.0048309 | AO110: 2017-11-05T06:00:00 | AP110: 474.25 | AQ110: =Input!$C$13*Hodiny!AP110 -> 733.1400966 | AS110: 2017-12-05T06:00:00 | AT110: 562.5 | AU110: =Input!$C$13*Hodiny!AT110 -> 869.5652174
A111: 2018-01-05T07:00:00 | B111: 560 | C111: =Input!$C$13*Hodiny!B111 -> 865.7004831 | E111: 2018-02-05T07:00:00 | F111: 502.5 | G111: =Input!$C$13*Hodiny!F111 -> 776.8115942 | I111: 2018-03-05T07:00:00 | J111: 504.75 | K111: =Input!$C$13*Hodiny!J111 -> 780.2898551 | M111: 2018-04-05T07:00:00 | N111: 500.25 | O111: =Input!$C$13*Hodiny!N111 -> 773.3333333 | Q111: 2018-05-05T07:00:00 | R111: 506.5 | S111: =Input!$C$13*Hodiny!R111 -> 782.9951691 | U111: 2018-06-05T07:00:00 | V111: 619 | W111: =Input!$C$13*Hodiny!V111 -> 956.9082126 | Y111: 2018-07-05T07:00:00 | Z111: 557.75 | AA111: =Input!$C$13*Hodiny!Z111 -> 862.2222222 | AC111: 2018-08-05T08:00:00 | AD111: 576.25 | AE111: =Input!$C$13*Hodiny!AD111 -> 890.821256 | AG111: 2018-09-05T07:00:00 | AH111: 659.5 | AI111: =Input!$C$13*Hodiny!AH111 -> 1019.516908 | AK111: 2017-10-05T07:00:00 | AL111: 543.25 | AM111: =Input!$C$13*Hodiny!AL111 -> 839.8067633 | AO111: 2017-11-05T07:00:00 | AP111: 483.5 | AQ111: =Input!$C$13*Hodiny!AP111 -> 747.4396135 | AS111: 2017-12-05T07:00:00 | AT111: 563.5 | AU111: =Input!$C$13*Hodiny!AT111 -> 871.1111111
A112: 2018-01-05T08:00:00 | B112: 542.25 | C112: =Input!$C$13*Hodiny!B112 -> 838.2608696 | E112: 2018-02-05T08:00:00 | F112: 602.25 | G112: =Input!$C$13*Hodiny!F112 -> 931.0144928 | I112: 2018-03-05T08:00:00 | J112: 548.5 | K112: =Input!$C$13*Hodiny!J112 -> 847.9227053 | M112: 2018-04-05T08:00:00 | N112: 628.5 | O112: =Input!$C$13*Hodiny!N112 -> 971.5942029 | Q112: 2018-05-05T08:00:00 | R112: 536.5 | S112: =Input!$C$13*Hodiny!R112 -> 829.3719807 | U112: 2018-06-05T08:00:00 | V112: 674 | W112: =Input!$C$13*Hodiny!V112 -> 1041.932367 | Y112: 2018-07-05T08:00:00 | Z112: 593 | AA112: =Input!$C$13*Hodiny!Z112 -> 916.7149758 | AC112: 2018-08-05T09:00:00 | AD112: 649.75 | AE112: =Input!$C$13*Hodiny!AD112 -> 1004.444444 | AG112: 2018-09-05T08:00:00 | AH112: 653.75 | AI112: =Input!$C$13*Hodiny!AH112 -> 1010.628019 | AK112: 2017-10-05T08:00:00 | AL112: 588 | AM112: =Input!$C$13*Hodiny!AL112 -> 908.9855072 | AO112: 2017-11-05T08:00:00 | AP112: 490.75 | AQ112: =Input!$C$13*Hodiny!AP112 -> 758.647343 | AS112: 2017-12-05T08:00:00 | AT112: 581.75 | AU112: =Input!$C$13*Hodiny!AT112 -> 899.3236715
A113: 2018-01-05T09:00:00 | B113: 650 | C113: =Input!$C$13*Hodiny!B113 -> 1004.830918 | E113: 2018-02-05T09:00:00 | F113: 571.5 | G113: =Input!$C$13*Hodiny!F113 -> 883.4782609 | I113: 2018-03-05T09:00:00 | J113: 571.5 | K113: =Input!$C$13*Hodiny!J113 -> 883.4782609 | M113: 2018-04-05T09:00:00 | N113: 579.5 | O113: =Input!$C$13*Hodiny!N113 -> 895.8454106 | Q113: 2018-05-05T09:00:00 | R113: 618.5 | S113: =Input!$C$13*Hodiny!R113 -> 956.1352657 | U113: 2018-06-05T09:00:00 | V113: 616 | W113: =Input!$C$13*Hodiny!V113 -> 952.2705314 | Y113: 2018-07-05T09:00:00 | Z113: 670.75 | AA113: =Input!$C$13*Hodiny!Z113 -> 1036.908213 | AC113: 2018-08-05T10:00:00 | AD113: 681.5 | AE113: =Input!$C$13*Hodiny!AD113 -> 1053.52657 | AG113: 2018-09-05T09:00:00 | AH113: 742 | AI113: =Input!$C$13*Hodiny!AH113 -> 1147.05314 | AK113: 2017-10-05T09:00:00 | AL113: 609.25 | AM113: =Input!$C$13*Hodiny!AL113 -> 941.8357488 | AO113: 2017-11-05T09:00:00 | AP113: 568.25 | AQ113: =Input!$C$13*Hodiny!AP113 -> 878.4541063 | AS113: 2017-12-05T09:00:00 | AT113: 613.75 | AU113: =Input!$C$13*Hodiny!AT113 -> 948.7922705
A114: 2018-01-05T10:00:00 | B114: 682.5 | C114: =Input!$C$13*Hodiny!B114 -> 1055.072464 | E114: 2018-02-05T10:00:00 | F114: 576.5 | G114: =Input!$C$13*Hodiny!F114 -> 891.2077295 | I114: 2018-03-05T10:00:00 | J114: 542.25 | K114: =Input!$C$13*Hodiny!J114 -> 838.2608696 | M114: 2018-04-05T10:00:00 | N114: 608.25 | O114: =Input!$C$13*Hodiny!N114 -> 940.2898551 | Q114: 2018-05-05T10:00:00 | R114: 630.25 | S114: =Input!$C$13*Hodiny!R114 -> 974.2995169 | U114: 2018-06-05T10:00:00 | V114: 589.75 | W114: =Input!$C$13*Hodiny!V114 -> 911.6908213 | Y114: 2018-07-05T10:00:00 | Z114: 719 | AA114: =Input!$C$13*Hodiny!Z114 -> 1111.497585 | AC114: 2018-08-05T11:00:00 | AD114: 784.5 | AE114: =Input!$C$13*Hodiny!AD114 -> 1212.753623 | AG114: 2018-09-05T10:00:00 | AH114: 741.25 | AI114: =Input!$C$13*Hodiny!AH114 -> 1145.89372 | AK114: 2017-10-05T10:00:00 | AL114: 610.5 | AM114: =Input!$C$13*Hodiny!AL114 -> 943.7681159 | AO114: 2017-11-05T10:00:00 | AP114: 557.25 | AQ114: =Input!$C$13*Hodiny!AP114 -> 861.4492754 | AS114: 2017-12-05T10:00:00 | AT114: 616 | AU114: =Input!$C$13*Hodiny!AT114 -> 952.2705314
A115: 2018-01-05T11:00:00 | B115: 673.25 | C115: =Input!$C$13*Hodiny!B115 -> 1040.772947 | E115: 2018-02-05T11:00:00 | F115: 546.5 | G115: =Input!$C$13*Hodiny!F115 -> 844.8309179 | I115: 2018-03-05T11:00:00 | J115: 575 | K115: =Input!$C$13*Hodiny!J115 -> 888.8888889 | M115: 2018-04-05T11:00:00 | N115: 527 | O115: =Input!$C$13*Hodiny!N115 -> 814.6859903 | Q115: 2018-05-05T11:00:00 | R115: 613.5 | S115: =Input!$C$13*Hodiny!R115 -> 948.4057971 | U115: 2018-06-05T11:00:00 | V115: 718.5 | W115: =Input!$C$13*Hodiny!V115 -> 1110.724638 | Y115: 2018-07-05T11:00:00 | Z115: 699.75 | AA115: =Input!$C$13*Hodiny!Z115 -> 1081.73913 | AC115: 2018-08-05T12:00:00 | AD115: 750.25 | AE115: =Input!$C$13*Hodiny!AD115 -> 1159.806763 | AG115: 2018-09-05T11:00:00 | AH115: 811.75 | AI115: =Input!$C$13*Hodiny!AH115 -> 1254.879227 | AK115: 2017-10-05T11:00:00 | AL115: 608 | AM115: =Input!$C$13*Hodiny!AL115 -> 939.9033816 | AO115: 2017-11-05T11:00:00 | AP115: 569.5 | AQ115: =Input!$C$13*Hodiny!AP115 -> 880.3864734 | AS115: 2017-12-05T11:00:00 | AT115: 656 | AU115: =Input!$C$13*Hodiny!AT115 -> 1014.10628
A116: 2018-01-05T12:00:00 | B116: 654 | C116: =Input!$C$13*Hodiny!B116 -> 1011.014493 | E116: 2018-02-05T12:00:00 | F116: 569.25 | G116: =Input!$C$13*Hodiny!F116 -> 880 | I116: 2018-03-05T12:00:00 | J116: 576 | K116: =Input!$C$13*Hodiny!J116 -> 890.4347826 | M116: 2018-04-05T12:00:00 | N116: 603.25 | O116: =Input!$C$13*Hodiny!N116 -> 932.5603865 | Q116: 2018-05-05T12:00:00 | R116: 626.5 | S116: =Input!$C$13*Hodiny!R116 -> 968.5024155 | U116: 2018-06-05T12:00:00 | V116: 727.25 | W116: =Input!$C$13*Hodiny!V116 -> 1124.251208 | Y116: 2018-07-05T12:00:00 | Z116: 697.75 | AA116: =Input!$C$13*Hodiny!Z116 -> 1078.647343 | AC116: 2018-08-05T13:00:00 | AD116: 703.25 | AE116: =Input!$C$13*Hodiny!AD116 -> 1087.149758 | AG116: 2018-09-05T12:00:00 | AH116: 850 | AI116: =Input!$C$13*Hodiny!AH116 -> 1314.009662 | AK116: 2017-10-05T12:00:00 | AL116: 562 | AM116: =Input!$C$13*Hodiny!AL116 -> 868.7922705 | AO116: 2017-11-05T12:00:00 | AP116: 586 | AQ116: =Input!$C$13*Hodiny!AP116 -> 905.8937198 | AS116: 2017-12-05T12:00:00 | AT116: 676.75 | AU116: =Input!$C$13*Hodiny!AT116 -> 1046.183575
A117: 2018-01-05T13:00:00 | B117: 636.75 | C117: =Input!$C$13*Hodiny!B117 -> 984.3478261 | E117: 2018-02-05T13:00:00 | F117: 583.5 | G117: =Input!$C$13*Hodiny!F117 -> 902.0289855 | I117: 2018-03-05T13:00:00 | J117: 569 | K117: =Input!$C$13*Hodiny!J117 -> 879.6135266 | M117: 2018-04-05T13:00:00 | N117: 592.75 | O117: =Input!$C$13*Hodiny!N117 -> 916.3285024 | Q117: 2018-05-05T13:00:00 | R117: 649 | S117: =Input!$C$13*Hodiny!R117 -> 1003.285024 | U117: 2018-06-05T13:00:00 | V117: 726 | W117: =Input!$C$13*Hodiny!V117 -> 1122.318841 | Y117: 2018-07-05T13:00:00 | Z117: 746.25 | AA117: =Input!$C$13*Hodiny!Z117 -> 1153.623188 | AC117: 2018-08-05T14:00:00 | AD117: 730 | AE117: =Input!$C$13*Hodiny!AD117 -> 1128.502415 | AG117: 2018-09-05T13:00:00 | AH117: 867 | AI117: =Input!$C$13*Hodiny!AH117 -> 1340.289855 | AK117: 2017-10-05T13:00:00 | AL117: 653 | AM117: =Input!$C$13*Hodiny!AL117 -> 1009.468599 | AO117: 2017-11-05T13:00:00 | AP117: 584.75 | AQ117: =Input!$C$13*Hodiny!AP117 -> 903.9613527 | AS117: 2017-12-05T13:00:00 | AT117: 693.25 | AU117: =Input!$C$13*Hodiny!AT117 -> 1071.690821
A118: 2018-01-05T14:00:00 | B118: 649.75 | C118: =Input!$C$13*Hodiny!B118 -> 1004.444444 | E118: 2018-02-05T14:00:00 | F118: 621.75 | G118: =Input!$C$13*Hodiny!F118 -> 961.1594203 | I118: 2018-03-05T14:00:00 | J118: 603.25 | K118: =Input!$C$13*Hodiny!J118 -> 932.5603865 | M118: 2018-04-05T14:00:00 | N118: 672.5 | O118: =Input!$C$13*Hodiny!N118 -> 1039.613527 | Q118: 2018-05-05T14:00:00 | R118: 636.25 | S118: =Input!$C$13*Hodiny!R118 -> 983.5748792 | U118: 2018-06-05T14:00:00 | V118: 790 | W118: =Input!$C$13*Hodiny!V118 -> 1221.256039 | Y118: 2018-07-05T14:00:00 | Z118: 778.75 | AA118: =Input!$C$13*Hodiny!Z118 -> 1203.864734 | AC118: 2018-08-05T15:00:00 | AD118: 787.25 | AE118: =Input!$C$13*Hodiny!AD118 -> 1217.004831 | AG118: 2018-09-05T14:00:00 | AH118: 917 | AI118: =Input!$C$13*Hodiny!AH118 -> 1417.584541 | AK118: 2017-10-05T14:00:00 | AL118: 631.5 | AM118: =Input!$C$13*Hodiny!AL118 -> 976.2318841 | AO118: 2017-11-05T14:00:00 | AP118: 625 | AQ118: =Input!$C$13*Hodiny!AP118 -> 966.1835749 | AS118: 2017-12-05T14:00:00 | AT118: 757 | AU118: =Input!$C$13*Hodiny!AT118 -> 1170.241546
A119: 2018-01-05T15:00:00 | B119: 681.75 | C119: =Input!$C$13*Hodiny!B119 -> 1053.913043 | E119: 2018-02-05T15:00:00 | F119: 677.25 | G119: =Input!$C$13*Hodiny!F119 -> 1046.956522 | I119: 2018-03-05T15:00:00 | J119: 683.5 | K119: =Input!$C$13*Hodiny!J119 -> 1056.618357 | M119: 2018-04-05T15:00:00 | N119: 735 | O119: =Input!$C$13*Hodiny!N119 -> 1136.231884 | Q119: 2018-05-05T15:00:00 | R119: 637.75 | S119: =Input!$C$13*Hodiny!R119 -> 985.8937198 | U119: 2018-06-05T15:00:00 | V119: 831.25 | W119: =Input!$C$13*Hodiny!V119 -> 1285.024155 | Y119: 2018-07-05T15:00:00 | Z119: 848.25 | AA119: =Input!$C$13*Hodiny!Z119 -> 1311.304348 | AC119: 2018-08-05T16:00:00 | AD119: 764.25 | AE119: =Input!$C$13*Hodiny!AD119 -> 1181.449275 | AG119: 2018-09-05T15:00:00 | AH119: 901 | AI119: =Input!$C$13*Hodiny!AH119 -> 1392.850242 | AK119: 2017-10-05T15:00:00 | AL119: 633.75 | AM119: =Input!$C$13*Hodiny!AL119 -> 979.7101449 | AO119: 2017-11-05T15:00:00 | AP119: 604 | AQ119: =Input!$C$13*Hodiny!AP119 -> 933.7198068 | AS119: 2017-12-05T15:00:00 | AT119: 817 | AU119: =Input!$C$13*Hodiny!AT119 -> 1262.995169
A120: 2018-01-05T16:00:00 | B120: 655 | C120: =Input!$C$13*Hodiny!B120 -> 1012.560386 | E120: 2018-02-05T16:00:00 | F120: 614.5 | G120: =Input!$C$13*Hodiny!F120 -> 949.9516908 | I120: 2018-03-05T16:00:00 | J120: 683.75 | K120: =Input!$C$13*Hodiny!J120 -> 1057.004831 | M120: 2018-04-05T16:00:00 | N120: 674 | O120: =Input!$C$13*Hodiny!N120 -> 1041.932367 | Q120: 2018-05-05T16:00:00 | R120: 690.25 | S120: =Input!$C$13*Hodiny!R120 -> 1067.05314 | U120: 2018-06-05T16:00:00 | V120: 874.5 | W120: =Input!$C$13*Hodiny!V120 -> 1351.884058 | Y120: 2018-07-05T16:00:00 | Z120: 784 | AA120: =Input!$C$13*Hodiny!Z120 -> 1211.980676 | AC120: 2018-08-05T17:00:00 | AD120: 725 | AE120: =Input!$C$13*Hodiny!AD120 -> 1120.772947 | AG120: 2018-09-05T16:00:00 | AH120: 867.5 | AI120: =Input!$C$13*Hodiny!AH120 -> 1341.062802 | AK120: 2017-10-05T16:00:00 | AL120: 675.5 | AM120: =Input!$C$13*Hodiny!AL120 -> 1044.251208 | AO120: 2017-11-05T16:00:00 | AP120: 621.25 | AQ120: =Input!$C$13*Hodiny!AP120 -> 960.3864734 | AS120: 2017-12-05T16:00:00 | AT120: 744.5 | AU120: =Input!$C$13*Hodiny!AT120 -> 1150.917874
A121: 2018-01-05T17:00:00 | B121: 667.75 | C121: =Input!$C$13*Hodiny!B121 -> 1032.270531 | E121: 2018-02-05T17:00:00 | F121: 631 | G121: =Input!$C$13*Hodiny!F121 -> 975.4589372 | I121: 2018-03-05T17:00:00 | J121: 665.5 | K121: =Input!$C$13*Hodiny!J121 -> 1028.792271 | M121: 2018-04-05T17:00:00 | N121: 644.75 | O121: =Input!$C$13*Hodiny!N121 -> 996.7149758 | Q121: 2018-05-05T17:00:00 | R121: 710.75 | S121: =Input!$C$13*Hodiny!R121 -> 1098.743961 | U121: 2018-06-05T17:00:00 | V121: 811.75 | W121: =Input!$C$13*Hodiny!V121 -> 1254.879227 | Y121: 2018-07-05T17:00:00 | Z121: 697.5 | AA121: =Input!$C$13*Hodiny!Z121 -> 1078.26087 | AC121: 2018-08-05T18:00:00 | AD121: 669 | AE121: =Input!$C$13*Hodiny!AD121 -> 1034.202899 | AG121: 2018-09-05T17:00:00 | AH121: 821.25 | AI121: =Input!$C$13*Hodiny!AH121 -> 1269.565217 | AK121: 2017-10-05T17:00:00 | AL121: 593.5 | AM121: =Input!$C$13*Hodiny!AL121 -> 917.4879227 | AO121: 2017-11-05T17:00:00 | AP121: 587.25 | AQ121: =Input!$C$13*Hodiny!AP121 -> 907.826087 | AS121: 2017-12-05T17:00:00 | AT121: 709.5 | AU121: =Input!$C$13*Hodiny!AT121 -> 1096.811594
A122: 2018-01-05T18:00:00 | B122: 659.25 | C122: =Input!$C$13*Hodiny!B122 -> 1019.130435 | E122: 2018-02-05T18:00:00 | F122: 589.75 | G122: =Input!$C$13*Hodiny!F122 -> 911.6908213 | I122: 2018-03-05T18:00:00 | J122: 647.25 | K122: =Input!$C$13*Hodiny!J122 -> 1000.57971 | M122: 2018-04-05T18:00:00 | N122: 622.5 | O122: =Input!$C$13*Hodiny!N122 -> 962.3188406 | Q122: 2018-05-05T18:00:00 | R122: 687.5 | S122: =Input!$C$13*Hodiny!R122 -> 1062.801932 | U122: 2018-06-05T18:00:00 | V122: 732.5 | W122: =Input!$C$13*Hodiny!V122 -> 1132.36715 | Y122: 2018-07-05T18:00:00 | Z122: 682.5 | AA122: =Input!$C$13*Hodiny!Z122 -> 1055.072464 | AC122: 2018-08-05T19:00:00 | AD122: 661 | AE122: =Input!$C$13*Hodiny!AD122 -> 1021.835749 | AG122: 2018-09-05T18:00:00 | AH122: 747.75 | AI122: =Input!$C$13*Hodiny!AH122 -> 1155.942029 | AK122: 2017-10-05T18:00:00 | AL122: 550.5 | AM122: =Input!$C$13*Hodiny!AL122 -> 851.0144928 | AO122: 2017-11-05T18:00:00 | AP122: 574.5 | AQ122: =Input!$C$13*Hodiny!AP122 -> 888.115942 | AS122: 2017-12-05T18:00:00 | AT122: 707.25 | AU122: =Input!$C$13*Hodiny!AT122 -> 1093.333333
A123: 2018-01-05T19:00:00 | B123: 604.5 | C123: =Input!$C$13*Hodiny!B123 -> 934.4927536 | E123: 2018-02-05T19:00:00 | F123: 576.75 | G123: =Input!$C$13*Hodiny!F123 -> 891.5942029 | I123: 2018-03-05T19:00:00 | J123: 596.5 | K123: =Input!$C$13*Hodiny!J123 -> 922.1256039 | M123: 2018-04-05T19:00:00 | N123: 571.75 | O123: =Input!$C$13*Hodiny!N123 -> 883.8647343 | Q123: 2018-05-05T19:00:00 | R123: 619.25 | S123: =Input!$C$13*Hodiny!R123 -> 957.294686 | U123: 2018-06-05T19:00:00 | V123: 675.75 | W123: =Input!$C$13*Hodiny!V123 -> 1044.637681 | Y123: 2018-07-05T19:00:00 | Z123: 654.75 | AA123: =Input!$C$13*Hodiny!Z123 -> 1012.173913 | AC123: 2018-08-05T20:00:00 | AD123: 620.75 | AE123: =Input!$C$13*Hodiny!AD123 -> 959.6135266 | AG123: 2018-09-05T19:00:00 | AH123: 734.5 | AI123: =Input!$C$13*Hodiny!AH123 -> 1135.458937 | AK123: 2017-10-05T19:00:00 | AL123: 541 | AM123: =Input!$C$13*Hodiny!AL123 -> 836.3285024 | AO123: 2017-11-05T19:00:00 | AP123: 544.5 | AQ123: =Input!$C$13*Hodiny!AP123 -> 841.7391304 | AS123: 2017-12-05T19:00:00 | AT123: 649.25 | AU123: =Input!$C$13*Hodiny!AT123 -> 1003.671498
A124: 2018-01-05T20:00:00 | B124: 597.75 | C124: =Input!$C$13*Hodiny!B124 -> 924.057971 | E124: 2018-02-05T20:00:00 | F124: 528.25 | G124: =Input!$C$13*Hodiny!F124 -> 816.6183575 | I124: 2018-03-05T20:00:00 | J124: 560.5 | K124: =Input!$C$13*Hodiny!J124 -> 866.47343 | M124: 2018-04-05T20:00:00 | N124: 562.5 | O124: =Input!$C$13*Hodiny!N124 -> 869.5652174 | Q124: 2018-05-05T20:00:00 | R124: 599.75 | S124: =Input!$C$13*Hodiny!R124 -> 927.1497585 | U124: 2018-06-05T20:00:00 | V124: 635.5 | W124: =Input!$C$13*Hodiny!V124 -> 982.4154589 | Y124: 2018-07-05T20:00:00 | Z124: 609.75 | AA124: =Input!$C$13*Hodiny!Z124 -> 942.6086957 | AC124: 2018-08-05T21:00:00 | AD124: 626.5 | AE124: =Input!$C$13*Hodiny!AD124 -> 968.5024155 | AG124: 2018-09-05T20:00:00 | AH124: 702 | AI124: =Input!$C$13*Hodiny!AH124 -> 1085.217391 | AK124: 2017-10-05T20:00:00 | AL124: 519.25 | AM124: =Input!$C$13*Hodiny!AL124 -> 802.705314 | AO124: 2017-11-05T20:00:00 | AP124: 546 | AQ124: =Input!$C$13*Hodiny!AP124 -> 844.057971 | AS124: 2017-12-05T20:00:00 | AT124: 660 | AU124: =Input!$C$13*Hodiny!AT124 -> 1020.289855
A125: 2018-01-05T21:00:00 | B125: 544.75 | C125: =Input!$C$13*Hodiny!B125 -> 842.1256039 | E125: 2018-02-05T21:00:00 | F125: 529.75 | G125: =Input!$C$13*Hodiny!F125 -> 818.9371981 | I125: 2018-03-05T21:00:00 | J125: 533.25 | K125: =Input!$C$13*Hodiny!J125 -> 824.3478261 | M125: 2018-04-05T21:00:00 | N125: 560 | O125: =Input!$C$13*Hodiny!N125 -> 865.7004831 | Q125: 2018-05-05T21:00:00 | R125: 503.75 | S125: =Input!$C$13*Hodiny!R125 -> 778.7439614 | U125: 2018-06-05T21:00:00 | V125: 602.75 | W125: =Input!$C$13*Hodiny!V125 -> 931.7874396 | Y125: 2018-07-05T21:00:00 | Z125: 612.5 | AA125: =Input!$C$13*Hodiny!Z125 -> 946.8599034 | AC125: 2018-08-05T22:00:00 | AD125: 658.5 | AE125: =Input!$C$13*Hodiny!AD125 -> 1017.971014 | AG125: 2018-09-05T21:00:00 | AH125: 689.75 | AI125: =Input!$C$13*Hodiny!AH125 -> 1066.280193 | AK125: 2017-10-05T21:00:00 | AL125: 563.5 | AM125: =Input!$C$13*Hodiny!AL125 -> 871.1111111 | AO125: 2017-11-05T21:00:00 | AP125: 569.25 | AQ125: =Input!$C$13*Hodiny!AP125 -> 880 | AS125: 2017-12-05T21:00:00 | AT125: 607.75 | AU125: =Input!$C$13*Hodiny!AT125 -> 939.5169082
A126: 2018-01-05T22:00:00 | B126: 547.25 | C126: =Input!$C$13*Hodiny!B126 -> 845.9903382 | E126: 2018-02-05T22:00:00 | F126: 535.75 | G126: =Input!$C$13*Hodiny!F126 -> 828.2125604 | I126: 2018-03-05T22:00:00 | J126: 529.25 | K126: =Input!$C$13*Hodiny!J126 -> 818.1642512 | M126: 2018-04-05T22:00:00 | N126: 455.5 | O126: =Input!$C$13*Hodiny!N126 -> 704.1545894 | Q126: 2018-05-05T22:00:00 | R126: 531.5 | S126: =Input!$C$13*Hodiny!R126 -> 821.6425121 | U126: 2018-06-05T22:00:00 | V126: 591 | W126: =Input!$C$13*Hodiny!V126 -> 913.6231884 | Y126: 2018-07-05T22:00:00 | Z126: 598.5 | AA126: =Input!$C$13*Hodiny!Z126 -> 925.2173913 | AC126: 2018-08-05T23:00:00 | AD126: 612 | AE126: =Input!$C$13*Hodiny!AD126 -> 946.0869565 | AG126: 2018-09-05T22:00:00 | AH126: 648 | AI126: =Input!$C$13*Hodiny!AH126 -> 1001.73913 | AK126: 2017-10-05T22:00:00 | AL126: 497 | AM126: =Input!$C$13*Hodiny!AL126 -> 768.3091787 | AO126: 2017-11-05T22:00:00 | AP126: 544.5 | AQ126: =Input!$C$13*Hodiny!AP126 -> 841.7391304 | AS126: 2017-12-05T22:00:00 | AT126: 644.5 | AU126: =Input!$C$13*Hodiny!AT126 -> 996.3285024
A127: 2018-01-05T23:00:00 | B127: 532.5 | C127: =Input!$C$13*Hodiny!B127 -> 823.1884058 | E127: 2018-02-05T23:00:00 | F127: 509 | G127: =Input!$C$13*Hodiny!F127 -> 786.8599034 | I127: 2018-03-05T23:00:00 | J127: 517.75 | K127: =Input!$C$13*Hodiny!J127 -> 800.3864734 | M127: 2018-04-05T23:00:00 | N127: 497.5 | O127: =Input!$C$13*Hodiny!N127 -> 769.0821256 | Q127: 2018-05-05T23:00:00 | R127: 480.5 | S127: =Input!$C$13*Hodiny!R127 -> 742.8019324 | U127: 2018-06-05T23:00:00 | V127: 588 | W127: =Input!$C$13*Hodiny!V127 -> 908.9855072 | Y127: 2018-07-05T23:00:00 | Z127: 591.5 | AA127: =Input!$C$13*Hodiny!Z127 -> 914.3961353 | AC127: 2018-08-06 | AD127: 619.75 | AE127: =Input!$C$13*Hodiny!AD127 -> 958.0676329 | AG127: 2018-09-05T23:00:00 | AH127: 689.5 | AI127: =Input!$C$13*Hodiny!AH127 -> 1065.89372 | AK127: 2017-10-05T23:00:00 | AL127: 494.25 | AM127: =Input!$C$13*Hodiny!AL127 -> 764.057971 | AO127: 2017-11-05T23:00:00 | AP127: 531 | AQ127: =Input!$C$13*Hodiny!AP127 -> 820.8695652 | AS127: 2017-12-05T23:00:00 | AT127: 619.75 | AU127: =Input!$C$13*Hodiny!AT127 -> 958.0676329
A128: 2018-01-06 | B128: 553.25 | C128: =Input!$C$13*Hodiny!B128 -> 855.2657005 | E128: 2018-02-06 | F128: 487.25 | G128: =Input!$C$13*Hodiny!F128 -> 753.236715 | I128: 2018-03-06 | J128: 514.5 | K128: =Input!$C$13*Hodiny!J128 -> 795.3623188 | M128: 2018-04-06 | N128: 518.5 | O128: =Input!$C$13*Hodiny!N128 -> 801.5458937 | Q128: 2018-05-06 | R128: 506.75 | S128: =Input!$C$13*Hodiny!R128 -> 783.3816425 | U128: 2018-06-06 | V128: 600.75 | W128: =Input!$C$13*Hodiny!V128 -> 928.6956522 | Y128: 2018-07-06 | Z128: 565.5 | AA128: =Input!$C$13*Hodiny!Z128 -> 874.2028986 | AC128: 2018-08-06T01:00:00 | AD128: 620.75 | AE128: =Input!$C$13*Hodiny!AD128 -> 959.6135266 | AG128: 2018-09-06 | AH128: 662 | AI128: =Input!$C$13*Hodiny!AH128 -> 1023.381643 | AK128: 2017-10-06 | AL128: 513.5 | AM128: =Input!$C$13*Hodiny!AL128 -> 793.8164251 | AO128: 2017-11-06 | AP128: 561.5 | AQ128: =Input!$C$13*Hodiny!AP128 -> 868.0193237 | AS128: 2017-12-06 | AT128: 620.25 | AU128: =Input!$C$13*Hodiny!AT128 -> 958.8405797
A129: 2018-01-06T01:00:00 | B129: 592 | C129: =Input!$C$13*Hodiny!B129 -> 915.1690821 | E129: 2018-02-06T01:00:00 | F129: 518.75 | G129: =Input!$C$13*Hodiny!F129 -> 801.9323671 | I129: 2018-03-06T01:00:00 | J129: 514.25 | K129: =Input!$C$13*Hodiny!J129 -> 794.9758454 | M129: 2018-04-06T01:00:00 | N129: 517.25 | O129: =Input!$C$13*Hodiny!N129 -> 799.6135266 | Q129: 2018-05-06T01:00:00 | R129: 505 | S129: =Input!$C$13*Hodiny!R129 -> 780.6763285 | U129: 2018-06-06T01:00:00 | V129: 595.5 | W129: =Input!$C$13*Hodiny!V129 -> 920.5797101 | Y129: 2018-07-06T01:00:00 | Z129: 585.5 | AA129: =Input!$C$13*Hodiny!Z129 -> 905.1207729 | AC129: 2018-08-06T02:00:00 | AD129: 569.25 | AE129: =Input!$C$13*Hodiny!AD129 -> 880 | AG129: 2018-09-06T01:00:00 | AH129: 632.75 | AI129: =Input!$C$13*Hodiny!AH129 -> 978.1642512 | AK129: 2017-10-06T01:00:00 | AL129: 510 | AM129: =Input!$C$13*Hodiny!AL129 -> 788.4057971 | AO129: 2017-11-06T01:00:00 | AP129: 516.75 | AQ129: =Input!$C$13*Hodiny!AP129 -> 798.8405797 | AS129: 2017-12-06T01:00:00 | AT129: 586.5 | AU129: =Input!$C$13*Hodiny!AT129 -> 906.6666667
A130: 2018-01-06T02:00:00 | B130: 518.25 | C130: =Input!$C$13*Hodiny!B130 -> 801.1594203 | E130: 2018-02-06T02:00:00 | F130: 517.5 | G130: =Input!$C$13*Hodiny!F130 -> 800 | I130: 2018-03-06T02:00:00 | J130: 521 | K130: =Input!$C$13*Hodiny!J130 -> 805.410628 | M130: 2018-04-06T02:00:00 | N130: 496.25 | O130: =Input!$C$13*Hodiny!N130 -> 767.1497585 | Q130: 2018-05-06T02:00:00 | R130: 467.5 | S130: =Input!$C$13*Hodiny!R130 -> 722.705314 | U130: 2018-06-06T02:00:00 | V130: 605.75 | W130: =Input!$C$13*Hodiny!V130 -> 936.4251208 | Y130: 2018-07-06T02:00:00 | Z130: 519.5 | AA130: =Input!$C$13*Hodiny!Z130 -> 803.0917874 | AC130: 2018-08-06T03:00:00 | AD130: 564.25 | AE130: =Input!$C$13*Hodiny!AD130 -> 872.2705314 | AG130: 2018-09-06T02:00:00 | AH130: 584.25 | AI130: =Input!$C$13*Hodiny!AH130 -> 903.1884058 | AK130: 2017-10-06T02:00:00 | AL130: 513.75 | AM130: =Input!$C$13*Hodiny!AL130 -> 794.2028986 | AO130: 2017-11-06T02:00:00 | AP130: 496 | AQ130: =Input!$C$13*Hodiny!AP130 -> 766.763285 | AS130: 2017-12-06T02:00:00 | AT130: 576 | AU130: =Input!$C$13*Hodiny!AT130 -> 890.4347826
A131: 2018-01-06T03:00:00 | B131: 489.5 | C131: =Input!$C$13*Hodiny!B131 -> 756.7149758 | E131: 2018-02-06T03:00:00 | F131: 451.75 | G131: =Input!$C$13*Hodiny!F131 -> 698.3574879 | I131: 2018-03-06T03:00:00 | J131: 434.5 | K131: =Input!$C$13*Hodiny!J131 -> 671.6908213 | M131: 2018-04-06T03:00:00 | N131: 421.75 | O131: =Input!$C$13*Hodiny!N131 -> 651.9806763 | Q131: 2018-05-06T03:00:00 | R131: 404.5 | S131: =Input!$C$13*Hodiny!R131 -> 625.3140097 | U131: 2018-06-06T03:00:00 | V131: 563 | W131: =Input!$C$13*Hodiny!V131 -> 870.3381643 | Y131: 2018-07-06T03:00:00 | Z131: 513 | AA131: =Input!$C$13*Hodiny!Z131 -> 793.0434783 | AC131: 2018-08-06T04:00:00 | AD131: 489.25 | AE131: =Input!$C$13*Hodiny!AD131 -> 756.3285024 | AG131: 2018-09-06T03:00:00 | AH131: 540 | AI131: =Input!$C$13*Hodiny!AH131 -> 834.7826087 | AK131: 2017-10-06T03:00:00 | AL131: 527.5 | AM131: =Input!$C$13*Hodiny!AL131 -> 815.4589372 | AO131: 2017-11-06T03:00:00 | AP131: 472.75 | AQ131: =Input!$C$13*Hodiny!AP131 -> 730.821256 | AS131: 2017-12-06T03:00:00 | AT131: 583.5 | AU131: =Input!$C$13*Hodiny!AT131 -> 902.0289855
A132: 2018-01-06T04:00:00 | B132: 426.25 | C132: =Input!$C$13*Hodiny!B132 -> 658.9371981 | E132: 2018-02-06T04:00:00 | F132: 419.25 | G132: =Input!$C$13*Hodiny!F132 -> 648.115942 | I132: 2018-03-06T04:00:00 | J132: 404.75 | K132: =Input!$C$13*Hodiny!J132 -> 625.7004831 | M132: 2018-04-06T04:00:00 | N132: 371.5 | O132: =Input!$C$13*Hodiny!N132 -> 574.2995169 | Q132: 2018-05-06T04:00:00 | R132: 410.75 | S132: =Input!$C$13*Hodiny!R132 -> 634.9758454 | U132: 2018-06-06T04:00:00 | V132: 508.75 | W132: =Input!$C$13*Hodiny!V132 -> 786.47343 | Y132: 2018-07-06T04:00:00 | Z132: 493.5 | AA132: =Input!$C$13*Hodiny!Z132 -> 762.8985507 | AC132: 2018-08-06T05:00:00 | AD132: 475.5 | AE132: =Input!$C$13*Hodiny!AD132 -> 735.0724638 | AG132: 2018-09-06T04:00:00 | AH132: 467.75 | AI132: =Input!$C$13*Hodiny!AH132 -> 723.0917874 | AK132: 2017-10-06T04:00:00 | AL132: 418.75 | AM132: =Input!$C$13*Hodiny!AL132 -> 647.3429952 | AO132: 2017-11-06T04:00:00 | AP132: 457.25 | AQ132: =Input!$C$13*Hodiny!AP132 -> 706.8599034 | AS132: 2017-12-06T04:00:00 | AT132: 550.75 | AU132: =Input!$C$13*Hodiny!AT132 -> 851.4009662
A133: 2018-01-06T05:00:00 | B133: 466.5 | C133: =Input!$C$13*Hodiny!B133 -> 721.1594203 | E133: 2018-02-06T05:00:00 | F133: 408 | G133: =Input!$C$13*Hodiny!F133 -> 630.7246377 | I133: 2018-03-06T05:00:00 | J133: 397 | K133: =Input!$C$13*Hodiny!J133 -> 613.7198068 | M133: 2018-04-06T05:00:00 | N133: 400.5 | O133: =Input!$C$13*Hodiny!N133 -> 619.1304348 | Q133: 2018-05-06T05:00:00 | R133: 404 | S133: =Input!$C$13*Hodiny!R133 -> 624.5410628 | U133: 2018-06-06T05:00:00 | V133: 475.25 | W133: =Input!$C$13*Hodiny!V133 -> 734.6859903 | Y133: 2018-07-06T05:00:00 | Z133: 465.75 | AA133: =Input!$C$13*Hodiny!Z133 -> 720 | AC133: 2018-08-06T06:00:00 | AD133: 567.25 | AE133: =Input!$C$13*Hodiny!AD133 -> 876.9082126 | AG133: 2018-09-06T05:00:00 | AH133: 474.5 | AI133: =Input!$C$13*Hodiny!AH133 -> 733.52657 | AK133: 2017-10-06T05:00:00 | AL133: 423 | AM133: =Input!$C$13*Hodiny!AL133 -> 653.9130435 | AO133: 2017-11-06T05:00:00 | AP133: 437.5 | AQ133: =Input!$C$13*Hodiny!AP133 -> 676.3285024 | AS133: 2017-12-06T05:00:00 | AT133: 539.25 | AU133: =Input!$C$13*Hodiny!AT133 -> 833.6231884
A134: 2018-01-06T06:00:00 | B134: 514.25 | C134: =Input!$C$13*Hodiny!B134 -> 794.9758454 | E134: 2018-02-06T06:00:00 | F134: 497.5 | G134: =Input!$C$13*Hodiny!F134 -> 769.0821256 | I134: 2018-03-06T06:00:00 | J134: 485 | K134: =Input!$C$13*Hodiny!J134 -> 749.7584541 | M134: 2018-04-06T06:00:00 | N134: 450.5 | O134: =Input!$C$13*Hodiny!N134 -> 696.4251208 | Q134: 2018-05-06T06:00:00 | R134: 393.25 | S134: =Input!$C$13*Hodiny!R134 -> 607.9227053 | U134: 2018-06-06T06:00:00 | V134: 557.75 | W134: =Input!$C$13*Hodiny!V134 -> 862.2222222 | Y134: 2018-07-06T06:00:00 | Z134: 502.75 | AA134: =Input!$C$13*Hodiny!Z134 -> 777.1980676 | AC134: 2018-08-06T07:00:00 | AD134: 610 | AE134: =Input!$C$13*Hodiny!AD134 -> 942.9951691 | AG134: 2018-09-06T06:00:00 | AH134: 571.5 | AI134: =Input!$C$13*Hodiny!AH134 -> 883.4782609 | AK134: 2017-10-06T06:00:00 | AL134: 513.5 | AM134: =Input!$C$13*Hodiny!AL134 -> 793.8164251 | AO134: 2017-11-06T06:00:00 | AP134: 528.25 | AQ134: =Input!$C$13*Hodiny!AP134 -> 816.6183575 | AS134: 2017-12-06T06:00:00 | AT134: 581.25 | AU134: =Input!$C$13*Hodiny!AT134 -> 898.5507246
A135: 2018-01-06T07:00:00 | B135: 532.25 | C135: =Input!$C$13*Hodiny!B135 -> 822.8019324 | E135: 2018-02-06T07:00:00 | F135: 527.5 | G135: =Input!$C$13*Hodiny!F135 -> 815.4589372 | I135: 2018-03-06T07:00:00 | J135: 528.5 | K135: =Input!$C$13*Hodiny!J135 -> 817.0048309 | M135: 2018-04-06T07:00:00 | N135: 501.5 | O135: =Input!$C$13*Hodiny!N135 -> 775.2657005 | Q135: 2018-05-06T07:00:00 | R135: 466.25 | S135: =Input!$C$13*Hodiny!R135 -> 720.7729469 | U135: 2018-06-06T07:00:00 | V135: 597.75 | W135: =Input!$C$13*Hodiny!V135 -> 924.057971 | Y135: 2018-07-06T07:00:00 | Z135: 556 | AA135: =Input!$C$13*Hodiny!Z135 -> 859.5169082 | AC135: 2018-08-06T08:00:00 | AD135: 659 | AE135: =Input!$C$13*Hodiny!AD135 -> 1018.743961 | AG135: 2018-09-06T07:00:00 | AH135: 607.75 | AI135: =Input!$C$13*Hodiny!AH135 -> 939.5169082 | AK135: 2017-10-06T07:00:00 | AL135: 541 | AM135: =Input!$C$13*Hodiny!AL135 -> 836.3285024 | AO135: 2017-11-06T07:00:00 | AP135: 532 | AQ135: =Input!$C$13*Hodiny!AP135 -> 822.4154589 | AS135: 2017-12-06T07:00:00 | AT135: 617.5 | AU135: =Input!$C$13*Hodiny!AT135 -> 954.589372
A136: 2018-01-06T08:00:00 | B136: 553.5 | C136: =Input!$C$13*Hodiny!B136 -> 855.6521739 | E136: 2018-02-06T08:00:00 | F136: 588 | G136: =Input!$C$13*Hodiny!F136 -> 908.9855072 | I136: 2018-03-06T08:00:00 | J136: 545.25 | K136: =Input!$C$13*Hodiny!J136 -> 842.8985507 | M136: 2018-04-06T08:00:00 | N136: 612.5 | O136: =Input!$C$13*Hodiny!N136 -> 946.8599034 | Q136: 2018-05-06T08:00:00 | R136: 551 | S136: =Input!$C$13*Hodiny!R136 -> 851.7874396 | U136: 2018-06-06T08:00:00 | V136: 690.75 | W136: =Input!$C$13*Hodiny!V136 -> 1067.826087 | Y136: 2018-07-06T08:00:00 | Z136: 599.25 | AA136: =Input!$C$13*Hodiny!Z136 -> 926.3768116 | AC136: 2018-08-06T09:00:00 | AD136: 794.5 | AE136: =Input!$C$13*Hodiny!AD136 -> 1228.21256 | AG136: 2018-09-06T08:00:00 | AH136: 589.25 | AI136: =Input!$C$13*Hodiny!AH136 -> 910.9178744 | AK136: 2017-10-06T08:00:00 | AL136: 571 | AM136: =Input!$C$13*Hodiny!AL136 -> 882.705314 | AO136: 2017-11-06T08:00:00 | AP136: 565.5 | AQ136: =Input!$C$13*Hodiny!AP136 -> 874.2028986 | AS136: 2017-12-06T08:00:00 | AT136: 650.5 | AU136: =Input!$C$13*Hodiny!AT136 -> 1005.603865
A137: 2018-01-06T09:00:00 | B137: 549.75 | C137: =Input!$C$13*Hodiny!B137 -> 849.8550725 | E137: 2018-02-06T09:00:00 | F137: 582.75 | G137: =Input!$C$13*Hodiny!F137 -> 900.8695652 | I137: 2018-03-06T09:00:00 | J137: 599.75 | K137: =Input!$C$13*Hodiny!J137 -> 927.1497585 | M137: 2018-04-06T09:00:00 | N137: 607.75 | O137: =Input!$C$13*Hodiny!N137 -> 939.5169082 | Q137: 2018-05-06T09:00:00 | R137: 621.75 | S137: =Input!$C$13*Hodiny!R137 -> 961.1594203 | U137: 2018-06-06T09:00:00 | V137: 716.5 | W137: =Input!$C$13*Hodiny!V137 -> 1107.63285 | Y137: 2018-07-06T09:00:00 | Z137: 714.5 | AA137: =Input!$C$13*Hodiny!Z137 -> 1104.541063 | AC137: 2018-08-06T10:00:00 | AD137: 734.5 | AE137: =Input!$C$13*Hodiny!AD137 -> 1135.458937 | AG137: 2018-09-06T09:00:00 | AH137: 671.75 | AI137: =Input!$C$13*Hodiny!AH137 -> 1038.454106 | AK137: 2017-10-06T09:00:00 | AL137: 619.25 | AM137: =Input!$C$13*Hodiny!AL137 -> 957.294686 | AO137: 2017-11-06T09:00:00 | AP137: 598.75 | AQ137: =Input!$C$13*Hodiny!AP137 -> 925.6038647 | AS137: 2017-12-06T09:00:00 | AT137: 629.25 | AU137: =Input!$C$13*Hodiny!AT137 -> 972.7536232
A138: 2018-01-06T10:00:00 | B138: 575.75 | C138: =Input!$C$13*Hodiny!B138 -> 890.0483092 | E138: 2018-02-06T10:00:00 | F138: 529.25 | G138: =Input!$C$13*Hodiny!F138 -> 818.1642512 | I138: 2018-03-06T10:00:00 | J138: 586.25 | K138: =Input!$C$13*Hodiny!J138 -> 906.2801932 | M138: 2018-04-06T10:00:00 | N138: 610 | O138: =Input!$C$13*Hodiny!N138 -> 942.9951691 | Q138: 2018-05-06T10:00:00 | R138: 636.5 | S138: =Input!$C$13*Hodiny!R138 -> 983.9613527 | U138: 2018-06-06T10:00:00 | V138: 676 | W138: =Input!$C$13*Hodiny!V138 -> 1045.024155 | Y138: 2018-07-06T10:00:00 | Z138: 715.25 | AA138: =Input!$C$13*Hodiny!Z138 -> 1105.700483 | AC138: 2018-08-06T11:00:00 | AD138: 761.75 | AE138: =Input!$C$13*Hodiny!AD138 -> 1177.584541 | AG138: 2018-09-06T10:00:00 | AH138: 670.25 | AI138: =Input!$C$13*Hodiny!AH138 -> 1036.135266 | AK138: 2017-10-06T10:00:00 | AL138: 600 | AM138: =Input!$C$13*Hodiny!AL138 -> 927.5362319 | AO138: 2017-11-06T10:00:00 | AP138: 593.75 | AQ138: =Input!$C$13*Hodiny!AP138 -> 917.8743961 | AS138: 2017-12-06T10:00:00 | AT138: 626 | AU138: =Input!$C$13*Hodiny!AT138 -> 967.7294686
A139: 2018-01-06T11:00:00 | B139: 556.75 | C139: =Input!$C$13*Hodiny!B139 -> 860.6763285 | E139: 2018-02-06T11:00:00 | F139: 540.75 | G139: =Input!$C$13*Hodiny!F139 -> 835.942029 | I139: 2018-03-06T11:00:00 | J139: 553.5 | K139: =Input!$C$13*Hodiny!J139 -> 855.6521739 | M139: 2018-04-06T11:00:00 | N139: 585 | O139: =Input!$C$13*Hodiny!N139 -> 904.3478261 | Q139: 2018-05-06T11:00:00 | R139: 619.75 | S139: =Input!$C$13*Hodiny!R139 -> 958.0676329 | U139: 2018-06-06T11:00:00 | V139: 687.75 | W139: =Input!$C$13*Hodiny!V139 -> 1063.188406 | Y139: 2018-07-06T11:00:00 | Z139: 714.5 | AA139: =Input!$C$13*Hodiny!Z139 -> 1104.541063 | AC139: 2018-08-06T12:00:00 | AD139: 777.75 | AE139: =Input!$C$13*Hodiny!AD139 -> 1202.318841 | AG139: 2018-09-06T11:00:00 | AH139: 704.75 | AI139: =Input!$C$13*Hodiny!AH139 -> 1089.468599 | AK139: 2017-10-06T11:00:00 | AL139: 586.25 | AM139: =Input!$C$13*Hodiny!AL139 -> 906.2801932 | AO139: 2017-11-06T11:00:00 | AP139: 609.25 | AQ139: =Input!$C$13*Hodiny!AP139 -> 941.8357488 | AS139: 2017-12-06T11:00:00 | AT139: 636.75 | AU139: =Input!$C$13*Hodiny!AT139 -> 984.3478261
A140: 2018-01-06T12:00:00 | B140: 547.25 | C140: =Input!$C$13*Hodiny!B140 -> 845.9903382 | E140: 2018-02-06T12:00:00 | F140: 573.5 | G140: =Input!$C$13*Hodiny!F140 -> 886.5700483 | I140: 2018-03-06T12:00:00 | J140: 603.5 | K140: =Input!$C$13*Hodiny!J140 -> 932.9468599 | M140: 2018-04-06T12:00:00 | N140: 598.25 | O140: =Input!$C$13*Hodiny!N140 -> 924.8309179 | Q140: 2018-05-06T12:00:00 | R140: 631.75 | S140: =Input!$C$13*Hodiny!R140 -> 976.6183575 | U140: 2018-06-06T12:00:00 | V140: 679 | W140: =Input!$C$13*Hodiny!V140 -> 1049.661836 | Y140: 2018-07-06T12:00:00 | Z140: 698.25 | AA140: =Input!$C$13*Hodiny!Z140 -> 1079.42029 | AC140: 2018-08-06T13:00:00 | AD140: 809.5 | AE140: =Input!$C$13*Hodiny!AD140 -> 1251.400966 | AG140: 2018-09-06T12:00:00 | AH140: 763.5 | AI140: =Input!$C$13*Hodiny!AH140 -> 1180.289855 | AK140: 2017-10-06T12:00:00 | AL140: 606.75 | AM140: =Input!$C$13*Hodiny!AL140 -> 937.9710145 | AO140: 2017-11-06T12:00:00 | AP140: 606.75 | AQ140: =Input!$C$13*Hodiny!AP140 -> 937.9710145 | AS140: 2017-12-06T12:00:00 | AT140: 657 | AU140: =Input!$C$13*Hodiny!AT140 -> 1015.652174
A141: 2018-01-06T13:00:00 | B141: 566 | C141: =Input!$C$13*Hodiny!B141 -> 874.9758454 | E141: 2018-02-06T13:00:00 | F141: 610.5 | G141: =Input!$C$13*Hodiny!F141 -> 943.7681159 | I141: 2018-03-06T13:00:00 | J141: 576.5 | K141: =Input!$C$13*Hodiny!J141 -> 891.2077295 | M141: 2018-04-06T13:00:00 | N141: 603.25 | O141: =Input!$C$13*Hodiny!N141 -> 932.5603865 | Q141: 2018-05-06T13:00:00 | R141: 672.25 | S141: =Input!$C$13*Hodiny!R141 -> 1039.227053 | U141: 2018-06-06T13:00:00 | V141: 686.75 | W141: =Input!$C$13*Hodiny!V141 -> 1061.642512 | Y141: 2018-07-06T13:00:00 | Z141: 724.75 | AA141: =Input!$C$13*Hodiny!Z141 -> 1120.386473 | AC141: 2018-08-06T14:00:00 | AD141: 857.5 | AE141: =Input!$C$13*Hodiny!AD141 -> 1325.603865 | AG141: 2018-09-06T13:00:00 | AH141: 791.75 | AI141: =Input!$C$13*Hodiny!AH141 -> 1223.961353 | AK141: 2017-10-06T13:00:00 | AL141: 643.5 | AM141: =Input!$C$13*Hodiny!AL141 -> 994.7826087 | AO141: 2017-11-06T13:00:00 | AP141: 628.5 | AQ141: =Input!$C$13*Hodiny!AP141 -> 971.5942029 | AS141: 2017-12-06T13:00:00 | AT141: 642.25 | AU141: =Input!$C$13*Hodiny!AT141 -> 992.8502415
A142: 2018-01-06T14:00:00 | B142: 569 | C142: =Input!$C$13*Hodiny!B142 -> 879.6135266 | E142: 2018-02-06T14:00:00 | F142: 578.75 | G142: =Input!$C$13*Hodiny!F142 -> 894.6859903 | I142: 2018-03-06T14:00:00 | J142: 573.25 | K142: =Input!$C$13*Hodiny!J142 -> 886.1835749 | M142: 2018-04-06T14:00:00 | N142: 723.25 | O142: =Input!$C$13*Hodiny!N142 -> 1118.067633 | Q142: 2018-05-06T14:00:00 | R142: 618.5 | S142: =Input!$C$13*Hodiny!R142 -> 956.1352657 | U142: 2018-06-06T14:00:00 | V142: 705.5 | W142: =Input!$C$13*Hodiny!V142 -> 1090.628019 | Y142: 2018-07-06T14:00:00 | Z142: 821 | AA142: =Input!$C$13*Hodiny!Z142 -> 1269.178744 | AC142: 2018-08-06T15:00:00 | AD142: 876.25 | AE142: =Input!$C$13*Hodiny!AD142 -> 1354.589372 | AG142: 2018-09-06T14:00:00 | AH142: 757.75 | AI142: =Input!$C$13*Hodiny!AH142 -> 1171.400966 | AK142: 2017-10-06T14:00:00 | AL142: 607.25 | AM142: =Input!$C$13*Hodiny!AL142 -> 938.7439614 | AO142: 2017-11-06T14:00:00 | AP142: 654.5 | AQ142: =Input!$C$13*Hodiny!AP142 -> 1011.78744 | AS142: 2017-12-06T14:00:00 | AT142: 738.75 | AU142: =Input!$C$13*Hodiny!AT142 -> 1142.028986
A143: 2018-01-06T15:00:00 | B143: 589.75 | C143: =Input!$C$13*Hodiny!B143 -> 911.6908213 | E143: 2018-02-06T15:00:00 | F143: 681 | G143: =Input!$C$13*Hodiny!F143 -> 1052.753623 | I143: 2018-03-06T15:00:00 | J143: 582.5 | K143: =Input!$C$13*Hodiny!J143 -> 900.4830918 | M143: 2018-04-06T15:00:00 | N143: 751.25 | O143: =Input!$C$13*Hodiny!N143 -> 1161.352657 | Q143: 2018-05-06T15:00:00 | R143: 725.25 | S143: =Input!$C$13*Hodiny!R143 -> 1121.15942 | U143: 2018-06-06T15:00:00 | V143: 794 | W143: =Input!$C$13*Hodiny!V143 -> 1227.439614 | Y143: 2018-07-06T15:00:00 | Z143: 781.25 | AA143: =Input!$C$13*Hodiny!Z143 -> 1207.729469 | AC143: 2018-08-06T16:00:00 | AD143: 826 | AE143: =Input!$C$13*Hodiny!AD143 -> 1276.908213 | AG143: 2018-09-06T15:00:00 | AH143: 746 | AI143: =Input!$C$13*Hodiny!AH143 -> 1153.236715 | AK143: 2017-10-06T15:00:00 | AL143: 623.25 | AM143: =Input!$C$13*Hodiny!AL143 -> 963.4782609 | AO143: 2017-11-06T15:00:00 | AP143: 735.5 | AQ143: =Input!$C$13*Hodiny!AP143 -> 1137.004831 | AS143: 2017-12-06T15:00:00 | AT143: 778 | AU143: =Input!$C$13*Hodiny!AT143 -> 1202.705314
A144: 2018-01-06T16:00:00 | B144: 660.5 | C144: =Input!$C$13*Hodiny!B144 -> 1021.062802 | E144: 2018-02-06T16:00:00 | F144: 670 | G144: =Input!$C$13*Hodiny!F144 -> 1035.748792 | I144: 2018-03-06T16:00:00 | J144: 700.5 | K144: =Input!$C$13*Hodiny!J144 -> 1082.898551 | M144: 2018-04-06T16:00:00 | N144: 726 | O144: =Input!$C$13*Hodiny!N144 -> 1122.318841 | Q144: 2018-05-06T16:00:00 | R144: 720.25 | S144: =Input!$C$13*Hodiny!R144 -> 1113.429952 | U144: 2018-06-06T16:00:00 | V144: 878.25 | W144: =Input!$C$13*Hodiny!V144 -> 1357.681159 | Y144: 2018-07-06T16:00:00 | Z144: 750.25 | AA144: =Input!$C$13*Hodiny!Z144 -> 1159.806763 | AC144: 2018-08-06T17:00:00 | AD144: 786.5 | AE144: =Input!$C$13*Hodiny!AD144 -> 1215.845411 | AG144: 2018-09-06T16:00:00 | AH144: 714.5 | AI144: =Input!$C$13*Hodiny!AH144 -> 1104.541063 | AK144: 2017-10-06T16:00:00 | AL144: 703.5 | AM144: =Input!$C$13*Hodiny!AL144 -> 1087.536232 | AO144: 2017-11-06T16:00:00 | AP144: 729 | AQ144: =Input!$C$13*Hodiny!AP144 -> 1126.956522 | AS144: 2017-12-06T16:00:00 | AT144: 705.5 | AU144: =Input!$C$13*Hodiny!AT144 -> 1090.628019
A145: 2018-01-06T17:00:00 | B145: 646.75 | C145: =Input!$C$13*Hodiny!B145 -> 999.8067633 | E145: 2018-02-06T17:00:00 | F145: 618.25 | G145: =Input!$C$13*Hodiny!F145 -> 955.7487923 | I145: 2018-03-06T17:00:00 | J145: 660.5 | K145: =Input!$C$13*Hodiny!J145 -> 1021.062802 | M145: 2018-04-06T17:00:00 | N145: 680 | O145: =Input!$C$13*Hodiny!N145 -> 1051.207729 | Q145: 2018-05-06T17:00:00 | R145: 656.5 | S145: =Input!$C$13*Hodiny!R145 -> 1014.879227 | U145: 2018-06-06T17:00:00 | V145: 784 | W145: =Input!$C$13*Hodiny!V145 -> 1211.980676 | Y145: 2018-07-06T17:00:00 | Z145: 689.75 | AA145: =Input!$C$13*Hodiny!Z145 -> 1066.280193 | AC145: 2018-08-06T18:00:00 | AD145: 713 | AE145: =Input!$C$13*Hodiny!AD145 -> 1102.222222 | AG145: 2018-09-06T17:00:00 | AH145: 733.25 | AI145: =Input!$C$13*Hodiny!AH145 -> 1133.52657 | AK145: 2017-10-06T17:00:00 | AL145: 615.25 | AM145: =Input!$C$13*Hodiny!AL145 -> 951.1111111 | AO145: 2017-11-06T17:00:00 | AP145: 657.75 | AQ145: =Input!$C$13*Hodiny!AP145 -> 1016.811594 | AS145: 2017-12-06T17:00:00 | AT145: 670 | AU145: =Input!$C$13*Hodiny!AT145 -> 1035.748792
A146: 2018-01-06T18:00:00 | B146: 590 | C146: =Input!$C$13*Hodiny!B146 -> 912.0772947 | E146: 2018-02-06T18:00:00 | F146: 572.75 | G146: =Input!$C$13*Hodiny!F146 -> 885.410628 | I146: 2018-03-06T18:00:00 | J146: 593.5 | K146: =Input!$C$13*Hodiny!J146 -> 917.4879227 | M146: 2018-04-06T18:00:00 | N146: 642.75 | O146: =Input!$C$13*Hodiny!N146 -> 993.6231884 | Q146: 2018-05-06T18:00:00 | R146: 667.75 | S146: =Input!$C$13*Hodiny!R146 -> 1032.270531 | U146: 2018-06-06T18:00:00 | V146: 705.5 | W146: =Input!$C$13*Hodiny!V146 -> 1090.628019 | Y146: 2018-07-06T18:00:00 | Z146: 662.25 | AA146: =Input!$C$13*Hodiny!Z146 -> 1023.768116 | AC146: 2018-08-06T19:00:00 | AD146: 675 | AE146: =Input!$C$13*Hodiny!AD146 -> 1043.478261 | AG146: 2018-09-06T18:00:00 | AH146: 670.25 | AI146: =Input!$C$13*Hodiny!AH146 -> 1036.135266 | AK146: 2017-10-06T18:00:00 | AL146: 546 | AM146: =Input!$C$13*Hodiny!AL146 -> 844.057971 | AO146: 2017-11-06T18:00:00 | AP146: 632 | AQ146: =Input!$C$13*Hodiny!AP146 -> 977.0048309 | AS146: 2017-12-06T18:00:00 | AT146: 587.25 | AU146: =Input!$C$13*Hodiny!AT146 -> 907.826087
A147: 2018-01-06T19:00:00 | B147: 590 | C147: =Input!$C$13*Hodiny!B147 -> 912.0772947 | E147: 2018-02-06T19:00:00 | F147: 537 | G147: =Input!$C$13*Hodiny!F147 -> 830.1449275 | I147: 2018-03-06T19:00:00 | J147: 621.75 | K147: =Input!$C$13*Hodiny!J147 -> 961.1594203 | M147: 2018-04-06T19:00:00 | N147: 580 | O147: =Input!$C$13*Hodiny!N147 -> 896.6183575 | Q147: 2018-05-06T19:00:00 | R147: 559.5 | S147: =Input!$C$13*Hodiny!R147 -> 864.9275362 | U147: 2018-06-06T19:00:00 | V147: 642.75 | W147: =Input!$C$13*Hodiny!V147 -> 993.6231884 | Y147: 2018-07-06T19:00:00 | Z147: 654.25 | AA147: =Input!$C$13*Hodiny!Z147 -> 1011.400966 | AC147: 2018-08-06T20:00:00 | AD147: 628.75 | AE147: =Input!$C$13*Hodiny!AD147 -> 971.9806763 | AG147: 2018-09-06T19:00:00 | AH147: 668.5 | AI147: =Input!$C$13*Hodiny!AH147 -> 1033.429952 | AK147: 2017-10-06T19:00:00 | AL147: 558.5 | AM147: =Input!$C$13*Hodiny!AL147 -> 863.3816425 | AO147: 2017-11-06T19:00:00 | AP147: 583.25 | AQ147: =Input!$C$13*Hodiny!AP147 -> 901.6425121 | AS147: 2017-12-06T19:00:00 | AT147: 596.75 | AU147: =Input!$C$13*Hodiny!AT147 -> 922.5120773
A148: 2018-01-06T20:00:00 | B148: 574.5 | C148: =Input!$C$13*Hodiny!B148 -> 888.115942 | E148: 2018-02-06T20:00:00 | F148: 501.5 | G148: =Input!$C$13*Hodiny!F148 -> 775.2657005 | I148: 2018-03-06T20:00:00 | J148: 559 | K148: =Input!$C$13*Hodiny!J148 -> 864.1545894 | M148: 2018-04-06T20:00:00 | N148: 571.25 | O148: =Input!$C$13*Hodiny!N148 -> 883.0917874 | Q148: 2018-05-06T20:00:00 | R148: 591 | S148: =Input!$C$13*Hodiny!R148 -> 913.6231884 | U148: 2018-06-06T20:00:00 | V148: 605.25 | W148: =Input!$C$13*Hodiny!V148 -> 935.6521739 | Y148: 2018-07-06T20:00:00 | Z148: 600.75 | AA148: =Input!$C$13*Hodiny!Z148 -> 928.6956522 | AC148: 2018-08-06T21:00:00 | AD148: 637.5 | AE148: =Input!$C$13*Hodiny!AD148 -> 985.5072464 | AG148: 2018-09-06T20:00:00 | AH148: 635.25 | AI148: =Input!$C$13*Hodiny!AH148 -> 982.0289855 | AK148: 2017-10-06T20:00:00 | AL148: 542.25 | AM148: =Input!$C$13*Hodiny!AL148 -> 838.2608696 | AO148: 2017-11-06T20:00:00 | AP148: 557.75 | AQ148: =Input!$C$13*Hodiny!AP148 -> 862.2222222 | AS148: 2017-12-06T20:00:00 | AT148: 583 | AU148: =Input!$C$13*Hodiny!AT148 -> 901.2560386
A149: 2018-01-06T21:00:00 | B149: 525.75 | C149: =Input!$C$13*Hodiny!B149 -> 812.7536232 | E149: 2018-02-06T21:00:00 | F149: 530.75 | G149: =Input!$C$13*Hodiny!F149 -> 820.4830918 | I149: 2018-03-06T21:00:00 | J149: 537.75 | K149: =Input!$C$13*Hodiny!J149 -> 831.3043478 | M149: 2018-04-06T21:00:00 | N149: 542.5 | O149: =Input!$C$13*Hodiny!N149 -> 838.647343 | Q149: 2018-05-06T21:00:00 | R149: 523.5 | S149: =Input!$C$13*Hodiny!R149 -> 809.2753623 | U149: 2018-06-06T21:00:00 | V149: 597.75 | W149: =Input!$C$13*Hodiny!V149 -> 924.057971 | Y149: 2018-07-06T21:00:00 | Z149: 590 | AA149: =Input!$C$13*Hodiny!Z149 -> 912.0772947 | AC149: 2018-08-06T22:00:00 | AD149: 622.25 | AE149: =Input!$C$13*Hodiny!AD149 -> 961.9323671 | AG149: 2018-09-06T21:00:00 | AH149: 636.75 | AI149: =Input!$C$13*Hodiny!AH149 -> 984.3478261 | AK149: 2017-10-06T21:00:00 | AL149: 552.75 | AM149: =Input!$C$13*Hodiny!AL149 -> 854.4927536 | AO149: 2017-11-06T21:00:00 | AP149: 540 | AQ149: =Input!$C$13*Hodiny!AP149 -> 834.7826087 | AS149: 2017-12-06T21:00:00 | AT149: 555.75 | AU149: =Input!$C$13*Hodiny!AT149 -> 859.1304348
A150: 2018-01-06T22:00:00 | B150: 502 | C150: =Input!$C$13*Hodiny!B150 -> 776.0386473 | E150: 2018-02-06T22:00:00 | F150: 504 | G150: =Input!$C$13*Hodiny!F150 -> 779.1304348 | I150: 2018-03-06T22:00:00 | J150: 494 | K150: =Input!$C$13*Hodiny!J150 -> 763.6714976 | M150: 2018-04-06T22:00:00 | N150: 470 | O150: =Input!$C$13*Hodiny!N150 -> 726.5700483 | Q150: 2018-05-06T22:00:00 | R150: 511.75 | S150: =Input!$C$13*Hodiny!R150 -> 791.1111111 | U150: 2018-06-06T22:00:00 | V150: 598.75 | W150: =Input!$C$13*Hodiny!V150 -> 925.6038647 | Y150: 2018-07-06T22:00:00 | Z150: 635 | AA150: =Input!$C$13*Hodiny!Z150 -> 981.6425121 | AC150: 2018-08-06T23:00:00 | AD150: 594.5 | AE150: =Input!$C$13*Hodiny!AD150 -> 919.0338164 | AG150: 2018-09-06T22:00:00 | AH150: 592 | AI150: =Input!$C$13*Hodiny!AH150 -> 915.1690821 | AK150: 2017-10-06T22:00:00 | AL150: 517.25 | AM150: =Input!$C$13*Hodiny!AL150 -> 799.6135266 | AO150: 2017-11-06T22:00:00 | AP150: 537 | AQ150: =Input!$C$13*Hodiny!AP150 -> 830.1449275 | AS150: 2017-12-06T22:00:00 | AT150: 552.75 | AU150: =Input!$C$13*Hodiny!AT150 -> 854.4927536
A151: 2018-01-06T23:00:00 | B151: 497.5 | C151: =Input!$C$13*Hodiny!B151 -> 769.0821256 | E151: 2018-02-06T23:00:00 | F151: 501.25 | G151: =Input!$C$13*Hodiny!F151 -> 774.8792271 | I151: 2018-03-06T23:00:00 | J151: 471.5 | K151: =Input!$C$13*Hodiny!J151 -> 728.8888889 | M151: 2018-04-06T23:00:00 | N151: 494 | O151: =Input!$C$13*Hodiny!N151 -> 763.6714976 | Q151: 2018-05-06T23:00:00 | R151: 528 | S151: =Input!$C$13*Hodiny!R151 -> 816.2318841 | U151: 2018-06-06T23:00:00 | V151: 604.25 | W151: =Input!$C$13*Hodiny!V151 -> 934.1062802 | Y151: 2018-07-06T23:00:00 | Z151: 627.25 | AA151: =Input!$C$13*Hodiny!Z151 -> 969.6618357 | AC151: 2018-08-07 | AD151: 590.25 | AE151: =Input!$C$13*Hodiny!AD151 -> 912.4637681 | AG151: 2018-09-06T23:00:00 | AH151: 633.25 | AI151: =Input!$C$13*Hodiny!AH151 -> 978.9371981 | AK151: 2017-10-06T23:00:00 | AL151: 504 | AM151: =Input!$C$13*Hodiny!AL151 -> 779.1304348 | AO151: 2017-11-06T23:00:00 | AP151: 522.25 | AQ151: =Input!$C$13*Hodiny!AP151 -> 807.3429952 | AS151: 2017-12-06T23:00:00 | AT151: 567.25 | AU151: =Input!$C$13*Hodiny!AT151 -> 876.9082126
A152: 2018-01-07 | B152: 515.25 | C152: =Input!$C$13*Hodiny!B152 -> 796.5217391 | E152: 2018-02-07 | F152: 500.25 | G152: =Input!$C$13*Hodiny!F152 -> 773.3333333 | I152: 2018-03-07 | J152: 502.25 | K152: =Input!$C$13*Hodiny!J152 -> 776.4251208 | M152: 2018-04-07 | N152: 514.5 | O152: =Input!$C$13*Hodiny!N152 -> 795.3623188 | Q152: 2018-05-07 | R152: 535.75 | S152: =Input!$C$13*Hodiny!R152 -> 828.2125604 | U152: 2018-06-07 | V152: 598.75 | W152: =Input!$C$13*Hodiny!V152 -> 925.6038647 | Y152: 2018-07-07 | Z152: 607.5 | AA152: =Input!$C$13*Hodiny!Z152 -> 939.1304348 | AC152: 2018-08-07T01:00:00 | AD152: 697.25 | AE152: =Input!$C$13*Hodiny!AD152 -> 1077.874396 | AG152: 2018-09-07 | AH152: 623.75 | AI152: =Input!$C$13*Hodiny!AH152 -> 964.2512077 | AK152: 2017-10-07 | AL152: 523.25 | AM152: =Input!$C$13*Hodiny!AL152 -> 808.8888889 | AO152: 2017-11-07 | AP152: 580.25 | AQ152: =Input!$C$13*Hodiny!AP152 -> 897.0048309 | AS152: 2017-12-07 | AT152: 558 | AU152: =Input!$C$13*Hodiny!AT152 -> 862.6086957
A153: 2018-01-07T01:00:00 | B153: 522.25 | C153: =Input!$C$13*Hodiny!B153 -> 807.3429952 | E153: 2018-02-07T01:00:00 | F153: 510 | G153: =Input!$C$13*Hodiny!F153 -> 788.4057971 | I153: 2018-03-07T01:00:00 | J153: 502.5 | K153: =Input!$C$13*Hodiny!J153 -> 776.8115942 | M153: 2018-04-07T01:00:00 | N153: 500.75 | O153: =Input!$C$13*Hodiny!N153 -> 774.1062802 | Q153: 2018-05-07T01:00:00 | R153: 540.25 | S153: =Input!$C$13*Hodiny!R153 -> 835.1690821 | U153: 2018-06-07T01:00:00 | V153: 707.5 | W153: =Input!$C$13*Hodiny!V153 -> 1093.719807 | Y153: 2018-07-07T01:00:00 | Z153: 609 | AA153: =Input!$C$13*Hodiny!Z153 -> 941.4492754 | AC153: 2018-08-07T02:00:00 | AD153: 599.75 | AE153: =Input!$C$13*Hodiny!AD153 -> 927.1497585 | AG153: 2018-09-07T01:00:00 | AH153: 638.5 | AI153: =Input!$C$13*Hodiny!AH153 -> 987.0531401 | AK153: 2017-10-07T01:00:00 | AL153: 504.5 | AM153: =Input!$C$13*Hodiny!AL153 -> 779.9033816 | AO153: 2017-11-07T01:00:00 | AP153: 549 | AQ153: =Input!$C$13*Hodiny!AP153 -> 848.6956522 | AS153: 2017-12-07T01:00:00 | AT153: 551.25 | AU153: =Input!$C$13*Hodiny!AT153 -> 852.173913
A154: 2018-01-07T02:00:00 | B154: 452 | C154: =Input!$C$13*Hodiny!B154 -> 698.7439614 | E154: 2018-02-07T02:00:00 | F154: 482.25 | G154: =Input!$C$13*Hodiny!F154 -> 745.5072464 | I154: 2018-03-07T02:00:00 | J154: 492 | K154: =Input!$C$13*Hodiny!J154 -> 760.5797101 | M154: 2018-04-07T02:00:00 | N154: 512.5 | O154: =Input!$C$13*Hodiny!N154 -> 792.2705314 | Q154: 2018-05-07T02:00:00 | R154: 472.75 | S154: =Input!$C$13*Hodiny!R154 -> 730.821256 | U154: 2018-06-07T02:00:00 | V154: 661.5 | W154: =Input!$C$13*Hodiny!V154 -> 1022.608696 | Y154: 2018-07-07T02:00:00 | Z154: 550.5 | AA154: =Input!$C$13*Hodiny!Z154 -> 851.0144928 | AC154: 2018-08-07T03:00:00 | AD154: 548.25 | AE154: =Input!$C$13*Hodiny!AD154 -> 847.5362319 | AG154: 2018-09-07T02:00:00 | AH154: 570 | AI154: =Input!$C$13*Hodiny!AH154 -> 881.1594203 | AK154: 2017-10-07T02:00:00 | AL154: 499.25 | AM154: =Input!$C$13*Hodiny!AL154 -> 771.7874396 | AO154: 2017-11-07T02:00:00 | AP154: 524 | AQ154: =Input!$C$13*Hodiny!AP154 -> 810.0483092 | AS154: 2017-12-07T02:00:00 | AT154: 558.25 | AU154: =Input!$C$13*Hodiny!AT154 -> 862.9951691
A155: 2018-01-07T03:00:00 | B155: 444 | C155: =Input!$C$13*Hodiny!B155 -> 686.3768116 | E155: 2018-02-07T03:00:00 | F155: 445.75 | G155: =Input!$C$13*Hodiny!F155 -> 689.0821256 | I155: 2018-03-07T03:00:00 | J155: 415 | K155: =Input!$C$13*Hodiny!J155 -> 641.5458937 | M155: 2018-04-07T03:00:00 | N155: 387.25 | O155: =Input!$C$13*Hodiny!N155 -> 598.647343 | Q155: 2018-05-07T03:00:00 | R155: 432 | S155: =Input!$C$13*Hodiny!R155 -> 667.826087 | U155: 2018-06-07T03:00:00 | V155: 581.75 | W155: =Input!$C$13*Hodiny!V155 -> 899.3236715 | Y155: 2018-07-07T03:00:00 | Z155: 535.5 | AA155: =Input!$C$13*Hodiny!Z155 -> 827.826087 | AC155: 2018-08-07T04:00:00 | AD155: 496.75 | AE155: =Input!$C$13*Hodiny!AD155 -> 767.9227053 | AG155: 2018-09-07T03:00:00 | AH155: 588.5 | AI155: =Input!$C$13*Hodiny!AH155 -> 909.7584541 | AK155: 2017-10-07T03:00:00 | AL155: 472.75 | AM155: =Input!$C$13*Hodiny!AL155 -> 730.821256 | AO155: 2017-11-07T03:00:00 | AP155: 483.5 | AQ155: =Input!$C$13*Hodiny!AP155 -> 747.4396135 | AS155: 2017-12-07T03:00:00 | AT155: 500 | AU155: =Input!$C$13*Hodiny!AT155 -> 772.9468599
A156: 2018-01-07T04:00:00 | B156: 415.25 | C156: =Input!$C$13*Hodiny!B156 -> 641.9323671 | E156: 2018-02-07T04:00:00 | F156: 435 | G156: =Input!$C$13*Hodiny!F156 -> 672.4637681 | I156: 2018-03-07T04:00:00 | J156: 385 | K156: =Input!$C$13*Hodiny!J156 -> 595.1690821 | M156: 2018-04-07T04:00:00 | N156: 391.25 | O156: =Input!$C$13*Hodiny!N156 -> 604.8309179 | Q156: 2018-05-07T04:00:00 | R156: 384.25 | S156: =Input!$C$13*Hodiny!R156 -> 594.0096618 | U156: 2018-06-07T04:00:00 | V156: 552.5 | W156: =Input!$C$13*Hodiny!V156 -> 854.1062802 | Y156: 2018-07-07T04:00:00 | Z156: 521.5 | AA156: =Input!$C$13*Hodiny!Z156 -> 806.1835749 | AC156: 2018-08-07T05:00:00 | AD156: 466 | AE156: =Input!$C$13*Hodiny!AD156 -> 720.3864734 | AG156: 2018-09-07T04:00:00 | AH156: 561.75 | AI156: =Input!$C$13*Hodiny!AH156 -> 868.4057971 | AK156: 2017-10-07T04:00:00 | AL156: 441.5 | AM156: =Input!$C$13*Hodiny!AL156 -> 682.5120773 | AO156: 2017-11-07T04:00:00 | AP156: 441 | AQ156: =Input!$C$13*Hodiny!AP156 -> 681.7391304 | AS156: 2017-12-07T04:00:00 | AT156: 455.75 | AU156: =Input!$C$13*Hodiny!AT156 -> 704.5410628
A157: 2018-01-07T05:00:00 | B157: 419.75 | C157: =Input!$C$13*Hodiny!B157 -> 648.8888889 | E157: 2018-02-07T05:00:00 | F157: 413 | G157: =Input!$C$13*Hodiny!F157 -> 638.4541063 | I157: 2018-03-07T05:00:00 | J157: 392.75 | K157: =Input!$C$13*Hodiny!J157 -> 607.1497585 | M157: 2018-04-07T05:00:00 | N157: 368.5 | O157: =Input!$C$13*Hodiny!N157 -> 569.6618357 | Q157: 2018-05-07T05:00:00 | R157: 389.5 | S157: =Input!$C$13*Hodiny!R157 -> 602.1256039 | U157: 2018-06-07T05:00:00 | V157: 535.25 | W157: =Input!$C$13*Hodiny!V157 -> 827.4396135 | Y157: 2018-07-07T05:00:00 | Z157: 465 | AA157: =Input!$C$13*Hodiny!Z157 -> 718.8405797 | AC157: 2018-08-07T06:00:00 | AD157: 566.25 | AE157: =Input!$C$13*Hodiny!AD157 -> 875.3623188 | AG157: 2018-09-07T05:00:00 | AH157: 563.75 | AI157: =Input!$C$13*Hodiny!AH157 -> 871.4975845 | AK157: 2017-10-07T05:00:00 | AL157: 434.5 | AM157: =Input!$C$13*Hodiny!AL157 -> 671.6908213 | AO157: 2017-11-07T05:00:00 | AP157: 454.75 | AQ157: =Input!$C$13*Hodiny!AP157 -> 702.9951691 | AS157: 2017-12-07T05:00:00 | AT157: 490.75 | AU157: =Input!$C$13*Hodiny!AT157 -> 758.647343
A158: 2018-01-07T06:00:00 | B158: 501.75 | C158: =Input!$C$13*Hodiny!B158 -> 775.6521739 | E158: 2018-02-07T06:00:00 | F158: 433.75 | G158: =Input!$C$13*Hodiny!F158 -> 670.531401 | I158: 2018-03-07T06:00:00 | J158: 498.25 | K158: =Input!$C$13*Hodiny!J158 -> 770.2415459 | M158: 2018-04-07T06:00:00 | N158: 465.25 | O158: =Input!$C$13*Hodiny!N158 -> 719.2270531 | Q158: 2018-05-07T06:00:00 | R158: 419 | S158: =Input!$C$13*Hodiny!R158 -> 647.7294686 | U158: 2018-06-07T06:00:00 | V158: 573.25 | W158: =Input!$C$13*Hodiny!V158 -> 886.1835749 | Y158: 2018-07-07T06:00:00 | Z158: 428.75 | AA158: =Input!$C$13*Hodiny!Z158 -> 662.8019324 | AC158: 2018-08-07T07:00:00 | AD158: 597.25 | AE158: =Input!$C$13*Hodiny!AD158 -> 923.2850242 | AG158: 2018-09-07T06:00:00 | AH158: 577.75 | AI158: =Input!$C$13*Hodiny!AH158 -> 893.1400966 | AK158: 2017-10-07T06:00:00 | AL158: 501.25 | AM158: =Input!$C$13*Hodiny!AL158 -> 774.8792271 | AO158: 2017-11-07T06:00:00 | AP158: 531.25 | AQ158: =Input!$C$13*Hodiny!AP158 -> 821.2560386 | AS158: 2017-12-07T06:00:00 | AT158: 545 | AU158: =Input!$C$13*Hodiny!AT158 -> 842.5120773
A159: 2018-01-07T07:00:00 | B159: 513.5 | C159: =Input!$C$13*Hodiny!B159 -> 793.8164251 | E159: 2018-02-07T07:00:00 | F159: 504.5 | G159: =Input!$C$13*Hodiny!F159 -> 779.9033816 | I159: 2018-03-07T07:00:00 | J159: 562.25 | K159: =Input!$C$13*Hodiny!J159 -> 869.178744 | M159: 2018-04-07T07:00:00 | N159: 463.25 | O159: =Input!$C$13*Hodiny!N159 -> 716.1352657 | Q159: 2018-05-07T07:00:00 | R159: 536.25 | S159: =Input!$C$13*Hodiny!R159 -> 828.9855072 | U159: 2018-06-07T07:00:00 | V159: 619.5 | W159: =Input!$C$13*Hodiny!V159 -> 957.6811594 | Y159: 2018-07-07T07:00:00 | Z159: 526.5 | AA159: =Input!$C$13*Hodiny!Z159 -> 813.9130435 | AC159: 2018-08-07T08:00:00 | AD159: 600.75 | AE159: =Input!$C$13*Hodiny!AD159 -> 928.6956522 | AG159: 2018-09-07T07:00:00 | AH159: 649 | AI159: =Input!$C$13*Hodiny!AH159 -> 1003.285024 | AK159: 2017-10-07T07:00:00 | AL159: 497.25 | AM159: =Input!$C$13*Hodiny!AL159 -> 768.6956522 | AO159: 2017-11-07T07:00:00 | AP159: 539.75 | AQ159: =Input!$C$13*Hodiny!AP159 -> 834.3961353 | AS159: 2017-12-07T07:00:00 | AT159: 567 | AU159: =Input!$C$13*Hodiny!AT159 -> 876.5217391
A160: 2018-01-07T08:00:00 | B160: 541 | C160: =Input!$C$13*Hodiny!B160 -> 836.3285024 | E160: 2018-02-07T08:00:00 | F160: 547.75 | G160: =Input!$C$13*Hodiny!F160 -> 846.763285 | I160: 2018-03-07T08:00:00 | J160: 554.25 | K160: =Input!$C$13*Hodiny!J160 -> 856.8115942 | M160: 2018-04-07T08:00:00 | N160: 489.25 | O160: =Input!$C$13*Hodiny!N160 -> 756.3285024 | Q160: 2018-05-07T08:00:00 | R160: 621.5 | S160: =Input!$C$13*Hodiny!R160 -> 960.7729469 | U160: 2018-06-07T08:00:00 | V160: 625.75 | W160: =Input!$C$13*Hodiny!V160 -> 967.3429952 | Y160: 2018-07-07T08:00:00 | Z160: 522.25 | AA160: =Input!$C$13*Hodiny!Z160 -> 807.3429952 | AC160: 2018-08-07T09:00:00 | AD160: 677.5 | AE160: =Input!$C$13*Hodiny!AD160 -> 1047.342995 | AG160: 2018-09-07T08:00:00 | AH160: 603.5 | AI160: =Input!$C$13*Hodiny!AH160 -> 932.9468599 | AK160: 2017-10-07T08:00:00 | AL160: 502 | AM160: =Input!$C$13*Hodiny!AL160 -> 776.0386473 | AO160: 2017-11-07T08:00:00 | AP160: 657 | AQ160: =Input!$C$13*Hodiny!AP160 -> 1015.652174 | AS160: 2017-12-07T08:00:00 | AT160: 641.25 | AU160: =Input!$C$13*Hodiny!AT160 -> 991.3043478
A161: 2018-01-07T09:00:00 | B161: 558.25 | C161: =Input!$C$13*Hodiny!B161 -> 862.9951691 | E161: 2018-02-07T09:00:00 | F161: 558.5 | G161: =Input!$C$13*Hodiny!F161 -> 863.3816425 | I161: 2018-03-07T09:00:00 | J161: 567 | K161: =Input!$C$13*Hodiny!J161 -> 876.5217391 | M161: 2018-04-07T09:00:00 | N161: 517.75 | O161: =Input!$C$13*Hodiny!N161 -> 800.3864734 | Q161: 2018-05-07T09:00:00 | R161: 635 | S161: =Input!$C$13*Hodiny!R161 -> 981.6425121 | U161: 2018-06-07T09:00:00 | V161: 592.25 | W161: =Input!$C$13*Hodiny!V161 -> 915.5555556 | Y161: 2018-07-07T09:00:00 | Z161: 609.5 | AA161: =Input!$C$13*Hodiny!Z161 -> 942.2222222 | AC161: 2018-08-07T10:00:00 | AD161: 736.75 | AE161: =Input!$C$13*Hodiny!AD161 -> 1138.937198 | AG161: 2018-09-07T09:00:00 | AH161: 674.5 | AI161: =Input!$C$13*Hodiny!AH161 -> 1042.705314 | AK161: 2017-10-07T09:00:00 | AL161: 581.5 | AM161: =Input!$C$13*Hodiny!AL161 -> 898.9371981 | AO161: 2017-11-07T09:00:00 | AP161: 656 | AQ161: =Input!$C$13*Hodiny!AP161 -> 1014.10628 | AS161: 2017-12-07T09:00:00 | AT161: 625.5 | AU161: =Input!$C$13*Hodiny!AT161 -> 966.9565217
A162: 2018-01-07T10:00:00 | B162: 590 | C162: =Input!$C$13*Hodiny!B162 -> 912.0772947 | E162: 2018-02-07T10:00:00 | F162: 554.5 | G162: =Input!$C$13*Hodiny!F162 -> 857.1980676 | I162: 2018-03-07T10:00:00 | J162: 591.25 | K162: =Input!$C$13*Hodiny!J162 -> 914.0096618 | M162: 2018-04-07T10:00:00 | N162: 539 | O162: =Input!$C$13*Hodiny!N162 -> 833.236715 | Q162: 2018-05-07T10:00:00 | R162: 648.75 | S162: =Input!$C$13*Hodiny!R162 -> 1002.898551 | U162: 2018-06-07T10:00:00 | V162: 728.25 | W162: =Input!$C$13*Hodiny!V162 -> 1125.797101 | Y162: 2018-07-07T10:00:00 | Z162: 673 | AA162: =Input!$C$13*Hodiny!Z162 -> 1040.386473 | AC162: 2018-08-07T11:00:00 | AD162: 751.75 | AE162: =Input!$C$13*Hodiny!AD162 -> 1162.125604 | AG162: 2018-09-07T10:00:00 | AH162: 653.5 | AI162: =Input!$C$13*Hodiny!AH162 -> 1010.241546 | AK162: 2017-10-07T10:00:00 | AL162: 542.5 | AM162: =Input!$C$13*Hodiny!AL162 -> 838.647343 | AO162: 2017-11-07T10:00:00 | AP162: 683.25 | AQ162: =Input!$C$13*Hodiny!AP162 -> 1056.231884 | AS162: 2017-12-07T10:00:00 | AT162: 618 | AU162: =Input!$C$13*Hodiny!AT162 -> 955.3623188
A163: 2018-01-07T11:00:00 | B163: 555.25 | C163: =Input!$C$13*Hodiny!B163 -> 858.3574879 | E163: 2018-02-07T11:00:00 | F163: 522 | G163: =Input!$C$13*Hodiny!F163 -> 806.9565217 | I163: 2018-03-07T11:00:00 | J163: 549.25 | K163: =Input!$C$13*Hodiny!J163 -> 849.0821256 | M163: 2018-04-07T11:00:00 | N163: 526.25 | O163: =Input!$C$13*Hodiny!N163 -> 813.52657 | Q163: 2018-05-07T11:00:00 | R163: 655 | S163: =Input!$C$13*Hodiny!R163 -> 1012.560386 | U163: 2018-06-07T11:00:00 | V163: 831.75 | W163: =Input!$C$13*Hodiny!V163 -> 1285.797101 | Y163: 2018-07-07T11:00:00 | Z163: 674.75 | AA163: =Input!$C$13*Hodiny!Z163 -> 1043.091787 | AC163: 2018-08-07T12:00:00 | AD163: 743.25 | AE163: =Input!$C$13*Hodiny!AD163 -> 1148.985507 | AG163: 2018-09-07T11:00:00 | AH163: 751.25 | AI163: =Input!$C$13*Hodiny!AH163 -> 1161.352657 | AK163: 2017-10-07T11:00:00 | AL163: 581.25 | AM163: =Input!$C$13*Hodiny!AL163 -> 898.5507246 | AO163: 2017-11-07T11:00:00 | AP163: 672.25 | AQ163: =Input!$C$13*Hodiny!AP163 -> 1039.227053 | AS163: 2017-12-07T11:00:00 | AT163: 630.5 | AU163: =Input!$C$13*Hodiny!AT163 -> 974.6859903
A164: 2018-01-07T12:00:00 | B164: 579 | C164: =Input!$C$13*Hodiny!B164 -> 895.0724638 | E164: 2018-02-07T12:00:00 | F164: 565.25 | G164: =Input!$C$13*Hodiny!F164 -> 873.8164251 | I164: 2018-03-07T12:00:00 | J164: 548 | K164: =Input!$C$13*Hodiny!J164 -> 847.1497585 | M164: 2018-04-07T12:00:00 | N164: 564 | O164: =Input!$C$13*Hodiny!N164 -> 871.884058 | Q164: 2018-05-07T12:00:00 | R164: 679 | S164: =Input!$C$13*Hodiny!R164 -> 1049.661836 | U164: 2018-06-07T12:00:00 | V164: 813.5 | W164: =Input!$C$13*Hodiny!V164 -> 1257.584541 | Y164: 2018-07-07T12:00:00 | Z164: 676.25 | AA164: =Input!$C$13*Hodiny!Z164 -> 1045.410628 | AC164: 2018-08-07T13:00:00 | AD164: 851 | AE164: =Input!$C$13*Hodiny!AD164 -> 1315.555556 | AG164: 2018-09-07T12:00:00 | AH164: 782.75 | AI164: =Input!$C$13*Hodiny!AH164 -> 1210.048309 | AK164: 2017-10-07T12:00:00 | AL164: 547.75 | AM164: =Input!$C$13*Hodiny!AL164 -> 846.763285 | AO164: 2017-11-07T12:00:00 | AP164: 644.25 | AQ164: =Input!$C$13*Hodiny!AP164 -> 995.942029 | AS164: 2017-12-07T12:00:00 | AT164: 599 | AU164: =Input!$C$13*Hodiny!AT164 -> 925.9903382
A165: 2018-01-07T13:00:00 | B165: 545.5 | C165: =Input!$C$13*Hodiny!B165 -> 843.2850242 | E165: 2018-02-07T13:00:00 | F165: 574.5 | G165: =Input!$C$13*Hodiny!F165 -> 888.115942 | I165: 2018-03-07T13:00:00 | J165: 580.75 | K165: =Input!$C$13*Hodiny!J165 -> 897.7777778 | M165: 2018-04-07T13:00:00 | N165: 573.25 | O165: =Input!$C$13*Hodiny!N165 -> 886.1835749 | Q165: 2018-05-07T13:00:00 | R165: 675 | S165: =Input!$C$13*Hodiny!R165 -> 1043.478261 | U165: 2018-06-07T13:00:00 | V165: 812.25 | W165: =Input!$C$13*Hodiny!V165 -> 1255.652174 | Y165: 2018-07-07T13:00:00 | Z165: 679.25 | AA165: =Input!$C$13*Hodiny!Z165 -> 1050.048309 | AC165: 2018-08-07T14:00:00 | AD165: 868.75 | AE165: =Input!$C$13*Hodiny!AD165 -> 1342.995169 | AG165: 2018-09-07T13:00:00 | AH165: 827.5 | AI165: =Input!$C$13*Hodiny!AH165 -> 1279.227053 | AK165: 2017-10-07T13:00:00 | AL165: 541.5 | AM165: =Input!$C$13*Hodiny!AL165 -> 837.1014493 | AO165: 2017-11-07T13:00:00 | AP165: 658.25 | AQ165: =Input!$C$13*Hodiny!AP165 -> 1017.584541 | AS165: 2017-12-07T13:00:00 | AT165: 622 | AU165: =Input!$C$13*Hodiny!AT165 -> 961.5458937
A166: 2018-01-07T14:00:00 | B166: 555.75 | C166: =Input!$C$13*Hodiny!B166 -> 859.1304348 | E166: 2018-02-07T14:00:00 | F166: 557.5 | G166: =Input!$C$13*Hodiny!F166 -> 861.8357488 | I166: 2018-03-07T14:00:00 | J166: 550.5 | K166: =Input!$C$13*Hodiny!J166 -> 851.0144928 | M166: 2018-04-07T14:00:00 | N166: 541.5 | O166: =Input!$C$13*Hodiny!N166 -> 837.1014493 | Q166: 2018-05-07T14:00:00 | R166: 702.5 | S166: =Input!$C$13*Hodiny!R166 -> 1085.990338 | U166: 2018-06-07T14:00:00 | V166: 851 | W166: =Input!$C$13*Hodiny!V166 -> 1315.555556 | Y166: 2018-07-07T14:00:00 | Z166: 712.75 | AA166: =Input!$C$13*Hodiny!Z166 -> 1101.835749 | AC166: 2018-08-07T15:00:00 | AD166: 871.5 | AE166: =Input!$C$13*Hodiny!AD166 -> 1347.246377 | AG166: 2018-09-07T14:00:00 | AH166: 800.5 | AI166: =Input!$C$13*Hodiny!AH166 -> 1237.487923 | AK166: 2017-10-07T14:00:00 | AL166: 543.5 | AM166: =Input!$C$13*Hodiny!AL166 -> 840.1932367 | AO166: 2017-11-07T14:00:00 | AP166: 632 | AQ166: =Input!$C$13*Hodiny!AP166 -> 977.0048309 | AS166: 2017-12-07T14:00:00 | AT166: 669 | AU166: =Input!$C$13*Hodiny!AT166 -> 1034.202899
A167: 2018-01-07T15:00:00 | B167: 594.25 | C167: =Input!$C$13*Hodiny!B167 -> 918.647343 | E167: 2018-02-07T15:00:00 | F167: 708.5 | G167: =Input!$C$13*Hodiny!F167 -> 1095.2657 | I167: 2018-03-07T15:00:00 | J167: 551 | K167: =Input!$C$13*Hodiny!J167 -> 851.7874396 | M167: 2018-04-07T15:00:00 | N167: 585.25 | O167: =Input!$C$13*Hodiny!N167 -> 904.7342995 | Q167: 2018-05-07T15:00:00 | R167: 734.25 | S167: =Input!$C$13*Hodiny!R167 -> 1135.072464 | U167: 2018-06-07T15:00:00 | V167: 891.25 | W167: =Input!$C$13*Hodiny!V167 -> 1377.777778 | Y167: 2018-07-07T15:00:00 | Z167: 719.5 | AA167: =Input!$C$13*Hodiny!Z167 -> 1112.270531 | AC167: 2018-08-07T16:00:00 | AD167: 883.25 | AE167: =Input!$C$13*Hodiny!AD167 -> 1365.410628 | AG167: 2018-09-07T15:00:00 | AH167: 835 | AI167: =Input!$C$13*Hodiny!AH167 -> 1290.821256 | AK167: 2017-10-07T15:00:00 | AL167: 563 | AM167: =Input!$C$13*Hodiny!AL167 -> 870.3381643 | AO167: 2017-11-07T15:00:00 | AP167: 749.75 | AQ167: =Input!$C$13*Hodiny!AP167 -> 1159.033816 | AS167: 2017-12-07T15:00:00 | AT167: 656.5 | AU167: =Input!$C$13*Hodiny!AT167 -> 1014.879227
A168: 2018-01-07T16:00:00 | B168: 627.75 | C168: =Input!$C$13*Hodiny!B168 -> 970.4347826 | E168: 2018-02-07T16:00:00 | F168: 713.75 | G168: =Input!$C$13*Hodiny!F168 -> 1103.381643 | I168: 2018-03-07T16:00:00 | J168: 635.25 | K168: =Input!$C$13*Hodiny!J168 -> 982.0289855 | M168: 2018-04-07T16:00:00 | N168: 581 | O168: =Input!$C$13*Hodiny!N168 -> 898.1642512 | Q168: 2018-05-07T16:00:00 | R168: 841.75 | S168: =Input!$C$13*Hodiny!R168 -> 1301.256039 | U168: 2018-06-07T16:00:00 | V168: 928.25 | W168: =Input!$C$13*Hodiny!V168 -> 1434.975845 | Y168: 2018-07-07T16:00:00 | Z168: 717 | AA168: =Input!$C$13*Hodiny!Z168 -> 1108.405797 | AC168: 2018-08-07T17:00:00 | AD168: 857.25 | AE168: =Input!$C$13*Hodiny!AD168 -> 1325.217391 | AG168: 2018-09-07T16:00:00 | AH168: 787.5 | AI168: =Input!$C$13*Hodiny!AH168 -> 1217.391304 | AK168: 2017-10-07T16:00:00 | AL168: 576.75 | AM168: =Input!$C$13*Hodiny!AL168 -> 891.5942029 | AO168: 2017-11-07T16:00:00 | AP168: 767 | AQ168: =Input!$C$13*Hodiny!AP168 -> 1185.700483 | AS168: 2017-12-07T16:00:00 | AT168: 728.25 | AU168: =Input!$C$13*Hodiny!AT168 -> 1125.797101
A169: 2018-01-07T17:00:00 | B169: 610 | C169: =Input!$C$13*Hodiny!B169 -> 942.9951691 | E169: 2018-02-07T17:00:00 | F169: 643.25 | G169: =Input!$C$13*Hodiny!F169 -> 994.3961353 | I169: 2018-03-07T17:00:00 | J169: 698.25 | K169: =Input!$C$13*Hodiny!J169 -> 1079.42029 | M169: 2018-04-07T17:00:00 | N169: 566.5 | O169: =Input!$C$13*Hodiny!N169 -> 875.7487923 | Q169: 2018-05-07T17:00:00 | R169: 802.25 | S169: =Input!$C$13*Hodiny!R169 -> 1240.193237 | U169: 2018-06-07T17:00:00 | V169: 864.25 | W169: =Input!$C$13*Hodiny!V169 -> 1336.038647 | Y169: 2018-07-07T17:00:00 | Z169: 697.25 | AA169: =Input!$C$13*Hodiny!Z169 -> 1077.874396 | AC169: 2018-08-07T18:00:00 | AD169: 711.25 | AE169: =Input!$C$13*Hodiny!AD169 -> 1099.516908 | AG169: 2018-09-07T17:00:00 | AH169: 774.5 | AI169: =Input!$C$13*Hodiny!AH169 -> 1197.294686 | AK169: 2017-10-07T17:00:00 | AL169: 516.5 | AM169: =Input!$C$13*Hodiny!AL169 -> 798.4541063 | AO169: 2017-11-07T17:00:00 | AP169: 741.5 | AQ169: =Input!$C$13*Hodiny!AP169 -> 1146.280193 | AS169: 2017-12-07T17:00:00 | AT169: 733.25 | AU169: =Input!$C$13*Hodiny!AT169 -> 1133.52657
A170: 2018-01-07T18:00:00 | B170: 593 | C170: =Input!$C$13*Hodiny!B170 -> 916.7149758 | E170: 2018-02-07T18:00:00 | F170: 596.25 | G170: =Input!$C$13*Hodiny!F170 -> 921.7391304 | I170: 2018-03-07T18:00:00 | J170: 624.75 | K170: =Input!$C$13*Hodiny!J170 -> 965.7971014 | M170: 2018-04-07T18:00:00 | N170: 552.75 | O170: =Input!$C$13*Hodiny!N170 -> 854.4927536 | Q170: 2018-05-07T18:00:00 | R170: 728.5 | S170: =Input!$C$13*Hodiny!R170 -> 1126.183575 | U170: 2018-06-07T18:00:00 | V170: 774.25 | W170: =Input!$C$13*Hodiny!V170 -> 1196.908213 | Y170: 2018-07-07T18:00:00 | Z170: 667 | AA170: =Input!$C$13*Hodiny!Z170 -> 1031.111111 | AC170: 2018-08-07T19:00:00 | AD170: 713.5 | AE170: =Input!$C$13*Hodiny!AD170 -> 1102.995169 | AG170: 2018-09-07T18:00:00 | AH170: 726.75 | AI170: =Input!$C$13*Hodiny!AH170 -> 1123.478261 | AK170: 2017-10-07T18:00:00 | AL170: 507.5 | AM170: =Input!$C$13*Hodiny!AL170 -> 784.5410628 | AO170: 2017-11-07T18:00:00 | AP170: 694.5 | AQ170: =Input!$C$13*Hodiny!AP170 -> 1073.623188 | AS170: 2017-12-07T18:00:00 | AT170: 687.75 | AU170: =Input!$C$13*Hodiny!AT170 -> 1063.188406
A171: 2018-01-07T19:00:00 | B171: 585.5 | C171: =Input!$C$13*Hodiny!B171 -> 905.1207729 | E171: 2018-02-07T19:00:00 | F171: 555.75 | G171: =Input!$C$13*Hodiny!F171 -> 859.1304348 | I171: 2018-03-07T19:00:00 | J171: 565 | K171: =Input!$C$13*Hodiny!J171 -> 873.4299517 | M171: 2018-04-07T19:00:00 | N171: 515.25 | O171: =Input!$C$13*Hodiny!N171 -> 796.5217391 | Q171: 2018-05-07T19:00:00 | R171: 626.25 | S171: =Input!$C$13*Hodiny!R171 -> 968.115942 | U171: 2018-06-07T19:00:00 | V171: 722 | W171: =Input!$C$13*Hodiny!V171 -> 1116.135266 | Y171: 2018-07-07T19:00:00 | Z171: 706.75 | AA171: =Input!$C$13*Hodiny!Z171 -> 1092.560386 | AC171: 2018-08-07T20:00:00 | AD171: 660 | AE171: =Input!$C$13*Hodiny!AD171 -> 1020.289855 | AG171: 2018-09-07T19:00:00 | AH171: 730.25 | AI171: =Input!$C$13*Hodiny!AH171 -> 1128.888889 | AK171: 2017-10-07T19:00:00 | AL171: 518.25 | AM171: =Input!$C$13*Hodiny!AL171 -> 801.1594203 | AO171: 2017-11-07T19:00:00 | AP171: 627 | AQ171: =Input!$C$13*Hodiny!AP171 -> 969.2753623 | AS171: 2017-12-07T19:00:00 | AT171: 598.5 | AU171: =Input!$C$13*Hodiny!AT171 -> 925.2173913
A172: 2018-01-07T20:00:00 | B172: 591.25 | C172: =Input!$C$13*Hodiny!B172 -> 914.0096618 | E172: 2018-02-07T20:00:00 | F172: 535.25 | G172: =Input!$C$13*Hodiny!F172 -> 827.4396135 | I172: 2018-03-07T20:00:00 | J172: 542.5 | K172: =Input!$C$13*Hodiny!J172 -> 838.647343 | M172: 2018-04-07T20:00:00 | N172: 510 | O172: =Input!$C$13*Hodiny!N172 -> 788.4057971 | Q172: 2018-05-07T20:00:00 | R172: 584.25 | S172: =Input!$C$13*Hodiny!R172 -> 903.1884058 | U172: 2018-06-07T20:00:00 | V172: 628.25 | W172: =Input!$C$13*Hodiny!V172 -> 971.2077295 | Y172: 2018-07-07T20:00:00 | Z172: 606.5 | AA172: =Input!$C$13*Hodiny!Z172 -> 937.5845411 | AC172: 2018-08-07T21:00:00 | AD172: 645.75 | AE172: =Input!$C$13*Hodiny!AD172 -> 998.2608696 | AG172: 2018-09-07T20:00:00 | AH172: 661.5 | AI172: =Input!$C$13*Hodiny!AH172 -> 1022.608696 | AK172: 2017-10-07T20:00:00 | AL172: 567.5 | AM172: =Input!$C$13*Hodiny!AL172 -> 877.294686 | AO172: 2017-11-07T20:00:00 | AP172: 600.5 | AQ172: =Input!$C$13*Hodiny!AP172 -> 928.3091787 | AS172: 2017-12-07T20:00:00 | AT172: 611.75 | AU172: =Input!$C$13*Hodiny!AT172 -> 945.7004831
A173: 2018-01-07T21:00:00 | B173: 536.25 | C173: =Input!$C$13*Hodiny!B173 -> 828.9855072 | E173: 2018-02-07T21:00:00 | F173: 507 | G173: =Input!$C$13*Hodiny!F173 -> 783.7681159 | I173: 2018-03-07T21:00:00 | J173: 517.75 | K173: =Input!$C$13*Hodiny!J173 -> 800.3864734 | M173: 2018-04-07T21:00:00 | N173: 470.25 | O173: =Input!$C$13*Hodiny!N173 -> 726.9565217 | Q173: 2018-05-07T21:00:00 | R173: 514 | S173: =Input!$C$13*Hodiny!R173 -> 794.589372 | U173: 2018-06-07T21:00:00 | V173: 646 | W173: =Input!$C$13*Hodiny!V173 -> 998.647343 | Y173: 2018-07-07T21:00:00 | Z173: 586.75 | AA173: =Input!$C$13*Hodiny!Z173 -> 907.0531401 | AC173: 2018-08-07T22:00:00 | AD173: 644 | AE173: =Input!$C$13*Hodiny!AD173 -> 995.5555556 | AG173: 2018-09-07T21:00:00 | AH173: 666.5 | AI173: =Input!$C$13*Hodiny!AH173 -> 1030.338164 | AK173: 2017-10-07T21:00:00 | AL173: 543.75 | AM173: =Input!$C$13*Hodiny!AL173 -> 840.5797101 | AO173: 2017-11-07T21:00:00 | AP173: 595 | AQ173: =Input!$C$13*Hodiny!AP173 -> 919.8067633 | AS173: 2017-12-07T21:00:00 | AT173: 576.25 | AU173: =Input!$C$13*Hodiny!AT173 -> 890.821256
A174: 2018-01-07T22:00:00 | B174: 538.75 | C174: =Input!$C$13*Hodiny!B174 -> 832.8502415 | E174: 2018-02-07T22:00:00 | F174: 504.75 | G174: =Input!$C$13*Hodiny!F174 -> 780.2898551 | I174: 2018-03-07T22:00:00 | J174: 493 | K174: =Input!$C$13*Hodiny!J174 -> 762.1256039 | M174: 2018-04-07T22:00:00 | N174: 456.75 | O174: =Input!$C$13*Hodiny!N174 -> 706.0869565 | Q174: 2018-05-07T22:00:00 | R174: 467.75 | S174: =Input!$C$13*Hodiny!R174 -> 723.0917874 | U174: 2018-06-07T22:00:00 | V174: 626.5 | W174: =Input!$C$13*Hodiny!V174 -> 968.5024155 | Y174: 2018-07-07T22:00:00 | Z174: 572.75 | AA174: =Input!$C$13*Hodiny!Z174 -> 885.410628 | AC174: 2018-08-07T23:00:00 | AD174: 733.5 | AE174: =Input!$C$13*Hodiny!AD174 -> 1133.913043 | AG174: 2018-09-07T22:00:00 | AH174: 649 | AI174: =Input!$C$13*Hodiny!AH174 -> 1003.285024 | AK174: 2017-10-07T22:00:00 | AL174: 511.25 | AM174: =Input!$C$13*Hodiny!AL174 -> 790.3381643 | AO174: 2017-11-07T22:00:00 | AP174: 555.75 | AQ174: =Input!$C$13*Hodiny!AP174 -> 859.1304348 | AS174: 2017-12-07T22:00:00 | AT174: 566.75 | AU174: =Input!$C$13*Hodiny!AT174 -> 876.1352657
A175: 2018-01-07T23:00:00 | B175: 548 | C175: =Input!$C$13*Hodiny!B175 -> 847.1497585 | E175: 2018-02-07T23:00:00 | F175: 494.25 | G175: =Input!$C$13*Hodiny!F175 -> 764.057971 | I175: 2018-03-07T23:00:00 | J175: 511.25 | K175: =Input!$C$13*Hodiny!J175 -> 790.3381643 | M175: 2018-04-07T23:00:00 | N175: 445.25 | O175: =Input!$C$13*Hodiny!N175 -> 688.3091787 | Q175: 2018-05-07T23:00:00 | R175: 455.5 | S175: =Input!$C$13*Hodiny!R175 -> 704.1545894 | U175: 2018-06-07T23:00:00 | V175: 580.75 | W175: =Input!$C$13*Hodiny!V175 -> 897.7777778 | Y175: 2018-07-07T23:00:00 | Z175: 550.25 | AA175: =Input!$C$13*Hodiny!Z175 -> 850.6280193 | AC175: 2018-08-08 | AD175: 663 | AE175: =Input!$C$13*Hodiny!AD175 -> 1024.927536 | AG175: 2018-09-07T23:00:00 | AH175: 619.5 | AI175: =Input!$C$13*Hodiny!AH175 -> 957.6811594 | AK175: 2017-10-07T23:00:00 | AL175: 482.25 | AM175: =Input!$C$13*Hodiny!AL175 -> 745.5072464 | AO175: 2017-11-07T23:00:00 | AP175: 571 | AQ175: =Input!$C$13*Hodiny!AP175 -> 882.705314 | AS175: 2017-12-07T23:00:00 | AT175: 550.5 | AU175: =Input!$C$13*Hodiny!AT175 -> 851.0144928
A176: 2018-01-08 | B176: 553.5 | C176: =Input!$C$13*Hodiny!B176 -> 855.6521739 | E176: 2018-02-08 | F176: 507.75 | G176: =Input!$C$13*Hodiny!F176 -> 784.9275362 | I176: 2018-03-08 | J176: 519 | K176: =Input!$C$13*Hodiny!J176 -> 802.3188406 | M176: 2018-04-08 | N176: 495.75 | O176: =Input!$C$13*Hodiny!N176 -> 766.3768116 | Q176: 2018-05-08 | R176: 483.75 | S176: =Input!$C$13*Hodiny!R176 -> 747.826087 | U176: 2018-06-08 | V176: 656 | W176: =Input!$C$13*Hodiny!V176 -> 1014.10628 | Y176: 2018-07-08 | Z176: 530 | AA176: =Input!$C$13*Hodiny!Z176 -> 819.3236715 | AC176: 2018-08-08T01:00:00 | AD176: 669.5 | AE176: =Input!$C$13*Hodiny!AD176 -> 1034.975845 | AG176: 2018-09-08 | AH176: 576.75 | AI176: =Input!$C$13*Hodiny!AH176 -> 891.5942029 | AK176: 2017-10-08 | AL176: 494 | AM176: =Input!$C$13*Hodiny!AL176 -> 763.6714976 | AO176: 2017-11-08 | AP176: 592 | AQ176: =Input!$C$13*Hodiny!AP176 -> 915.1690821 | AS176: 2017-12-08 | AT176: 620.25 | AU176: =Input!$C$13*Hodiny!AT176 -> 958.8405797
A177: 2018-01-08T01:00:00 | B177: 566.75 | C177: =Input!$C$13*Hodiny!B177 -> 876.1352657 | E177: 2018-02-08T01:00:00 | F177: 537.5 | G177: =Input!$C$13*Hodiny!F177 -> 830.9178744 | I177: 2018-03-08T01:00:00 | J177: 499.5 | K177: =Input!$C$13*Hodiny!J177 -> 772.173913 | M177: 2018-04-08T01:00:00 | N177: 462.75 | O177: =Input!$C$13*Hodiny!N177 -> 715.3623188 | Q177: 2018-05-08T01:00:00 | R177: 463.75 | S177: =Input!$C$13*Hodiny!R177 -> 716.9082126 | U177: 2018-06-08T01:00:00 | V177: 658.25 | W177: =Input!$C$13*Hodiny!V177 -> 1017.584541 | Y177: 2018-07-08T01:00:00 | Z177: 529.75 | AA177: =Input!$C$13*Hodiny!Z177 -> 818.9371981 | AC177: 2018-08-08T02:00:00 | AD177: 626.25 | AE177: =Input!$C$13*Hodiny!AD177 -> 968.115942 | AG177: 2018-09-08T01:00:00 | AH177: 688.75 | AI177: =Input!$C$13*Hodiny!AH177 -> 1064.7343 | AK177: 2017-10-08T01:00:00 | AL177: 476.75 | AM177: =Input!$C$13*Hodiny!AL177 -> 737.0048309 | AO177: 2017-11-08T01:00:00 | AP177: 546.5 | AQ177: =Input!$C$13*Hodiny!AP177 -> 844.8309179 | AS177: 2017-12-08T01:00:00 | AT177: 579.25 | AU177: =Input!$C$13*Hodiny!AT177 -> 895.4589372
A178: 2018-01-08T02:00:00 | B178: 517.5 | C178: =Input!$C$13*Hodiny!B178 -> 800 | E178: 2018-02-08T02:00:00 | F178: 512.5 | G178: =Input!$C$13*Hodiny!F178 -> 792.2705314 | I178: 2018-03-08T02:00:00 | J178: 536 | K178: =Input!$C$13*Hodiny!J178 -> 828.5990338 | M178: 2018-04-08T02:00:00 | N178: 437 | O178: =Input!$C$13*Hodiny!N178 -> 675.5555556 | Q178: 2018-05-08T02:00:00 | R178: 490 | S178: =Input!$C$13*Hodiny!R178 -> 757.4879227 | U178: 2018-06-08T02:00:00 | V178: 608.25 | W178: =Input!$C$13*Hodiny!V178 -> 940.2898551 | Y178: 2018-07-08T02:00:00 | Z178: 445.25 | AA178: =Input!$C$13*Hodiny!Z178 -> 688.3091787 | AC178: 2018-08-08T03:00:00 | AD178: 588 | AE178: =Input!$C$13*Hodiny!AD178 -> 908.9855072 | AG178: 2018-09-08T02:00:00 | AH178: 587.25 | AI178: =Input!$C$13*Hodiny!AH178 -> 907.826087 | AK178: 2017-10-08T02:00:00 | AL178: 448 | AM178: =Input!$C$13*Hodiny!AL178 -> 692.5603865 | AO178: 2017-11-08T02:00:00 | AP178: 563.25 | AQ178: =Input!$C$13*Hodiny!AP178 -> 870.7246377 | AS178: 2017-12-08T02:00:00 | AT178: 546 | AU178: =Input!$C$13*Hodiny!AT178 -> 844.057971
A179: 2018-01-08T03:00:00 | B179: 465.75 | C179: =Input!$C$13*Hodiny!B179 -> 720 | E179: 2018-02-08T03:00:00 | F179: 523 | G179: =Input!$C$13*Hodiny!F179 -> 808.5024155 | I179: 2018-03-08T03:00:00 | J179: 504.5 | K179: =Input!$C$13*Hodiny!J179 -> 779.9033816 | M179: 2018-04-08T03:00:00 | N179: 359.5 | O179: =Input!$C$13*Hodiny!N179 -> 555.7487923 | Q179: 2018-05-08T03:00:00 | R179: 443 | S179: =Input!$C$13*Hodiny!R179 -> 684.8309179 | U179: 2018-06-08T03:00:00 | V179: 552.5 | W179: =Input!$C$13*Hodiny!V179 -> 854.1062802 | Y179: 2018-07-08T03:00:00 | Z179: 446 | AA179: =Input!$C$13*Hodiny!Z179 -> 689.468599 | AC179: 2018-08-08T04:00:00 | AD179: 545.25 | AE179: =Input!$C$13*Hodiny!AD179 -> 842.8985507 | AG179: 2018-09-08T03:00:00 | AH179: 559.75 | AI179: =Input!$C$13*Hodiny!AH179 -> 865.3140097 | AK179: 2017-10-08T03:00:00 | AL179: 428.5 | AM179: =Input!$C$13*Hodiny!AL179 -> 662.4154589 | AO179: 2017-11-08T03:00:00 | AP179: 500.75 | AQ179: =Input!$C$13*Hodiny!AP179 -> 774.1062802 | AS179: 2017-12-08T03:00:00 | AT179: 480.5 | AU179: =Input!$C$13*Hodiny!AT179 -> 742.8019324
A180: 2018-01-08T04:00:00 | B180: 433.25 | C180: =Input!$C$13*Hodiny!B180 -> 669.7584541 | E180: 2018-02-08T04:00:00 | F180: 490.25 | G180: =Input!$C$13*Hodiny!F180 -> 757.8743961 | I180: 2018-03-08T04:00:00 | J180: 428.5 | K180: =Input!$C$13*Hodiny!J180 -> 662.4154589 | M180: 2018-04-08T04:00:00 | N180: 348.25 | O180: =Input!$C$13*Hodiny!N180 -> 538.3574879 | Q180: 2018-05-08T04:00:00 | R180: 465.25 | S180: =Input!$C$13*Hodiny!R180 -> 719.2270531 | U180: 2018-06-08T04:00:00 | V180: 511 | W180: =Input!$C$13*Hodiny!V180 -> 789.9516908 | Y180: 2018-07-08T04:00:00 | Z180: 437.25 | AA180: =Input!$C$13*Hodiny!Z180 -> 675.942029 | AC180: 2018-08-08T05:00:00 | AD180: 540 | AE180: =Input!$C$13*Hodiny!AD180 -> 834.7826087 | AG180: 2018-09-08T04:00:00 | AH180: 543.75 | AI180: =Input!$C$13*Hodiny!AH180 -> 840.5797101 | AK180: 2017-10-08T04:00:00 | AL180: 396 | AM180: =Input!$C$13*Hodiny!AL180 -> 612.173913 | AO180: 2017-11-08T04:00:00 | AP180: 455.75 | AQ180: =Input!$C$13*Hodiny!AP180 -> 704.5410628 | AS180: 2017-12-08T04:00:00 | AT180: 441 | AU180: =Input!$C$13*Hodiny!AT180 -> 681.7391304
A181: 2018-01-08T05:00:00 | B181: 435 | C181: =Input!$C$13*Hodiny!B181 -> 672.4637681 | E181: 2018-02-08T05:00:00 | F181: 470.25 | G181: =Input!$C$13*Hodiny!F181 -> 726.9565217 | I181: 2018-03-08T05:00:00 | J181: 407 | K181: =Input!$C$13*Hodiny!J181 -> 629.178744 | M181: 2018-04-08T05:00:00 | N181: 350.75 | O181: =Input!$C$13*Hodiny!N181 -> 542.2222222 | Q181: 2018-05-08T05:00:00 | R181: 463.25 | S181: =Input!$C$13*Hodiny!R181 -> 716.1352657 | U181: 2018-06-08T05:00:00 | V181: 494 | W181: =Input!$C$13*Hodiny!V181 -> 763.6714976 | Y181: 2018-07-08T05:00:00 | Z181: 416.5 | AA181: =Input!$C$13*Hodiny!Z181 -> 643.8647343 | AC181: 2018-08-08T06:00:00 | AD181: 628.25 | AE181: =Input!$C$13*Hodiny!AD181 -> 971.2077295 | AG181: 2018-09-08T05:00:00 | AH181: 510.5 | AI181: =Input!$C$13*Hodiny!AH181 -> 789.178744 | AK181: 2017-10-08T05:00:00 | AL181: 382.25 | AM181: =Input!$C$13*Hodiny!AL181 -> 590.9178744 | AO181: 2017-11-08T05:00:00 | AP181: 466.75 | AQ181: =Input!$C$13*Hodiny!AP181 -> 721.5458937 | AS181: 2017-12-08T05:00:00 | AT181: 446.5 | AU181: =Input!$C$13*Hodiny!AT181 -> 690.2415459
A182: 2018-01-08T06:00:00 | B182: 524.25 | C182: =Input!$C$13*Hodiny!B182 -> 810.4347826 | E182: 2018-02-08T06:00:00 | F182: 451.5 | G182: =Input!$C$13*Hodiny!F182 -> 697.9710145 | I182: 2018-03-08T06:00:00 | J182: 481 | K182: =Input!$C$13*Hodiny!J182 -> 743.5748792 | M182: 2018-04-08T06:00:00 | N182: 382 | O182: =Input!$C$13*Hodiny!N182 -> 590.531401 | Q182: 2018-05-08T06:00:00 | R182: 434.75 | S182: =Input!$C$13*Hodiny!R182 -> 672.0772947 | U182: 2018-06-08T06:00:00 | V182: 576 | W182: =Input!$C$13*Hodiny!V182 -> 890.4347826 | Y182: 2018-07-08T06:00:00 | Z182: 472.75 | AA182: =Input!$C$13*Hodiny!Z182 -> 730.821256 | AC182: 2018-08-08T07:00:00 | AD182: 639.75 | AE182: =Input!$C$13*Hodiny!AD182 -> 988.9855072 | AG182: 2018-09-08T06:00:00 | AH182: 554.75 | AI182: =Input!$C$13*Hodiny!AH182 -> 857.5845411 | AK182: 2017-10-08T06:00:00 | AL182: 396.5 | AM182: =Input!$C$13*Hodiny!AL182 -> 612.9468599 | AO182: 2017-11-08T06:00:00 | AP182: 550.75 | AQ182: =Input!$C$13*Hodiny!AP182 -> 851.4009662 | AS182: 2017-12-08T06:00:00 | AT182: 521.25 | AU182: =Input!$C$13*Hodiny!AT182 -> 805.7971014
A183: 2018-01-08T07:00:00 | B183: 588.5 | C183: =Input!$C$13*Hodiny!B183 -> 909.7584541 | E183: 2018-02-08T07:00:00 | F183: 496 | G183: =Input!$C$13*Hodiny!F183 -> 766.763285 | I183: 2018-03-08T07:00:00 | J183: 516.25 | K183: =Input!$C$13*Hodiny!J183 -> 798.0676329 | M183: 2018-04-08T07:00:00 | N183: 411.75 | O183: =Input!$C$13*Hodiny!N183 -> 636.5217391 | Q183: 2018-05-08T07:00:00 | R183: 486.75 | S183: =Input!$C$13*Hodiny!R183 -> 752.4637681 | U183: 2018-06-08T07:00:00 | V183: 600.5 | W183: =Input!$C$13*Hodiny!V183 -> 928.3091787 | Y183: 2018-07-08T07:00:00 | Z183: 503 | AA183: =Input!$C$13*Hodiny!Z183 -> 777.5845411 | AC183: 2018-08-08T08:00:00 | AD183: 608.5 | AE183: =Input!$C$13*Hodiny!AD183 -> 940.6763285 | AG183: 2018-09-08T07:00:00 | AH183: 620 | AI183: =Input!$C$13*Hodiny!AH183 -> 958.4541063 | AK183: 2017-10-08T07:00:00 | AL183: 457.75 | AM183: =Input!$C$13*Hodiny!AL183 -> 707.6328502 | AO183: 2017-11-08T07:00:00 | AP183: 565.5 | AQ183: =Input!$C$13*Hodiny!AP183 -> 874.2028986 | AS183: 2017-12-08T07:00:00 | AT183: 563.25 | AU183: =Input!$C$13*Hodiny!AT183 -> 870.7246377
A184: 2018-01-08T08:00:00 | B184: 600.5 | C184: =Input!$C$13*Hodiny!B184 -> 928.3091787 | E184: 2018-02-08T08:00:00 | F184: 536.25 | G184: =Input!$C$13*Hodiny!F184 -> 828.9855072 | I184: 2018-03-08T08:00:00 | J184: 588.75 | K184: =Input!$C$13*Hodiny!J184 -> 910.1449275 | M184: 2018-04-08T08:00:00 | N184: 490.5 | O184: =Input!$C$13*Hodiny!N184 -> 758.2608696 | Q184: 2018-05-08T08:00:00 | R184: 508.5 | S184: =Input!$C$13*Hodiny!R184 -> 786.0869565 | U184: 2018-06-08T08:00:00 | V184: 614.5 | W184: =Input!$C$13*Hodiny!V184 -> 949.9516908 | Y184: 2018-07-08T08:00:00 | Z184: 503 | AA184: =Input!$C$13*Hodiny!Z184 -> 777.5845411 | AC184: 2018-08-08T09:00:00 | AD184: 695 | AE184: =Input!$C$13*Hodiny!AD184 -> 1074.396135 | AG184: 2018-09-08T08:00:00 | AH184: 620.25 | AI184: =Input!$C$13*Hodiny!AH184 -> 958.8405797 | AK184: 2017-10-08T08:00:00 | AL184: 495.75 | AM184: =Input!$C$13*Hodiny!AL184 -> 766.3768116 | AO184: 2017-11-08T08:00:00 | AP184: 577.25 | AQ184: =Input!$C$13*Hodiny!AP184 -> 892.3671498 | AS184: 2017-12-08T08:00:00 | AT184: 630.5 | AU184: =Input!$C$13*Hodiny!AT184 -> 974.6859903
A185: 2018-01-08T09:00:00 | B185: 683.25 | C185: =Input!$C$13*Hodiny!B185 -> 1056.231884 | E185: 2018-02-08T09:00:00 | F185: 574.25 | G185: =Input!$C$13*Hodiny!F185 -> 887.7294686 | I185: 2018-03-08T09:00:00 | J185: 563.75 | K185: =Input!$C$13*Hodiny!J185 -> 871.4975845 | M185: 2018-04-08T09:00:00 | N185: 537.25 | O185: =Input!$C$13*Hodiny!N185 -> 830.531401 | Q185: 2018-05-08T09:00:00 | R185: 524 | S185: =Input!$C$13*Hodiny!R185 -> 810.0483092 | U185: 2018-06-08T09:00:00 | V185: 779 | W185: =Input!$C$13*Hodiny!V185 -> 1204.251208 | Y185: 2018-07-08T09:00:00 | Z185: 597.75 | AA185: =Input!$C$13*Hodiny!Z185 -> 924.057971 | AC185: 2018-08-08T10:00:00 | AD185: 696.25 | AE185: =Input!$C$13*Hodiny!AD185 -> 1076.328502 | AG185: 2018-09-08T09:00:00 | AH185: 649.5 | AI185: =Input!$C$13*Hodiny!AH185 -> 1004.057971 | AK185: 2017-10-08T09:00:00 | AL185: 491.5 | AM185: =Input!$C$13*Hodiny!AL185 -> 759.8067633 | AO185: 2017-11-08T09:00:00 | AP185: 571.25 | AQ185: =Input!$C$13*Hodiny!AP185 -> 883.0917874 | AS185: 2017-12-08T09:00:00 | AT185: 629 | AU185: =Input!$C$13*Hodiny!AT185 -> 972.3671498
A186: 2018-01-08T10:00:00 | B186: 642 | C186: =Input!$C$13*Hodiny!B186 -> 992.4637681 | E186: 2018-02-08T10:00:00 | F186: 568 | G186: =Input!$C$13*Hodiny!F186 -> 878.0676329 | I186: 2018-03-08T10:00:00 | J186: 555.5 | K186: =Input!$C$13*Hodiny!J186 -> 858.7439614 | M186: 2018-04-08T10:00:00 | N186: 546 | O186: =Input!$C$13*Hodiny!N186 -> 844.057971 | Q186: 2018-05-08T10:00:00 | R186: 520.5 | S186: =Input!$C$13*Hodiny!R186 -> 804.6376812 | U186: 2018-06-08T10:00:00 | V186: 732 | W186: =Input!$C$13*Hodiny!V186 -> 1131.594203 | Y186: 2018-07-08T10:00:00 | Z186: 621 | AA186: =Input!$C$13*Hodiny!Z186 -> 960 | AC186: 2018-08-08T11:00:00 | AD186: 764.25 | AE186: =Input!$C$13*Hodiny!AD186 -> 1181.449275 | AG186: 2018-09-08T10:00:00 | AH186: 614 | AI186: =Input!$C$13*Hodiny!AH186 -> 949.178744 | AK186: 2017-10-08T10:00:00 | AL186: 482.75 | AM186: =Input!$C$13*Hodiny!AL186 -> 746.2801932 | AO186: 2017-11-08T10:00:00 | AP186: 631 | AQ186: =Input!$C$13*Hodiny!AP186 -> 975.4589372 | AS186: 2017-12-08T10:00:00 | AT186: 612.5 | AU186: =Input!$C$13*Hodiny!AT186 -> 946.8599034
A187: 2018-01-08T11:00:00 | B187: 685 | C187: =Input!$C$13*Hodiny!B187 -> 1058.937198 | E187: 2018-02-08T11:00:00 | F187: 529.75 | G187: =Input!$C$13*Hodiny!F187 -> 818.9371981 | I187: 2018-03-08T11:00:00 | J187: 556 | K187: =Input!$C$13*Hodiny!J187 -> 859.5169082 | M187: 2018-04-08T11:00:00 | N187: 533.25 | O187: =Input!$C$13*Hodiny!N187 -> 824.3478261 | Q187: 2018-05-08T11:00:00 | R187: 524.75 | S187: =Input!$C$13*Hodiny!R187 -> 811.2077295 | U187: 2018-06-08T11:00:00 | V187: 759.25 | W187: =Input!$C$13*Hodiny!V187 -> 1173.719807 | Y187: 2018-07-08T11:00:00 | Z187: 624.25 | AA187: =Input!$C$13*Hodiny!Z187 -> 965.0241546 | AC187: 2018-08-08T12:00:00 | AD187: 759 | AE187: =Input!$C$13*Hodiny!AD187 -> 1173.333333 | AG187: 2018-09-08T11:00:00 | AH187: 619.25 | AI187: =Input!$C$13*Hodiny!AH187 -> 957.294686 | AK187: 2017-10-08T11:00:00 | AL187: 524 | AM187: =Input!$C$13*Hodiny!AL187 -> 810.0483092 | AO187: 2017-11-08T11:00:00 | AP187: 657.25 | AQ187: =Input!$C$13*Hodiny!AP187 -> 1016.038647 | AS187: 2017-12-08T11:00:00 | AT187: 608.25 | AU187: =Input!$C$13*Hodiny!AT187 -> 940.2898551
A188: 2018-01-08T12:00:00 | B188: 659 | C188: =Input!$C$13*Hodiny!B188 -> 1018.743961 | E188: 2018-02-08T12:00:00 | F188: 530 | G188: =Input!$C$13*Hodiny!F188 -> 819.3236715 | I188: 2018-03-08T12:00:00 | J188: 549.5 | K188: =Input!$C$13*Hodiny!J188 -> 849.468599 | M188: 2018-04-08T12:00:00 | N188: 581.75 | O188: =Input!$C$13*Hodiny!N188 -> 899.3236715 | Q188: 2018-05-08T12:00:00 | R188: 554 | S188: =Input!$C$13*Hodiny!R188 -> 856.4251208 | U188: 2018-06-08T12:00:00 | V188: 719.75 | W188: =Input!$C$13*Hodiny!V188 -> 1112.657005 | Y188: 2018-07-08T12:00:00 | Z188: 573.75 | AA188: =Input!$C$13*Hodiny!Z188 -> 886.9565217 | AC188: 2018-08-08T13:00:00 | AD188: 782.75 | AE188: =Input!$C$13*Hodiny!AD188 -> 1210.048309 | AG188: 2018-09-08T12:00:00 | AH188: 597.5 | AI188: =Input!$C$13*Hodiny!AH188 -> 923.6714976 | AK188: 2017-10-08T12:00:00 | AL188: 484.5 | AM188: =Input!$C$13*Hodiny!AL188 -> 748.9855072 | AO188: 2017-11-08T12:00:00 | AP188: 630.5 | AQ188: =Input!$C$13*Hodiny!AP188 -> 974.6859903 | AS188: 2017-12-08T12:00:00 | AT188: 600.25 | AU188: =Input!$C$13*Hodiny!AT188 -> 927.9227053
A189: 2018-01-08T13:00:00 | B189: 627 | C189: =Input!$C$13*Hodiny!B189 -> 969.2753623 | E189: 2018-02-08T13:00:00 | F189: 582.25 | G189: =Input!$C$13*Hodiny!F189 -> 900.0966184 | I189: 2018-03-08T13:00:00 | J189: 520 | K189: =Input!$C$13*Hodiny!J189 -> 803.8647343 | M189: 2018-04-08T13:00:00 | N189: 618 | O189: =Input!$C$13*Hodiny!N189 -> 955.3623188 | Q189: 2018-05-08T13:00:00 | R189: 552.75 | S189: =Input!$C$13*Hodiny!R189 -> 854.4927536 | U189: 2018-06-08T13:00:00 | V189: 753.75 | W189: =Input!$C$13*Hodiny!V189 -> 1165.217391 | Y189: 2018-07-08T13:00:00 | Z189: 595.25 | AA189: =Input!$C$13*Hodiny!Z189 -> 920.1932367 | AC189: 2018-08-08T14:00:00 | AD189: 812 | AE189: =Input!$C$13*Hodiny!AD189 -> 1255.2657 | AG189: 2018-09-08T13:00:00 | AH189: 730.25 | AI189: =Input!$C$13*Hodiny!AH189 -> 1128.888889 | AK189: 2017-10-08T13:00:00 | AL189: 515 | AM189: =Input!$C$13*Hodiny!AL189 -> 796.1352657 | AO189: 2017-11-08T13:00:00 | AP189: 686 | AQ189: =Input!$C$13*Hodiny!AP189 -> 1060.483092 | AS189: 2017-12-08T13:00:00 | AT189: 606.75 | AU189: =Input!$C$13*Hodiny!AT189 -> 937.9710145
A190: 2018-01-08T14:00:00 | B190: 675 | C190: =Input!$C$13*Hodiny!B190 -> 1043.478261 | E190: 2018-02-08T14:00:00 | F190: 582.5 | G190: =Input!$C$13*Hodiny!F190 -> 900.4830918 | I190: 2018-03-08T14:00:00 | J190: 557 | K190: =Input!$C$13*Hodiny!J190 -> 861.0628019 | M190: 2018-04-08T14:00:00 | N190: 616.5 | O190: =Input!$C$13*Hodiny!N190 -> 953.0434783 | Q190: 2018-05-08T14:00:00 | R190: 532.25 | S190: =Input!$C$13*Hodiny!R190 -> 822.8019324 | U190: 2018-06-08T14:00:00 | V190: 771.75 | W190: =Input!$C$13*Hodiny!V190 -> 1193.043478 | Y190: 2018-07-08T14:00:00 | Z190: 667.25 | AA190: =Input!$C$13*Hodiny!Z190 -> 1031.497585 | AC190: 2018-08-08T15:00:00 | AD190: 880 | AE190: =Input!$C$13*Hodiny!AD190 -> 1360.386473 | AG190: 2018-09-08T14:00:00 | AH190: 675.5 | AI190: =Input!$C$13*Hodiny!AH190 -> 1044.251208 | AK190: 2017-10-08T14:00:00 | AL190: 525.5 | AM190: =Input!$C$13*Hodiny!AL190 -> 812.3671498 | AO190: 2017-11-08T14:00:00 | AP190: 710.75 | AQ190: =Input!$C$13*Hodiny!AP190 -> 1098.743961 | AS190: 2017-12-08T14:00:00 | AT190: 633.5 | AU190: =Input!$C$13*Hodiny!AT190 -> 979.3236715
A191: 2018-01-08T15:00:00 | B191: 770.75 | C191: =Input!$C$13*Hodiny!B191 -> 1191.497585 | E191: 2018-02-08T15:00:00 | F191: 676.25 | G191: =Input!$C$13*Hodiny!F191 -> 1045.410628 | I191: 2018-03-08T15:00:00 | J191: 598.5 | K191: =Input!$C$13*Hodiny!J191 -> 925.2173913 | M191: 2018-04-08T15:00:00 | N191: 628.75 | O191: =Input!$C$13*Hodiny!N191 -> 971.9806763 | Q191: 2018-05-08T15:00:00 | R191: 535.25 | S191: =Input!$C$13*Hodiny!R191 -> 827.4396135 | U191: 2018-06-08T15:00:00 | V191: 836.75 | W191: =Input!$C$13*Hodiny!V191 -> 1293.52657 | Y191: 2018-07-08T15:00:00 | Z191: 654.5 | AA191: =Input!$C$13*Hodiny!Z191 -> 1011.78744 | AC191: 2018-08-08T16:00:00 | AD191: 846.25 | AE191: =Input!$C$13*Hodiny!AD191 -> 1308.21256 | AG191: 2018-09-08T15:00:00 | AH191: 698 | AI191: =Input!$C$13*Hodiny!AH191 -> 1079.033816 | AK191: 2017-10-08T15:00:00 | AL191: 580.5 | AM191: =Input!$C$13*Hodiny!AL191 -> 897.3913043 | AO191: 2017-11-08T15:00:00 | AP191: 685 | AQ191: =Input!$C$13*Hodiny!AP191 -> 1058.937198 | AS191: 2017-12-08T15:00:00 | AT191: 618.25 | AU191: =Input!$C$13*Hodiny!AT191 -> 955.7487923
A192: 2018-01-08T16:00:00 | B192: 763 | C192: =Input!$C$13*Hodiny!B192 -> 1179.516908 | E192: 2018-02-08T16:00:00 | F192: 655.25 | G192: =Input!$C$13*Hodiny!F192 -> 1012.94686 | I192: 2018-03-08T16:00:00 | J192: 590 | K192: =Input!$C$13*Hodiny!J192 -> 912.0772947 | M192: 2018-04-08T16:00:00 | N192: 602.75 | O192: =Input!$C$13*Hodiny!N192 -> 931.7874396 | Q192: 2018-05-08T16:00:00 | R192: 622.5 | S192: =Input!$C$13*Hodiny!R192 -> 962.3188406 | U192: 2018-06-08T16:00:00 | V192: 873.25 | W192: =Input!$C$13*Hodiny!V192 -> 1349.951691 | Y192: 2018-07-08T16:00:00 | Z192: 632 | AA192: =Input!$C$13*Hodiny!Z192 -> 977.0048309 | AC192: 2018-08-08T17:00:00 | AD192: 854.5 | AE192: =Input!$C$13*Hodiny!AD192 -> 1320.966184 | AG192: 2018-09-08T16:00:00 | AH192: 662.25 | AI192: =Input!$C$13*Hodiny!AH192 -> 1023.768116 | AK192: 2017-10-08T16:00:00 | AL192: 558.25 | AM192: =Input!$C$13*Hodiny!AL192 -> 862.9951691 | AO192: 2017-11-08T16:00:00 | AP192: 721 | AQ192: =Input!$C$13*Hodiny!AP192 -> 1114.589372 | AS192: 2017-12-08T16:00:00 | AT192: 698 | AU192: =Input!$C$13*Hodiny!AT192 -> 1079.033816
A193: 2018-01-08T17:00:00 | B193: 670 | C193: =Input!$C$13*Hodiny!B193 -> 1035.748792 | E193: 2018-02-08T17:00:00 | F193: 646.5 | G193: =Input!$C$13*Hodiny!F193 -> 999.4202899 | I193: 2018-03-08T17:00:00 | J193: 697.5 | K193: =Input!$C$13*Hodiny!J193 -> 1078.26087 | M193: 2018-04-08T17:00:00 | N193: 632 | O193: =Input!$C$13*Hodiny!N193 -> 977.0048309 | Q193: 2018-05-08T17:00:00 | R193: 633.25 | S193: =Input!$C$13*Hodiny!R193 -> 978.9371981 | U193: 2018-06-08T17:00:00 | V193: 815.75 | W193: =Input!$C$13*Hodiny!V193 -> 1261.062802 | Y193: 2018-07-08T17:00:00 | Z193: 604.5 | AA193: =Input!$C$13*Hodiny!Z193 -> 934.4927536 | AC193: 2018-08-08T18:00:00 | AD193: 759.75 | AE193: =Input!$C$13*Hodiny!AD193 -> 1174.492754 | AG193: 2018-09-08T17:00:00 | AH193: 654.75 | AI193: =Input!$C$13*Hodiny!AH193 -> 1012.173913 | AK193: 2017-10-08T17:00:00 | AL193: 525.5 | AM193: =Input!$C$13*Hodiny!AL193 -> 812.3671498 | AO193: 2017-11-08T17:00:00 | AP193: 730.5 | AQ193: =Input!$C$13*Hodiny!AP193 -> 1129.275362 | AS193: 2017-12-08T17:00:00 | AT193: 754.25 | AU193: =Input!$C$13*Hodiny!AT193 -> 1165.990338
A194: 2018-01-08T18:00:00 | B194: 663.5 | C194: =Input!$C$13*Hodiny!B194 -> 1025.700483 | E194: 2018-02-08T18:00:00 | F194: 614.75 | G194: =Input!$C$13*Hodiny!F194 -> 950.3381643 | I194: 2018-03-08T18:00:00 | J194: 706.5 | K194: =Input!$C$13*Hodiny!J194 -> 1092.173913 | M194: 2018-04-08T18:00:00 | N194: 592.5 | O194: =Input!$C$13*Hodiny!N194 -> 915.942029 | Q194: 2018-05-08T18:00:00 | R194: 631.75 | S194: =Input!$C$13*Hodiny!R194 -> 976.6183575 | U194: 2018-06-08T18:00:00 | V194: 756 | W194: =Input!$C$13*Hodiny!V194 -> 1168.695652 | Y194: 2018-07-08T18:00:00 | Z194: 600.25 | AA194: =Input!$C$13*Hodiny!Z194 -> 927.9227053 | AC194: 2018-08-08T19:00:00 | AD194: 715 | AE194: =Input!$C$13*Hodiny!AD194 -> 1105.31401 | AG194: 2018-09-08T18:00:00 | AH194: 627 | AI194: =Input!$C$13*Hodiny!AH194 -> 969.2753623 | AK194: 2017-10-08T18:00:00 | AL194: 515.75 | AM194: =Input!$C$13*Hodiny!AL194 -> 797.294686 | AO194: 2017-11-08T18:00:00 | AP194: 681 | AQ194: =Input!$C$13*Hodiny!AP194 -> 1052.753623 | AS194: 2017-12-08T18:00:00 | AT194: 713 | AU194: =Input!$C$13*Hodiny!AT194 -> 1102.222222
A195: 2018-01-08T19:00:00 | B195: 603.5 | C195: =Input!$C$13*Hodiny!B195 -> 932.9468599 | E195: 2018-02-08T19:00:00 | F195: 596.5 | G195: =Input!$C$13*Hodiny!F195 -> 922.1256039 | I195: 2018-03-08T19:00:00 | J195: 651.75 | K195: =Input!$C$13*Hodiny!J195 -> 1007.536232 | M195: 2018-04-08T19:00:00 | N195: 525.75 | O195: =Input!$C$13*Hodiny!N195 -> 812.7536232 | Q195: 2018-05-08T19:00:00 | R195: 586.5 | S195: =Input!$C$13*Hodiny!R195 -> 906.6666667 | U195: 2018-06-08T19:00:00 | V195: 740.25 | W195: =Input!$C$13*Hodiny!V195 -> 1144.347826 | Y195: 2018-07-08T19:00:00 | Z195: 603.5 | AA195: =Input!$C$13*Hodiny!Z195 -> 932.9468599 | AC195: 2018-08-08T20:00:00 | AD195: 636.5 | AE195: =Input!$C$13*Hodiny!AD195 -> 983.9613527 | AG195: 2018-09-08T19:00:00 | AH195: 672.5 | AI195: =Input!$C$13*Hodiny!AH195 -> 1039.613527 | AK195: 2017-10-08T19:00:00 | AL195: 471 | AM195: =Input!$C$13*Hodiny!AL195 -> 728.115942 | AO195: 2017-11-08T19:00:00 | AP195: 665.75 | AQ195: =Input!$C$13*Hodiny!AP195 -> 1029.178744 | AS195: 2017-12-08T19:00:00 | AT195: 610 | AU195: =Input!$C$13*Hodiny!AT195 -> 942.9951691
A196: 2018-01-08T20:00:00 | B196: 594.25 | C196: =Input!$C$13*Hodiny!B196 -> 918.647343 | E196: 2018-02-08T20:00:00 | F196: 517.25 | G196: =Input!$C$13*Hodiny!F196 -> 799.6135266 | I196: 2018-03-08T20:00:00 | J196: 567 | K196: =Input!$C$13*Hodiny!J196 -> 876.5217391 | M196: 2018-04-08T20:00:00 | N196: 513.75 | O196: =Input!$C$13*Hodiny!N196 -> 794.2028986 | Q196: 2018-05-08T20:00:00 | R196: 597.5 | S196: =Input!$C$13*Hodiny!R196 -> 923.6714976 | U196: 2018-06-08T20:00:00 | V196: 650.75 | W196: =Input!$C$13*Hodiny!V196 -> 1005.990338 | Y196: 2018-07-08T20:00:00 | Z196: 541.75 | AA196: =Input!$C$13*Hodiny!Z196 -> 837.4879227 | AC196: 2018-08-08T21:00:00 | AD196: 645.75 | AE196: =Input!$C$13*Hodiny!AD196 -> 998.2608696 | AG196: 2018-09-08T20:00:00 | AH196: 607 | AI196: =Input!$C$13*Hodiny!AH196 -> 938.3574879 | AK196: 2017-10-08T20:00:00 | AL196: 506.75 | AM196: =Input!$C$13*Hodiny!AL196 -> 783.3816425 | AO196: 2017-11-08T20:00:00 | AP196: 632 | AQ196: =Input!$C$13*Hodiny!AP196 -> 977.0048309 | AS196: 2017-12-08T20:00:00 | AT196: 590.75 | AU196: =Input!$C$13*Hodiny!AT196 -> 913.236715
A197: 2018-01-08T21:00:00 | B197: 554 | C197: =Input!$C$13*Hodiny!B197 -> 856.4251208 | E197: 2018-02-08T21:00:00 | F197: 517.25 | G197: =Input!$C$13*Hodiny!F197 -> 799.6135266 | I197: 2018-03-08T21:00:00 | J197: 539.25 | K197: =Input!$C$13*Hodiny!J197 -> 833.6231884 | M197: 2018-04-08T21:00:00 | N197: 494.5 | O197: =Input!$C$13*Hodiny!N197 -> 764.4444444 | Q197: 2018-05-08T21:00:00 | R197: 553.5 | S197: =Input!$C$13*Hodiny!R197 -> 855.6521739 | U197: 2018-06-08T21:00:00 | V197: 652.5 | W197: =Input!$C$13*Hodiny!V197 -> 1008.695652 | Y197: 2018-07-08T21:00:00 | Z197: 539 | AA197: =Input!$C$13*Hodiny!Z197 -> 833.236715 | AC197: 2018-08-08T22:00:00 | AD197: 610.5 | AE197: =Input!$C$13*Hodiny!AD197 -> 943.7681159 | AG197: 2018-09-08T21:00:00 | AH197: 638.5 | AI197: =Input!$C$13*Hodiny!AH197 -> 987.0531401 | AK197: 2017-10-08T21:00:00 | AL197: 528.5 | AM197: =Input!$C$13*Hodiny!AL197 -> 817.0048309 | AO197: 2017-11-08T21:00:00 | AP197: 587.25 | AQ197: =Input!$C$13*Hodiny!AP197 -> 907.826087 | AS197: 2017-12-08T21:00:00 | AT197: 590 | AU197: =Input!$C$13*Hodiny!AT197 -> 912.0772947
A198: 2018-01-08T22:00:00 | B198: 525 | C198: =Input!$C$13*Hodiny!B198 -> 811.5942029 | E198: 2018-02-08T22:00:00 | F198: 508.75 | G198: =Input!$C$13*Hodiny!F198 -> 786.47343 | I198: 2018-03-08T22:00:00 | J198: 513.5 | K198: =Input!$C$13*Hodiny!J198 -> 793.8164251 | M198: 2018-04-08T22:00:00 | N198: 469.75 | O198: =Input!$C$13*Hodiny!N198 -> 726.1835749 | Q198: 2018-05-08T22:00:00 | R198: 505 | S198: =Input!$C$13*Hodiny!R198 -> 780.6763285 | U198: 2018-06-08T22:00:00 | V198: 653.25 | W198: =Input!$C$13*Hodiny!V198 -> 1009.855072 | Y198: 2018-07-08T22:00:00 | Z198: 546.5 | AA198: =Input!$C$13*Hodiny!Z198 -> 844.8309179 | AC198: 2018-08-08T23:00:00 | AD198: 700.75 | AE198: =Input!$C$13*Hodiny!AD198 -> 1083.285024 | AG198: 2018-09-08T22:00:00 | AH198: 598 | AI198: =Input!$C$13*Hodiny!AH198 -> 924.4444444 | AK198: 2017-10-08T22:00:00 | AL198: 560.25 | AM198: =Input!$C$13*Hodiny!AL198 -> 866.0869565 | AO198: 2017-11-08T22:00:00 | AP198: 571.5 | AQ198: =Input!$C$13*Hodiny!AP198 -> 883.4782609 | AS198: 2017-12-08T22:00:00 | AT198: 565.5 | AU198: =Input!$C$13*Hodiny!AT198 -> 874.2028986
A199: 2018-01-08T23:00:00 | B199: 486.5 | C199: =Input!$C$13*Hodiny!B199 -> 752.0772947 | E199: 2018-02-08T23:00:00 | F199: 485 | G199: =Input!$C$13*Hodiny!F199 -> 749.7584541 | I199: 2018-03-08T23:00:00 | J199: 525.25 | K199: =Input!$C$13*Hodiny!J199 -> 811.9806763 | M199: 2018-04-08T23:00:00 | N199: 484.5 | O199: =Input!$C$13*Hodiny!N199 -> 748.9855072 | Q199: 2018-05-08T23:00:00 | R199: 524.25 | S199: =Input!$C$13*Hodiny!R199 -> 810.4347826 | U199: 2018-06-08T23:00:00 | V199: 649.75 | W199: =Input!$C$13*Hodiny!V199 -> 1004.444444 | Y199: 2018-07-08T23:00:00 | Z199: 519.75 | AA199: =Input!$C$13*Hodiny!Z199 -> 803.4782609 | AC199: 2018-08-09 | AD199: 654.25 | AE199: =Input!$C$13*Hodiny!AD199 -> 1011.400966 | AG199: 2018-09-08T23:00:00 | AH199: 569.75 | AI199: =Input!$C$13*Hodiny!AH199 -> 880.7729469 | AK199: 2017-10-08T23:00:00 | AL199: 501.75 | AM199: =Input!$C$13*Hodiny!AL199 -> 775.6521739 | AO199: 2017-11-08T23:00:00 | AP199: 554 | AQ199: =Input!$C$13*Hodiny!AP199 -> 856.4251208 | AS199: 2017-12-08T23:00:00 | AT199: 529.25 | AU199: =Input!$C$13*Hodiny!AT199 -> 818.1642512
A200: 2018-01-09 | B200: 551 | C200: =Input!$C$13*Hodiny!B200 -> 851.7874396 | E200: 2018-02-09 | F200: 486 | G200: =Input!$C$13*Hodiny!F200 -> 751.3043478 | I200: 2018-03-09 | J200: 535.5 | K200: =Input!$C$13*Hodiny!J200 -> 827.826087 | M200: 2018-04-09 | N200: 521 | O200: =Input!$C$13*Hodiny!N200 -> 805.410628 | Q200: 2018-05-09 | R200: 528.25 | S200: =Input!$C$13*Hodiny!R200 -> 816.6183575 | U200: 2018-06-09 | V200: 763 | W200: =Input!$C$13*Hodiny!V200 -> 1179.516908 | Y200: 2018-07-09 | Z200: 527 | AA200: =Input!$C$13*Hodiny!Z200 -> 814.6859903 | AC200: 2018-08-09T01:00:00 | AD200: 678.5 | AE200: =Input!$C$13*Hodiny!AD200 -> 1048.888889 | AG200: 2018-09-09 | AH200: 520.75 | AI200: =Input!$C$13*Hodiny!AH200 -> 805.0241546 | AK200: 2017-10-09 | AL200: 539.5 | AM200: =Input!$C$13*Hodiny!AL200 -> 834.0096618 | AO200: 2017-11-09 | AP200: 613.5 | AQ200: =Input!$C$13*Hodiny!AP200 -> 948.4057971 | AS200: 2017-12-09 | AT200: 540.75 | AU200: =Input!$C$13*Hodiny!AT200 -> 835.942029
A201: 2018-01-09T01:00:00 | B201: 554.25 | C201: =Input!$C$13*Hodiny!B201 -> 856.8115942 | E201: 2018-02-09T01:00:00 | F201: 517.25 | G201: =Input!$C$13*Hodiny!F201 -> 799.6135266 | I201: 2018-03-09T01:00:00 | J201: 516.5 | K201: =Input!$C$13*Hodiny!J201 -> 798.4541063 | M201: 2018-04-09T01:00:00 | N201: 513.25 | O201: =Input!$C$13*Hodiny!N201 -> 793.4299517 | Q201: 2018-05-09T01:00:00 | R201: 512 | S201: =Input!$C$13*Hodiny!R201 -> 791.4975845 | U201: 2018-06-09T01:00:00 | V201: 695.75 | W201: =Input!$C$13*Hodiny!V201 -> 1075.555556 | Y201: 2018-07-09T01:00:00 | Z201: 543.25 | AA201: =Input!$C$13*Hodiny!Z201 -> 839.8067633 | AC201: 2018-08-09T02:00:00 | AD201: 631.25 | AE201: =Input!$C$13*Hodiny!AD201 -> 975.8454106 | AG201: 2018-09-09T01:00:00 | AH201: 536 | AI201: =Input!$C$13*Hodiny!AH201 -> 828.5990338 | AK201: 2017-10-09T01:00:00 | AL201: 498.25 | AM201: =Input!$C$13*Hodiny!AL201 -> 770.2415459 | AO201: 2017-11-09T01:00:00 | AP201: 558.25 | AQ201: =Input!$C$13*Hodiny!AP201 -> 862.9951691 | AS201: 2017-12-09T01:00:00 | AT201: 558.25 | AU201: =Input!$C$13*Hodiny!AT201 -> 862.9951691
... 550 more rows

Sheet 1_4Hod
A2: leden | D2: únor | G2: březen | J2: duben | M2: květen | P2: červen | S2: červenec | V2: srpen | Y2: září | AB2: říjen | AE2: listopad | AH2: prosinec
A5: Max | B5: =MAX(B8:B2983) -> 838 | C5: =MAX(C8:C2983) -> 1295.458937 | D5: Max | E5: =MAX(E8:E2983) -> 897 | F5: =MAX(F8:F2983) -> 1386.666667 | G5: Max | H5: =MAX(H8:H2983) -> 872 | I5: =MAX(I8:I2983) -> 1348.019324 | J5: Max | K5: =MAX(K8:K2983) -> 944 | L5: =MAX(L8:L2983) -> 1459.323671 | M5: Max | N5: =MAX(N104:N2983) -> 1035 | O5: =MAX(O104:O2983) -> 1600 | P5: Max | Q5: =MAX(Q8:Q2983) -> 962 | R5: =MAX(R8:R2983) -> 1487.149758 | S5: Max | T5: =MAX(T8:T2983) -> 899 | U5: =MAX(U8:U2983) -> 1389.758454 | V5: Max | W5: =MAX(W8:W2983) -> 996 | X5: =MAX(X8:X2983) -> 1539.710145 | Y5: Max | Z5: =MAX(Z8:Z2983) -> 994 | AA5: =MAX(AA8:AA2983) -> 1536.618357 | AB5: Max | AC5: =MAX(AC8:AC2983) -> 885 | AD5: =MAX(AD8:AD2983) -> 1368.115942 | AE5: Max | AF5: =MAX(AF8:AF2983) -> 930 | AG5: =MAX(AG8:AG2983) -> 1437.681159 | AH5: Max | AI5: =MAX(AI8:AI2983) -> 880 | AJ5: =MAX(AJ8:AJ2983) -> 1360.386473
A6: Min | B6: =MIN(B8:B2983) -> 341 | C6: =MIN(C8:C2983) -> 527.1497585 | D6: Min | E6: =MIN(E8:E2983) -> 343 | F6: =MIN(F8:F2983) -> 530.2415459 | G6: Min | H6: =MIN(H8:H2983) -> 0 | I6: =MIN(I8:I2983) -> 0 | J6: Min | K6: =MIN(K8:K2983) -> 272 | L6: =MIN(L8:L2983) -> 420.4830918 | M6: Min | N6: =MIN(N104:N2983) -> 72 | O6: =MIN(O104:O2983) -> 111.3043478 | P6: Min | Q6: =MIN(Q8:Q2983) -> 354 | R6: =MIN(R8:R2983) -> 547.2463768 | S6: Min | T6: =MIN(T8:T2983) -> 356 | U6: =MIN(U8:U2983) -> 550.3381643 | V6: Min | W6: =MIN(W8:W2983) -> 310 | X6: =MIN(X8:X2983) -> 479.2270531 | Y6: Min | Z6: =MIN(Z8:Z2983) -> 329 | AA6: =MIN(AA8:AA2983) -> 508.5990338 | AB6: Min | AC6: =MIN(AC8:AC2983) -> 304 | AD6: =MIN(AD8:AD2983) -> 469.9516908 | AE6: Min | AF6: =MIN(AF8:AF2983) -> 394 | AG6: =MIN(AG8:AG2983) -> 609.0821256 | AH6: Min | AI6: =MIN(AI8:AI2983) -> 335 | AJ6: =MIN(AJ8:AJ2983) -> 517.8743961
A8: 2018-01-01 | B8: 468 | C8: =B8*Input!$C$13 -> 723.4782609 | D8: 2018-02-01 | E8: 530 | F8: =E8*Input!$C$13 -> 819.3236715 | G8: 2018-03-01T00:15:00 | H8: 618 | I8: =H8*Input!$C$13 -> 955.3623188 | J8: 2018-04-01 | K8: 434 | L8: =K8*Input!$C$13 -> 670.9178744 | M8: 2018-05-01 | N8: 498 | O8: =N8*Input!$C$13 -> 769.8550725 | P8: 2018-06-01 | Q8: 565 | R8: =Q8*Input!$C$13 -> 873.4299517 | S8: 2018-07-01 | T8: 508 | U8: =T8*Input!$C$13 -> 785.3140097 | V8: 2018-08-01T00:15:00 | W8: 596 | X8: =W8*Input!$C$13 -> 921.352657 | Y8: 2018-09-01 | Z8: 700 | AA8: =Z8*Input!$C$13 -> 1082.125604 | AB8: 2017-10-01 | AC8: 465 | AD8: =AC8*Input!$C$13 -> 718.8405797 | AE8: 2017-11-01 | AF8: 503 | AG8: =AF8*Input!$C$13 -> 777.5845411 | AH8: 2017-12-01 | AI8: 523 | AJ8: =AI8*Input!$C$13 -> 808.5024155
A9: 2018-01-01T00:15:00 | B9: 462 | C9: =B9*Input!$C$13 -> 714.2028986 | D9: 2018-02-01T00:15:00 | E9: 513 | F9: =E9*Input!$C$13 -> 793.0434783 | G9: 2018-03-01T00:30:00 | H9: 657 | I9: =H9*Input!$C$13 -> 1015.652174 | J9: 2018-04-01T00:15:00 | K9: 447 | L9: =K9*Input!$C$13 -> 691.0144928 | M9: 2018-05-01T00:15:00 | N9: 557 | O9: =N9*Input!$C$13 -> 861.0628019 | P9: 2018-06-01T00:15:00 | Q9: 542 | R9: =Q9*Input!$C$13 -> 837.8743961 | S9: 2018-07-01T00:15:00 | T9: 509 | U9: =T9*Input!$C$13 -> 786.8599034 | V9: 2018-08-01T00:30:00 | W9: 645 | X9: =W9*Input!$C$13 -> 997.1014493 | Y9: 2018-09-01T00:15:00 | Z9: 639 | AA9: =Z9*Input!$C$13 -> 987.826087 | AB9: 2017-10-01T00:15:00 | AC9: 478 | AD9: =AC9*Input!$C$13 -> 738.9371981 | AE9: 2017-11-01T00:15:00 | AF9: 529 | AG9: =AF9*Input!$C$13 -> 817.7777778 | AH9: 2017-12-01T00:15:00 | AI9: 567 | AJ9: =AI9*Input!$C$13 -> 876.5217391
A10: 2018-01-01T00:30:00 | B10: 527 | C10: =B10*Input!$C$13 -> 814.6859903 | D10: 2018-02-01T00:30:00 | E10: 563 | F10: =E10*Input!$C$13 -> 870.3381643 | G10: 2018-03-01T00:45:00 | H10: 638 | I10: =H10*Input!$C$13 -> 986.2801932 | J10: 2018-04-01T00:30:00 | K10: 533 | L10: =K10*Input!$C$13 -> 823.9613527 | M10: 2018-05-01T00:30:00 | N10: 653 | O10: =N10*Input!$C$13 -> 1009.468599 | P10: 2018-06-01T00:30:00 | Q10: 576 | R10: =Q10*Input!$C$13 -> 890.4347826 | S10: 2018-07-01T00:30:00 | T10: 492 | U10: =T10*Input!$C$13 -> 760.5797101 | V10: 2018-08-01T00:45:00 | W10: 614 | X10: =W10*Input!$C$13 -> 949.178744 | Y10: 2018-09-01T00:30:00 | Z10: 686 | AA10: =Z10*Input!$C$13 -> 1060.483092 | AB10: 2017-10-01T00:30:00 | AC10: 484 | AD10: =AC10*Input!$C$13 -> 748.2125604 | AE10: 2017-11-01T00:30:00 | AF10: 545 | AG10: =AF10*Input!$C$13 -> 842.5120773 | AH10: 2017-12-01T00:30:00 | AI10: 566 | AJ10: =AI10*Input!$C$13 -> 874.9758454
A11: 2018-01-01T00:45:00 | B11: 484 | C11: =B11*Input!$C$13 -> 748.2125604 | D11: 2018-02-01T00:45:00 | E11: 574 | F11: =E11*Input!$C$13 -> 887.3429952 | G11: 2018-03-01T01:00:00 | H11: 537 | I11: =H11*Input!$C$13 -> 830.1449275 | J11: 2018-04-01T00:45:00 | K11: 480 | L11: =K11*Input!$C$13 -> 742.0289855 | M11: 2018-05-01T00:45:00 | N11: 622 | O11: =N11*Input!$C$13 -> 961.5458937 | P11: 2018-06-01T00:45:00 | Q11: 615 | R11: =Q11*Input!$C$13 -> 950.7246377 | S11: 2018-07-01T00:45:00 | T11: 541 | U11: =T11*Input!$C$13 -> 836.3285024 | V11: 2018-08-01T01:00:00 | W11: 654 | X11: =W11*Input!$C$13 -> 1011.014493 | Y11: 2018-09-01T00:45:00 | Z11: 734 | AA11: =Z11*Input!$C$13 -> 1134.68599 | AB11: 2017-10-01T00:45:00 | AC11: 446 | AD11: =AC11*Input!$C$13 -> 689.468599 | AE11: 2017-11-01T00:45:00 | AF11: 532 | AG11: =AF11*Input!$C$13 -> 822.4154589 | AH11: 2017-12-01T00:45:00 | AI11: 551 | AJ11: =AI11*Input!$C$13 -> 851.7874396
A12: 2018-01-01T01:00:00 | B12: 482 | C12: =B12*Input!$C$13 -> 745.1207729 | D12: 2018-02-01T01:00:00 | E12: 550 | F12: =E12*Input!$C$13 -> 850.2415459 | G12: 2018-03-01T01:15:00 | H12: 540 | I12: =H12*Input!$C$13 -> 834.7826087 | J12: 2018-04-01T01:00:00 | K12: 457 | L12: =K12*Input!$C$13 -> 706.47343 | M12: 2018-05-01T01:00:00 | N12: 482 | O12: =N12*Input!$C$13 -> 745.1207729 | P12: 2018-06-01T01:00:00 | Q12: 600 | R12: =Q12*Input!$C$13 -> 927.5362319 | S12: 2018-07-01T01:00:00 | T12: 545 | U12: =T12*Input!$C$13 -> 842.5120773 | V12: 2018-08-01T01:15:00 | W12: 606 | X12: =W12*Input!$C$13 -> 936.8115942 | Y12: 2018-09-01T01:00:00 | Z12: 710 | AA12: =Z12*Input!$C$13 -> 1097.584541 | AB12: 2017-10-01T01:00:00 | AC12: 470 | AD12: =AC12*Input!$C$13 -> 726.5700483 | AE12: 2017-11-01T01:00:00 | AF12: 515 | AG12: =AF12*Input!$C$13 -> 796.1352657 | AH12: 2017-12-01T01:00:00 | AI12: 537 | AJ12: =AI12*Input!$C$13 -> 830.1449275
A13: 2018-01-01T01:15:00 | B13: 477 | C13: =B13*Input!$C$13 -> 737.3913043 | D13: 2018-02-01T01:15:00 | E13: 535 | F13: =E13*Input!$C$13 -> 827.0531401 | G13: 2018-03-01T01:30:00 | H13: 540 | I13: =H13*Input!$C$13 -> 834.7826087 | J13: 2018-04-01T01:15:00 | K13: 515 | L13: =K13*Input!$C$13 -> 796.1352657 | M13: 2018-05-01T01:15:00 | N13: 543 | O13: =N13*Input!$C$13 -> 839.4202899 | P13: 2018-06-01T01:15:00 | Q13: 592 | R13: =Q13*Input!$C$13 -> 915.1690821 | S13: 2018-07-01T01:15:00 | T13: 507 | U13: =T13*Input!$C$13 -> 783.7681159 | V13: 2018-08-01T01:30:00 | W13: 600 | X13: =W13*Input!$C$13 -> 927.5362319 | Y13: 2018-09-01T01:15:00 | Z13: 692 | AA13: =Z13*Input!$C$13 -> 1069.758454 | AB13: 2017-10-01T01:15:00 | AC13: 444 | AD13: =AC13*Input!$C$13 -> 686.3768116 | AE13: 2017-11-01T01:15:00 | AF13: 492 | AG13: =AF13*Input!$C$13 -> 760.5797101 | AH13: 2017-12-01T01:15:00 | AI13: 529 | AJ13: =AI13*Input!$C$13 -> 817.7777778
A14: 2018-01-01T01:30:00 | B14: 519 | C14: =B14*Input!$C$13 -> 802.3188406 | D14: 2018-02-01T01:30:00 | E14: 536 | F14: =E14*Input!$C$13 -> 828.5990338 | G14: 2018-03-01T01:45:00 | H14: 559 | I14: =H14*Input!$C$13 -> 864.1545894 | J14: 2018-04-01T01:30:00 | K14: 520 | L14: =K14*Input!$C$13 -> 803.8647343 | M14: 2018-05-01T01:30:00 | N14: 670 | O14: =N14*Input!$C$13 -> 1035.748792 | P14: 2018-06-01T01:30:00 | Q14: 619 | R14: =Q14*Input!$C$13 -> 956.9082126 | S14: 2018-07-01T01:30:00 | T14: 552 | U14: =T14*Input!$C$13 -> 853.3333333 | V14: 2018-08-01T01:45:00 | W14: 606 | X14: =W14*Input!$C$13 -> 936.8115942 | Y14: 2018-09-01T01:30:00 | Z14: 690 | AA14: =Z14*Input!$C$13 -> 1066.666667 | AB14: 2017-10-01T01:30:00 | AC14: 462 | AD14: =AC14*Input!$C$13 -> 714.2028986 | AE14: 2017-11-01T01:30:00 | AF14: 510 | AG14: =AF14*Input!$C$13 -> 788.4057971 | AH14: 2017-12-01T01:30:00 | AI14: 550 | AJ14: =AI14*Input!$C$13 -> 850.2415459
A15: 2018-01-01T01:45:00 | B15: 490 | C15: =B15*Input!$C$13 -> 757.4879227 | D15: 2018-02-01T01:45:00 | E15: 522 | F15: =E15*Input!$C$13 -> 806.9565217 | G15: 2018-03-01T02:00:00 | H15: 540 | I15: =H15*Input!$C$13 -> 834.7826087 | J15: 2018-04-01T01:45:00 | K15: 484 | L15: =K15*Input!$C$13 -> 748.2125604 | M15: 2018-05-01T01:45:00 | N15: 619 | O15: =N15*Input!$C$13 -> 956.9082126 | P15: 2018-06-01T01:45:00 | Q15: 629 | R15: =Q15*Input!$C$13 -> 972.3671498 | S15: 2018-07-01T01:45:00 | T15: 485 | U15: =T15*Input!$C$13 -> 749.7584541 | V15: 2018-08-01T02:00:00 | W15: 556 | X15: =W15*Input!$C$13 -> 859.5169082 | Y15: 2018-09-01T01:45:00 | Z15: 725 | AA15: =Z15*Input!$C$13 -> 1120.772947 | AB15: 2017-10-01T01:45:00 | AC15: 431 | AD15: =AC15*Input!$C$13 -> 666.2801932 | AE15: 2017-11-01T01:45:00 | AF15: 533 | AG15: =AF15*Input!$C$13 -> 823.9613527 | AH15: 2017-12-01T01:45:00 | AI15: 535 | AJ15: =AI15*Input!$C$13 -> 827.0531401
A16: 2018-01-01T02:00:00 | B16: 516 | C16: =B16*Input!$C$13 -> 797.6811594 | D16: 2018-02-01T02:00:00 | E16: 519 | F16: =E16*Input!$C$13 -> 802.3188406 | G16: 2018-03-01T02:15:00 | H16: 568 | I16: =H16*Input!$C$13 -> 878.0676329 | J16: 2018-04-01T02:00:00 | K16: 459 | L16: =K16*Input!$C$13 -> 709.5652174 | M16: 2018-05-01T02:00:00 | N16: 512 | O16: =N16*Input!$C$13 -> 791.4975845 | P16: 2018-06-01T02:00:00 | Q16: 602 | R16: =Q16*Input!$C$13 -> 930.6280193 | S16: 2018-07-01T02:00:00 | T16: 493 | U16: =T16*Input!$C$13 -> 762.1256039 | V16: 2018-08-01T02:15:00 | W16: 559 | X16: =W16*Input!$C$13 -> 864.1545894 | Y16: 2018-09-01T02:00:00 | Z16: 635 | AA16: =Z16*Input!$C$13 -> 981.6425121 | AB16: 2017-10-01T02:00:00 | AC16: 409 | AD16: =AC16*Input!$C$13 -> 632.2705314 | AE16: 2017-11-01T02:00:00 | AF16: 505 | AG16: =AF16*Input!$C$13 -> 780.6763285 | AH16: 2017-12-01T02:00:00 | AI16: 520 | AJ16: =AI16*Input!$C$13 -> 803.8647343
A17: 2018-01-01T02:15:00 | B17: 539 | C17: =B17*Input!$C$13 -> 833.236715 | D17: 2018-02-01T02:15:00 | E17: 512 | F17: =E17*Input!$C$13 -> 791.4975845 | G17: 2018-03-01T02:30:00 | H17: 549 | I17: =H17*Input!$C$13 -> 848.6956522 | J17: 2018-04-01T02:15:00 | K17: 436 | L17: =K17*Input!$C$13 -> 674.0096618 | M17: 2018-05-01T02:15:00 | N17: 490 | O17: =N17*Input!$C$13 -> 757.4879227 | P17: 2018-06-01T02:15:00 | Q17: 563 | R17: =Q17*Input!$C$13 -> 870.3381643 | S17: 2018-07-01T02:15:00 | T17: 402 | U17: =T17*Input!$C$13 -> 621.4492754 | V17: 2018-08-01T02:30:00 | W17: 552 | X17: =W17*Input!$C$13 -> 853.3333333 | Y17: 2018-09-01T02:15:00 | Z17: 613 | AA17: =Z17*Input!$C$13 -> 947.6328502 | AB17: 2017-10-01T02:15:00 | AC17: 392 | AD17: =AC17*Input!$C$13 -> 605.9903382 | AE17: 2017-11-01T02:15:00 | AF17: 471 | AG17: =AF17*Input!$C$13 -> 728.115942 | AH17: 2017-12-01T02:15:00 | AI17: 491 | AJ17: =AI17*Input!$C$13 -> 759.0338164
A18: 2018-01-01T02:30:00 | B18: 525 | C18: =B18*Input!$C$13 -> 811.5942029 | D18: 2018-02-01T02:30:00 | E18: 530 | F18: =E18*Input!$C$13 -> 819.3236715 | G18: 2018-03-01T02:45:00 | H18: 537 | I18: =H18*Input!$C$13 -> 830.1449275 | J18: 2018-04-01T02:30:00 | K18: 475 | L18: =K18*Input!$C$13 -> 734.2995169 | M18: 2018-05-01T02:30:00 | N18: 590 | O18: =N18*Input!$C$13 -> 912.0772947 | P18: 2018-06-01T02:30:00 | Q18: 617 | R18: =Q18*Input!$C$13 -> 953.8164251 | S18: 2018-07-01T02:30:00 | T18: 462 | U18: =T18*Input!$C$13 -> 714.2028986 | V18: 2018-08-01T02:45:00 | W18: 482 | X18: =W18*Input!$C$13 -> 745.1207729 | Y18: 2018-09-01T02:30:00 | Z18: 623 | AA18: =Z18*Input!$C$13 -> 963.0917874 | AB18: 2017-10-01T02:30:00 | AC18: 392 | AD18: =AC18*Input!$C$13 -> 605.9903382 | AE18: 2017-11-01T02:30:00 | AF18: 481 | AG18: =AF18*Input!$C$13 -> 743.5748792 | AH18: 2017-12-01T02:30:00 | AI18: 525 | AJ18: =AI18*Input!$C$13 -> 811.5942029
A19: 2018-01-01T02:45:00 | B19: 514 | C19: =B19*Input!$C$13 -> 794.589372 | D19: 2018-02-01T02:45:00 | E19: 505 | F19: =E19*Input!$C$13 -> 780.6763285 | G19: 2018-03-01T03:00:00 | H19: 574 | I19: =H19*Input!$C$13 -> 887.3429952 | J19: 2018-04-01T02:45:00 | K19: 462 | L19: =K19*Input!$C$13 -> 714.2028986 | M19: 2018-05-01T02:45:00 | N19: 595 | O19: =N19*Input!$C$13 -> 919.8067633 | P19: 2018-06-01T02:45:00 | Q19: 574 | R19: =Q19*Input!$C$13 -> 887.3429952 | S19: 2018-07-01T02:45:00 | T19: 460 | U19: =T19*Input!$C$13 -> 711.1111111 | V19: 2018-08-01T03:00:00 | W19: 501 | X19: =W19*Input!$C$13 -> 774.4927536 | Y19: 2018-09-01T02:45:00 | Z19: 658 | AA19: =Z19*Input!$C$13 -> 1017.198068 | AB19: 2017-10-01T02:45:00 | AC19: 431 | AD19: =AC19*Input!$C$13 -> 666.2801932 | AE19: 2017-11-01T02:45:00 | AF19: 499 | AG19: =AF19*Input!$C$13 -> 771.4009662 | AH19: 2017-12-01T02:45:00 | AI19: 448 | AJ19: =AI19*Input!$C$13 -> 692.5603865
A20: 2018-01-01T03:00:00 | B20: 507 | C20: =B20*Input!$C$13 -> 783.7681159 | D20: 2018-02-01T03:00:00 | E20: 477 | F20: =E20*Input!$C$13 -> 737.3913043 | G20: 2018-03-01T03:15:00 | H20: 527 | I20: =H20*Input!$C$13 -> 814.6859903 | J20: 2018-04-01T03:00:00 | K20: 407 | L20: =K20*Input!$C$13 -> 629.178744 | M20: 2018-05-01T03:00:00 | N20: 523 | O20: =N20*Input!$C$13 -> 808.5024155 | P20: 2018-06-01T03:00:00 | Q20: 553 | R20: =Q20*Input!$C$13 -> 854.8792271 | S20: 2018-07-01T03:00:00 | T20: 451 | U20: =T20*Input!$C$13 -> 697.1980676 | V20: 2018-08-01T03:15:00 | W20: 473 | X20: =W20*Input!$C$13 -> 731.2077295 | Y20: 2018-09-01T03:00:00 | Z20: 653 | AA20: =Z20*Input!$C$13 -> 1009.468599 | AB20: 2017-10-01T03:00:00 | AC20: 415 | AD20: =AC20*Input!$C$13 -> 641.5458937 | AE20: 2017-11-01T03:00:00 | AF20: 466 | AG20: =AF20*Input!$C$13 -> 720.3864734 | AH20: 2017-12-01T03:00:00 | AI20: 475 | AJ20: =AI20*Input!$C$13 -> 734.2995169
A21: 2018-01-01T03:15:00 | B21: 474 | C21: =B21*Input!$C$13 -> 732.7536232 | D21: 2018-02-01T03:15:00 | E21: 506 | F21: =E21*Input!$C$13 -> 782.2222222 | G21: 2018-03-01T03:30:00 | H21: 583 | I21: =H21*Input!$C$13 -> 901.2560386 | J21: 2018-04-01T03:15:00 | K21: 379 | L21: =K21*Input!$C$13 -> 585.8937198 | M21: 2018-05-01T03:15:00 | N21: 513 | O21: =N21*Input!$C$13 -> 793.0434783 | P21: 2018-06-01T03:15:00 | Q21: 521 | R21: =Q21*Input!$C$13 -> 805.410628 | S21: 2018-07-01T03:15:00 | T21: 481 | U21: =T21*Input!$C$13 -> 743.5748792 | V21: 2018-08-01T03:30:00 | W21: 522 | X21: =W21*Input!$C$13 -> 806.9565217 | Y21: 2018-09-01T03:15:00 | Z21: 634 | AA21: =Z21*Input!$C$13 -> 980.0966184 | AB21: 2017-10-01T03:15:00 | AC21: 427 | AD21: =AC21*Input!$C$13 -> 660.0966184 | AE21: 2017-11-01T03:15:00 | AF21: 438 | AG21: =AF21*Input!$C$13 -> 677.1014493 | AH21: 2017-12-01T03:15:00 | AI21: 478 | AJ21: =AI21*Input!$C$13 -> 738.9371981
A22: 2018-01-01T03:30:00 | B22: 461 | C22: =B22*Input!$C$13 -> 712.6570048 | D22: 2018-02-01T03:30:00 | E22: 462 | F22: =E22*Input!$C$13 -> 714.2028986 | G22: 2018-03-01T03:45:00 | H22: 514 | I22: =H22*Input!$C$13 -> 794.589372 | J22: 2018-04-01T03:30:00 | K22: 388 | L22: =K22*Input!$C$13 -> 599.8067633 | M22: 2018-05-01T03:30:00 | N22: 455 | O22: =N22*Input!$C$13 -> 703.3816425 | P22: 2018-06-01T03:30:00 | Q22: 480 | R22: =Q22*Input!$C$13 -> 742.0289855 | S22: 2018-07-01T03:30:00 | T22: 456 | U22: =T22*Input!$C$13 -> 704.9275362 | V22: 2018-08-01T03:45:00 | W22: 476 | X22: =W22*Input!$C$13 -> 735.8454106 | Y22: 2018-09-01T03:30:00 | Z22: 633 | AA22: =Z22*Input!$C$13 -> 978.5507246 | AB22: 2017-10-01T03:30:00 | AC22: 431 | AD22: =AC22*Input!$C$13 -> 666.2801932 | AE22: 2017-11-01T03:30:00 | AF22: 440 | AG22: =AF22*Input!$C$13 -> 680.1932367 | AH22: 2017-12-01T03:30:00 | AI22: 454 | AJ22: =AI22*Input!$C$13 -> 701.8357488
A23: 2018-01-01T03:45:00 | B23: 489 | C23: =B23*Input!$C$13 -> 755.942029 | D23: 2018-02-01T03:45:00 | E23: 497 | F23: =E23*Input!$C$13 -> 768.3091787 | G23: 2018-03-01T04:00:00 | H23: 526 | I23: =H23*Input!$C$13 -> 813.1400966 | J23: 2018-04-01T03:45:00 | K23: 421 | L23: =K23*Input!$C$13 -> 650.821256 | M23: 2018-05-01T03:45:00 | N23: 435 | O23: =N23*Input!$C$13 -> 672.4637681 | P23: 2018-06-01T03:45:00 | Q23: 485 | R23: =Q23*Input!$C$13 -> 749.7584541 | S23: 2018-07-01T03:45:00 | T23: 450 | U23: =T23*Input!$C$13 -> 695.6521739 | V23: 2018-08-01T04:00:00 | W23: 491 | X23: =W23*Input!$C$13 -> 759.0338164 | Y23: 2018-09-01T03:45:00 | Z23: 620 | AA23: =Z23*Input!$C$13 -> 958.4541063 | AB23: 2017-10-01T03:45:00 | AC23: 448 | AD23: =AC23*Input!$C$13 -> 692.5603865 | AE23: 2017-11-01T03:45:00 | AF23: 432 | AG23: =AF23*Input!$C$13 -> 667.826087 | AH23: 2017-12-01T03:45:00 | AI23: 452 | AJ23: =AI23*Input!$C$13 -> 698.7439614
A24: 2018-01-01T04:00:00 | B24: 476 | C24: =B24*Input!$C$13 -> 735.8454106 | D24: 2018-02-01T04:00:00 | E24: 420 | F24: =E24*Input!$C$13 -> 649.2753623 | G24: 2018-03-01T04:15:00 | H24: 496 | I24: =H24*Input!$C$13 -> 766.763285 | J24: 2018-04-01T04:00:00 | K24: 406 | L24: =K24*Input!$C$13 -> 627.6328502 | M24: 2018-05-01T04:00:00 | N24: 442 | O24: =N24*Input!$C$13 -> 683.2850242 | P24: 2018-06-01T04:00:00 | Q24: 456 | R24: =Q24*Input!$C$13 -> 704.9275362 | S24: 2018-07-01T04:00:00 | T24: 449 | U24: =T24*Input!$C$13 -> 694.1062802 | V24: 2018-08-01T04:15:00 | W24: 450 | X24: =W24*Input!$C$13 -> 695.6521739 | Y24: 2018-09-01T04:00:00 | Z24: 552 | AA24: =Z24*Input!$C$13 -> 853.3333333 | AB24: 2017-10-01T04:00:00 | AC24: 427 | AD24: =AC24*Input!$C$13 -> 660.0966184 | AE24: 2017-11-01T04:00:00 | AF24: 448 | AG24: =AF24*Input!$C$13 -> 692.5603865 | AH24: 2017-12-01T04:00:00 | AI24: 452 | AJ24: =AI24*Input!$C$13 -> 698.7439614
A25: 2018-01-01T04:15:00 | B25: 458 | C25: =B25*Input!$C$13 -> 708.0193237 | D25: 2018-02-01T04:15:00 | E25: 393 | F25: =E25*Input!$C$13 -> 607.5362319 | G25: 2018-03-01T04:30:00 | H25: 517 | I25: =H25*Input!$C$13 -> 799.2270531 | J25: 2018-04-01T04:15:00 | K25: 376 | L25: =K25*Input!$C$13 -> 581.2560386 | M25: 2018-05-01T04:15:00 | N25: 485 | O25: =N25*Input!$C$13 -> 749.7584541 | P25: 2018-06-01T04:15:00 | Q25: 445 | R25: =Q25*Input!$C$13 -> 687.9227053 | S25: 2018-07-01T04:15:00 | T25: 433 | U25: =T25*Input!$C$13 -> 669.3719807 | V25: 2018-08-01T04:30:00 | W25: 499 | X25: =W25*Input!$C$13 -> 771.4009662 | Y25: 2018-09-01T04:15:00 | Z25: 523 | AA25: =Z25*Input!$C$13 -> 808.5024155 | AB25: 2017-10-01T04:15:00 | AC25: 367 | AD25: =AC25*Input!$C$13 -> 567.3429952 | AE25: 2017-11-01T04:15:00 | AF25: 425 | AG25: =AF25*Input!$C$13 -> 657.0048309 | AH25: 2017-12-01T04:15:00 | AI25: 429 | AJ25: =AI25*Input!$C$13 -> 663.1884058
A26: 2018-01-01T04:30:00 | B26: 468 | C26: =B26*Input!$C$13 -> 723.4782609 | D26: 2018-02-01T04:30:00 | E26: 398 | F26: =E26*Input!$C$13 -> 615.2657005 | G26: 2018-03-01T04:45:00 | H26: 498 | I26: =H26*Input!$C$13 -> 769.8550725 | J26: 2018-04-01T04:30:00 | K26: 407 | L26: =K26*Input!$C$13 -> 629.178744 | M26: 2018-05-01T04:30:00 | N26: 525 | O26: =N26*Input!$C$13 -> 811.5942029 | P26: 2018-06-01T04:30:00 | Q26: 471 | R26: =Q26*Input!$C$13 -> 728.115942 | S26: 2018-07-01T04:30:00 | T26: 458 | U26: =T26*Input!$C$13 -> 708.0193237 | V26: 2018-08-01T04:45:00 | W26: 516 | X26: =W26*Input!$C$13 -> 797.6811594 | Y26: 2018-09-01T04:30:00 | Z26: 544 | AA26: =Z26*Input!$C$13 -> 840.9661836 | AB26: 2017-10-01T04:30:00 | AC26: 386 | AD26: =AC26*Input!$C$13 -> 596.7149758 | AE26: 2017-11-01T04:30:00 | AF26: 432 | AG26: =AF26*Input!$C$13 -> 667.826087 | AH26: 2017-12-01T04:30:00 | AI26: 396 | AJ26: =AI26*Input!$C$13 -> 612.173913
A27: 2018-01-01T04:45:00 | B27: 475 | C27: =B27*Input!$C$13 -> 734.2995169 | D27: 2018-02-01T04:45:00 | E27: 405 | F27: =E27*Input!$C$13 -> 626.0869565 | G27: 2018-03-01T05:00:00 | H27: 439 | I27: =H27*Input!$C$13 -> 678.647343 | J27: 2018-04-01T04:45:00 | K27: 421 | L27: =K27*Input!$C$13 -> 650.821256 | M27: 2018-05-01T04:45:00 | N27: 433 | O27: =N27*Input!$C$13 -> 669.3719807 | P27: 2018-06-01T04:45:00 | Q27: 445 | R27: =Q27*Input!$C$13 -> 687.9227053 | S27: 2018-07-01T04:45:00 | T27: 469 | U27: =T27*Input!$C$13 -> 725.0241546 | V27: 2018-08-01T05:00:00 | W27: 477 | X27: =W27*Input!$C$13 -> 737.3913043 | Y27: 2018-09-01T04:45:00 | Z27: 590 | AA27: =Z27*Input!$C$13 -> 912.0772947 | AB27: 2017-10-01T04:45:00 | AC27: 380 | AD27: =AC27*Input!$C$13 -> 587.4396135 | AE27: 2017-11-01T04:45:00 | AF27: 424 | AG27: =AF27*Input!$C$13 -> 655.4589372 | AH27: 2017-12-01T04:45:00 | AI27: 409 | AJ27: =AI27*Input!$C$13 -> 632.2705314
A28: 2018-01-01T05:00:00 | B28: 475 | C28: =B28*Input!$C$13 -> 734.2995169 | D28: 2018-02-01T05:00:00 | E28: 407 | F28: =E28*Input!$C$13 -> 629.178744 | G28: 2018-03-01T05:15:00 | H28: 450 | I28: =H28*Input!$C$13 -> 695.6521739 | J28: 2018-04-01T05:00:00 | K28: 330 | L28: =K28*Input!$C$13 -> 510.1449275 | M28: 2018-05-01T05:00:00 | N28: 424 | O28: =N28*Input!$C$13 -> 655.4589372 | P28: 2018-06-01T05:00:00 | Q28: 434 | R28: =Q28*Input!$C$13 -> 670.9178744 | S28: 2018-07-01T05:00:00 | T28: 420 | U28: =T28*Input!$C$13 -> 649.2753623 | V28: 2018-08-01T05:15:00 | W28: 421 | X28: =W28*Input!$C$13 -> 650.821256 | Y28: 2018-09-01T05:00:00 | Z28: 549 | AA28: =Z28*Input!$C$13 -> 848.6956522 | AB28: 2017-10-01T05:00:00 | AC28: 420 | AD28: =AC28*Input!$C$13 -> 649.2753623 | AE28: 2017-11-01T05:00:00 | AF28: 410 | AG28: =AF28*Input!$C$13 -> 633.8164251 | AH28: 2017-12-01T05:00:00 | AI28: 434 | AJ28: =AI28*Input!$C$13 -> 670.9178744
A29: 2018-01-01T05:15:00 | B29: 475 | C29: =B29*Input!$C$13 -> 734.2995169 | D29: 2018-02-01T05:15:00 | E29: 395 | F29: =E29*Input!$C$13 -> 610.6280193 | G29: 2018-03-01T05:30:00 | H29: 378 | I29: =H29*Input!$C$13 -> 584.3478261 | J29: 2018-04-01T05:15:00 | K29: 355 | L29: =K29*Input!$C$13 -> 548.7922705 | M29: 2018-05-01T05:15:00 | N29: 504 | O29: =N29*Input!$C$13 -> 779.1304348 | P29: 2018-06-01T05:15:00 | Q29: 387 | R29: =Q29*Input!$C$13 -> 598.2608696 | S29: 2018-07-01T05:15:00 | T29: 399 | U29: =T29*Input!$C$13 -> 616.8115942 | V29: 2018-08-01T05:30:00 | W29: 495 | X29: =W29*Input!$C$13 -> 765.2173913 | Y29: 2018-09-01T05:15:00 | Z29: 526 | AA29: =Z29*Input!$C$13 -> 813.1400966 | AB29: 2017-10-01T05:15:00 | AC29: 396 | AD29: =AC29*Input!$C$13 -> 612.173913 | AE29: 2017-11-01T05:15:00 | AF29: 407 | AG29: =AF29*Input!$C$13 -> 629.178744 | AH29: 2017-12-01T05:15:00 | AI29: 444 | AJ29: =AI29*Input!$C$13 -> 686.3768116
A30: 2018-01-01T05:30:00 | B30: 494 | C30: =B30*Input!$C$13 -> 763.6714976 | D30: 2018-02-01T05:30:00 | E30: 404 | F30: =E30*Input!$C$13 -> 624.5410628 | G30: 2018-03-01T05:45:00 | H30: 460 | I30: =H30*Input!$C$13 -> 711.1111111 | J30: 2018-04-01T05:30:00 | K30: 416 | L30: =K30*Input!$C$13 -> 643.0917874 | M30: 2018-05-01T05:30:00 | N30: 461 | O30: =N30*Input!$C$13 -> 712.6570048 | P30: 2018-06-01T05:30:00 | Q30: 440 | R30: =Q30*Input!$C$13 -> 680.1932367 | S30: 2018-07-01T05:30:00 | T30: 379 | U30: =T30*Input!$C$13 -> 585.8937198 | V30: 2018-08-01T05:45:00 | W30: 554 | X30: =W30*Input!$C$13 -> 856.4251208 | Y30: 2018-09-01T05:30:00 | Z30: 573 | AA30: =Z30*Input!$C$13 -> 885.7971014 | AB30: 2017-10-01T05:30:00 | AC30: 414 | AD30: =AC30*Input!$C$13 -> 640 | AE30: 2017-11-01T05:30:00 | AF30: 422 | AG30: =AF30*Input!$C$13 -> 652.3671498 | AH30: 2017-12-01T05:30:00 | AI30: 445 | AJ30: =AI30*Input!$C$13 -> 687.9227053
A31: 2018-01-01T05:45:00 | B31: 523 | C31: =B31*Input!$C$13 -> 808.5024155 | D31: 2018-02-01T05:45:00 | E31: 416 | F31: =E31*Input!$C$13 -> 643.0917874 | G31: 2018-03-01T06:00:00 | H31: 527 | I31: =H31*Input!$C$13 -> 814.6859903 | J31: 2018-04-01T05:45:00 | K31: 382 | L31: =K31*Input!$C$13 -> 590.531401 | M31: 2018-05-01T05:45:00 | N31: 447 | O31: =N31*Input!$C$13 -> 691.0144928 | P31: 2018-06-01T05:45:00 | Q31: 385 | R31: =Q31*Input!$C$13 -> 595.1690821 | S31: 2018-07-01T05:45:00 | T31: 451 | U31: =T31*Input!$C$13 -> 697.1980676 | V31: 2018-08-01T06:00:00 | W31: 538 | X31: =W31*Input!$C$13 -> 831.6908213 | Y31: 2018-09-01T05:45:00 | Z31: 566 | AA31: =Z31*Input!$C$13 -> 874.9758454 | AB31: 2017-10-01T05:45:00 | AC31: 418 | AD31: =AC31*Input!$C$13 -> 646.1835749 | AE31: 2017-11-01T05:45:00 | AF31: 460 | AG31: =AF31*Input!$C$13 -> 711.1111111 | AH31: 2017-12-01T05:45:00 | AI31: 493 | AJ31: =AI31*Input!$C$13 -> 762.1256039
A32: 2018-01-01T06:00:00 | B32: 433 | C32: =B32*Input!$C$13 -> 669.3719807 | D32: 2018-02-01T06:00:00 | E32: 450 | F32: =E32*Input!$C$13 -> 695.6521739 | G32: 2018-03-01T06:15:00 | H32: 463 | I32: =H32*Input!$C$13 -> 715.7487923 | J32: 2018-04-01T06:00:00 | K32: 392 | L32: =K32*Input!$C$13 -> 605.9903382 | M32: 2018-05-01T06:00:00 | N32: 466 | O32: =N32*Input!$C$13 -> 720.3864734 | P32: 2018-06-01T06:00:00 | Q32: 381 | R32: =Q32*Input!$C$13 -> 588.9855072 | S32: 2018-07-01T06:00:00 | T32: 421 | U32: =T32*Input!$C$13 -> 650.821256 | V32: 2018-08-01T06:15:00 | W32: 569 | X32: =W32*Input!$C$13 -> 879.6135266 | Y32: 2018-09-01T06:00:00 | Z32: 626 | AA32: =Z32*Input!$C$13 -> 967.7294686 | AB32: 2017-10-01T06:00:00 | AC32: 448 | AD32: =AC32*Input!$C$13 -> 692.5603865 | AE32: 2017-11-01T06:00:00 | AF32: 465 | AG32: =AF32*Input!$C$13 -> 718.8405797 | AH32: 2017-12-01T06:00:00 | AI32: 496 | AJ32: =AI32*Input!$C$13 -> 766.763285
A33: 2018-01-01T06:15:00 | B33: 482 | C33: =B33*Input!$C$13 -> 745.1207729 | D33: 2018-02-01T06:15:00 | E33: 459 | F33: =E33*Input!$C$13 -> 709.5652174 | G33: 2018-03-01T06:30:00 | H33: 597 | I33: =H33*Input!$C$13 -> 922.8985507 | J33: 2018-04-01T06:15:00 | K33: 411 | L33: =K33*Input!$C$13 -> 635.3623188 | M33: 2018-05-01T06:15:00 | N33: 448 | O33: =N33*Input!$C$13 -> 692.5603865 | P33: 2018-06-01T06:15:00 | Q33: 487 | R33: =Q33*Input!$C$13 -> 752.8502415 | S33: 2018-07-01T06:15:00 | T33: 378 | U33: =T33*Input!$C$13 -> 584.3478261 | V33: 2018-08-01T06:30:00 | W33: 565 | X33: =W33*Input!$C$13 -> 873.4299517 | Y33: 2018-09-01T06:15:00 | Z33: 592 | AA33: =Z33*Input!$C$13 -> 915.1690821 | AB33: 2017-10-01T06:15:00 | AC33: 462 | AD33: =AC33*Input!$C$13 -> 714.2028986 | AE33: 2017-11-01T06:15:00 | AF33: 504 | AG33: =AF33*Input!$C$13 -> 779.1304348 | AH33: 2017-12-01T06:15:00 | AI33: 476 | AJ33: =AI33*Input!$C$13 -> 735.8454106
A34: 2018-01-01T06:30:00 | B34: 521 | C34: =B34*Input!$C$13 -> 805.410628 | D34: 2018-02-01T06:30:00 | E34: 482 | F34: =E34*Input!$C$13 -> 745.1207729 | G34: 2018-03-01T06:45:00 | H34: 524 | I34: =H34*Input!$C$13 -> 810.0483092 | J34: 2018-04-01T06:30:00 | K34: 491 | L34: =K34*Input!$C$13 -> 759.0338164 | M34: 2018-05-01T06:30:00 | N34: 505 | O34: =N34*Input!$C$13 -> 780.6763285 | P34: 2018-06-01T06:30:00 | Q34: 485 | R34: =Q34*Input!$C$13 -> 749.7584541 | S34: 2018-07-01T06:30:00 | T34: 373 | U34: =T34*Input!$C$13 -> 576.6183575 | V34: 2018-08-01T06:45:00 | W34: 576 | X34: =W34*Input!$C$13 -> 890.4347826 | Y34: 2018-09-01T06:30:00 | Z34: 644 | AA34: =Z34*Input!$C$13 -> 995.5555556 | AB34: 2017-10-01T06:30:00 | AC34: 500 | AD34: =AC34*Input!$C$13 -> 772.9468599 | AE34: 2017-11-01T06:30:00 | AF34: 502 | AG34: =AF34*Input!$C$13 -> 776.0386473 | AH34: 2017-12-01T06:30:00 | AI34: 513 | AJ34: =AI34*Input!$C$13 -> 793.0434783
A35: 2018-01-01T06:45:00 | B35: 452 | C35: =B35*Input!$C$13 -> 698.7439614 | D35: 2018-02-01T06:45:00 | E35: 495 | F35: =E35*Input!$C$13 -> 765.2173913 | G35: 2018-03-01T07:00:00 | H35: 569 | I35: =H35*Input!$C$13 -> 879.6135266 | J35: 2018-04-01T06:45:00 | K35: 423 | L35: =K35*Input!$C$13 -> 653.9130435 | M35: 2018-05-01T06:45:00 | N35: 489 | O35: =N35*Input!$C$13 -> 755.942029 | P35: 2018-06-01T06:45:00 | Q35: 551 | R35: =Q35*Input!$C$13 -> 851.7874396 | S35: 2018-07-01T06:45:00 | T35: 448 | U35: =T35*Input!$C$13 -> 692.5603865 | V35: 2018-08-01T07:00:00 | W35: 575 | X35: =W35*Input!$C$13 -> 888.8888889 | Y35: 2018-09-01T06:45:00 | Z35: 626 | AA35: =Z35*Input!$C$13 -> 967.7294686 | AB35: 2017-10-01T06:45:00 | AC35: 464 | AD35: =AC35*Input!$C$13 -> 717.294686 | AE35: 2017-11-01T06:45:00 | AF35: 499 | AG35: =AF35*Input!$C$13 -> 771.4009662 | AH35: 2017-12-01T06:45:00 | AI35: 513 | AJ35: =AI35*Input!$C$13 -> 793.0434783
A36: 2018-01-01T07:00:00 | B36: 469 | C36: =B36*Input!$C$13 -> 725.0241546 | D36: 2018-02-01T07:00:00 | E36: 513 | F36: =E36*Input!$C$13 -> 793.0434783 | G36: 2018-03-01T07:15:00 | H36: 563 | I36: =H36*Input!$C$13 -> 870.3381643 | J36: 2018-04-01T07:00:00 | K36: 405 | L36: =K36*Input!$C$13 -> 626.0869565 | M36: 2018-05-01T07:00:00 | N36: 450 | O36: =N36*Input!$C$13 -> 695.6521739 | P36: 2018-06-01T07:00:00 | Q36: 546 | R36: =Q36*Input!$C$13 -> 844.057971 | S36: 2018-07-01T07:00:00 | T36: 467 | U36: =T36*Input!$C$13 -> 721.9323671 | V36: 2018-08-01T07:15:00 | W36: 552 | X36: =W36*Input!$C$13 -> 853.3333333 | Y36: 2018-09-01T07:00:00 | Z36: 629 | AA36: =Z36*Input!$C$13 -> 972.3671498 | AB36: 2017-10-01T07:00:00 | AC36: 478 | AD36: =AC36*Input!$C$13 -> 738.9371981 | AE36: 2017-11-01T07:00:00 | AF36: 513 | AG36: =AF36*Input!$C$13 -> 793.0434783 | AH36: 2017-12-01T07:00:00 | AI36: 541 | AJ36: =AI36*Input!$C$13 -> 836.3285024
A37: 2018-01-01T07:15:00 | B37: 464 | C37: =B37*Input!$C$13 -> 717.294686 | D37: 2018-02-01T07:15:00 | E37: 527 | F37: =E37*Input!$C$13 -> 814.6859903 | G37: 2018-03-01T07:30:00 | H37: 616 | I37: =H37*Input!$C$13 -> 952.2705314 | J37: 2018-04-01T07:15:00 | K37: 472 | L37: =K37*Input!$C$13 -> 729.6618357 | M37: 2018-05-01T07:15:00 | N37: 551 | O37: =N37*Input!$C$13 -> 851.7874396 | P37: 2018-06-01T07:15:00 | Q37: 517 | R37: =Q37*Input!$C$13 -> 799.2270531 | S37: 2018-07-01T07:15:00 | T37: 490 | U37: =T37*Input!$C$13 -> 757.4879227 | V37: 2018-08-01T07:30:00 | W37: 578 | X37: =W37*Input!$C$13 -> 893.52657 | Y37: 2018-09-01T07:15:00 | Z37: 642 | AA37: =Z37*Input!$C$13 -> 992.4637681 | AB37: 2017-10-01T07:15:00 | AC37: 467 | AD37: =AC37*Input!$C$13 -> 721.9323671 | AE37: 2017-11-01T07:15:00 | AF37: 514 | AG37: =AF37*Input!$C$13 -> 794.589372 | AH37: 2017-12-01T07:15:00 | AI37: 532 | AJ37: =AI37*Input!$C$13 -> 822.4154589
A38: 2018-01-01T07:30:00 | B38: 492 | C38: =B38*Input!$C$13 -> 760.5797101 | D38: 2018-02-01T07:30:00 | E38: 541 | F38: =E38*Input!$C$13 -> 836.3285024 | G38: 2018-03-01T07:45:00 | H38: 602 | I38: =H38*Input!$C$13 -> 930.6280193 | J38: 2018-04-01T07:30:00 | K38: 516 | L38: =K38*Input!$C$13 -> 797.6811594 | M38: 2018-05-01T07:30:00 | N38: 530 | O38: =N38*Input!$C$13 -> 819.3236715 | P38: 2018-06-01T07:30:00 | Q38: 551 | R38: =Q38*Input!$C$13 -> 851.7874396 | S38: 2018-07-01T07:30:00 | T38: 519 | U38: =T38*Input!$C$13 -> 802.3188406 | V38: 2018-08-01T07:45:00 | W38: 579 | X38: =W38*Input!$C$13 -> 895.0724638 | Y38: 2018-09-01T07:30:00 | Z38: 663 | AA38: =Z38*Input!$C$13 -> 1024.927536 | AB38: 2017-10-01T07:30:00 | AC38: 468 | AD38: =AC38*Input!$C$13 -> 723.4782609 | AE38: 2017-11-01T07:30:00 | AF38: 521 | AG38: =AF38*Input!$C$13 -> 805.410628 | AH38: 2017-12-01T07:30:00 | AI38: 523 | AJ38: =AI38*Input!$C$13 -> 808.5024155
A39: 2018-01-01T07:45:00 | B39: 462 | C39: =B39*Input!$C$13 -> 714.2028986 | D39: 2018-02-01T07:45:00 | E39: 554 | F39: =E39*Input!$C$13 -> 856.4251208 | G39: 2018-03-01T08:00:00 | H39: 490 | I39: =H39*Input!$C$13 -> 757.4879227 | J39: 2018-04-01T07:45:00 | K39: 497 | L39: =K39*Input!$C$13 -> 768.3091787 | M39: 2018-05-01T07:45:00 | N39: 543 | O39: =N39*Input!$C$13 -> 839.4202899 | P39: 2018-06-01T07:45:00 | Q39: 594 | R39: =Q39*Input!$C$13 -> 918.2608696 | S39: 2018-07-01T07:45:00 | T39: 492 | U39: =T39*Input!$C$13 -> 760.5797101 | V39: 2018-08-01T08:00:00 | W39: 568 | X39: =W39*Input!$C$13 -> 878.0676329 | Y39: 2018-09-01T07:45:00 | Z39: 640 | AA39: =Z39*Input!$C$13 -> 989.3719807 | AB39: 2017-10-01T07:45:00 | AC39: 481 | AD39: =AC39*Input!$C$13 -> 743.5748792 | AE39: 2017-11-01T07:45:00 | AF39: 545 | AG39: =AF39*Input!$C$13 -> 842.5120773 | AH39: 2017-12-01T07:45:00 | AI39: 521 | AJ39: =AI39*Input!$C$13 -> 805.410628
A40: 2018-01-01T08:00:00 | B40: 467 | C40: =B40*Input!$C$13 -> 721.9323671 | D40: 2018-02-01T08:00:00 | E40: 535 | F40: =E40*Input!$C$13 -> 827.0531401 | G40: 2018-03-01T08:15:00 | H40: 577 | I40: =H40*Input!$C$13 -> 891.9806763 | J40: 2018-04-01T08:00:00 | K40: 511 | L40: =K40*Input!$C$13 -> 789.9516908 | M40: 2018-05-01T08:00:00 | N40: 564 | O40: =N40*Input!$C$13 -> 871.884058 | P40: 2018-06-01T08:00:00 | Q40: 591 | R40: =Q40*Input!$C$13 -> 913.6231884 | S40: 2018-07-01T08:00:00 | T40: 530 | U40: =T40*Input!$C$13 -> 819.3236715 | V40: 2018-08-01T08:15:00 | W40: 588 | X40: =W40*Input!$C$13 -> 908.9855072 | Y40: 2018-09-01T08:00:00 | Z40: 635 | AA40: =Z40*Input!$C$13 -> 981.6425121 | AB40: 2017-10-01T08:00:00 | AC40: 477 | AD40: =AC40*Input!$C$13 -> 737.3913043 | AE40: 2017-11-01T08:00:00 | AF40: 566 | AG40: =AF40*Input!$C$13 -> 874.9758454 | AH40: 2017-12-01T08:00:00 | AI40: 540 | AJ40: =AI40*Input!$C$13 -> 834.7826087
A41: 2018-01-01T08:15:00 | B41: 481 | C41: =B41*Input!$C$13 -> 743.5748792 | D41: 2018-02-01T08:15:00 | E41: 539 | F41: =E41*Input!$C$13 -> 833.236715 | G41: 2018-03-01T08:30:00 | H41: 681 | I41: =H41*Input!$C$13 -> 1052.753623 | J41: 2018-04-01T08:15:00 | K41: 569 | L41: =K41*Input!$C$13 -> 879.6135266 | M41: 2018-05-01T08:15:00 | N41: 538 | O41: =N41*Input!$C$13 -> 831.6908213 | P41: 2018-06-01T08:15:00 | Q41: 652 | R41: =Q41*Input!$C$13 -> 1007.922705 | S41: 2018-07-01T08:15:00 | T41: 453 | U41: =T41*Input!$C$13 -> 700.2898551 | V41: 2018-08-01T08:30:00 | W41: 572 | X41: =W41*Input!$C$13 -> 884.2512077 | Y41: 2018-09-01T08:15:00 | Z41: 627 | AA41: =Z41*Input!$C$13 -> 969.2753623 | AB41: 2017-10-01T08:15:00 | AC41: 497 | AD41: =AC41*Input!$C$13 -> 768.3091787 | AE41: 2017-11-01T08:15:00 | AF41: 692 | AG41: =AF41*Input!$C$13 -> 1069.758454 | AH41: 2017-12-01T08:15:00 | AI41: 566 | AJ41: =AI41*Input!$C$13 -> 874.9758454
A42: 2018-01-01T08:30:00 | B42: 558 | C42: =B42*Input!$C$13 -> 862.6086957 | D42: 2018-02-01T08:30:00 | E42: 641 | F42: =E42*Input!$C$13 -> 990.9178744 | G42: 2018-03-01T08:45:00 | H42: 580 | I42: =H42*Input!$C$13 -> 896.6183575 | J42: 2018-04-01T08:30:00 | K42: 574 | L42: =K42*Input!$C$13 -> 887.3429952 | M42: 2018-05-01T08:30:00 | N42: 619 | O42: =N42*Input!$C$13 -> 956.9082126 | P42: 2018-06-01T08:30:00 | Q42: 732 | R42: =Q42*Input!$C$13 -> 1131.594203 | S42: 2018-07-01T08:30:00 | T42: 519 | U42: =T42*Input!$C$13 -> 802.3188406 | V42: 2018-08-01T08:45:00 | W42: 638 | X42: =W42*Input!$C$13 -> 986.2801932 | Y42: 2018-09-01T08:30:00 | Z42: 681 | AA42: =Z42*Input!$C$13 -> 1052.753623 | AB42: 2017-10-01T08:30:00 | AC42: 562 | AD42: =AC42*Input!$C$13 -> 868.7922705 | AE42: 2017-11-01T08:30:00 | AF42: 647 | AG42: =AF42*Input!$C$13 -> 1000.193237 | AH42: 2017-12-01T08:30:00 | AI42: 568 | AJ42: =AI42*Input!$C$13 -> 878.0676329
A43: 2018-01-01T08:45:00 | B43: 484 | C43: =B43*Input!$C$13 -> 748.2125604 | D43: 2018-02-01T08:45:00 | E43: 569 | F43: =E43*Input!$C$13 -> 879.6135266 | G43: 2018-03-01T09:00:00 | H43: 592 | I43: =H43*Input!$C$13 -> 915.1690821 | J43: 2018-04-01T08:45:00 | K43: 536 | L43: =K43*Input!$C$13 -> 828.5990338 | M43: 2018-05-01T08:45:00 | N43: 611 | O43: =N43*Input!$C$13 -> 944.5410628 | P43: 2018-06-01T08:45:00 | Q43: 780 | R43: =Q43*Input!$C$13 -> 1205.797101 | S43: 2018-07-01T08:45:00 | T43: 533 | U43: =T43*Input!$C$13 -> 823.9613527 | V43: 2018-08-01T09:00:00 | W43: 640 | X43: =W43*Input!$C$13 -> 989.3719807 | Y43: 2018-09-01T08:45:00 | Z43: 697 | AA43: =Z43*Input!$C$13 -> 1077.487923 | AB43: 2017-10-01T08:45:00 | AC43: 512 | AD43: =AC43*Input!$C$13 -> 791.4975845 | AE43: 2017-11-01T08:45:00 | AF43: 605 | AG43: =AF43*Input!$C$13 -> 935.2657005 | AH43: 2017-12-01T08:45:00 | AI43: 637 | AJ43: =AI43*Input!$C$13 -> 984.7342995
A44: 2018-01-01T09:00:00 | B44: 467 | C44: =B44*Input!$C$13 -> 721.9323671 | D44: 2018-02-01T09:00:00 | E44: 511 | F44: =E44*Input!$C$13 -> 789.9516908 | G44: 2018-03-01T09:15:00 | H44: 603 | I44: =H44*Input!$C$13 -> 932.173913 | J44: 2018-04-01T09:00:00 | K44: 462 | L44: =K44*Input!$C$13 -> 714.2028986 | M44: 2018-05-01T09:00:00 | N44: 591 | O44: =N44*Input!$C$13 -> 913.6231884 | P44: 2018-06-01T09:00:00 | Q44: 760 | R44: =Q44*Input!$C$13 -> 1174.879227 | S44: 2018-07-01T09:00:00 | T44: 517 | U44: =T44*Input!$C$13 -> 799.2270531 | V44: 2018-08-01T09:15:00 | W44: 621 | X44: =W44*Input!$C$13 -> 960 | Y44: 2018-09-01T09:00:00 | Z44: 669 | AA44: =Z44*Input!$C$13 -> 1034.202899 | AB44: 2017-10-01T09:00:00 | AC44: 464 | AD44: =AC44*Input!$C$13 -> 717.294686 | AE44: 2017-11-01T09:00:00 | AF44: 586 | AG44: =AF44*Input!$C$13 -> 905.8937198 | AH44: 2017-12-01T09:00:00 | AI44: 563 | AJ44: =AI44*Input!$C$13 -> 870.3381643
A45: 2018-01-01T09:15:00 | B45: 527 | C45: =B45*Input!$C$13 -> 814.6859903 | D45: 2018-02-01T09:15:00 | E45: 474 | F45: =E45*Input!$C$13 -> 732.7536232 | G45: 2018-03-01T09:30:00 | H45: 579 | I45: =H45*Input!$C$13 -> 895.0724638 | J45: 2018-04-01T09:15:00 | K45: 516 | L45: =K45*Input!$C$13 -> 797.6811594 | M45: 2018-05-01T09:15:00 | N45: 584 | O45: =N45*Input!$C$13 -> 902.8019324 | P45: 2018-06-01T09:15:00 | Q45: 742 | R45: =Q45*Input!$C$13 -> 1147.05314 | S45: 2018-07-01T09:15:00 | T45: 524 | U45: =T45*Input!$C$13 -> 810.0483092 | V45: 2018-08-01T09:30:00 | W45: 698 | X45: =W45*Input!$C$13 -> 1079.033816 | Y45: 2018-09-01T09:15:00 | Z45: 677 | AA45: =Z45*Input!$C$13 -> 1046.570048 | AB45: 2017-10-01T09:15:00 | AC45: 527 | AD45: =AC45*Input!$C$13 -> 814.6859903 | AE45: 2017-11-01T09:15:00 | AF45: 580 | AG45: =AF45*Input!$C$13 -> 896.6183575 | AH45: 2017-12-01T09:15:00 | AI45: 561 | AJ45: =AI45*Input!$C$13 -> 867.2463768
A46: 2018-01-01T09:30:00 | B46: 497 | C46: =B46*Input!$C$13 -> 768.3091787 | D46: 2018-02-01T09:30:00 | E46: 606 | F46: =E46*Input!$C$13 -> 936.8115942 | G46: 2018-03-01T09:45:00 | H46: 585 | I46: =H46*Input!$C$13 -> 904.3478261 | J46: 2018-04-01T09:30:00 | K46: 539 | L46: =K46*Input!$C$13 -> 833.236715 | M46: 2018-05-01T09:30:00 | N46: 683 | O46: =N46*Input!$C$13 -> 1055.845411 | P46: 2018-06-01T09:30:00 | Q46: 754 | R46: =Q46*Input!$C$13 -> 1165.603865 | S46: 2018-07-01T09:30:00 | T46: 636 | U46: =T46*Input!$C$13 -> 983.1884058 | V46: 2018-08-01T09:45:00 | W46: 689 | X46: =W46*Input!$C$13 -> 1065.120773 | Y46: 2018-09-01T09:30:00 | Z46: 796 | AA46: =Z46*Input!$C$13 -> 1230.531401 | AB46: 2017-10-01T09:30:00 | AC46: 597 | AD46: =AC46*Input!$C$13 -> 922.8985507 | AE46: 2017-11-01T09:30:00 | AF46: 607 | AG46: =AF46*Input!$C$13 -> 938.3574879 | AH46: 2017-12-01T09:30:00 | AI46: 631 | AJ46: =AI46*Input!$C$13 -> 975.4589372
A47: 2018-01-01T09:45:00 | B47: 496 | C47: =B47*Input!$C$13 -> 766.763285 | D47: 2018-02-01T09:45:00 | E47: 557 | F47: =E47*Input!$C$13 -> 861.0628019 | G47: 2018-03-01T10:00:00 | H47: 594 | I47: =H47*Input!$C$13 -> 918.2608696 | J47: 2018-04-01T09:45:00 | K47: 490 | L47: =K47*Input!$C$13 -> 757.4879227 | M47: 2018-05-01T09:45:00 | N47: 659 | O47: =N47*Input!$C$13 -> 1018.743961 | P47: 2018-06-01T09:45:00 | Q47: 714 | R47: =Q47*Input!$C$13 -> 1103.768116 | S47: 2018-07-01T09:45:00 | T47: 649 | U47: =T47*Input!$C$13 -> 1003.285024 | V47: 2018-08-01T10:00:00 | W47: 663 | X47: =W47*Input!$C$13 -> 1024.927536 | Y47: 2018-09-01T09:45:00 | Z47: 803 | AA47: =Z47*Input!$C$13 -> 1241.352657 | AB47: 2017-10-01T09:45:00 | AC47: 599 | AD47: =AC47*Input!$C$13 -> 925.9903382 | AE47: 2017-11-01T09:45:00 | AF47: 621 | AG47: =AF47*Input!$C$13 -> 960 | AH47: 2017-12-01T09:45:00 | AI47: 671 | AJ47: =AI47*Input!$C$13 -> 1037.294686
A48: 2018-01-01T10:00:00 | B48: 479 | C48: =B48*Input!$C$13 -> 740.4830918 | D48: 2018-02-01T10:00:00 | E48: 619 | F48: =E48*Input!$C$13 -> 956.9082126 | G48: 2018-03-01T10:15:00 | H48: 549 | I48: =H48*Input!$C$13 -> 848.6956522 | J48: 2018-04-01T10:00:00 | K48: 447 | L48: =K48*Input!$C$13 -> 691.0144928 | M48: 2018-05-01T10:00:00 | N48: 638 | O48: =N48*Input!$C$13 -> 986.2801932 | P48: 2018-06-01T10:00:00 | Q48: 739 | R48: =Q48*Input!$C$13 -> 1142.415459 | S48: 2018-07-01T10:00:00 | T48: 629 | U48: =T48*Input!$C$13 -> 972.3671498 | V48: 2018-08-01T10:15:00 | W48: 771 | X48: =W48*Input!$C$13 -> 1191.884058 | Y48: 2018-09-01T10:00:00 | Z48: 770 | AA48: =Z48*Input!$C$13 -> 1190.338164 | AB48: 2017-10-01T10:00:00 | AC48: 581 | AD48: =AC48*Input!$C$13 -> 898.1642512 | AE48: 2017-11-01T10:00:00 | AF48: 596 | AG48: =AF48*Input!$C$13 -> 921.352657 | AH48: 2017-12-01T10:00:00 | AI48: 562 | AJ48: =AI48*Input!$C$13 -> 868.7922705
A49: 2018-01-01T10:15:00 | B49: 418 | C49: =B49*Input!$C$13 -> 646.1835749 | D49: 2018-02-01T10:15:00 | E49: 636 | F49: =E49*Input!$C$13 -> 983.1884058 | G49: 2018-03-01T10:30:00 | H49: 654 | I49: =H49*Input!$C$13 -> 1011.014493 | J49: 2018-04-01T10:15:00 | K49: 523 | L49: =K49*Input!$C$13 -> 808.5024155 | M49: 2018-05-01T10:15:00 | N49: 645 | O49: =N49*Input!$C$13 -> 997.1014493 | P49: 2018-06-01T10:15:00 | Q49: 725 | R49: =Q49*Input!$C$13 -> 1120.772947 | S49: 2018-07-01T10:15:00 | T49: 591 | U49: =T49*Input!$C$13 -> 913.6231884 | V49: 2018-08-01T10:30:00 | W49: 753 | X49: =W49*Input!$C$13 -> 1164.057971 | Y49: 2018-09-01T10:15:00 | Z49: 725 | AA49: =Z49*Input!$C$13 -> 1120.772947 | AB49: 2017-10-01T10:15:00 | AC49: 491 | AD49: =AC49*Input!$C$13 -> 759.0338164 | AE49: 2017-11-01T10:15:00 | AF49: 565 | AG49: =AF49*Input!$C$13 -> 873.4299517 | AH49: 2017-12-01T10:15:00 | AI49: 504 | AJ49: =AI49*Input!$C$13 -> 779.1304348
A50: 2018-01-01T10:30:00 | B50: 460 | C50: =B50*Input!$C$13 -> 711.1111111 | D50: 2018-02-01T10:30:00 | E50: 643 | F50: =E50*Input!$C$13 -> 994.0096618 | G50: 2018-03-01T10:45:00 | H50: 570 | I50: =H50*Input!$C$13 -> 881.1594203 | J50: 2018-04-01T10:30:00 | K50: 520 | L50: =K50*Input!$C$13 -> 803.8647343 | M50: 2018-05-01T10:30:00 | N50: 703 | O50: =N50*Input!$C$13 -> 1086.763285 | P50: 2018-06-01T10:30:00 | Q50: 771 | R50: =Q50*Input!$C$13 -> 1191.884058 | S50: 2018-07-01T10:30:00 | T50: 627 | U50: =T50*Input!$C$13 -> 969.2753623 | V50: 2018-08-01T10:45:00 | W50: 840 | X50: =W50*Input!$C$13 -> 1298.550725 | Y50: 2018-09-01T10:30:00 | Z50: 756 | AA50: =Z50*Input!$C$13 -> 1168.695652 | AB50: 2017-10-01T10:30:00 | AC50: 591 | AD50: =AC50*Input!$C$13 -> 913.6231884 | AE50: 2017-11-01T10:30:00 | AF50: 591 | AG50: =AF50*Input!$C$13 -> 913.6231884 | AH50: 2017-12-01T10:30:00 | AI50: 550 | AJ50: =AI50*Input!$C$13 -> 850.2415459
A51: 2018-01-01T10:45:00 | B51: 463 | C51: =B51*Input!$C$13 -> 715.7487923 | D51: 2018-02-01T10:45:00 | E51: 532 | F51: =E51*Input!$C$13 -> 822.4154589 | G51: 2018-03-01T11:00:00 | H51: 551 | I51: =H51*Input!$C$13 -> 851.7874396 | J51: 2018-04-01T10:45:00 | K51: 482 | L51: =K51*Input!$C$13 -> 745.1207729 | M51: 2018-05-01T10:45:00 | N51: 728 | O51: =N51*Input!$C$13 -> 1125.410628 | P51: 2018-06-01T10:45:00 | Q51: 790 | R51: =Q51*Input!$C$13 -> 1221.256039 | S51: 2018-07-01T10:45:00 | T51: 636 | U51: =T51*Input!$C$13 -> 983.1884058 | V51: 2018-08-01T11:00:00 | W51: 776 | X51: =W51*Input!$C$13 -> 1199.613527 | Y51: 2018-09-01T10:45:00 | Z51: 753 | AA51: =Z51*Input!$C$13 -> 1164.057971 | AB51: 2017-10-01T10:45:00 | AC51: 580 | AD51: =AC51*Input!$C$13 -> 896.6183575 | AE51: 2017-11-01T10:45:00 | AF51: 614 | AG51: =AF51*Input!$C$13 -> 949.178744 | AH51: 2017-12-01T10:45:00 | AI51: 604 | AJ51: =AI51*Input!$C$13 -> 933.7198068
A52: 2018-01-01T11:00:00 | B52: 520 | C52: =B52*Input!$C$13 -> 803.8647343 | D52: 2018-02-01T11:00:00 | E52: 567 | F52: =E52*Input!$C$13 -> 876.5217391 | G52: 2018-03-01T11:15:00 | H52: 632 | I52: =H52*Input!$C$13 -> 977.0048309 | J52: 2018-04-01T11:00:00 | K52: 510 | L52: =K52*Input!$C$13 -> 788.4057971 | M52: 2018-05-01T11:00:00 | N52: 721 | O52: =N52*Input!$C$13 -> 1114.589372 | P52: 2018-06-01T11:00:00 | Q52: 753 | R52: =Q52*Input!$C$13 -> 1164.057971 | S52: 2018-07-01T11:00:00 | T52: 613 | U52: =T52*Input!$C$13 -> 947.6328502 | V52: 2018-08-01T11:15:00 | W52: 750 | X52: =W52*Input!$C$13 -> 1159.42029 | Y52: 2018-09-01T11:00:00 | Z52: 712 | AA52: =Z52*Input!$C$13 -> 1100.676329 | AB52: 2017-10-01T11:00:00 | AC52: 550 | AD52: =AC52*Input!$C$13 -> 850.2415459 | AE52: 2017-11-01T11:00:00 | AF52: 606 | AG52: =AF52*Input!$C$13 -> 936.8115942 | AH52: 2017-12-01T11:00:00 | AI52: 608 | AJ52: =AI52*Input!$C$13 -> 939.9033816
